Workbook

Sheet Contents
A1: 80 | M1: ESC USE ONLY
D2: ESSENTIAL SERVICES COMMISSION
D3: Water Price Review - 2023
D4: Financial Model Template
B7: Table of Contents | F7: Water Business: | H7: =+N24 -> East Gippsland Water | I7: =+O24 -> EGW
B8: Section & Sheet Titles | F8: Regulatory Period: | H8: 2023-24 to 2027-28 (Fifth) | N8: [Decision] | O8: [Month] | P8: [Year] | Q8: [Version]
F9: Model Name: | H9: =I7&"_Price Review Template_"&O9&P9&Q9 -> EGW_Price Review Template_Oct2021 - v1 | N9: Draft | O9: Oct | P9: 2021 | Q9: - v1 | R9: << Select
B10: 1 | C10: Model Quality Check | F10: Decision type: | H10: =+N9&" Decision" -> Draft Decision | N10: Draft | O10: Jan | P10: 2016 | Q10: - v1
B11: 2 | C11: =+KeyAssumptionsPriceControl_FO!B1 -> Key Assumptions Price Control | N11: Final | O11: Feb | P11: 2017 | Q11: - v2
B12: 3 | C12: =+Expenditure_Detail!B1 -> Expenditure - Detail | F12: Model Key: | O12: Mar | P12: 2018 | Q12: - v3
B13: 4 | C13: =Opex_FO!B1 -> Operating Expenditure - Forecast | O13: Apr | P13: 2019 | Q13: - v4
B14: 5 | C14: =Opex_Breakdown!B1 -> Operating Expenditure - Breakdown | G14: BLUE | H14: =+I7&" - DATA INPUT CELL" -> EGW - DATA INPUT CELL | O14: May | P14: 2020 | Q14: - v5
B15: 6 | C15: =+'Capex_FO input'!B1 -> Capital Expenditure - Forecast Input | O15: Jun | P15: 2021 | Q15: - v6
B16: 7 | C16: =Capex_FO_AC!B1 -> Capital Expenditure - Asset Category Breakdown | G16: PURPLE | H16: NOTES / INSTRUCTIONS | O16: Jul | P16: 2022 | Q16: - v7
B17: 8 | C17: =ExpSummary_FO!B1 -> Expenditure Summary | O17: Aug | P17: 2023 | Q17: - v8
B18: 9 | C18: =RollForward_FO!B1 -> Rolled forward regulatory asset base (RAB) | G18: GREY | H18: MODEL PARAMETERS / ASSUMPTIONS | O18: Sep | P18: 2024 | Q18: - v9
B19: 10 | C19: =PrevPerAdj_FO!B1 -> Previous period adjustments | O19: Oct | P19: 2025 | Q19: - v10
B20: 11 | C20: =RevenuePriceCap_FO!C1 -> Revenue forecast (price caps) | G20: WHITE | H20: FORMULA / HARDCODED VALUES | O20: Nov | P20: 2026 | Q20: - v11
B21: 12 | C21: Revenue forecast (tariff basket) | O21: Dec | P21: 2027 | Q21: - v12
B22: 13 | C22: =NotPres_FO!B1 -> Non Prescribed Services | G22: ORANGE | H22: FORMULA DIFFERENT TO ADJACENT CELL
B23: 14 | C23: ='Finance&Tax_FO'!B1 -> Cash, debt and tax assumptions | N23: [Business]
B24: 15 | C24: ='Rev&RAV_FO'!B1 -> Revenue requirement detail | G24: GREEN | H24: DATA FROM 2018 DECISION OR PERFORMANCE REPORT | N24: East Gippsland Water | O24: =+VLOOKUP(N24,N25:O42,2,FALSE) -> EGW
B25: 16 | C25: =Indicators_FO!B1 -> Financial indicators | N25: Barwon Water | O25: BW
B26: 17 | C26: =Outcomes!B1 -> Outcomes | G26: RED | H26: ERROR CHECK | N26: Central Highlands Water | O26: CHW
B27: 18 | C27: =GSL!B1 -> Guaranteed Service Levels (GSL) | N27: Greater Western Water | O27: GWW
B28: 19 | C28: Dashboard - Pricing | N28: Coliban Water | O28: CW
B29: 20 | C29: Dashboard - Opex | N29: East Gippsland Water | O29: EGW
B30: 21 | C30: Dashboard - Capex | N30: Gippsland Water | O30: CGW
B31: 22 | C31: Dashboard - Data | N31: Goulburn Valley Water | O31: GVW
B32: 23 | C32: Household Bill | N32: GWM Water | O32: GWMW | P32: diff model
N33: Lower Murray Water - Urban | O33: LMW-U | P33: diff model
N34: Lower Murray Water - Rural | O34: LMW-R
N35: North East Water | O35: NEW
N36: South East Water | O36: SEW
N37: South Gippsland Water | O37: SGW
N38: Southern Rural Water | O38: SRW | P38: diff model
N39: Wannon Water | O39: WNW
N40: Westernport Water | O40: WPW
N41: Yarra Valley Water | O41: YVW

Sheet Adjustments log (hidden)
A3: 1 | B3: Operating expenditure
B4: $m 2022-23
C6: 2023-24 | D6: 2024-25 | E6: 2025-26 | F6: 2026-27 | G6: 2027-28 | H6: Total
B7: Proposed - controllable operating expenditure | H7: =SUM(C7:G7) -> 0
B8: DD adjustments
B9: xx | H9: =SUM(C9:G9) -> 0
B10: xx | H10: =SUM(C10:G10) -> 0
B11: xx | H11: =SUM(C11:G11) -> 0
B12: xx | H12: =SUM(C12:G12) -> 0
B13: xx | H13: =SUM(C13:G13) -> 0
B14: FD adjustments
B15: xx | H15: =SUM(C15:G15) -> 0
B16: xx | H16: =SUM(C16:G16) -> 0
B17: xx | H17: =SUM(C17:G17) -> 0
B18: xx | H18: =SUM(C18:G18) -> 0
B19: xx | H19: 0
B20: Total adjustments | C20: =SUM(C8:C19) -> 0 | D20: 0 | E20: 0 | F20: 0 | G20: 0 | H20: 0
B21: Final decision - controllable operating expenditure | C21: =C7+C20 -> 0 | D21: 0 | E21: 0 | F21: 0 | G21: 0 | H21: 0
B23: Proposed - non-controllable operating expenditure | H23: =SUM(C23:G23) -> 0
B24: DD adjustments
B25: xx | H25: =SUM(C25:G25) -> 0
B26: xx | H26: =SUM(C26:G26) -> 0
B27: xx | H27: =SUM(C27:G27) -> 0
B28: xx | H28: =SUM(C28:G28) -> 0
B29: FD adjustments
B30: xx | H30: =SUM(C30:G30) -> 0
B31: xx | H31: =SUM(C31:G31) -> 0
B32: Total adjustments | C32: =SUM(C24:C31) -> 0 | D32: 0 | E32: 0 | F32: 0 | G32: 0 | H32: 0
B33: Final decision - non-controllable operating expenditure | C33: =C23+C32 -> 0 | D33: 0 | E33: 0 | F33: 0 | G33: 0 | H33: 0
B35: Proposed - total operating expenditure | C35: =C7+C23 -> 0 | D35: 0 | E35: 0 | F35: 0 | G35: 0 | H35: 0
B36: Total adjustments | C36: =C20+C32 -> 0 | D36: 0 | E36: 0 | F36: 0 | G36: 0 | H36: 0
B37: Final decision - total operating expenditure | C37: =SUM(C35:C36) -> 0 | D37: 0 | E37: 0 | F37: 0 | G37: 0 | H37: 0
B39: Check
A42: 2 | B42: Capital expenditure
B43: $m 2022-23
C45: 2023-24 | D45: 2024-25 | E45: 2025-26 | F45: 2026-27 | G45: 2027-28 | H45: Total
B46: Proposed - capital expenditure | H46: =SUM(C46:G46) -> 0
B47: DD adjustments
B48: xx | H48: =SUM(C48:G48) -> 0
B49: xx | H49: =SUM(C49:G49) -> 0
B50: xx | H50: =SUM(C50:G50) -> 0
B51: xx | H51: =SUM(C51:G51) -> 0
B52: FD adjustments
B53: xx | H53: =SUM(C53:G53) -> 0
B54: xx
B55: Total adjustments | C55: =SUM(C47:C54) -> 0 | D55: 0 | E55: 0 | F55: 0 | G55: 0 | H55: 0
B56: Draft decision - capital expenditure | C56: =C46+C55 -> 0 | D56: 0 | E56: 0 | F56: 0 | G56: 0 | H56: 0
B58: Check

Sheet Model Quality Check
A1: 80 | B1: Model Quality Check
B2: =+Contents!H7 -> East Gippsland Water
B3: Go to Table of Contents
K4: FIRST REG PERIOD | O4: SECOND REG PERIOD | T4: THIRD REG PERIOD | Y4: FOURTH REG PERIOD | AD4: FIFTH REG PERIOD | AI4: SIXTH REG PERIOD
F6: Straight Line | J6: 2006 | K6: 2007 | L6: 2008 | M6: 2009 | N6: 2010 | O6: 2011 | P6: 2012 | Q6: 2013 | R6: 2014 | S6: 2015 | T6: 2016 | U6: 2017 | V6: 2018 | W6: 2019 | X6: 2020 | Y6: 2021 | Z6: 2022 | AA6: 2023 | AB6: 2024 | AC6: 2025 | AD6: 2026 | AE6: 2027 | AF6: 2028 | AG6: 2029 | AH6: 2030 | AI6: 2031 | AJ6: 2032 | AK6: 2033
F7: Declining Balance | J7: =+CONCATENATE(J6-1,"-",RIGHT(J6,2)) -> 2005-06 | K7: 2006-07 | L7: 2007-08 | M7: 2008-09 | N7: 2009-10 | O7: 2010-11 | P7: 2011-12 | Q7: 2012-13 | R7: 2013-14 | S7: 2014-15 | T7: 2015-16 | U7: 2016-17 | V7: 2017-18 | W7: =+CONCATENATE(W6-1,"-",RIGHT(W6,2)) -> 2018-19 | X7: 2019-20 | Y7: 2020-21 | Z7: 2021-22 | AA7: 2022-23 | AB7: 2023-24 | AC7: 2024-25 | AD7: 2025-26 | AE7: 2026-27 | AF7: =+CONCATENATE(AF6-1,"-",RIGHT(AF6,2)) -> 2027-28 | AG7: 2028-29 | AH7: 2029-30 | AI7: 2030-31 | AJ7: 2031-32 | AK7: 2032-33
D9: Model ready for submission: | I9: =SUM(AA15:AK49) -> 0 | R9: (If No, please ensure that the error check is corrected at the source)
D11: All financial indicators satisfied: | I11: =SUM(AB54:AK59) -> 1
E14: 1. | F14: Opex_FO
G15: Reconciliation to 'Opex_Breakdown' tab row 37 | AB15: =Opex_FO!AC100 -> 0 | AC15: =Opex_FO!AD100 -> 0 | AD15: =Opex_FO!AE100 -> 0 | AE15: =Opex_FO!AF100 -> 0 | AF15: =Opex_FO!AG100 -> 0 | AG15: =Opex_FO!AH100 -> 0 | AH15: =Opex_FO!AI100 -> 0 | AI15: =Opex_FO!AJ100 -> 0 | AJ15: =Opex_FO!AK100 -> 0 | AK15: =Opex_FO!AL100 -> 0
E17: 2. | F17: Opex_Breakdown
G18: Reconciliation to 'Opex_FO' tab row 95 | AB18: =Opex_Breakdown!AC42 -> 0 | AC18: =Opex_Breakdown!AD42 -> 0 | AD18: =Opex_Breakdown!AE42 -> 0 | AE18: =Opex_Breakdown!AF42 -> 0 | AF18: =Opex_Breakdown!AG42 -> 0 | AG18: =Opex_Breakdown!AH42 -> 0 | AH18: =Opex_Breakdown!AI42 -> 0 | AI18: =Opex_Breakdown!AJ42 -> 0 | AJ18: =Opex_Breakdown!AK42 -> 0 | AK18: =Opex_Breakdown!AL42 -> 0
G20: Reconciliation of Opex by service and function | AB20: =Opex_Breakdown!AC27 -> 0 | AC20: =Opex_Breakdown!AD27 -> 0 | AD20: =Opex_Breakdown!AE27 -> 0 | AE20: =Opex_Breakdown!AF27 -> 0 | AF20: =Opex_Breakdown!AG27 -> 0 | AG20: =Opex_Breakdown!AH27 -> 0 | AH20: =Opex_Breakdown!AI27 -> 0 | AI20: =Opex_Breakdown!AJ27 -> 0 | AJ20: =Opex_Breakdown!AK27 -> 0 | AK20: =Opex_Breakdown!AL27 -> 0
E22: 3. | F22: Capex_FO input
G23: Reconciliation of total prescribed capex between cost driver and capital type | AB23: ='Capex_FO input'!D26 -> 0 | AC23: ='Capex_FO input'!E26 -> 0 | AD23: ='Capex_FO input'!F26 -> 0 | AE23: ='Capex_FO input'!G26 -> 0 | AF23: ='Capex_FO input'!H26 -> 0 | AG23: ='Capex_FO input'!I26 -> 0 | AH23: ='Capex_FO input'!J26 -> 0 | AI23: ='Capex_FO input'!K26 -> 0 | AJ23: ='Capex_FO input'!L26 -> 0 | AK23: ='Capex_FO input'!M26 -> 0
E25: 4. | F25: Capex_FO_AC
G26: Reconciliation to 'Capex_FO input' tab row 29 | AA26: =Capex_FO_AC!AB30 -> 0 | AB26: =Capex_FO_AC!AC30 -> 0 | AC26: =Capex_FO_AC!AD30 -> 0 | AD26: =Capex_FO_AC!AE30 -> 0 | AE26: =Capex_FO_AC!AF30 -> 0 | AF26: =Capex_FO_AC!AG30 -> 0 | AG26: =Capex_FO_AC!AH30 -> 0 | AH26: =Capex_FO_AC!AI30 -> 0 | AI26: =Capex_FO_AC!AJ30 -> 0 | AJ26: =Capex_FO_AC!AK30 -> 0 | AK26: =Capex_FO_AC!AL30 -> 0
E28: 5. | F28: RollForward_FO
G29: Reconciliation of existing assets book value to RAB | AB29: =IF(ROUND(RollForward_FO!G84,2)=ROUND(RollForward_FO!G82,2),0,1) -> 0
E31: 6. | F31: RevenuePriceCap_FO
G32: Price control - Fifth period | AB32: =IF(KeyAssumptionsPriceControl_FO!I48=1,IF(RevenuePriceCap_FO!AD34="PRICE CONTROL OK",0,1),0) -> 0 | AC32: =IF(KeyAssumptionsPriceControl_FO!I48=1,RevenuePriceCap_FO!AD34,"") -> PRICE CONTROL OK
G34: Price control - Sixth period | AB34: =IF(KeyAssumptionsPriceControl_FO!I48=1,IF(RevenuePriceCap_FO!AI34="PRICE CONTROL OK",0,1),0) -> 0 | AC34: =IF(KeyAssumptionsPriceControl_FO!I48=1,RevenuePriceCap_FO!AI34,"") -> PRICE CONTROL OK
G36: Tariff revenue reconciliation | AB36: =RevenuePriceCap_FO!AC458 -> 0 | AC36: =RevenuePriceCap_FO!AD458 -> 0 | AD36: =RevenuePriceCap_FO!AE458 -> 0 | AE36: =RevenuePriceCap_FO!AF458 -> 0 | AF36: =RevenuePriceCap_FO!AG458 -> 0 | AG36: =RevenuePriceCap_FO!AH458 -> 0 | AH36: =RevenuePriceCap_FO!AI458 -> 0 | AI36: =RevenuePriceCap_FO!AJ458 -> 0 | AJ36: =RevenuePriceCap_FO!AK458 -> 0 | AK36: =RevenuePriceCap_FO!AL458 -> 0
E38: 7. | F38: RevenueTariffBasket_FO
G39: Price control - Fifth period | AB39: =IF(KeyAssumptionsPriceControl_FO!I48=2,IF(RevenueTariffBasket_FO!AD34="PRICE CONTROL OK",0,1),0) -> 0 | AC39: =IF(KeyAssumptionsPriceControl_FO!I48=2,RevenueTariffBasket_FO!AD34,"") -> 
G41: Price control - Sixth period | AB41: =IF(KeyAssumptionsPriceControl_FO!I48=2,IF(RevenueTariffBasket_FO!AI41="PRICE CONTROL OK",0,1),0) -> 0 | AC41: =IF(KeyAssumptionsPriceControl_FO!I48=2,RevenueTariffBasket_FO!AI34,"") -> 
G43: Tariff revenue reconciliation | AB43: =RevenueTariffBasket_FO!AC458 -> 0 | AC43: =RevenueTariffBasket_FO!AD458 -> 0 | AD43: =RevenueTariffBasket_FO!AE458 -> 0 | AE43: =RevenueTariffBasket_FO!AF458 -> 0 | AF43: =RevenueTariffBasket_FO!AG458 -> 0 | AG43: =RevenueTariffBasket_FO!AH458 -> 0 | AH43: =RevenueTariffBasket_FO!AI458 -> 0 | AI43: =RevenueTariffBasket_FO!AJ458 -> 0 | AJ43: =RevenueTariffBasket_FO!AK458 -> 0 | AK43: =RevenueTariffBasket_FO!AL458 -> 0
E45: 8. | F45: Rev&RAV_FO
G46: Rolled forward RAV reconciliation | AB46: ='Rev&RAV_FO'!AC80 -> 0 | AC46: ='Rev&RAV_FO'!AD80 -> 0 | AD46: ='Rev&RAV_FO'!AE80 -> 0 | AE46: ='Rev&RAV_FO'!AF80 -> 0 | AF46: ='Rev&RAV_FO'!AG80 -> 0 | AG46: ='Rev&RAV_FO'!AH80 -> 0 | AH46: ='Rev&RAV_FO'!AI80 -> 0 | AI46: ='Rev&RAV_FO'!AJ80 -> 0 | AJ46: ='Rev&RAV_FO'!AK80 -> 0 | AK46: ='Rev&RAV_FO'!AL80 -> 0
E48: 9. | F48: GSL
G49: Reconciliation to 'Opex_Breakdown' tab row 23 | AB49: =IF(ROUND(GSL!AC40,2)=ROUND(GSL!AC39,2),0,1) -> 0 | AC49: =IF(ROUND(GSL!AD40,2)=ROUND(GSL!AD39,2),0,1) -> 0 | AD49: =IF(ROUND(GSL!AE40,2)=ROUND(GSL!AE39,2),0,1) -> 0 | AE49: =IF(ROUND(GSL!AF40,2)=ROUND(GSL!AF39,2),0,1) -> 0 | AF49: =IF(ROUND(GSL!AG40,2)=ROUND(GSL!AG39,2),0,1) -> 0 | AG49: =IF(ROUND(GSL!AH40,2)=ROUND(GSL!AH39,2),0,1) -> 0 | AH49: =IF(ROUND(GSL!AI40,2)=ROUND(GSL!AI39,2),0,1) -> 0 | AI49: =IF(ROUND(GSL!AJ40,2)=ROUND(GSL!AJ39,2),0,1) -> 0 | AJ49: =IF(ROUND(GSL!AK40,2)=ROUND(GSL!AK39,2),0,1) -> 0 | AK49: =IF(ROUND(GSL!AL40,2)=ROUND(GSL!AL39,2),0,1) -> 0
E53: 1. | F53: Primary Indicator
G54: FFO interest cover | AB54: =Indicators_FO!AC$226 -> 0 | AC54: =Indicators_FO!AD$226 -> 0 | AD54: =Indicators_FO!AE$226 -> 0 | AE54: =Indicators_FO!AF$226 -> 0 | AF54: =Indicators_FO!AG$226 -> 0 | AG54: =Indicators_FO!AH$226 -> 0 | AH54: =Indicators_FO!AI$226 -> 0 | AI54: =Indicators_FO!AJ$226 -> 0 | AJ54: =Indicators_FO!AK$226 -> 0 | AK54: =Indicators_FO!AL$226 -> 0
E56: 2. | F56: Secondary indicators
G57: Net debt / RAV | AB57: =Indicators_FO!AC$235 -> 0 | AC57: =Indicators_FO!AD$235 -> 0 | AD57: =Indicators_FO!AE$235 -> 0 | AE57: =Indicators_FO!AF$235 -> 0 | AF57: =Indicators_FO!AG$235 -> 0 | AG57: =Indicators_FO!AH$235 -> 0 | AH57: =Indicators_FO!AI$235 -> 0 | AI57: =Indicators_FO!AJ$235 -> 0 | AJ57: =Indicators_FO!AK$235 -> 0 | AK57: =Indicators_FO!AL$235 -> 0
G58: FFO / Net debt | AB58: =Indicators_FO!AC$243 -> 0 | AC58: =Indicators_FO!AD$243 -> 0 | AD58: =Indicators_FO!AE$243 -> 0 | AE58: =Indicators_FO!AF$243 -> 0 | AF58: =Indicators_FO!AG$243 -> 0 | AG58: =Indicators_FO!AH$243 -> 0 | AH58: =Indicators_FO!AI$243 -> 0 | AI58: =Indicators_FO!AJ$243 -> 0 | AJ58: =Indicators_FO!AK$243 -> 0 | AK58: =Indicators_FO!AL$243 -> 0
G59: Internal financing ratio | AB59: =Indicators_FO!AC$252 -> 0 | AC59: =Indicators_FO!AD$252 -> 0 | AD59: =Indicators_FO!AE$252 -> 0 | AE59: =Indicators_FO!AF$252 -> 1 | AF59: =Indicators_FO!AG$252 -> 0 | AG59: =Indicators_FO!AH$252 -> 0 | AH59: =Indicators_FO!AI$252 -> 0 | AI59: =Indicators_FO!AJ$252 -> 0 | AJ59: =Indicators_FO!AK$252 -> 0 | AK59: =Indicators_FO!AL$252 -> 0

Sheet KeyAssumptionsPriceControl_FO
A1: 80 | B1: Key Assumptions Price Control
B2: =+Contents!H7 -> East Gippsland Water
B3: Go to Table of Contents
L4: FIRST REG PERIOD | P4: SECOND REG PERIOD | U4: THIRD REG PERIOD | Z4: FOURTH REG PERIOD | AE4: FIFTH REG PERIOD | AJ4: SIXTH REG PERIOD
F6: Straight Line | K6: 2006 | L6: 2007 | M6: 2008 | N6: 2009 | O6: 2010 | P6: 2011 | Q6: 2012 | R6: 2013 | S6: 2014 | T6: 2015 | U6: 2016 | V6: 2017 | W6: 2018 | X6: 2019 | Y6: 2020 | Z6: 2021 | AA6: 2022 | AB6: 2023 | AC6: 2024 | AD6: 2025 | AE6: 2026 | AF6: 2027 | AG6: 2028 | AH6: 2029 | AI6: 2030 | AJ6: 2031 | AK6: 2032 | AL6: 2033
F7: Declining Balance | I7: 2003-04 | J7: 2004-05 | K7: =+CONCATENATE(K6-1,"-",RIGHT(K6,2)) -> 2005-06 | L7: =+CONCATENATE(L6-1,"-",RIGHT(L6,2)) -> 2006-07 | M7: 2007-08 | N7: 2008-09 | O7: 2009-10 | P7: 2010-11 | Q7: 2011-12 | R7: 2012-13 | S7: 2013-14 | T7: 2014-15 | U7: 2015-16 | V7: 2016-17 | W7: 2017-18 | X7: 2018-19 | Y7: 2019-20 | Z7: 2020-21 | AA7: 2021-22 | AB7: 2022-23 | AC7: 2023-24 | AD7: 2024-25 | AE7: 2025-26 | AF7: 2026-27 | AG7: 2027-28 | AH7: =+CONCATENATE(AH6-1,"-",RIGHT(AH6,2)) -> 2028-29 | AI7: =+CONCATENATE(AI6-1,"-",RIGHT(AI6,2)) -> 2029-30 | AJ7: =+CONCATENATE(AJ6-1,"-",RIGHT(AJ6,2)) -> 2030-31 | AK7: =+CONCATENATE(AK6-1,"-",RIGHT(AK6,2)) -> 2031-32 | AL7: =+CONCATENATE(AL6-1,"-",RIGHT(AL6,2)) -> 2032-33
E11: Inflation assumptions
AB12: Estimate
F13: March quarter annual CPI | I13: 141.3 | J13: 144.1 | K13: 147.5 | L13: 151.9 | M13: 155.6 | N13: 162.2 | O13: 166.2 | P13: 171 | Q13: 176.7 | R13: 99.9 | S13: 102.4 | T13: 105.4 | U13: 106.8 | V13: 108.2 | W13: 110.5 | X13: 112.6 | Y13: 114.1 | Z13: 116.6 | AA13: 117.9 | AB13: 123.9
F14: Inflation | J14: =+J13/I13-1 -> 0.01981599434 | K14: 0.02359472588 | L14: 0.02983050847 | M14: 0.02435813035 | N14: 0.04241645244 | O14: 0.02466091245 | P14: 0.02888086643 | Q14: 0.03333333333 | R14: 0.01584606678 | S14: =+IF(S13=0,$Z$44,S13/R13-1) -> 0.02502502503 | T14: 0.029296875 | U14: 0.01328273245 | V14: 0.01310861423 | W14: 0.02125693161 | X14: 0.01900452489 | Y14: 0.01332149201 | Z14: 0.02191060473 | AA14: 0.01114922813 | AB14: 0.05089058524 | AC14: =+IF(AC13=0,$AC$44,AC13/AB13-1) -> 0.03 | AD14: 0.03 | AE14: 0.03 | AF14: 0.03 | AG14: 0.03 | AH14: 0.03 | AI14: 0.03 | AJ14: 0.03 | AK14: 0.03 | AL14: 0.03
F15: Inflation factor | I15: 0.7871866295 | J15: 0.8027855153 | K15: 0.8217270195 | L15: 0.8462395543 | M15: 0.8668523677 | N15: 0.9036211699 | O15: 0.9259052925 | P15: 0.9526462396 | Q15: 0.9844011142 | R15: =+R13/$AB$13 -> 0.8062953995 | S15: 0.8264729621 | T15: 0.8506860371 | U15: 0.8619854722 | V15: 0.8732849072 | W15: 0.8918482647 | X15: 0.9087974173 | Y15: 0.9209039548 | Z15: 0.9410815174 | AA15: 0.9515738499 | AB15: 1 | AC15: =+AB15*(1+AC14) -> 1.03 | AD15: 1.0609 | AE15: 1.092727 | AF15: 1.12550881 | AG15: 1.159274074 | AH15: 1.194052297 | AI15: 1.229873865 | AJ15: 1.266770081 | AK15: 1.304773184 | AL15: 1.343916379
I16: CPI index re-referenced in 2012-13, shaded values have been hardcoded to lock in RAB value.
E21: Cost of debt - 10 year trailing average (Nominal)
AA22: Estimate | AB22: Estimate | AC22: Estimate | AD22: Estimate | AE22: Estimate | AF22: Estimate | AG22: Estimate | AH22: Estimate | AI22: Estimate | AJ22: Estimate | AK22: Estimate | AL22: Estimate
E23: Cost of debt | L23: 0.06981666667 | M23: 0.07414 | N23: 0.0691525788 | O23: 0.07361870984 | P23: 0.07046784142 | Q23: 0.06308887941 | R23: 0.0526945046 | S23: 0.070525 | T23: 0.05360833333 | U23: 0.05270138413 | V23: 0.04908333333 | W23: 0.045283 | X23: 0.046133 | Y23: 0.03305833333 | Z23: 0.03045 | AA23: 0.0375 | AB23: =AA23 -> 0.0375 | AC23: =AB23 -> 0.0375 | AD23: =AC23 -> 0.0375 | AE23: =AD23 -> 0.0375 | AF23: =AE23 -> 0.0375 | AG23: =AF23 -> 0.0375 | AH23: =AG23 -> 0.0375 | AI23: =AH23 -> 0.0375 | AJ23: =AI23 -> 0.0375 | AK23: =AJ23 -> 0.0375 | AL23: =AK23 -> 0.0375
E24: Re-financing weightings - average 10 yrs | L24: =1/10 -> 0.1 | M24: =1/10 -> 0.1 | N24: =1/10 -> 0.1 | O24: =1/10 -> 0.1 | P24: =1/10 -> 0.1 | Q24: 0.1 | R24: 0.1 | S24: 0.1 | T24: 0.1 | U24: 0.1 | V24: 0.1 | W24: 0.1 | X24: 0.1 | Y24: 0.1 | Z24: 0.1 | AA24: 0.1 | AB24: 0.1 | AC24: 0.1 | AD24: 0.1 | AE24: 0.1 | AF24: 0.1 | AG24: 0.1 | AH24: 0.1 | AI24: 0.1 | AJ24: 0.1 | AK24: 0.1 | AL24: 0.1
E26: Cost of debt - 10 year trailing average | V26: =IF(U23<>"",SUMPRODUCT(L23:U23,L24:U24),"") -> 0.06498138982 | W26: 0.06290805649 | X26: 0.06002235649 | Y26: 0.05772039861 | Z26: 0.05366436096 | AA26: 0.04966257681 | AB26: =IF(AA23<>"",SUMPRODUCT(R23:AA23,R24:AA24),"") -> 0.04710368887 | AC26: =IF(AB23<>"",SUMPRODUCT(S23:AB23,S24:AB24),"") -> 0.04558423841 | AD26: =IF(AC23<>"",SUMPRODUCT(T23:AC23,T24:AC24),"") -> 0.04228173841 | AE26: 0.04067090508 | AF26: 0.03915076667 | AG26: 0.03799243333 | AH26: 0.03721413333 | AI26: 0.03635083333 | AJ26: 0.036795 | AK26: 0.0375 | AL26: 0.0375
E30: WACC assumptions (retained for historical purposes only) | Z30: Regulatory Rate of Return (RRR) - Nominal
K32: 1st period | M32: 2nd period | O32: 3rd period | Z32: Cost of Debt | AC32: =+AC26 -> 0.04558423841 | AD32: =+AD26 -> 0.04228173841 | AE32: 0.04067090508 | AF32: 0.03915076667 | AG32: 0.03799243333 | AH32: 0.03721413333 | AI32: 0.03635083333 | AJ32: 0.036795 | AK32: 0.0375 | AL32: 0.0375
E33: Parameters
F34: Risk Free Rate (Real) | K34: =Determination_Lookup!W8 -> 0.0267 | M34: =Determination_Lookup!X8 -> 0.0323 | O34: =Determination_Lookup!Y8 -> 0.005959
F35: Debt Premium | K35: =Determination_Lookup!W9 -> 0.0116 | M35: =Determination_Lookup!X9 -> 0.0175 | O35: =Determination_Lookup!Y9 -> 0.0399
F36: Equity Premium | K36: =Determination_Lookup!W10 -> 0.06 | M36: =Determination_Lookup!X10 -> 0.06 | O36: =Determination_Lookup!Y10 -> 0.06 | Z36: Regulatory Rate of Return (RRR) - Real
F37: Equity Beta | K37: =Determination_Lookup!W11 -> 0.75 | M37: =Determination_Lookup!X11 -> 0.65 | O37: =Determination_Lookup!Y11 -> 0.65
F38: Gearing (Debt/Assets) | K38: =Determination_Lookup!W12 -> 0.6 | M38: =Determination_Lookup!X12 -> 0.6 | O38: =Determination_Lookup!Y12 -> 0.6 | Z38: Cost of Debt | AC38: =(1+AC32)/(1+AC44)-1 -> 0.01513032856 | AD38: =(1+AD32)/(1+AD44)-1 -> 0.01192401788 | AE38: 0.01036010202 | AF38: 0.008884239482 | AG38: 0.007759644013 | AH38: 0.007004012945 | AI38: 0.006165857605 | AJ38: 0.006597087379 | AK38: 0.007281553398 | AL38: 0.007281553398
F39: Forecast Inflation | K39: =Determination_Lookup!W13 -> 0.0255 | M39: =Determination_Lookup!X13 -> 0.025 | O39: =Determination_Lookup!Y13 -> 0.0275
F40: Franking credit value | K40: =Determination_Lookup!W14 -> 0.5 | M40: =Determination_Lookup!X14 -> 0.5 | O40: =Determination_Lookup!Y14 -> 0.5 | Z40: Return on Equity | AC40: =IF(AE64<>0,(AE64/100),IF(AE62<>0,(AE62/100),(AE60/100))) -> 0.041 | AD40: =+$AC$40 -> 0.041 | AE40: 0.041 | AF40: 0.041 | AG40: 0.041 | AH40: 0.041 | AI40: 0.041 | AJ40: 0.041 | AK40: 0.041 | AL40: 0.041
E42: 'Vanilla' After Tax WACC (Real) | K42: =ROUND(((K34+K36*K37)*(1-K38))+((K34+K35)*K38),3) -> 0.052 | M42: =ROUND(((M34+M36*M37)*(1-M38))+((M34+M35)*M38),3) -> 0.058 | O42: =ROUND(((O34+O36*O37)*(1-O38))+((O34+O35)*O38),3) -> 0.045 | Z42: RRR (real) | AC42: =ROUND((AC40*(1-AC43)+AC38*AC43),4) -> 0.0255 | AD42: 0.0236 | AE42: 0.0226 | AF42: 0.0217 | AG42: 0.0211 | AH42: 0.0206 | AI42: 0.0201 | AJ42: 0.0204 | AK42: 0.0208 | AL42: 0.0208
Z43: Gearing | AC43: 0.6 | AD43: =+AC43 -> 0.6 | AE43: 0.6 | AF43: 0.6 | AG43: 0.6 | AH43: 0.6 | AI43: 0.6 | AJ43: 0.6 | AK43: 0.6 | AL43: 0.6
Z44: Forecast Inflation | AC44: 0.03 | AD44: =+AC44 -> 0.03 | AE44: 0.03 | AF44: 0.03 | AG44: 0.03 | AH44: 0.03 | AI44: 0.03 | AJ44: 0.03 | AK44: 0.03 | AL44: 0.03
L45: Regulatory Rate of Return (RRR) [retained for historical purposes only]
E46: Form of price control selected
O47: 4th period
E48: Price caps | I48: 1 | L48: Cost of Debt | O48: =Determination_Lookup!W25 -> 0.03618998679 | Z48: PREMO Assessment Matrix (linked to Regulatory Rate of Return calculation above)
L49: Return on Equity | O49: =Determination_Lookup!W26 -> 0.049 | U49: PREMO Graded Scoring System (for reference only)
E50: Revenue cap / Hybrid Tariff Basket | L50: Gearing | O50: =Determination_Lookup!W27 -> 0.6
L51: Forecast Inflation | O51: =Determination_Lookup!W28 -> 0.023 | AB51: Water business self-assessment
L52: RRR (real) | O52: =Determination_Lookup!W29 -> 0.0413
AB53: Leading | AC53: Advanced | AD53: Standard | AE53: Basic
Z54: ESC assessment of submission | AA54: Leading | AB54: 4.9
U55: Risk | AA55: Advanced | AB55: 4.3 | AC55: 4.5
U56: Engagement | V56: [Select] | AA56: Standard | AB56: 3.7 | AC56: 3.9 | AD56: 4.1
U57: Management | V57: [Select] | AA57: Basic | AD57: 3.5 | AE57: 3.7
U58: Outcomes | V58: [Select]
U60: Total Score | Z60: Water business self-assessment (Maximum allowable ROE) | AD60: Standard | AE60: =+VLOOKUP(AD60,$AD$71:$AE$75,2,FALSE) -> 4.1
Z62: ROE Override (Must be less than Maximum allowable ROE) | AE62: =+IF(AD62<=AE60,AD62,"CHECK") -> 0
U64: Rating | Z64: ESC assessment of submission | AD64: [Select] | AE64: =IFERROR(IF(AD64=AD60,AE60,VLOOKUP(AD60&AD64,AD78:AE82,2,FALSE)),0) -> 0
AD66: Difference | AE66: =IFERROR(IF(AE64=0,"",AE64-AE60),"") -> 
U70: ESC USE ONLY | AD70: Business self assessment
AD71: [Select]
AD72: Leading | AE72: =+AB54 -> 4.9
AD73: Advanced | AE73: =+AC55 -> 4.5
AD74: Standard | AE74: =+AD56 -> 4.1
AD75: Basic | AE75: =+AE57 -> 3.7
AD77: downgrading
AD78: =AD53&AA57 -> StandardBasic | AE78: =+AD57 -> 3.5
AD79: =+AC53&AA56 -> AdvancedStandard | AE79: =+AC56 -> 3.9
AD80: =+AB53&AA55 -> LeadingAdvanced | AE80: =+AB55 -> 4.3
AD81: =+AB53&AA56 -> LeadingStandard | AE81: =+AB56 -> 3.7
AD82: =+AD60&"Basic" -> StandardBasic | AE82: CHECK

Sheet Expenditure_Detail
A1: 80 | B1: Expenditure - Detail
B2: =Model_Name -> East Gippsland Water
B3: Go to Table of Contents
L4: FIRST REG PERIOD | P4: SECOND REG PERIOD | U4: THIRD REG PERIOD | Z4: FOURTH REG PERIOD | AE4: FIFTH REG PERIOD | AJ4: SIXTH REG PERIOD
K5: 2006 | L5: 2007 | M5: 2008 | N5: 2009 | O5: 2010 | P5: 2011 | Q5: 2012 | R5: 2013 | S5: 2014 | T5: 2015 | U5: 2016 | V5: 2017 | W5: 2018 | X5: 2019 | Y5: 2020 | Z5: 2021 | AA5: 2022 | AB5: 2023 | AC5: 2024 | AD5: 2025 | AE5: 2026 | AF5: 2027 | AG5: 2028 | AH5: 2029 | AI5: 2030 | AJ5: 2031 | AK5: 2032 | AL5: 2033
B6: $m, 01/01/23 | K6: =+CONCATENATE(K5-1,"-",RIGHT(K5,2)) -> 2005-06 | L6: =+CONCATENATE(L5-1,"-",RIGHT(L5,2)) -> 2006-07 | M6: 2007-08 | N6: 2008-09 | O6: 2009-10 | P6: 2010-11 | Q6: 2011-12 | R6: 2012-13 | S6: 2013-14 | T6: 2014-15 | U6: 2015-16 | V6: 2016-17 | W6: 2017-18 | X6: 2018-19 | Y6: 2019-20 | Z6: 2020-21 | AA6: 2021-22 | AB6: 2022-23 | AC6: 2023-24 | AD6: 2024-25 | AE6: 2025-26 | AF6: 2026-27 | AG6: 2027-28 | AH6: =+CONCATENATE(AH5-1,"-",RIGHT(AH5,2)) -> 2028-29 | AI6: =+CONCATENATE(AI5-1,"-",RIGHT(AI5,2)) -> 2029-30 | AJ6: =+CONCATENATE(AJ5-1,"-",RIGHT(AJ5,2)) -> 2030-31 | AK6: =+CONCATENATE(AK5-1,"-",RIGHT(AK5,2)) -> 2031-32 | AL6: =+CONCATENATE(AL5-1,"-",RIGHT(AL5,2)) -> 2032-33
B8: This worksheet outlines the key cost drivers of operating expenditure - capitalised costs are excluded. This tab does not link to the Rev&RAV_FO worksheet
C11: Expenditure Summary
D13: Total Labour costs | W13: =W34 -> 10.4 | X13: 10.26 | Y13: 11.33 | Z13: 10.93 | AA13: 11.97 | AB13: 12.137 | AC13: 13.1108 | AD13: 13.11 | AE13: 13.11 | AF13: 13.11 | AG13: 13.11 | AH13: =AH34 -> 0 | AI13: =AI34 -> 0 | AJ13: =AJ34 -> 0 | AK13: =AK34 -> 0 | AL13: =AL34 -> 0
D14: Total Energy costs | W14: =W92 -> 0.93613326 | X14: 1.25068385 | Y14: 1.18591299 | Z14: 1.23325064 | AA14: 1.0777481 | AB14: 1.007180381 | AC14: 0.9803064639 | AD14: 1.38224108 | AE14: 1.41156803 | AF14: =AF92 -> 1.447879626 | AG14: 1.357018931 | AH14: =AH92 -> 0 | AI14: =AI92 -> 0 | AJ14: =AJ92 -> 0 | AK14: =AK92 -> 0 | AL14: =AL92 -> 0
D15: Total IT costs | W15: =W103 -> 1.426 | X15: 1.636 | Y15: 1.549 | Z15: 1.658 | AA15: 1.838 | AB15: 1.62 | AC15: 2.696 | AD15: 2.3465 | AE15: 2.2965 | AF15: 2.2465 | AG15: 2.2465 | AH15: =AH103 -> 0 | AI15: =AI103 -> 0 | AJ15: =AJ103 -> 0 | AK15: =AK103 -> 0 | AL15: =AL103 -> 0
D16: Total Chemical costs | W16: =W114 -> 0.367 | X16: 0.409 | Y16: 0.48 | Z16: 0.524 | AA16: 0.666 | AB16: 0.67 | AC16: 0.67 | AD16: 0.67 | AE16: 0.67 | AF16: 0.67 | AG16: 0.67 | AH16: =AH114 -> 0.67 | AI16: =AI114 -> 0.67 | AJ16: =AJ114 -> 0.67 | AK16: =AK114 -> 0.67 | AL16: =AL114 -> 0.67
C21: Labour assumptions
D23: Current FTEs (at 30 June) | W23: 89 | X23: 92 | Y23: 99 | Z23: 99 | AA23: 99
D24: Actual and forecast labour costs for current FTEs ($m) | W24: 10.4 | X24: 10.26 | Y24: 11.33 | Z24: 10.93 | AA24: 11.97 | AB24: =11.92+0.217 -> 12.137 | AC24: =+AB24+Opex_FO!AC71+Opex_FO!AC72+Opex_FO!AC73+Opex_FO!AC77 -> 12.6239 | AD24: 12.61 | AE24: 12.61 | AF24: 12.61 | AG24: 12.61
D25: Cost per FTE ($000) | W25: =+W24/W23*10^3 -> 116.8539326 | X25: =+X24/X23*10^3 -> 111.5217391 | Y25: =+Y24/Y23*10^3 -> 114.4444444 | Z25: =+Z24/Z23*10^3 -> 110.4040404 | AA25: =+AA24/AA23*10^3 -> 120.9090909 | AB25: =+AB24/$AA$23*10^3 -> 122.5959596 | AC25: 127.5141414 | AD25: 127.3737374 | AE25: 127.3737374 | AF25: 127.3737374 | AG25: 127.3737374 | AH25: 0 | AI25: 0 | AJ25: 0 | AK25: 0 | AL25: 0
D26: Annual growth in labour costs for current FTEs | X26: =+X25/W25-1 -> -0.0456312709 | Y26: 0.02620749404 | Z26: -0.03530450132 | AA26: 0.09515096066 | AB26: 0.01395154553 | AC26: 0.04011699761 | AD26: -0.001101086035 | AE26: 0 | AF26: 0 | AG26: 0 | AH26: =+AH25/AG25-1 -> -1 | AI26: =+AI25/AH25-1 ->  | AJ26: =+AJ25/AI25-1 ->  | AK26: =+AK25/AJ25-1 ->  | AL26: =+AL25/AK25-1 -> 
D28: Change in FTEs in future periods (net no. annual change) | AB28: 2 | AC28: 5 | AD28: 0 | AE28: 0 | AF28: 0 | AG28: 0 | AH28: 0 | AI28: 0 | AJ28: 0 | AK28: 0 | AL28: 0
D29: Increase or decrease in labour costs ($m) | AC29: =+AC24-AB24 -> 0.4869 | AD29: 0.5 | AE29: 0.5 | AF29: 0.5 | AG29: 0.5
D33: Total FTEs | W33: =+W23 -> 89 | X33: 92 | Y33: 99 | Z33: 99 | AA33: 99 | AB33: =+$AA$23+SUM($AB28:AB28) -> 101 | AC33: =+$AA$23+SUM($AB28:AC28) -> 106 | AD33: =+$AA$23+SUM($AB28:AD28) -> 106 | AE33: =+$AA$23+SUM($AB28:AE28) -> 106 | AF33: =+$AA$23+SUM($AB28:AF28) -> 106 | AG33: =+$AA$23+SUM($AB28:AG28) -> 106 | AH33: =+$AA$23+SUM($AB28:AH28) -> 106 | AI33: =+$AA$23+SUM($AB28:AI28) -> 106 | AJ33: =+$AA$23+SUM($AB28:AJ28) -> 106 | AK33: =+$AA$23+SUM($AB28:AK28) -> 106 | AL33: =+$AA$23+SUM($AB28:AL28) -> 106
D34: Total labour costs ($m) | W34: 10.4 | X34: 10.26 | Y34: 11.33 | Z34: 10.93 | AA34: 11.97 | AB34: =+AB29+AB24 -> 12.137 | AC34: 13.1108 | AD34: 13.11 | AE34: 13.11 | AF34: 13.11 | AG34: 13.11 | AH34: 0 | AI34: 0 | AJ34: 0 | AK34: 0 | AL34: 0
D35: Cost per FTE | W35: =+W34/W33 -> 0.1168539326 | X35: 0.1115217391 | Y35: 0.1144444444 | Z35: 0.1104040404 | AA35: 0.1209090909 | AB35: 0.1201683168 | AC35: 0.1236867925 | AD35: 0.1236792453 | AE35: 0.1236792453 | AF35: 0.1236792453 | AG35: 0.1236792453 | AH35: =+AH34/AH33 -> 0 | AI35: =+AI34/AI33 -> 0 | AJ35: =+AJ34/AJ33 -> 0 | AK35: =+AK34/AK33 -> 0 | AL35: =+AL34/AL33 -> 0
D36: Annual growth in total labour costs | X36: =+X34/W34-1 -> -0.01346153846 | Y36: 0.104288499 | Z36: -0.03530450132 | AA36: 0.09515096066 | AB36: 0.01395154553 | AC36: 0.08023399522 | AD36: -6.101839705e-05 | AE36: 0 | AF36: 0 | AG36: 0 | AH36: =+AH34/AG34-1 -> -1
D37: Annual growth in total labour costs per FTE | X37: =+X35/W35-1 -> -0.0456312709 | Y37: 0.02620749404 | Z37: -0.03530450132 | AA37: 0.09515096066 | AB37: -0.006126702896 | AC37: 0.02927956148 | AD37: -6.101839705e-05 | AE37: 0 | AF37: 0 | AG37: 0 | AH37: -1
C42: Energy assumptions
D44: Electricity - traditional sources
D46: BASE LOAD
D48: Large sites
D49: Total kWh | W49: 3547757.241 | X49: 3731053.355 | Y49: 3534577.525 | Z49: 3815838.673 | AA49: 3832972.754 | AB49: 3705125.614 | AC49: 3715149.028 | AD49: 3725172.442 | AE49: 3735195.857 | AF49: 3745579.701 | AG49: 3755963.546
D50: Total electricity costs ($m) | W50: 0.48663958 | X50: 0.72243117 | Y50: 0.67060153 | Z50: 0.72079882 | AA50: 0.62679741 | AB50: 0.5877141292 | AC50: 0.6034473599 | AD50: 0.7276767801 | AE50: 0.7702535507 | AF50: 0.82235977 | AG50: 0.7839509157
D51: Average c/kWh | W51: =+W50/W49*100*10^6 -> 13.71682297 | X51: 19.36265985 | Y51: 18.97260777 | Z51: 18.88965655 | AA51: 16.35277499 | AB51: 15.86219174 | AC51: =+AC50/AC49*100*10^6 -> 16.24288434 | AD51: 19.53404282 | AE51: 20.62150367 | AF51: 21.9554738 | AG51: 20.87216519
D52: % increase p.a. | X52: =+X51/W51-1 -> 0.411599457 | Y52: =+Y51/X51-1 -> -0.02014455079 | Z52: =+Z51/Y51-1 -> -0.004372156559 | AA52: =+AA51/Z51-1 -> -0.1343000363 | AB52: =+AB51/AA51-1 -> -0.03 | AC52: =+AC51/AB51-1 -> 0.024 | AD52: 0.2026215546 | AE52: 0.05567003507 | AF52: 0.0646883056 | AG52: -0.04934116309
D54: Medium sites
D55: Total kWh
D56: Total electricity costs ($m)
D57: Average c/kWh | W57: =+W56/W55*100*10^6 ->  | AC57: =+AC56/AC55*100*10^6 -> 
D58: % increase p.a. | X58: =+X57/W57-1 ->  | Y58: =+Y57/X57-1 ->  | Z58: =+Z57/Y57-1 ->  | AA58: =+AA57/Z57-1 ->  | AB58: =+AB57/AA57-1 ->  | AC58: =+AC57/AB57-1 -> 
D60: Small sites
D61: Total kWh | W61: 1995613.448 | X61: 2098717.512 | Y61: 1967924.491 | Z61: 2050885.982 | AA61: 2215172 | AB61: 2084133.158 | AC61: 2089771.328 | AD61: 2095409.499 | AE61: 2101047.669 | AF61: 2106888.582 | AG61: 2112729.494
D62: Total electricity costs ($m) | W62: 0.44949368 | X62: 0.52825268 | Y62: 0.51531146 | Z62: 0.51245182 | AA62: 0.45095069 | AB62: 0.4306387517 | AC62: 0.437849004 | AD62: 0.528081093 | AE62: 0.5589794096 | AF62: 0.5967933264 | AG62: 0.5689197013
D63: Average c/kWh | W63: =+W62/W61*100*10^6 -> 22.52408554 | X63: 25.17026122 | Y63: 26.18553011 | Z63: 24.98685078 | AA63: 20.35736683 | AB63: 20.66272733 | AC63: =+AC62/AC61*100*10^6 -> 20.95200552 | AD63: 25.20180868 | AE63: 26.60479425 | AF63: 28.32581331 | AG63: 26.92818474
D64: % increase p.a. | X64: =+X63/W63-1 -> 0.1174820472 | Y64: =+Y63/X63-1 -> 0.04033604902 | Z64: =+Z63/Y63-1 -> -0.04577640093 | AA64: =+AA63/Z63-1 -> -0.1852768078 | AB64: =+AB63/AA63-1 -> 0.015 | AC64: =+AC63/AB63-1 -> 0.014 | AD64: 0.2028351491 | AE64: 0.05567003507 | AF64: 0.0646883056 | AG64: -0.04934116309
D67: NEW PROJECTS
D69: Large sites
D70: Total kWh | AB70: -79000 | AC70: -308000 | AD70: -308000 | AE70: -308000 | AF70: -308000 | AG70: -308000
D71: Total electricity costs ($m) | AB71: -0.0111725 | AC71: -0.06099 | AD71: -0.07334788861 | AE71: -0.07743116815 | AF71: -0.08244005921 | AG71: -0.07837237081
D72: Average c/kWh | W72: =+W71/W70*100*10^6 ->  | AB72: 14.14240506 | AC72: =+AC71/AC70*100*10^6 -> 19.80194805 | AD72: 23.81424955 | AE72: 25.13998966 | AF72: 26.76625299 | AG72: 25.44557494
D73: % increase p.a. | X73: =+X72/W72-1 ->  | Y73: =+Y72/X72-1 ->  | Z73: =+Z72/Y72-1 ->  | AA73: =+AA72/Z72-1 ->  | AB73: =+AB72/AA72-1 ->  | AC73: =+AC72/AB72-1 -> 0.4001824982 | AD73: 0.2026215546 | AE73: 0.05567003507 | AF73: 0.0646883056 | AG73: -0.04934116309
D75: Medium sites
D76: Total kWh
D77: Total electricity costs ($m)
D78: Average c/kWh | W78: =+W77/W76*100*10^6 ->  | AC78: =+AC77/AC76*100*10^6 -> 
D79: % increase p.a. | X79: =+X78/W78-1 ->  | Y79: =+Y78/X78-1 ->  | Z79: =+Z78/Y78-1 ->  | AA79: =+AA78/Z78-1 ->  | AB79: =+AB78/AA78-1 ->  | AC79: =+AC78/AB78-1 -> 
D81: Small sites
D82: Total kWh
D83: Total electricity costs ($m)
D84: Average c/kWh | W84: =+W83/W82*100*10^6 ->  | X84: =+X83/X82*100*10^6 ->  | AH84: =+AH83/AH82*100*10^6 ->  | AI84: =+AI83/AI82*100*10^6 ->  | AJ84: =+AJ83/AJ82*100*10^6 ->  | AK84: =+AK83/AK82*100*10^6 ->  | AL84: =+AL83/AL82*100*10^6 -> 
D85: % increase p.a. | X85: =+X84/W84-1 ->  | Y85: =+Y84/X84-1 ->  | Z85: =+Z84/Y84-1 ->  | AA85: =+AA84/Z84-1 ->  | AB85: =+AB84/AA84-1 ->  | AC85: =+AC84/AB84-1 -> 
D88: Greenhouse Gas Offsets | AC88: 1e-07 | AD88: 0.1998310954 | AE88: 0.1597662379 | AF88: 0.1111665891 | AG88: 0.08252068471
D89: % increase p.a. | X89: =X88/W88-1 ->  | AD89: 1998309.954 | AE89: -0.2004936088 | AF89: -0.304192234 | AG89: -0.257684477 | AH89: =AH88/AG88-1 -> -1 | AI89: =AI88/AH88-1 ->  | AJ89: =AJ88/AI88-1 ->  | AK89: =AK88/AJ88-1 ->  | AL89: =AL88/AK88-1 -> 
D92: TOTAL ENERGY COSTS | W92: =+SUM(W50,W56,W62,W71,W77,W83,W88) -> 0.93613326 | X92: 1.25068385 | Y92: 1.18591299 | Z92: 1.23325064 | AA92: 1.0777481 | AB92: 1.007180381 | AC92: 0.9803064639 | AD92: 1.38224108 | AE92: 1.41156803 | AF92: 1.447879626 | AG92: =+SUM(AG50,AG56,AG62,AG71,AG77,AG83,AG88) -> 1.357018931 | AH92: 0 | AI92: 0 | AJ92: 0 | AK92: 0 | AL92: 0
D93: % increase p.a. | W93: =W92/V92-1 ->  | X93: 0.3360104842 | Y93: -0.05178835563 | Z93: 0.03991662997 | AA93: -0.1260915948 | AB93: -0.06547700633 | AC93: -0.02668232771 | AD93: 0.4100091459 | AE93: 0.02121695751 | AF93: 0.02572429774 | AG93: -0.06275431589 | AH93: =AH92/AG92-1 -> -1 | AI93: =AI92/AH92-1 ->  | AJ93: =AJ92/AI92-1 ->  | AK93: =AK92/AJ92-1 ->  | AL93: =AL92/AK92-1 -> 
C98: IT cost assumptions
D100: Water related IT costs | W100: 0.713 | X100: 0.818 | Y100: 0.7745 | Z100: 0.829 | AA100: 0.919 | AB100: 0.81 | AC100: 1.348 | AD100: 1.17325 | AE100: 1.14825 | AF100: 1.12325 | AG100: 1.12325
D101: Sewerage and trade waste related IT costs | W101: 0.713 | X101: 0.818 | Y101: 0.7745 | Z101: 0.829 | AA101: 0.919 | AB101: 0.81 | AC101: 1.348 | AD101: 1.17325 | AE101: 1.14825 | AF101: 1.12325 | AG101: 1.12325
D102: Other IT costs
D103: Total IT costs | W103: =SUM(W100:W102) -> 1.426 | X103: 1.636 | Y103: 1.549 | Z103: 1.658 | AA103: 1.838 | AB103: 1.62 | AC103: =SUM(AC100:AC102) -> 2.696 | AD103: 2.3465 | AE103: 2.2965 | AF103: 2.2465 | AG103: 2.2465 | AH103: 0 | AI103: 0 | AJ103: 0 | AK103: 0 | AL103: 0
D104: % increase p.a. | X104: =X103/W103-1 -> 0.1472650771 | Y104: -0.05317848411 | Z104: 0.07036797934 | AA104: 0.1085645356 | AB104: -0.1186071817 | AC104: 0.6641975309 | AD104: -0.1296364985 | AE104: -0.02130833156 | AF104: -0.02177226214 | AG104: 0 | AH104: =AH103/AG103-1 -> -1 | AI104: =AI103/AH103-1 ->  | AJ104: =AJ103/AI103-1 ->  | AK104: =AK103/AJ103-1 ->  | AL104: =AL103/AK103-1 -> 
C109: Chemical cost assumptions
D111: Water related chemical costs | W111: 0.185 | X111: 0.212 | Y111: 0.231 | Z111: 0.282 | AA111: 0.359 | AB111: 0.36 | AC111: =+AB111 -> 0.36 | AD111: 0.36 | AE111: 0.36 | AF111: 0.36 | AG111: 0.36 | AH111: 0.36 | AI111: 0.36 | AJ111: 0.36 | AK111: 0.36 | AL111: 0.36
D112: Sewerage and trade waste related chemical costs | W112: 0.182 | X112: 0.197 | Y112: 0.249 | Z112: 0.242 | AA112: 0.307 | AB112: 0.31 | AC112: =+AB112 -> 0.31 | AD112: 0.31 | AE112: 0.31 | AF112: 0.31 | AG112: 0.31 | AH112: 0.31 | AI112: 0.31 | AJ112: 0.31 | AK112: 0.31 | AL112: 0.31
D113: Other chemical costs
D114: Total chemical costs | W114: =SUM(W111:W113) -> 0.367 | X114: 0.409 | Y114: 0.48 | Z114: 0.524 | AA114: 0.666 | AB114: 0.67 | AC114: =SUM(AC111:AC113) -> 0.67 | AD114: 0.67 | AE114: 0.67 | AF114: 0.67 | AG114: 0.67 | AH114: 0.67 | AI114: 0.67 | AJ114: 0.67 | AK114: 0.67 | AL114: 0.67
D115: % increase p.a. | X115: =X114/W114-1 -> 0.1144414169 | Y115: 0.173594132 | Z115: 0.09166666667 | AA115: 0.2709923664 | AB115: 0.006006006006 | AC115: 0 | AD115: 0 | AE115: 0 | AF115: 0 | AG115: 0 | AH115: =AH114/AG114-1 -> 0 | AI115: =AI114/AH114-1 -> 0 | AJ115: =AJ114/AI114-1 -> 0 | AK115: =AK114/AJ114-1 -> 0 | AL115: =AL114/AK114-1 -> 0

Sheet Opex_FO
A1: 80 | B1: Operating Expenditure - Forecast
B2: =Model_Name -> East Gippsland Water
B3: Go to Table of Contents
L4: FIRST REG PERIOD | P4: SECOND REG PERIOD | U4: THIRD REG PERIOD | Z4: FOURTH REG PERIOD | AE4: FIFTH REG PERIOD | AJ4: SIXTH REG PERIOD
K5: 2006 | L5: 2007 | M5: 2008 | N5: 2009 | O5: 2010 | P5: 2011 | Q5: 2012 | R5: 2013 | S5: 2014 | T5: 2015 | U5: 2016 | V5: 2017 | W5: 2018 | X5: 2019 | Y5: 2020 | Z5: 2021 | AA5: 2022 | AB5: 2023 | AC5: 2024 | AD5: 2025 | AE5: 2026 | AF5: 2027 | AG5: 2028 | AH5: 2029 | AI5: 2030 | AJ5: 2031 | AK5: 2032 | AL5: 2033
B6: =Expenditure_Detail!$B$6 -> $m, 01/01/23 | K6: =+CONCATENATE(K5-1,"-",RIGHT(K5,2)) -> 2005-06 | L6: =+CONCATENATE(L5-1,"-",RIGHT(L5,2)) -> 2006-07 | M6: 2007-08 | N6: 2008-09 | O6: 2009-10 | P6: 2010-11 | Q6: 2011-12 | R6: 2012-13 | S6: 2013-14 | T6: 2014-15 | U6: 2015-16 | V6: 2016-17 | W6: 2017-18 | X6: 2018-19 | Y6: 2019-20 | Z6: 2020-21 | AA6: 2021-22 | AB6: 2022-23 | AC6: 2023-24 | AD6: 2024-25 | AE6: 2025-26 | AF6: 2026-27 | AG6: 2027-28 | AH6: =+CONCATENATE(AH5-1,"-",RIGHT(AH5,2)) -> 2028-29 | AI6: =+CONCATENATE(AI5-1,"-",RIGHT(AI5,2)) -> 2029-30 | AJ6: =+CONCATENATE(AJ5-1,"-",RIGHT(AJ5,2)) -> 2030-31 | AK6: =+CONCATENATE(AK5-1,"-",RIGHT(AK5,2)) -> 2031-32 | AL6: =+CONCATENATE(AL5-1,"-",RIGHT(AL5,2)) -> 2032-33
C9: Parameters | G9: 4th period | I9: 5th period
D11: Cost efficiency improvement rate (% per annum) | G11: =Determination_Lookup!X33 -> 0.02253389274 | I11: =IFERROR(AVERAGE(AC11:AG11),"-") -> 0.0075 | AC11: 0.0075 | AD11: 0.0075 | AE11: 0.0075 | AF11: 0.0075 | AG11: 0.0075 | AH11: 0.0075 | AI11: 0.0075 | AJ11: 0.0075 | AK11: 0.0075 | AL11: 0.0075
D13: Customer growth forecast (% per annum) | G13: =Determination_Lookup!X34 -> 0.01625148962 | I13: =IFERROR(AVERAGE(AC13:AG13),"-") -> 0.01468 | Y13: =IF(Y15="","",Y15/X15-1) -> 0.01326259947 | Z13: =IF(Z15="","",Z15/Y15-1) -> 0.0168111911 | AA13: =IF(AA15="","",AA15/Z15-1) -> 0.01661370128 | AB13: 0.015 | AC13: 0.0148 | AD13: 0.0148 | AE13: 0.0148 | AF13: 0.0145 | AG13: 0.0145 | AH13: 0.0144 | AI13: 0.0144 | AJ13: 0.0144 | AK13: 0.0144 | AL13: 0.0144
F14: Net baseline opex growth | G14: =IFERROR(G13-G11,"-") -> -0.006282403124 | I14: =IFERROR(I13-I11,"-") -> 0.00718
D15: Water customers (No.) - Residential & Non-Residential - [BED 1] | W15: =+Determination_Lookup!M20 -> 23760 | X15: =+Determination_Lookup!N20 -> 24128 | Y15: =+Determination_Lookup!O20 -> 24448 | Z15: 24859 | AA15: 25272 | AB15: =+AA$15*(1+AB$13) -> 25651.08 | AC15: 26030.71598 | AD15: 26415.97058 | AE15: 26806.92695 | AF15: 27195.62739 | AG15: 27589.96398 | AH15: =+AG$15*(1+AH$13) -> 27987.25946 | AI15: =+AH$15*(1+AI$13) -> 28390.276 | AJ15: =+AI$15*(1+AJ$13) -> 28799.09598 | AK15: =+AJ$15*(1+AK$13) -> 29213.80296 | AL15: =+AK$15*(1+AL$13) -> 29634.48172
D17: Sewer customers (No.) - Residential & Non-Residential - [BED 2] | W17: =+Determination_Lookup!M21 -> 19832 | X17: =+Determination_Lookup!N21 -> 20090 | Y17: =+Determination_Lookup!O21 -> 20206 | Z17: 20572 | AA17: 20861 | AB17: =+AA$17*(1+AB$13) -> 21173.915 | AC17: 21487.28894 | AD17: 21805.30082 | AE17: 22128.01927 | AF17: 22448.87555 | AG17: 22774.38425 | AH17: =+AG$17*(1+AH$13) -> 23102.33538 | AI17: =+AH$17*(1+AI$13) -> 23435.00901 | AJ17: =+AI$17*(1+AJ$13) -> 23772.47314 | AK17: =+AJ$17*(1+AK$13) -> 24114.79675 | AL17: =+AK$17*(1+AL$13) -> 24462.04982
D19: Total metered volume of water delivered to customers (ML) - [BED 10] | W19: =+Determination_Lookup!M22 -> 5002 | X19: =+Determination_Lookup!N22 -> 5093 | Y19: =+Determination_Lookup!O22 -> 4878 | Z19: 4692 | AA19: 4284 | AB19: 4730 | AC19: 4780 | AD19: 4833 | AE19: 4884 | AF19: 4937 | AG19: 4989 | AH19: 5080 | AI19: 5134 | AJ19: 5227 | AK19: 5283 | AL19: 5379
D20: Residential, Non-Residential & Recycled (Residential & Non-Residential)
C24: Baseline Forecast
D26: Baseline year - total prescribed operating expenditure in 2021-22: | AA26: =+Opex_Breakdown!AA37 -> 25.142537
D28: Less non-controllable expenditure items incurred in 2021-22:
E29: External bulk water charges (excl. temporary purchases) | AA29: =+Opex_Breakdown!AA29 -> 0
E30: External temporary water purchases | AA30: =+Opex_Breakdown!AA30 -> 0 | AC30: Comparison with approved 2021-22 total controllable opex
E31: Licence fees | AA31: =+Opex_Breakdown!AA31 -> 0.06725699746 | AC31: per 2018 determination model
E32: Environment Contribution | AA32: =+Opex_Breakdown!AA32 -> 1.738
E33: Other non-controllable | AA33: =+Opex_Breakdown!AA33 -> 0
AA34: =SUM(AA29:AA33) -> 1.805256997 | AD34: 2021-22 | AE34: Difference | AF34: %
D36: Baseline year - total controllable operating expenditure in 2021-22: | AA36: =+AA26-AA34 -> 23.33728 | AD36: =Determination_Lookup!Q18 -> 19.90697376 | AE36: =+AA52-AD36 -> 1.803206244 | AF36: =+AE36/AD36 -> 0.09058163569
D38: Adjustments for non-recurring expenditure items incurred in 2021-22 and any efficiency savings to be realised from 2021-22: | AC38: ($, 2022-23)
D40: 1 | E40: Development of mulitple Facility Master Plans - DOC/22/40050 | H40: Corporate | AA40: 0.3704
D41: 2 | E41: Decommissioning of Kalimna Tank - DOC/22/40050 Project 8239 | H41: Corporate | AA41: 0.135
D42: 3 | E42: Woodglen Partnerships Investigation - DOC/22/40050 Project 8262 | H42: Corporate | AA42: 0.0278
D43: 4 | E43: Price Submission Consultancy / preparation - DOC/22/40050 Projects 8258 and 8263 | H43: Corporate | AA43: 0.172
D44: 5 | E44: IT / Data Strategy Development & GRWS work - DOC/22/40075 | H44: Corporate | AA44: 0.185
D45: 6 | E45: Change of Accounting Policy / Asset Threshold - increased to $1500 from $500 | H45: Corporate | AA45: 0.093
D46: 7 | E46: Customer Engagement and Reviews - PS2023-28 - DOC/22/40075 | H46: Corporate | AA46: 0.1777
D47: 8 | E47: BWWTP and LEWWTP Underground Asset Assessments - DOC/22/40075 | H47: Corporate | AA47: 0.199
D48: 9 | E48: Price Submission Staffing -short-term contracts | H48: Corporate | AA48: 0.2172
D49: 10 | E49: Class A review and 2021 adjustment for ZEW - DOC/22/40075 | AA49: 0.05
AA50: =SUM(AA40:AA49) -> 1.6271
D52: Adjusted baseline controllable operating expenditure (2021-22) | AA52: =+AA36-AA50 -> 21.71018
D54: Adjusted baseline controllable operating expenditure (Forecast) | AB54: =+AA52*(1+$AB$13-$G$11) -> 21.54661783 | AC54: =+AB$54*(1+AC$13-AC$11) -> 21.70390814 | AD54: 21.86234667 | AE54: 22.0219418 | AF54: 22.1760954 | AG54: 22.33132806 | AH54: 22.48541423 | AI54: 22.64056358 | AJ54: 22.79678347 | AK54: 22.95408128 | AL54: 23.11246444
C58: Operating expenditure - reconciliation
D61: Adjusted baseline controllable operating expenditure (Forecast) | AC61: =+AC54 -> 21.70390814 | AD61: 21.86234667 | AE61: 22.0219418 | AF61: 22.1760954 | AG61: 22.33132806 | AH61: 22.48541423 | AI61: 22.64056358 | AJ61: 22.79678347 | AK61: 22.95408128 | AL61: 23.11246444
H62: Controllable
D63: Forecast variations to baseline operating expenditure (above or below baseline) | H63: only
D65: 1 | E65: Technology One SaaS Fees - based on estimate received June 2022 | G65: Corporate | H65: Water | AC65: 0.176 | AD65: 0.176 | AE65: 0.176 | AF65: 0.176 | AG65: 0.176 | AH65: 0.176 | AI65: 0.176 | AJ65: 0.176 | AK65: 0.176 | AL65: 0.176
D66: 2 | E66: IT Security Enhancements | G66: Corporate | H66: Water | AC66: 0.408 | AD66: 0.408 | AE66: 0.358 | AF66: 0.308 | AG66: 0.308 | AH66: 0.308 | AI66: 0.308 | AJ66: 0.308 | AK66: 0.308 | AL66: 0.308
D67: 3 | E67: IT Foundation Architecture | G67: Corporate | H67: Water | AC67: 0.492 | AD67: 0.1425 | AE67: 0.1425 | AF67: 0.1425 | AG67: 0.1425 | AH67: 0.1425 | AI67: 0.1425 | AJ67: 0.1425 | AK67: 0.1425 | AL67: 0.1425
D68: 4 | E68: Increases in Electricity Costs Forecast - DOC/22/33633 | H68: WAter | AC68: -0.04872086807 | AD68: 0.1522464399 | AE68: 0.166909915 | AF68: 0.1850657132 | AG68: 0.1396353654 | AH68: 0 | AI68: 0 | AJ68: 0 | AK68: 0 | AL68: 0
D69: 5 | E69: Increases in Electricity Costs Forecast - DOC/22/33633 | H69: Sewerage | AC69: -0.04872086807 | AD69: 0.1522464399 | AE69: 0.166909915 | AF69: 0.1850657132 | AG69: 0.1396353654 | AH69: 0 | AI69: 0 | AJ69: 0 | AK69: 0 | AL69: 0
D70: 6 | E70: Asset Management Consultancy | G70: Corporate | H70: Water | AC70: -0.001 | AD70: -0.074 | AE70: -0.074 | AF70: -0.081 | AG70: -0.094 | AH70: -0.094 | AI70: -0.094 | AJ70: -0.094 | AK70: -0.094 | AL70: -0.094
D71: 7 | E71: Sewerage Team Members | H71: Sewerage | AC71: 0.158 | AD71: 0.158 | AE71: 0.158 | AF71: 0.158 | AG71: 0.158 | AH71: 0.158 | AI71: 0.158 | AJ71: 0.158 | AK71: 0.158 | AL71: 0.158
D72: 8 | E72: P&P Improvement Specialist | G72: Corporate | H72: Water | AC72: 0.14 | AD72: 0.14 | AE72: 0.14 | AF72: 0.14 | AG72: 0.14 | AH72: 0.14 | AI72: 0.14 | AJ72: 0.14 | AK72: 0.14 | AL72: 0.14
D73: 9 | E73: Trade Waste Officer | G73: Corporate | H73: Sewerage | AC73: 0.089 | AD73: 0.089 | AE73: 0.089 | AF73: 0.089 | AG73: 0.089 | AH73: 0.089 | AI73: 0.089 | AJ73: 0.089 | AK73: 0.089 | AL73: 0.089
D74: 10 | E74: Opex from New Capex - DOC/22/41224 | AC74: 0 | AD74: 0.0267 | AE74: 0.0667 | AF74: 0.0458 | AG74: 0.0477 | AH74: 0 | AI74: 0 | AJ74: 0 | AK74: 0 | AL74: 0
D75: 11 | E75: Professional Engineers Registration | G75: Corporate | H75: Water | AC75: 0.006 | AD75: 0.004 | AE75: 0.004 | AF75: 0.006 | AG75: 0.004 | AH75: 0.004 | AI75: 0.004 | AJ75: 0.004 | AK75: 0.004 | AL75: 0.004
D76: 12 | E76: Salary Increases beyond baseline year | G76: Corporate | H76: Water | AC76: 0.217 | AD76: 0.217 | AE76: 0.217 | AF76: 0.217 | AG76: 0.217 | AH76: 0.217 | AI76: 0.217 | AJ76: 0.217 | AK76: 0.217 | AL76: 0.217
D77: 13 | E77: Emission Offset postion | G77: Corporate | H77: Water | AC77: 0.0999 | AD77: 0.0999 | AE77: 0.0999 | AF77: 0.0999 | AG77: 0.0999 | AH77: 0.0999 | AI77: 0.0999 | AJ77: 0.0999 | AK77: 0.0999 | AL77: 0.0999
D78: 14 | E78: Increase in Hardship Support - DOC/22/30174 | G78: Corporate | H78: Water | AC78: 0.089 | AD78: 0.089 | AE78: 0.089 | AF78: 0.089 | AG78: 0.089 | AH78: 0.089 | AI78: 0.089 | AJ78: 0.089 | AK78: 0.089 | AL78: 0.089
D79: 15 | E79: Opex from New Capex - Groundwater monitoring DOC/22/14455 | H79: Sewerage | AC79: 0.133 | AD79: 0.066 | AE79: 0.066 | AF79: 0.066 | AG79: 0.066 | AH79: 0.066 | AI79: 0.066 | AJ79: 0.066 | AK79: 0.066 | AL79: 0.066
D81: Total changes required to baseline operating expenditure | AC81: =SUM(AC65:AC80) -> 1.909458264 | AD81: 1.84659288 | AE81: 1.86591983 | AF81: 1.826331426 | AG81: 1.722370731 | AH81: 1.3954 | AI81: 1.3954 | AJ81: 1.3954 | AK81: 1.3954 | AL81: 1.3954
D84: Total controllable operating expenditure | AC84: =+AC81+AC61 -> 23.61336641 | AD84: 23.70893955 | AE84: 23.88786163 | AF84: 24.00242682 | AG84: 24.05369879 | AH84: 23.88081423 | AI84: 24.03596358 | AJ84: 24.19218347 | AK84: 24.34948128 | AL84: 24.50786444
D86: Non-controllable operating expenditure
D87: External bulk water charges (excl. temporary purchases) | AC87: =+Opex_Breakdown!AC29 -> 0 | AD87: =+Opex_Breakdown!AD29 -> 0 | AE87: =+Opex_Breakdown!AE29 -> 0 | AF87: =+Opex_Breakdown!AF29 -> 0 | AG87: =+Opex_Breakdown!AG29 -> 0 | AH87: =+Opex_Breakdown!AH29 -> 0 | AI87: =+Opex_Breakdown!AI29 -> 0 | AJ87: =+Opex_Breakdown!AJ29 -> 0 | AK87: =+Opex_Breakdown!AK29 -> 0 | AL87: =+Opex_Breakdown!AL29 -> 0
D88: External temporary water purchases | AC88: =+Opex_Breakdown!AC30 -> 0 | AD88: =+Opex_Breakdown!AD30 -> 0 | AE88: =+Opex_Breakdown!AE30 -> 0 | AF88: =+Opex_Breakdown!AF30 -> 0 | AG88: =+Opex_Breakdown!AG30 -> 0 | AH88: =+Opex_Breakdown!AH30 -> 0 | AI88: =+Opex_Breakdown!AI30 -> 0 | AJ88: =+Opex_Breakdown!AJ30 -> 0 | AK88: =+Opex_Breakdown!AK30 -> 0 | AL88: =+Opex_Breakdown!AL30 -> 0
D89: Licence fees | AC89: =+Opex_Breakdown!AC31 -> 0.06607253516 | AD89: =+Opex_Breakdown!AD31 -> 0.06607253516 | AE89: =+Opex_Breakdown!AE31 -> 0.06607253516 | AF89: =+Opex_Breakdown!AF31 -> 0.06607253516 | AG89: =+Opex_Breakdown!AG31 -> 0.06607253516 | AH89: =+Opex_Breakdown!AH31 -> 0.06607253516 | AI89: =+Opex_Breakdown!AI31 -> 0.06607253516 | AJ89: =+Opex_Breakdown!AJ31 -> 0.06607253516 | AK89: =+Opex_Breakdown!AK31 -> 0.06607253516 | AL89: =+Opex_Breakdown!AL31 -> 0.06607253516
D90: Environment Contribution | AC90: =+Opex_Breakdown!AC32 -> 1.601941748 | AD90: =+Opex_Breakdown!AD32 -> 1.509983738 | AE90: =+Opex_Breakdown!AE32 -> 1.466003629 | AF90: =+Opex_Breakdown!AF32 -> 1.395010717 | AG90: =+Opex_Breakdown!AG32 -> 1.395010717 | AH90: =+Opex_Breakdown!AH32 -> 1.436861039 | AI90: =+Opex_Breakdown!AI32 -> 1.534511789 | AJ90: =+Opex_Breakdown!AJ32 -> 1.489817271 | AK90: =+Opex_Breakdown!AK32 -> 1.404295665 | AL90: =+Opex_Breakdown!AL32 -> 1.285129465
D91: Other non-controllable | AC91: =+Opex_Breakdown!AC33 -> 0 | AD91: =+Opex_Breakdown!AD33 -> 0 | AE91: =+Opex_Breakdown!AE33 -> 0 | AF91: =+Opex_Breakdown!AF33 -> 0 | AG91: =+Opex_Breakdown!AG33 -> 0 | AH91: =+Opex_Breakdown!AH33 -> 0 | AI91: =+Opex_Breakdown!AI33 -> 0 | AJ91: =+Opex_Breakdown!AJ33 -> 0 | AK91: =+Opex_Breakdown!AK33 -> 0 | AL91: =+Opex_Breakdown!AL33 -> 0
D92: Total non-controllable operating expenditure | AC92: =SUM(AC87:AC91) -> 1.668014283 | AD92: 1.576056273 | AE92: 1.532076164 | AF92: 1.461083252 | AG92: 1.461083252 | AH92: =SUM(AH87:AH91) -> 1.502933574 | AI92: =SUM(AI87:AI91) -> 1.600584324 | AJ92: =SUM(AJ87:AJ91) -> 1.555889806 | AK92: =SUM(AK87:AK91) -> 1.4703682 | AL92: =SUM(AL87:AL91) -> 1.351202
D95: Total prescribed operating expenditure | AC95: =+AC92+AC84 -> 25.28138069 | AD95: 25.28499582 | AE95: 25.4199378 | AF95: 25.46351007 | AG95: 25.51478205 | AH95: 25.3837478 | AI95: 25.63654791 | AJ95: 25.74807328 | AK95: 25.81984948 | AL95: 25.85906644
AB98: To reconcile to 'Opex_Breakdown' tab row 37 >> | AC98: =+Opex_Breakdown!AC37 -> 25.28138447 | AD98: =+Opex_Breakdown!AD37 -> 25.28499612 | AE98: =+Opex_Breakdown!AE37 -> 25.41989925 | AF98: =+Opex_Breakdown!AF37 -> 25.46127661 | AG98: =+Opex_Breakdown!AG37 -> 25.51031736 | AH98: =+Opex_Breakdown!AH37 -> 25.37923694 | AI98: =+Opex_Breakdown!AI37 -> 25.64195996 | AJ98: =+Opex_Breakdown!AJ37 -> 25.75390076 | AK98: =+Opex_Breakdown!AK37 -> 25.81548924 | AL98: =+Opex_Breakdown!AL37 -> 25.86491145
AB99: Difference | AC99: =+AC98-AC95 -> 3.779395637e-06 | AD99: 2.927585889e-07 | AE99: -3.854895994e-05 | AF99: -0.002233468451 | AG99: -0.004464686069 | AH99: -0.004510863022 | AI99: 0.005412054041 | AJ99: 0.005827482598 | AK99: -0.004360241199 | AL99: 0.00584500576
AB100: Test | AC100: =IF(ROUND(AC98,2)=ROUND(AC95,2),0,1) -> 0 | AD100: =IF(ROUND(AD98,2)=ROUND(AD95,2),0,1) -> 0 | AE100: 0 | AF100: 0 | AG100: 0 | AH100: 0 | AI100: 0 | AJ100: 0 | AK100: 0 | AL100: 0
AC139: =+AC$160 -> 2023-24 | AD139: 2024-25 | AE139: 2025-26 | AF139: 2026-27 | AG139: 2027-28 | AH139: 2028-29 | AI139: 2029-30 | AJ139: 2030-31 | AK139: 2031-32 | AL139: 2032-33
AB140: Total controllable opex | AC140: =+AC84 -> 23.61336641 | AD140: 23.70893955 | AE140: 23.88786163 | AF140: 24.00242682 | AG140: 24.05369879 | AH140: 23.88081423 | AI140: 24.03596358 | AJ140: 24.19218347 | AK140: 24.34948128 | AL140: 24.50786444
AB141: Change - $ | AD141: =+AD140-AC140 -> 0.09557314536 | AE141: 0.178922081 | AF141: 0.1145651889 | AG141: 0.05127197232 | AH141: -0.1728845672 | AI141: 0.1551493582 | AJ141: 0.1562198887 | AK141: 0.157297806 | AL141: 0.1583831608
AB142: Change - % | AC142: =IFERROR(AC141/AB140,"") ->  | AD142: 0.004047417201 | AE142: 0.00754660834 | AF142: 0.004795958327 | AG142: 0.002136116181 | AH142: -0.007187442094 | AI142: 0.00649682028 | AJ142: 0.006499422758 | AK142: 0.006502009467 | AL142: 0.006504580488
AC144: =+AC$160 -> 2023-24 | AD144: 2024-25 | AE144: 2025-26 | AF144: 2026-27 | AG144: 2027-28 | AH144: 2028-29 | AI144: 2029-30 | AJ144: 2030-31 | AK144: 2031-32 | AL144: 2032-33
AB145: Total non-controllable opex | AC145: =+AC92 -> 1.668014283 | AD145: 1.576056273 | AE145: 1.532076164 | AF145: 1.461083252 | AG145: 1.461083252 | AH145: 1.502933574 | AI145: 1.600584324 | AJ145: 1.555889806 | AK145: 1.4703682 | AL145: 1.351202
AB146: Change - $ | AD146: =+AD145-AC145 -> -0.09195800964 | AE146: -0.04398010887 | AF146: -0.07099291182 | AG146: 0 | AH146: 0.04185032152 | AI146: 0.09765075021 | AJ146: -0.04469451813 | AK146: -0.08552160599 | AL146: -0.1191661999
AB147: Change - % | AC147: =IFERROR(AC146/AB145,"") ->  | AD147: -0.05513022915 | AE147: -0.02790516406 | AF147: -0.04633771706 | AG147: 0 | AH147: 0.02864335174 | AI147: 0.06497343056 | AJ147: -0.02792387596 | AK147: -0.05496636437 | AL147: -0.08104514223
AC149: =+AC$160 -> 2023-24 | AD149: 2024-25 | AE149: 2025-26 | AF149: 2026-27 | AG149: 2027-28 | AH149: 2028-29 | AI149: 2029-30 | AJ149: 2030-31 | AK149: 2031-32 | AL149: 2032-33
AB150: Total prescribed opex | AC150: =+AC140+AC145 -> 25.28138069 | AD150: 25.28499582 | AE150: 25.4199378 | AF150: 25.46351007 | AG150: 25.51478205 | AH150: 25.3837478 | AI150: 25.63654791 | AJ150: 25.74807328 | AK150: 25.81984948 | AL150: 25.85906644
AB151: Change - $ | AD151: =+AD150-AC150 -> 0.003615135722 | AE151: 0.1349419721 | AF151: 0.04357227709 | AG151: 0.05127197232 | AH151: -0.1310342457 | AI151: 0.2528001084 | AJ151: 0.1115253706 | AK151: 0.07177619998 | AL151: 0.03921696093
AB152: Change - % | AC152: =IFERROR(AC151/AB150,"") ->  | AD152: 0.0001429959766 | AE152: 0.005336839801 | AF152: 0.001714098494 | AG152: 0.002013546922 | AH152: -0.005135620813 | AI152: 0.009959132527 | AJ152: 0.004350249145 | AK152: 0.002787633824 | AL152: 0.001518868689
AB155: Controllable vs. Non-controllable opex - % | AC155: =+AC$160 -> 2023-24 | AD155: 2024-25 | AE155: 2025-26 | AF155: 2026-27 | AG155: 2027-28 | AH155: 2028-29 | AI155: 2029-30 | AJ155: 2030-31 | AK155: 2031-32 | AL155: 2032-33
AB156: Controllable opex - % | AC156: =+AC84/AC95 -> 0.9340220258 | AD156: 0.9376683198 | AE156: 0.9397293504 | AF156: 0.9426205088 | AG156: 0.9427358129 | AH156: 0.9407915023 | AI156: 0.9375663085 | AJ156: 0.9395725735 | AK156: 0.9430527974 | AL156: 0.9477474563
AB157: Non-controllable opex - % | AC157: =+AC92/AC95 -> 0.0659779742 | AD157: 0.06233168018 | AE157: 0.06027064962 | AF157: 0.05737949121 | AG157: 0.05726418708 | AH157: 0.05920849773 | AI157: 0.06243369153 | AJ157: 0.06042742651 | AK157: 0.05694720262 | AL157: 0.05225254373
AC158: =SUM(AC156:AC157) -> 1 | AD158: 1 | AE158: 1 | AF158: 1 | AG158: 1 | AH158: 1 | AI158: 1 | AJ158: 1 | AK158: 1 | AL158: 1
AA160: =+AA6 -> 2021-22 | AB160: 2022-23 | AC160: 2023-24 | AD160: 2024-25 | AE160: 2025-26 | AF160: 2026-27 | AG160: 2027-28 | AH160: =+AH6 -> 2028-29 | AI160: =+AI6 -> 2029-30 | AJ160: =+AJ6 -> 2030-31 | AK160: =+AK6 -> 2031-32 | AL160: =+AL6 -> 2032-33
Y161: Fourth reg period opex | Z161: Third Reg period Opex | AA161: =+AA169-SUM(AA162:AA168) -> 25.142537 | AB161: =+AB169-SUM(AB162:AB168) -> 25.10607254
Z162: Adjusted baseline opex | AC162: =+AC61 -> 21.70390814 | AD162: 21.86234667 | AE162: 22.0219418 | AF162: 22.1760954 | AG162: 22.33132806 | AH162: 22.48541423 | AI162: 22.64056358 | AJ162: 22.79678347 | AK162: 22.95408128 | AL162: 23.11246444
Z163: Forecast variations to baseline operating expenditure | AC163: =+AC81 -> 1.909458264 | AD163: 1.84659288 | AE163: 1.86591983 | AF163: 1.826331426 | AG163: 1.722370731 | AH163: 1.3954 | AI163: 1.3954 | AJ163: 1.3954 | AK163: 1.3954 | AL163: 1.3954
Z164: Licence fees | AA164: =+AA193 -> 0 | AB164: =+AB193 -> 0 | AC164: =+AC89 -> 0.06607253516 | AD164: 0.06607253516 | AE164: 0.06607253516 | AF164: 0.06607253516 | AG164: 0.06607253516 | AH164: =+AH89 -> 0.06607253516 | AI164: 0.06607253516 | AJ164: 0.06607253516 | AK164: 0.06607253516 | AL164: 0.06607253516
Z165: Environment Contribution | AA165: =+AA194 -> 0 | AB165: =+AB194 -> 0 | AC165: =+AC90 -> 1.601941748 | AD165: 1.509983738 | AE165: 1.466003629 | AF165: 1.395010717 | AG165: 1.395010717 | AH165: 1.436861039 | AI165: 1.534511789 | AJ165: 1.489817271 | AK165: 1.404295665 | AL165: 1.285129465
Z166: External bulk water charges | AA166: =+AA191 -> 0 | AB166: =+AB191 -> 0 | AC166: =+AC87 -> 0 | AD166: 0 | AE166: 0 | AF166: 0 | AG166: 0 | AH166: =+AH87 -> 0 | AI166: 0 | AJ166: 0 | AK166: 0 | AL166: 0
Z167: External temporary water purchases | AA167: =+AA192 -> 0 | AB167: =+AB192 -> 0 | AC167: =+AC88 -> 0 | AD167: 0 | AE167: 0 | AF167: 0 | AG167: 0 | AH167: 0 | AI167: 0 | AJ167: 0 | AK167: 0 | AL167: 0
Z168: Other non-controllable | AA168: =+AA195 -> 0 | AB168: =+AB195 -> 0 | AC168: =+AC91 -> 0 | AD168: 0 | AE168: 0 | AF168: 0 | AG168: 0 | AH168: =+AH91 -> 0 | AI168: =+AI91 -> 0 | AJ168: =+AJ91 -> 0 | AK168: =+AK91 -> 0 | AL168: =+AL91 -> 0
Z169: Total prescribed opex | AA169: =+Opex_Breakdown!AA37 -> 25.142537 | AB169: =+Opex_Breakdown!AB37 -> 25.10607254 | AC169: =SUM(AC162:AC168) -> 25.28138069 | AD169: 25.28499582 | AE169: 25.4199378 | AF169: 25.46351007 | AG169: 25.51478205 | AH169: =SUM(AH162:AH168) -> 25.3837478 | AI169: =SUM(AI162:AI168) -> 25.63654791 | AJ169: =SUM(AJ162:AJ168) -> 25.74807328 | AK169: =SUM(AK162:AK168) -> 25.81984948 | AL169: =SUM(AL162:AL168) -> 25.85906644
AC171: =+AC$160 -> 2023-24 | AD171: 2024-25 | AE171: 2025-26 | AF171: 2026-27 | AG171: 2027-28 | AH171: 2028-29 | AI171: 2029-30 | AJ171: 2030-31 | AK171: 2031-32 | AL171: 2032-33
AB172: Adjusted baseline opex | AC172: =+AC162/AC$169 -> 0.8584937828 | AD172: 0.8646371478 | AE172: 0.8663255583 | AF172: 0.8708970339 | AG172: 0.8752309944 | AH172: 0.8858193204 | AI172: 0.8831362033 | AJ172: 0.8853782272 | AK172: 0.8890091051 | AL172: 0.8937857248
AB173: Forecast variations to baseline operating expenditure | AC173: =+AC163/AC$169 -> 0.07552824299 | AD173: 0.07303117203 | AE173: 0.07340379213 | AF173: 0.07172347493 | AG173: 0.06750481849 | AH173: 0.05497218184 | AI173: 0.05443010521 | AJ173: 0.0541943463 | AK173: 0.05404369228 | AL173: 0.0539617315
AB174: Licence fees | AC174: =+AC164/AC$169 -> 0.002613486027 | AD174: 0.002613112362 | AE174: 0.002599240631 | AF174: 0.002594792901 | AG174: 0.002589578662 | AH174: 0.002602946408 | AI174: 0.002577278946 | AJ174: 0.002566115703 | AK174: 0.002558982198 | AL174: 0.002555101334
AB175: Environment Contribution | AC175: =+AC165/AC$169 -> 0.06336448817 | AD175: 0.05971856782 | AE175: 0.05767140898 | AF175: 0.05478469831 | AG175: 0.05467460842 | AH175: 0.05660555132 | AI175: 0.05985641259 | AJ175: 0.05786131081 | AK175: 0.05438822043 | AL175: 0.0496974424
AB176: External bulk water charges (excl. temporary purchases) | AC176: =+AC166/AC$169 -> 0 | AD176: 0 | AE176: 0 | AF176: 0 | AG176: 0 | AH176: 0 | AI176: 0 | AJ176: 0 | AK176: 0 | AL176: 0
AB177: External temporary water purchases | AC177: =+AC167/AC$169 -> 0 | AD177: 0 | AE177: 0 | AF177: 0 | AG177: 0 | AH177: 0 | AI177: 0 | AJ177: 0 | AK177: 0 | AL177: 0
AB178: Other non-controllable | AC178: =+AC168/AC$169 -> 0 | AD178: 0 | AE178: 0 | AF178: 0 | AG178: 0 | AH178: 0 | AI178: 0 | AJ178: 0 | AK178: 0 | AL178: 0
AB179: Total prescribed opex | AC179: =+AC169/AC$169 -> 1 | AD179: 1 | AE179: 1 | AF179: 1 | AG179: 1 | AH179: 1 | AI179: 1 | AJ179: 1 | AK179: 1 | AL179: 1
AC181: =+AC$160 -> 2023-24 | AD181: 2024-25 | AE181: 2025-26 | AF181: 2026-27 | AG181: 2027-28 | AH181: 2028-29 | AI181: 2029-30 | AJ181: 2030-31 | AK181: 2031-32 | AL181: 2032-33
AB182: Water | AC182: =+SUMIF($H$65:$H$80,$AB182,AC$65:AC$80) -> 1.578179132 | AD182: =+SUMIF($H$65:$H$80,$AB182,AD$65:AD$80) -> 1.35464644 | AE182: 1.319309915 | AF182: 1.282465713 | AG182: 1.222035365 | AH182: 1.0824 | AI182: 1.0824 | AJ182: 1.0824 | AK182: 1.0824 | AL182: 1.0824
AB183: Sewerage | AC183: 0.3312791319 | AD183: 0.4652464399 | AE183: 0.479909915 | AF183: 0.4980657132 | AG183: 0.4526353654 | AH183: 0.313 | AI183: 0.313 | AJ183: 0.313 | AK183: 0.313 | AL183: 0.313
AB184: Recycled Water | AC184: 0 | AD184: 0 | AE184: 0 | AF184: 0 | AG184: 0 | AH184: 0 | AI184: 0 | AJ184: 0 | AK184: 0 | AL184: 0
AB185: Rural water | AC185: 0 | AD185: 0 | AE185: 0 | AF185: 0 | AG185: 0 | AH185: 0 | AI185: 0 | AJ185: 0 | AK185: 0 | AL185: 0
AB186: Bulk Water | AC186: 0 | AD186: 0 | AE186: 0 | AF186: 0 | AG186: 0 | AH186: 0 | AI186: 0 | AJ186: 0 | AK186: 0 | AL186: 0
AB187: Forecast variations to baseline operating expenditure | AC187: =SUM(AC182:AC186) -> 1.909458264 | AD187: 1.81989288 | AE187: 1.79921983 | AF187: 1.780531426 | AG187: 1.674670731 | AH187: 1.3954 | AI187: 1.3954 | AJ187: 1.3954 | AK187: 1.3954 | AL187: 1.3954
AA190: =+AA6 -> 2021-22 | AB190: 2022-23 | AC190: 2023-24 | AD190: 2024-25 | AE190: 2025-26 | AF190: 2026-27 | AG190: 2027-28 | AH190: =+AH6 -> 2028-29 | AI190: =+AI6 -> 2029-30 | AJ190: =+AJ6 -> 2030-31 | AK190: =+AK6 -> 2031-32 | AL190: =+AL6 -> 2032-33
Z191: External bulk water charges (excl. temporary purchases) | AA191: =+AA87 -> 0 | AB191: 0 | AC191: 0 | AD191: 0 | AE191: 0 | AF191: 0 | AG191: 0 | AH191: =+AH87 -> 0 | AI191: 0 | AJ191: 0 | AK191: 0 | AL191: 0
Z192: External temporary water purchases | AA192: =+AA88 -> 0 | AB192: 0 | AC192: 0 | AD192: 0 | AE192: 0 | AF192: 0 | AG192: 0 | AH192: 0 | AI192: 0 | AJ192: 0 | AK192: 0 | AL192: 0
Z193: Licence fees | AA193: =+AA89 -> 0 | AB193: 0 | AC193: 0.06607253516 | AD193: 0.06607253516 | AE193: 0.06607253516 | AF193: 0.06607253516 | AG193: 0.06607253516 | AH193: 0.06607253516 | AI193: 0.06607253516 | AJ193: 0.06607253516 | AK193: 0.06607253516 | AL193: 0.06607253516
Z194: Environment Contribution | AA194: =+AA90 -> 0 | AB194: 0 | AC194: 1.601941748 | AD194: 1.509983738 | AE194: 1.466003629 | AF194: 1.395010717 | AG194: 1.395010717 | AH194: 1.436861039 | AI194: 1.534511789 | AJ194: 1.489817271 | AK194: 1.404295665 | AL194: 1.285129465
Z195: Other non-controllable | AA195: =+AA91 -> 0 | AB195: 0 | AC195: 0 | AD195: 0 | AE195: 0 | AF195: 0 | AG195: 0 | AH195: 0 | AI195: 0 | AJ195: 0 | AK195: 0 | AL195: 0
Z196: Total Non-controllable operating expenditure | AA196: =SUM(AA191:AA195) -> 0 | AB196: 0 | AC196: 1.668014283 | AD196: 1.576056273 | AE196: 1.532076164 | AF196: 1.461083252 | AG196: 1.461083252 | AH196: =SUM(AH191:AH195) -> 1.502933574 | AI196: =SUM(AI191:AI195) -> 1.600584324 | AJ196: =SUM(AJ191:AJ195) -> 1.555889806 | AK196: =SUM(AK191:AK195) -> 1.4703682 | AL196: =SUM(AL191:AL195) -> 1.351202
AB198: Check | AC198: =IF(ROUND(AC169,2)=ROUND(AC95,2),0,1) -> 0 | AD198: =IF(ROUND(AD169,2)=ROUND(AD95,2),0,1) -> 0 | AE198: 0 | AF198: 0 | AG198: 0 | AH198: 0 | AI198: 0 | AJ198: 0 | AK198: 0 | AL198: 0
AC199: =IF(ROUND(AC187,2)=ROUND(AC163,2),0,1) -> 0 | AD199: =IF(ROUND(AD187,2)=ROUND(AD163,2),0,1) -> 1 | AE199: 1 | AF199: 1 | AG199: 1 | AH199: 0 | AI199: 0 | AJ199: 0 | AK199: 0 | AL199: 0
AC200: =IF(ROUND(AC150,2)=ROUND(AC169,2),0,1) -> 0 | AD200: =IF(ROUND(AD150,2)=ROUND(AD169,2),0,1) -> 0 | AE200: 0 | AF200: 0 | AG200: 0 | AH200: 0 | AI200: 0 | AJ200: 0 | AK200: 0 | AL200: 0
AC201: =IF(ROUND(AC196,2)=ROUND(AC145,2),0,1) -> 0 | AD201: =IF(ROUND(AD196,2)=ROUND(AD145,2),0,1) -> 0 | AE201: 0 | AF201: 0 | AG201: 0 | AH201: 0 | AI201: 0 | AJ201: 0 | AK201: 0 | AL201: 0

Sheet Opex_Breakdown
A1: 80 | B1: Operating Expenditure - Breakdown
B2: =+Contents!H7 -> East Gippsland Water
B3: Go to Table of Contents
L4: FIRST REG PERIOD | P4: SECOND REG PERIOD | U4: THIRD REG PERIOD | Z4: FOURTH REG PERIOD | AE4: FIFTH REG PERIOD | AJ4: SIXTH REG PERIOD
K6: 2006 | L6: 2007 | M6: 2008 | N6: 2009 | O6: 2010 | P6: 2011 | Q6: 2012 | R6: 2013 | S6: 2014 | T6: 2015 | U6: 2016 | V6: 2017 | W6: 2018 | X6: 2019 | Y6: 2020 | Z6: 2021 | AA6: 2022 | AB6: 2023 | AC6: 2024 | AD6: 2025 | AE6: 2026 | AF6: 2027 | AG6: 2028 | AH6: 2029 | AI6: 2030 | AJ6: 2031 | AK6: 2032 | AL6: 2033
B7: =Expenditure_Detail!$B$6 -> $m, 01/01/23 | K7: =+CONCATENATE(K6-1,"-",RIGHT(K6,2)) -> 2005-06 | L7: =+CONCATENATE(L6-1,"-",RIGHT(L6,2)) -> 2006-07 | M7: 2007-08 | N7: 2008-09 | O7: 2009-10 | P7: 2010-11 | Q7: 2011-12 | R7: 2012-13 | S7: 2013-14 | T7: 2014-15 | U7: 2015-16 | V7: 2016-17 | W7: 2017-18 | X7: =+CONCATENATE(X6-1,"-",RIGHT(X6,2)) -> 2018-19 | Y7: 2019-20 | Z7: 2020-21 | AA7: 2021-22 | AB7: 2022-23 | AC7: 2023-24 | AD7: 2024-25 | AE7: 2025-26 | AF7: 2026-27 | AG7: 2027-28 | AH7: =+CONCATENATE(AH6-1,"-",RIGHT(AH6,2)) -> 2028-29 | AI7: =+CONCATENATE(AI6-1,"-",RIGHT(AI6,2)) -> 2029-30 | AJ7: =+CONCATENATE(AJ6-1,"-",RIGHT(AJ6,2)) -> 2030-31 | AK7: =+CONCATENATE(AK6-1,"-",RIGHT(AK6,2)) -> 2031-32 | AL7: =+CONCATENATE(AL6-1,"-",RIGHT(AL6,2)) -> 2032-33
D10: Operating Expenditure Summary
E12: =C48 -> Water | W12: =+W57-W50-W54 -> 11.272 | X12: 10.63856 | Y12: 12.24667 | Z12: 11.63235 | AA12: 12.4959 | AB12: 12 | AC12: =+AC57-AC50-AC54 -> 12.53468053 | AD12: 12.62169307 | AE12: 12.66671924 | AF12: 12.68847544 | AG12: 12.67610865 | AH12: 12.59507947 | AI12: 12.68754256 | AJ12: 12.77082413 | AK12: 12.84443031 | AL12: 12.93876354
E13: =C59 -> Sewerage | W13: =W68-W61-W65 -> 9.381 | X13: 8.60258 | Y13: 10.17588 | Z13: 14.08805 | AA13: 10.84138 | AB13: 11.386 | AC13: =AC68-AC61-AC65 -> 11.07868966 | AD13: 11.08724677 | AE13: 11.22110384 | AF13: 11.31171792 | AG13: 11.37312545 | AH13: 11.2812239 | AI13: 11.35383307 | AJ13: 11.42718682 | AK13: 11.50069072 | AL13: 11.5749459
E14: =C70 -> Recycled Water | W14: =W79-W72-W76 -> 0 | X14: 0 | Y14: 0 | Z14: 0 | AA14: 0 | AB14: 0 | AC14: =AC79-AC72-AC76 -> 0 | AD14: 0 | AE14: 0 | AF14: 0 | AG14: 0 | AH14: 0 | AI14: 0 | AJ14: 0 | AK14: 0 | AL14: 0
E15: =C81 -> Rural Water | W15: =W90-W83-W87 -> 0 | X15: 0 | Y15: 0 | Z15: 0 | AA15: 0 | AB15: 0 | AC15: =AC90-AC83-AC87 -> 0 | AD15: 0 | AE15: 0 | AF15: 0 | AG15: 0 | AH15: 0 | AI15: 0 | AJ15: 0 | AK15: 0 | AL15: 0
E16: Bulk Water | W16: =W100-W97 -> 0 | X16: 0 | Y16: 0 | Z16: 0 | AA16: 0 | AB16: 0 | AC16: =AC100-AC97 -> 0 | AD16: 0 | AE16: 0 | AF16: 0 | AG16: 0 | AH16: 0 | AI16: 0 | AJ16: 0 | AK16: 0 | AL16: 0
E17: Total controllable operating expenditure | W17: =SUM(W12:W16) -> 20.653 | X17: 19.24114 | Y17: 22.42255 | Z17: 25.7204 | AA17: 23.33728 | AB17: 23.386 | AC17: 23.61337019 | AD17: 23.70893984 | AE17: 23.88782308 | AF17: 24.00019335 | AG17: 24.04923411 | AH17: =SUM(AH12:AH16) -> 23.87630336 | AI17: =SUM(AI12:AI16) -> 24.04137564 | AJ17: =SUM(AJ12:AJ16) -> 24.19801096 | AK17: =SUM(AK12:AK16) -> 24.34512104 | AL17: =SUM(AL12:AL16) -> 24.51370945
E20: Operations & Maintenance | W20: =W49+W60+W71+W82+W93 -> 6.296 | X20: 6.29766 | Y20: 6.92689 | Z20: 7.40212 | AA20: 7.267 | AB20: 7.012 | AC20: 7.534413769 | AD20: 7.590921872 | AE20: 7.647853786 | AF20: 7.705212689 | AG20: 7.763001785 | AH20: =AH49+AH60+AH71+AH82+AH93 -> 7.821224298 | AI20: =AI49+AI60+AI71+AI82+AI93 -> 7.87988348 | AJ20: =AJ49+AJ60+AJ71+AJ82+AJ93 -> 7.938982606 | AK20: =AK49+AK60+AK71+AK82+AK93 -> 7.998524976 | AL20: =AL49+AL60+AL71+AL82+AL93 -> 8.058513913
E21: Treatment | W21: =W51+W62+W73+W84+W94 -> 2.336 | X21: 2.72998 | Y21: 3.90486 | Z21: 7.28098 | AA21: 3.19988 | AB21: 3.933 | AC21: 3.283616457 | AD21: 3.570056963 | AE21: 3.73319858 | AF21: 3.863509166 | AG21: 3.867624789 | AH21: =AH51+AH62+AH73+AH84+AH94 -> 3.896631975 | AI21: 3.925856715 | AJ21: 3.955300641 | AK21: 3.984965395 | AL21: 4.014852636
E22: Customer Service and billing | W22: =W52+W63+W74+W85+W95 -> 1.556 | X22: 1.06184 | Y22: 0.99034 | Z22: 1.1423 | AA22: 1.1866 | AB22: 1.231 | AC22: 1.304465746 | AD22: 1.314249239 | AE22: 1.324106109 | AF22: 1.334036904 | AG22: 1.344042181 | AH22: 1.354122498 | AI22: 1.364278416 | AJ22: 1.374510504 | AK22: 1.384819333 | AL22: 1.395205478
E23: GSL Payments | W23: =W53+W64+W75+W86+W96 -> 0 | X23: 0 | Y23: 0 | Z23: 0 | AA23: 0 | AB23: 0 | AC23: 0 | AD23: 0 | AE23: 0 | AF23: 0 | AG23: 0 | AH23: 0 | AI23: 0 | AJ23: 0 | AK23: 0 | AL23: 0
E24: Corporate | W24: =W55+W66+W77+W88+W98 -> 10.465 | X24: 9.15166 | Y24: 10.60046 | Z24: 9.895 | AA24: 11.6838 | AB24: 11.21 | AC24: 11.49087421 | AD24: 11.23371177 | AE24: 11.18266461 | AF24: 11.09743459 | AG24: 11.07456535 | AH24: =AH55+AH66+AH77+AH88+AH98 -> 10.80432459 | AI24: 10.87135703 | AJ24: 10.9292172 | AK24: 10.97681133 | AL24: 11.04513742
E25: Other operating expenditure | W25: =W56+W67+W78+W89+W99 -> 0 | X25: 0 | Y25: 0 | Z25: 0 | AA25: 0 | AB25: 0 | AC25: 0 | AD25: 0 | AE25: 0 | AF25: 0 | AG25: 0 | AH25: 0 | AI25: 0 | AJ25: 0 | AK25: 0 | AL25: 0
E26: Total controllable operating expenditure | W26: =SUM(W20:W25) -> 20.653 | X26: 19.24114 | Y26: 22.42255 | Z26: 25.7204 | AA26: 23.33728 | AB26: 23.386 | AC26: 23.61337019 | AD26: 23.70893984 | AE26: 23.88782308 | AF26: 24.00019335 | AG26: 24.04923411 | AH26: =SUM(AH20:AH25) -> 23.87630336 | AI26: =SUM(AI20:AI25) -> 24.04137564 | AJ26: =SUM(AJ20:AJ25) -> 24.19801096 | AK26: =SUM(AK20:AK25) -> 24.34512104 | AL26: =SUM(AL20:AL25) -> 24.51370945
AC27: =IF(ROUND(AC26,2)=ROUND(AC17,2),0,1) -> 0 | AD27: =IF(ROUND(AD26,2)=ROUND(AD17,2),0,1) -> 0 | AE27: 0 | AF27: 0 | AG27: 0 | AH27: 0 | AI27: 0 | AJ27: 0 | AK27: 0 | AL27: 0
E29: External bulk water charges (excl. temporary purchases) | W29: =W50+W61+W72+W83 -> 0 | X29: =X50+X61+X72+X83 -> 0 | Y29: =Y50+Y61+Y72+Y83 -> 0 | Z29: 0 | AA29: 0 | AB29: 0 | AC29: 0 | AD29: 0 | AE29: 0 | AF29: 0 | AG29: 0 | AH29: =AH50+AH61+AH72+AH83 -> 0 | AI29: =AI50+AI61+AI72+AI83 -> 0 | AJ29: =AJ50+AJ61+AJ72+AJ83 -> 0 | AK29: =AK50+AK61+AK72+AK83 -> 0 | AL29: =AL50+AL61+AL72+AL83 -> 0
E30: External temporary water purchases | W30: =+W102 -> 0 | X30: 0 | Y30: 0 | Z30: 0 | AA30: 0 | AB30: 0 | AC30: 0 | AD30: 0 | AE30: 0 | AF30: 0 | AG30: 0 | AH30: =+AH102 -> 0 | AI30: =+AI102 -> 0 | AJ30: =+AJ102 -> 0 | AK30: =+AK102 -> 0 | AL30: =+AL102 -> 0
E31: Licence fees | W31: =+W109 -> 0.05991 | X31: 0.05941 | Y31: 0.04126 | Z31: 0.068 | AA31: 0.06725699746 | AB31: 0.06607253516 | AC31: 0.06607253516 | AD31: 0.06607253516 | AE31: 0.06607253516 | AF31: 0.06607253516 | AG31: 0.06607253516 | AH31: =+AH109 -> 0.06607253516 | AI31: =+AI109 -> 0.06607253516 | AJ31: =+AJ109 -> 0.06607253516 | AK31: =+AK109 -> 0.06607253516 | AL31: =+AL109 -> 0.06607253516
E32: Environment Contribution | W32: =W111 -> 1.34328 | X32: 1.649 | Y32: 1.62775 | Z32: 1.75702 | AA32: 1.738 | AB32: 1.654 | AC32: 1.601941748 | AD32: 1.509983738 | AE32: 1.466003629 | AF32: 1.395010717 | AG32: 1.395010717 | AH32: =AH111 -> 1.436861039 | AI32: =AI111 -> 1.534511789 | AJ32: =AJ111 -> 1.489817271 | AK32: =AK111 -> 1.404295665 | AL32: =AL111 -> 1.285129465
E33: Other non-controllable | W33: =+W124 -> 0 | X33: 0 | Y33: 0 | Z33: 0 | AA33: 0 | AB33: 0 | AC33: 0 | AD33: 0 | AE33: 0 | AF33: 0 | AG33: =+AG124 -> 0 | AH33: 0 | AI33: 0 | AJ33: 0 | AK33: 0 | AL33: 0
E34: Total non-controllable operating expenditure | W34: =SUM(W29:W33) -> 1.40319 | X34: 1.70841 | Y34: 1.66901 | Z34: 1.82502 | AA34: 1.805256997 | AB34: 1.720072535 | AC34: 1.668014283 | AD34: 1.576056273 | AE34: 1.532076164 | AF34: 1.461083252 | AG34: 1.461083252 | AH34: =SUM(AH29:AH33) -> 1.502933574 | AI34: =SUM(AI29:AI33) -> 1.600584324 | AJ34: =SUM(AJ29:AJ33) -> 1.555889806 | AK34: =SUM(AK29:AK33) -> 1.4703682 | AL34: =SUM(AL29:AL33) -> 1.351202
E37: Total prescribed operating expenditure | W37: =+W34+W17 -> 22.05619 | X37: 20.94955 | Y37: 24.09156 | Z37: 27.54542 | AA37: 25.142537 | AB37: 25.10607254 | AC37: 25.28138447 | AD37: 25.28499612 | AE37: 25.41989925 | AF37: 25.46127661 | AG37: 25.51031736 | AH37: =+AH34+AH17 -> 25.37923694 | AI37: =+AI34+AI17 -> 25.64195996 | AJ37: =+AJ34+AJ17 -> 25.75390076 | AK37: =+AK34+AK17 -> 25.81548924 | AL37: =+AL34+AL17 -> 25.86491145
AB40: To reconcile to 'Opex_FO' tab row 95>> | AC40: =+Opex_FO!AC95 -> 25.28138069 | AD40: =+Opex_FO!AD95 -> 25.28499582 | AE40: =+Opex_FO!AE95 -> 25.4199378 | AF40: =+Opex_FO!AF95 -> 25.46351007 | AG40: =+Opex_FO!AG95 -> 25.51478205 | AH40: =+Opex_FO!AH95 -> 25.3837478 | AI40: =+Opex_FO!AI95 -> 25.63654791 | AJ40: =+Opex_FO!AJ95 -> 25.74807328 | AK40: =+Opex_FO!AK95 -> 25.81984948 | AL40: =+Opex_FO!AL95 -> 25.85906644
AB41: Difference | AC41: =+AC40-AC37 -> -3.779395637e-06 | AD41: -2.927585889e-07 | AE41: 3.854895994e-05 | AF41: 0.002233468451 | AG41: 0.004464686069 | AH41: =+AH40-AH37 -> 0.004510863022 | AI41: =+AI40-AI37 -> -0.005412054041 | AJ41: =+AJ40-AJ37 -> -0.005827482598 | AK41: =+AK40-AK37 -> 0.004360241199 | AL41: =+AL40-AL37 -> -0.00584500576
AB42: Test | AC42: =IF(ROUND(AC40,2)=ROUND(AC37,2),0,1) -> 0 | AD42: 0 | AE42: 0 | AF42: 0 | AG42: 0 | AH42: 0 | AI42: 0 | AJ42: 0 | AK42: 0 | AL42: 0
B46: Total operating expenditure
C48: Water
D49: Operations & Maintenance | W49: 3.835 | X49: 3.955 | Y49: 4.54119 | Z49: 4.5097 | AA49: 4.425 | AB49: 4.357 | AC49: 4.491623906 | AD49: 4.525311086 | AE49: 4.559250919 | AF49: 4.593445301 | AG49: 4.62789614 | AH49: 4.662605361 | AI49: 4.697574902 | AJ49: 4.732806713 | AK49: 4.768302764 | AL49: 4.804065034
D50: External bulk charges (excl. temporary purchases) | W50: =+W131 -> 0 | X50: 0 | Y50: 0 | Z50: 0 | AA50: 0 | AB50: 0 | AC50: 0 | AD50: 0 | AE50: 0 | AF50: 0 | AG50: 0 | AH50: =+AH131 -> 0 | AI50: 0 | AJ50: 0 | AK50: 0 | AL50: 0 | AM50: see reconciliation below
D51: Treatment | W51: 1.426 | X51: 1.57681 | Y51: 1.91008 | Z51: 1.60347 | AA51: 1.633 | AB51: 1.423 | AC51: 1.608865988 | AD51: 1.773178923 | AE51: 1.80114124 | AF51: 1.832805597 | AG51: 1.801121292 | AH51: 1.814629701 | AI51: 1.828239424 | AJ51: 1.84195122 | AK51: 1.855765854 | AL51: 1.869684098
D52: Customer Service and billing | W52: 0.778 | X52: 0.53147 | Y52: 0.49517 | Z52: 0.57168 | AA52: 0.596 | AB52: 0.615 | AC52: 0.654973525 | AD52: 0.6598858264 | AE52: 0.6648349701 | AF52: 0.6698212324 | AG52: 0.6748448917 | AH52: 0.6799062283 | AI52: 0.6850055251 | AJ52: 0.6901430665 | AK52: 0.6953191395 | AL52: 0.700534033
D53: GSL Payments | W53: 0 | X53: 0 | Y53: 0 | Z53: 0 | AA53: 0 | AB53: 0 | AC53: 0 | AD53: 0 | AE53: 0 | AF53: 0 | AG53: 0 | AH53: 0 | AI53: 0 | AJ53: 0 | AK53: 0
D54: Licence Fees | AA54: 0
D55: Corporate | W55: 5.233 | X55: 4.57528 | Y55: 5.30023 | Z55: 4.9475 | AA55: 5.8419 | AB55: 5.605 | AC55: 5.779217107 | AD55: 5.663317235 | AE55: 5.641492114 | AF55: 5.592403305 | AG55: 5.57224633 | AH55: 5.437938178 | AI55: =5.46672271389583+0.01 -> 5.476722714 | AJ55: =5.49592313425005+0.01 -> 5.505923134 | AK55: 5.525042558 | AL55: =5.5544803769401+0.01 -> 5.564480377
D56: Other operating expenditure | AC56: 0 | AD56: 0 | AE56: 0 | AF56: 0 | AG56: 0 | AH56: 0 | AI56: 0 | AJ56: 0 | AK56: 0 | AL56: 0
C57: =+CONCATENATE("Total ",C48) -> Total Water | K57: =+SUM(K49:K56) -> 0 | L57: =+SUM(L49:L56) -> 0 | M57: 0 | N57: 0 | O57: 0 | P57: 0 | Q57: 0 | R57: 0 | S57: 0 | T57: 0 | U57: 0 | V57: 0 | W57: =+SUM(W49:W56) -> 11.272 | X57: 10.63856 | Y57: 12.24667 | Z57: 11.63235 | AA57: 12.4959 | AB57: 12 | AC57: 12.53468053 | AD57: 12.62169307 | AE57: 12.66671924 | AF57: 12.68847544 | AG57: 12.67610865 | AH57: =+SUM(AH49:AH56) -> 12.59507947 | AI57: =+SUM(AI49:AI56) -> 12.68754256 | AJ57: =+SUM(AJ49:AJ56) -> 12.77082413 | AK57: =+SUM(AK49:AK56) -> 12.84443031 | AL57: =+SUM(AL49:AL56) -> 12.93876354
C59: Sewerage
D60: =+D49 -> Operations & Maintenance | W60: 2.461 | X60: 2.34266 | Y60: 2.3857 | Z60: 2.89242 | AA60: 2.842 | AB60: 2.655 | AC60: 3.042789863 | AD60: 3.065610786 | AE60: 3.088602867 | AF60: 3.111767389 | AG60: 3.135105644 | AH60: 3.158618937 | AI60: 3.182308579 | AJ60: 3.206175893 | AK60: 3.230222212 | AL60: 3.254448879
D61: =+D50 -> External bulk charges (excl. temporary purchases) | W61: =+W132 -> 0 | X61: 0 | Y61: 0 | Z61: 0 | AA61: 0 | AB61: 0 | AC61: 0 | AD61: 0 | AE61: 0 | AF61: 0 | AG61: 0 | AH61: =+AH132 -> 0 | AI61: 0 | AJ61: 0 | AK61: 0 | AL61: 0 | AM61: see reconciliation below
D62: Treatment | W62: 0.91 | X62: 1.15317 | Y62: 1.99478 | Z62: 5.67751 | AA62: 1.56688 | AB62: 2.51 | AC62: 1.674750469 | AD62: 1.79687804 | AE62: 1.93205734 | AF62: 2.030703569 | AG62: 2.066503498 | AH62: 2.082002274 | AI62: 2.097617291 | AJ62: 2.113349421 | AK62: 2.129199541 | AL62: 2.145168538
D63: Customer Service and billing | W63: 0.778 | X63: 0.53037 | Y63: 0.49517 | Z63: 0.57062 | AA63: 0.5906 | AB63: 0.616 | AC63: 0.6494922213 | AD63: 0.6543634129 | AE63: 0.6592711385 | AF63: 0.664215672 | AG63: 0.6691972896 | AH63: 0.6742162693 | AI63: 0.6792728913 | AJ63: 0.684367438 | AK63: 0.6895001937 | AL63: 0.6946714452
D64: GSL Payments
D65: Licence Fees | AA65: 0
D66: Corporate | W66: 5.232 | X66: 4.57638 | Y66: 5.30023 | Z66: 4.9475 | AA66: 5.8419 | AB66: 5.605 | AC66: 5.711657107 | AD66: 5.570394535 | AE66: 5.541172494 | AF66: 5.505031288 | AG66: 5.502319023 | AH66: 5.366386415 | AI66: 5.394634313 | AJ66: 5.423294071 | AK66: 5.451768776 | AL66: 5.480657042
D67: Other operating expenditure | AD67: 0 | AF67: 0 | AG67: 0
C68: =+CONCATENATE("Total ",C59) -> Total Sewerage | W68: =+SUM(W60:W67) -> 9.381 | X68: 8.60258 | Y68: 10.17588 | Z68: 14.08805 | AA68: 10.84138 | AB68: 11.386 | AC68: 11.07868966 | AD68: 11.08724677 | AE68: 11.22110384 | AF68: 11.31171792 | AG68: 11.37312545 | AH68: =+SUM(AH60:AH67) -> 11.2812239 | AI68: =+SUM(AI60:AI67) -> 11.35383307 | AJ68: =+SUM(AJ60:AJ67) -> 11.42718682 | AK68: =+SUM(AK60:AK67) -> 11.50069072 | AL68: =+SUM(AL60:AL67) -> 11.5749459
C70: Recycled Water
D71: =+D60 -> Operations & Maintenance
D72: =+D61 -> External bulk charges (excl. temporary purchases) | W72: =+W133 -> 0 | X72: 0 | Y72: 0 | Z72: 0 | AA72: 0 | AB72: 0 | AC72: 0 | AD72: 0 | AE72: 0 | AF72: 0 | AG72: 0 | AH72: =+AH133 -> 0 | AI72: 0 | AJ72: 0 | AK72: 0 | AL72: 0 | AM72: see reconciliation below
D73: Treatment
D74: Customer Service and billing
D75: GSL Payments
D76: Licence Fees
D77: Corporate
D78: Other operating expenditure
C79: =+CONCATENATE("Total ",C70) -> Total Recycled Water | W79: =+SUM(W71:W78) -> 0 | X79: 0 | Y79: 0 | Z79: 0 | AA79: 0 | AB79: 0 | AC79: 0 | AD79: 0 | AE79: 0 | AF79: 0 | AG79: 0 | AH79: =+SUM(AH71:AH78) -> 0 | AI79: =+SUM(AI71:AI78) -> 0 | AJ79: =+SUM(AJ71:AJ78) -> 0 | AK79: =+SUM(AK71:AK78) -> 0 | AL79: =+SUM(AL71:AL78) -> 0
C81: Rural Water
D82: =+D60 -> Operations & Maintenance
D83: =+D61 -> External bulk charges (excl. temporary purchases) | W83: =+W134 -> 0 | X83: 0 | Y83: 0 | Z83: 0 | AA83: 0 | AB83: 0 | AC83: 0 | AD83: 0 | AE83: 0 | AF83: 0 | AG83: 0 | AH83: =+AH134 -> 0 | AI83: 0 | AJ83: 0 | AK83: 0 | AL83: 0 | AM83: see reconciliation below
D84: Treatment
D85: Customer Service and billing
D86: GSL Payments
D87: Licence Fees
D88: Corporate
D89: Other operating expenditure
C90: =+CONCATENATE("Total ",C81) -> Total Rural Water | W90: =+SUM(W82:W89) -> 0 | X90: 0 | Y90: 0 | Z90: 0 | AA90: 0 | AB90: 0 | AC90: 0 | AD90: 0 | AE90: 0 | AF90: 0 | AG90: 0 | AH90: =+SUM(AH82:AH89) -> 0 | AI90: =+SUM(AI82:AI89) -> 0 | AJ90: =+SUM(AJ82:AJ89) -> 0 | AK90: =+SUM(AK82:AK89) -> 0 | AL90: =+SUM(AL82:AL89) -> 0
C92: Bulk Water
D93: Operations & Maintenance
D94: Treatment
D95: Customer Service and billing
D96: GSL Payments
D97: Licence Fees
D98: Corporate
D99: Other operating expenditure
C100: Total Bulk water | W100: =+SUM(W93:W99) -> 0 | X100: 0 | Y100: 0 | Z100: 0 | AA100: 0 | AB100: 0 | AC100: 0 | AD100: 0 | AE100: 0 | AF100: 0 | AG100: 0 | AH100: =+SUM(AH93:AH99) -> 0 | AI100: =+SUM(AI93:AI99) -> 0 | AJ100: =+SUM(AJ93:AJ99) -> 0 | AK100: =+SUM(AK93:AK99) -> 0 | AL100: =+SUM(AL93:AL99) -> 0
C102: External temporary water purchases
C105: Licence fees
D106: Essential Services Commission | W106: 0.021 | X106: 0.0209 | Y106: 0 | Z106: 0.0255 | AA106: 0.02522137405 | AB106: 0.02477720069 | AC106: 0.02477720069 | AD106: 0.02477720069 | AE106: 0.02477720069 | AF106: 0.02477720069 | AG106: 0.02477720069 | AH106: 0.02477720069 | AI106: 0.02477720069 | AJ106: 0.02477720069 | AK106: 0.02477720069 | AL106: 0.02477720069
D107: Department of Human Services | W107: 0.012 | X107: 0.0121 | Y107: 0.01303 | Z107: 0.01275 | AA107: 0.01050890585 | AB107: 0.01238860034 | AC107: 0.01238860034 | AD107: 0.01238860034 | AE107: 0.01238860034 | AF107: 0.01238860034 | AG107: 0.01238860034 | AH107: 0.01238860034 | AI107: 0.01238860034 | AJ107: 0.01238860034 | AK107: 0.01238860034 | AL107: 0.01238860034
D108: Environment Protection Authority | W108: 0.02691 | X108: 0.02641 | Y108: 0.02823 | Z108: 0.02975 | AA108: 0.03152671756 | AB108: 0.02890673413 | AC108: 0.02890673413 | AD108: 0.02890673413 | AE108: 0.02890673413 | AF108: 0.02890673413 | AG108: 0.02890673413 | AH108: 0.02890673413 | AI108: 0.02890673413 | AJ108: 0.02890673413 | AK108: 0.02890673413 | AL108: 0.02890673413
C109: =+CONCATENATE("Total ",C105) -> Total Licence fees | W109: =+SUM(W106:W108) -> 0.05991 | X109: 0.05941 | Y109: 0.04126 | Z109: 0.068 | AA109: 0.06725699746 | AB109: 0.06607253516 | AC109: 0.06607253516 | AD109: 0.06607253516 | AE109: 0.06607253516 | AF109: 0.06607253516 | AG109: 0.06607253516 | AH109: =+SUM(AH106:AH108) -> 0.06607253516 | AI109: =+SUM(AI106:AI108) -> 0.06607253516 | AJ109: =+SUM(AJ106:AJ108) -> 0.06607253516 | AK109: =+SUM(AK106:AK108) -> 0.06607253516 | AL109: =+SUM(AL106:AL108) -> 0.06607253516
C111: Environment Contribution | W111: 1.34328 | X111: 1.649 | Y111: 1.62775 | Z111: 1.75702 | AA111: 1.738 | AB111: 1.654 | AC111: 1.601941748 | AD111: 1.509983738 | AE111: 1.466003629 | AF111: 1.395010717 | AG111: 1.395010717 | AH111: 1.436861039 | AI111: 1.534511789 | AJ111: 1.489817271 | AK111: 1.404295665 | AL111: 1.285129465
C113: Other non-controllable
D114: [Non-controllable 1]
D115: [Non-controllable 2]
D116: [Non-controllable 3]
D117: [Non-controllable 4]
D118: [Non-controllable 5]
D119: [Non-controllable 6]
D120: [Non-controllable 7]
D121: [Non-controllable 8]
D122: [Non-controllable 9]
D123: [Non-controllable 10]
W124: =SUM(W114:W123) -> 0 | X124: 0 | Y124: 0 | Z124: 0 | AA124: 0 | AB124: 0 | AC124: 0 | AD124: 0 | AE124: 0 | AF124: 0 | AG124: 0 | AH124: =SUM(AH114:AH123) -> 0 | AI124: =SUM(AI114:AI123) -> 0 | AJ124: =SUM(AJ114:AJ123) -> 0 | AK124: =SUM(AK114:AK123) -> 0 | AL124: =SUM(AL114:AL123) -> 0
C127: External bulk charges (excl. temporary purchases)
C128: Reconciliation
C130: Service | W130: =+W7 -> 2017-18 | X130: =+X7 -> 2018-19 | Y130: 2019-20 | Z130: 2020-21 | AA130: 2021-22 | AB130: 2022-23 | AC130: 2023-24 | AD130: 2024-25 | AE130: 2025-26 | AF130: 2026-27 | AG130: 2027-28 | AH130: =+AH7 -> 2028-29 | AI130: =+AI7 -> 2029-30 | AJ130: =+AJ7 -> 2030-31 | AK130: =+AK7 -> 2031-32 | AL130: =+AL7 -> 2032-33
D131: Water | W131: =+SUMIF($I$138:$I$179,$D$131,W$138:W$179) -> 0 | X131: 0 | Y131: 0 | Z131: 0 | AA131: 0 | AB131: 0 | AC131: 0 | AD131: 0 | AE131: 0 | AF131: 0 | AG131: 0 | AH131: 0 | AI131: 0 | AJ131: 0 | AK131: 0 | AL131: 0
D132: Sewerage | W132: =+SUMIF($I$138:$I$179,$D$132,W$138:W$179) -> 0 | X132: 0 | Y132: 0 | Z132: 0 | AA132: 0 | AB132: 0 | AC132: 0 | AD132: 0 | AE132: 0 | AF132: 0 | AG132: 0 | AH132: 0 | AI132: 0 | AJ132: 0 | AK132: 0 | AL132: 0
D133: Recycled Water | W133: =+SUMIF($I$138:$I$179,$D$133,W$138:W$179) -> 0 | X133: 0 | Y133: 0 | Z133: 0 | AA133: 0 | AB133: 0 | AC133: 0 | AD133: 0 | AE133: 0 | AF133: 0 | AG133: 0 | AH133: 0 | AI133: 0 | AJ133: 0 | AK133: 0 | AL133: 0
D134: Rural Water | W134: =+SUMIF($I$138:$I$179,$D$134,W$138:W$179) -> 0 | X134: 0 | Y134: 0 | Z134: 0 | AA134: 0 | AB134: 0 | AC134: 0 | AD134: 0 | AE134: 0 | AF134: 0 | AG134: 0 | AH134: 0 | AI134: 0 | AJ134: 0 | AK134: 0 | AL134: 0
C135: Total External Bulk Charges | W135: =SUM(W131:W134) -> 0 | X135: 0 | Y135: 0 | Z135: 0 | AA135: 0 | AB135: 0 | AC135: 0 | AD135: 0 | AE135: 0 | AF135: 0 | AG135: 0 | AH135: =SUM(AH131:AH134) -> 0 | AI135: =SUM(AI131:AI134) -> 0 | AJ135: =SUM(AJ131:AJ134) -> 0 | AK135: =SUM(AK131:AK134) -> 0 | AL135: =SUM(AL131:AL134) -> 0
C137: Description | H137: Source | I137: Service | J137: Price
B138: 1 | H138: [Source] | I138: [Service] | J138: [Price] | AO138: ESC USE ONLY
B139: 2 | H139: [Source] | I139: [Service] | J139: [Price]
B140: 3 | H140: [Source] | I140: [Service] | J140: [Price] | AO140: [Service]
B141: 4 | H141: [Source] | I141: [Service] | J141: [Price] | AO141: Water
B142: 5 | H142: [Source] | I142: [Service] | J142: [Price] | AO142: Sewerage
B143: 6 | H143: [Source] | I143: [Service] | J143: [Price] | AO143: Recycled Water
B144: 7 | H144: [Source] | I144: [Service] | J144: [Price] | AO144: Rural Water
B145: 8 | H145: [Source] | I145: [Service] | J145: [Price]
B146: 9 | H146: [Source] | I146: [Service] | J146: [Price] | AO146: [Source]
B147: 10 | H147: [Source] | I147: [Service] | J147: [Price] | AO147: Melbourne Water
B148: 11 | H148: [Source] | I148: [Service] | J148: [Price] | AO148: Goulburn-Murray Water
B149: 12 | H149: [Source] | I149: [Service] | J149: [Price] | AO149: Other Sources
B150: 13 | H150: [Source] | I150: [Service] | J150: [Price]
B151: 14 | H151: [Source] | I151: [Service] | J151: [Price]
B152: 15 | H152: [Source] | I152: [Service] | J152: [Price]
B153: 16 | H153: [Source] | I153: [Service] | J153: [Price]
B154: 17 | H154: [Source] | I154: [Service] | J154: [Price]
B155: 18 | H155: [Source] | I155: [Service] | J155: [Price]
B156: 19 | H156: [Source] | I156: [Service] | J156: [Price]
B157: 20 | H157: [Source] | I157: [Service] | J157: [Price]
B158: 21 | H158: [Source] | I158: [Service] | J158: [Price]
B159: 22 | H159: [Source] | I159: [Service] | J159: [Price]
B160: 23 | H160: [Source] | I160: [Service] | J160: [Price]
B161: 24 | H161: [Source] | I161: [Service] | J161: [Price]
B162: 25 | H162: [Source] | I162: [Service] | J162: [Price]
B163: 26 | H163: [Source] | I163: [Service] | J163: [Price]
B164: 27 | H164: [Source] | I164: [Service] | J164: [Price]
B165: 28 | H165: [Source] | I165: [Service] | J165: [Price]
B166: 29 | H166: [Source] | I166: [Service] | J166: [Price]
B167: 30 | H167: [Source] | I167: [Service] | J167: [Price]
B168: 31 | H168: [Source] | I168: [Service] | J168: [Price]
B169: 32 | H169: [Source] | I169: [Service] | J169: [Price]
B170: 33 | H170: [Source] | I170: [Service] | J170: [Price]
B171: 34 | H171: [Source] | I171: [Service] | J171: [Price]
B172: 35 | H172: [Source] | I172: [Service] | J172: [Price]
B173: 36 | H173: [Source] | I173: [Service] | J173: [Price]
B174: 37 | H174: [Source] | I174: [Service] | J174: [Price]
B175: 38 | H175: [Source] | I175: [Service] | J175: [Price]
B176: 39 | H176: [Source] | I176: [Service] | J176: [Price]
B177: 40 | H177: [Source] | I177: [Service] | J177: [Price]

Sheet Capex_FO input
B1: Capital Expenditure - Forecast Input | Q1: =Q36 -> Gross capital expenditure | AB1: =AB36 -> Government contributions | AM1: =AM36 -> Customer contributions | AX1: =AX36 -> Net capital expenditure | BI1: =BI36 -> Regulatory Depreciation | BT1: =BT36 -> Accumulated capex | CE1: =CE36 -> Gross capital expenditure | CP1: =CP36 -> Tax Depreciation
B2: =+Contents!H7 -> East Gippsland Water | Q2: =Q37 -> $m, 01/01/23 | AB2: =AB37 -> $m, 01/01/23 | AM2: =AM37 -> $m, 01/01/23 | AX2: =AX37 -> $m, 01/01/23 | BI2: =BI37 -> $m, 01/01/23 | BT2: =BT37 -> $m, 01/01/23 | CE2: =CE37 -> Nominal,$ | CP2: =CP37 -> Nominal,$
B3: Go to Table of Contents | Q3: =Q39 -> 2023-24 | R3: =R39 -> 2024-25 | S3: 2025-26 | T3: 2026-27 | U3: 2027-28 | V3: 2028-29 | W3: 2029-30 | X3: 2030-31 | Y3: =Y39 -> 2031-32 | Z3: =Z39 -> 2032-33 | AB3: 2023-24 | AC3: 2024-25 | AD3: 2025-26 | AE3: 2026-27 | AF3: 2027-28 | AG3: 2028-29 | AH3: 2029-30 | AI3: 2030-31 | AJ3: 2031-32 | AK3: 2032-33 | AM3: 2023-24 | AN3: 2024-25 | AO3: 2025-26 | AP3: 2026-27 | AQ3: 2027-28 | AR3: 2028-29 | AS3: 2029-30 | AT3: 2030-31 | AU3: 2031-32 | AV3: 2032-33 | AX3: 2023-24 | AY3: 2024-25 | AZ3: 2025-26 | BA3: 2026-27 | BB3: 2027-28 | BC3: 2028-29 | BD3: 2029-30 | BE3: 2030-31 | BF3: 2031-32 | BG3: 2032-33 | BI3: 2023-24 | BJ3: 2024-25 | BK3: 2025-26 | BL3: 2026-27 | BM3: 2027-28 | BN3: 2028-29 | BO3: 2029-30 | BP3: 2030-31 | BQ3: 2031-32 | BR3: 2032-33 | BT3: 2023-24 | BU3: 2024-25 | BV3: 2025-26 | BW3: 2026-27 | BX3: 2027-28 | BY3: 2028-29 | BZ3: 2029-30 | CA3: 2030-31 | CB3: =CB39 -> 2031-32 | CC3: =CC39 -> 2032-33 | CE3: 2023-24 | CF3: 2024-25 | CG3: 2025-26 | CH3: 2026-27 | CI3: 2027-28 | CJ3: 2028-29 | CK3: 2029-30 | CL3: 2030-31 | CM3: =CM39 -> 2031-32 | CN3: =CN39 -> 2032-33 | CP3: 2023-24 | CQ3: 2024-25 | CR3: =CR39 -> 2025-26 | CS3: 2026-27 | CT3: 2027-28 | CU3: 2028-29 | CV3: 2029-30 | CW3: 2030-31 | CX3: =CX39 -> 2031-32 | CY3: =CY39 -> 2032-33
C7: Input Summary | F7: FIFTH REG PERIOD | K7: SIXTH REG PERIOD
D9: =+Q39 -> 2023-24 | E9: =+R39 -> 2024-25 | F9: 2025-26 | G9: 2026-27 | H9: 2027-28 | I9: 2028-29 | J9: 2029-30 | K9: 2030-31 | L9: =+Y39 -> 2031-32 | M9: =+Z39 -> 2032-33
C10: By Cost Driver
C11: Net capital expenditure - Renewals | D11: =+SUMIF($F$42:$F$1016,"Renewals",AX$42:AX$1016) -> 12.288 | E11: 14.634 | F11: 5.309 | G11: 8.218 | H11: 8.74 | I11: 12.375 | J11: 10.049 | K11: 12.005 | L11: =+SUMIF($F$42:$F$1016,"Renewals",BF$42:BF$1016) -> 31.644 | M11: =+SUMIF($F$42:$F$1016,"Renewals",BG$42:BG$1016) -> 15.562
C12: Net capital expenditure - Growth | D12: =+SUMIF($F$42:$F$1016,"Growth",AX$42:AX$1016) -> 0.152 | E12: 0.82 | F12: 1.584 | G12: 3.84 | H12: 1.421 | I12: 1.758 | J12: 1.27 | K12: 1.41 | L12: =+SUMIF($F$42:$F$1016,"Growth",BF$42:BF$1016) -> 0.05 | M12: =+SUMIF($F$42:$F$1016,"Growth",BG$42:BG$1016) -> 0.55
C13: Net capital expenditure - Improvements / Compliance | D13: =+SUMIF($F$42:$F$1016,"Improvements / Compliance",AX$42:AX$1016) -> 7.131 | E13: 10.595 | F13: 15.482 | G13: 14.495 | H13: 15.48 | I13: 11.21 | J13: 18.297 | K13: 14.705 | L13: =+SUMIF($F$42:$F$1016,"Improvements / Compliance",BF$42:BF$1016) -> 2.361 | M13: =+SUMIF($F$42:$F$1016,"Improvements / Compliance",BG$42:BG$1016) -> 2.39
C14: Government Contributions | D14: =+AB41 -> 0 | E14: 0 | F14: 0 | G14: 0 | H14: 0 | I14: 0 | J14: 0 | K14: 0 | L14: =+AJ41 -> 0 | M14: =+AK41 -> 0
C15: Customer Contributions | D15: =+AM41 -> 0 | E15: 0 | F15: 0 | G15: 0 | H15: 0 | I15: 0 | J15: 0 | K15: 0 | L15: =+AU41 -> 0 | M15: =+AV41 -> 0
C16: Total prescribed capex | D16: =SUM(D11:D15) -> 19.571 | E16: 26.049 | F16: 22.375 | G16: 26.553 | H16: 25.641 | I16: 25.343 | J16: 29.616 | K16: 28.12 | L16: =SUM(L11:L15) -> 34.055 | M16: =SUM(M11:M15) -> 18.502
C18: By Capital Type
C19: Top 10 Major Projects | D19: =+SUMIF($H$42:$H$1016,$C$19,Q$42:Q$1016) -> 10.289 | E19: 18.371 | F19: 14.595 | G19: 19.2 | H19: 13.5 | I19: 5 | J19: 8 | K19: 6.445 | L19: =+SUMIF($H$42:$H$1016,$C$19,Y$42:Y$1016) -> 0 | M19: =+SUMIF($H$42:$H$1016,$C$19,Z$42:Z$1016) -> 0
C20: Significant projects | D20: =+SUMIF($H$42:$H$1016,$C$20,Q$42:Q$1016) -> 1 | E20: 1 | F20: 1 | G20: 1 | H20: 1 | I20: 1 | J20: 1 | K20: 1 | L20: =+SUMIF($H$42:$H$1016,$C$20,Y$42:Y$1016) -> 1 | M20: =+SUMIF($H$42:$H$1016,$C$20,Z$42:Z$1016) -> 1
C21: Capital Programs / Allocation | D21: =+SUMIF($H$42:$H$1016,$C$21,Q$42:Q$1016) -> 3.766 | E21: 4.881 | F21: 5.126 | G21: 4.677 | H21: 6.792 | I21: 11.049 | J21: 11.488 | K21: 15.481 | L21: =+SUMIF($H$42:$H$1016,$C$21,Y$42:Y$1016) -> 25.877 | M21: =+SUMIF($H$42:$H$1016,$C$21,Z$42:Z$1016) -> 14.444
C22: Other Capital expenditure | D22: =+SUMIF($H$42:$H$1016,$C$22,Q$42:Q$1016) -> 4.516 | E22: 1.797 | F22: 1.654 | G22: 1.676 | H22: 4.349 | I22: 8.294 | J22: 9.128 | K22: 5.194 | L22: =+SUMIF($H$42:$H$1016,$C$22,Y$42:Y$1016) -> 7.178 | M22: =+SUMIF($H$42:$H$1016,$C$22,Z$42:Z$1016) -> 3.058
C23: Total prescribed capex | D23: =SUM(D19:D22) -> 19.571 | E23: 26.049 | F23: 22.375 | G23: 26.553 | H23: 25.641 | I23: 25.343 | J23: 29.616 | K23: 28.12 | L23: =SUM(L19:L22) -> 34.055 | M23: =SUM(M19:M22) -> 18.502
C25: Difference | D25: =+D23-D16 -> 0 | E25: 0 | F25: 0 | G25: 0 | H25: 0 | I25: 0 | J25: 0 | K25: 0 | L25: =+L23-L16 -> 0 | M25: =+M23-M16 -> 0
C26: Test | D26: =IF(+D23=D16,0,1) -> 0 | E26: 0 | F26: 0 | G26: 0 | H26: 0 | I26: 0 | J26: 0 | K26: 0 | L26: 0 | M26: 0
C29: Total prescribed capex | D29: =+D23 -> 19.571 | E29: 26.049 | F29: 22.375 | G29: 26.553 | H29: 25.641 | I29: 25.343 | J29: 29.616 | K29: 28.12 | L29: =+L23 -> 34.055 | M29: =+M23 -> 18.502
C32: Regulatory Depreciation | D32: =+BI41 -> 0.2472735417 | E32: 0.9643814583 | F32: 1.748777292 | G32: 2.43965125 | H32: 3.287396667 | I32: 4.215663333 | J32: 5.158507917 | K32: 6.152255 | L32: =+BQ41 -> 7.32244375 | M32: =+BR41 -> 8.246375833
B35: =Expenditure_Detail!$B$6 -> $m, 01/01/23
Q36: Gross capital expenditure | AB36: Government contributions | AM36: Customer contributions | AX36: Net capital expenditure | BI36: Regulatory Depreciation | BT36: Accumulated capex | CE36: Gross capital expenditure | CP36: Tax Depreciation
Q37: =Expenditure_Detail!$B$6 -> $m, 01/01/23 | AB37: =Expenditure_Detail!$B$6 -> $m, 01/01/23 | AM37: =Expenditure_Detail!$B$6 -> $m, 01/01/23 | AX37: =Expenditure_Detail!$B$6 -> $m, 01/01/23 | BI37: =Expenditure_Detail!$B$6 -> $m, 01/01/23 | BT37: =Expenditure_Detail!$B$6 -> $m, 01/01/23 | CE37: Nominal,$ | CP37: Nominal,$
Q39: 2023-24 | R39: 2024-25 | S39: 2025-26 | T39: 2026-27 | U39: 2027-28 | V39: 2028-29 | W39: 2029-30 | X39: 2030-31 | Y39: 2031-32 | Z39: 2032-33 | AB39: 2023-24 | AC39: 2024-25 | AD39: 2025-26 | AE39: 2026-27 | AF39: 2027-28 | AG39: 2028-29 | AH39: 2029-30 | AI39: 2030-31 | AJ39: 2031-32 | AK39: 2032-33 | AM39: 2023-24 | AN39: 2024-25 | AO39: 2025-26 | AP39: 2026-27 | AQ39: 2027-28 | AR39: 2028-29 | AS39: 2029-30 | AT39: 2030-31 | AU39: 2031-32 | AV39: 2032-33 | AX39: 2023-24 | AY39: 2024-25 | AZ39: 2025-26 | BA39: 2026-27 | BB39: 2027-28 | BC39: 2028-29 | BD39: 2029-30 | BE39: 2030-31 | BF39: 2031-32 | BG39: 2032-33 | BI39: 2023-24 | BJ39: 2024-25 | BK39: 2025-26 | BL39: 2026-27 | BM39: 2027-28 | BN39: 2028-29 | BO39: 2029-30 | BP39: 2030-31 | BQ39: 2031-32 | BR39: 2032-33 | BT39: 2023-24 | BU39: 2024-25 | BV39: 2025-26 | BW39: 2026-27 | BX39: 2027-28 | BY39: 2028-29 | BZ39: 2029-30 | CA39: 2030-31 | CB39: 2031-32 | CC39: 2032-33 | CE39: 2023-24 | CF39: 2024-25 | CG39: 2025-26 | CH39: 2026-27 | CI39: 2027-28 | CJ39: 2028-29 | CK39: 2029-30 | CL39: 2030-31 | CM39: 2031-32 | CN39: 2032-33 | CP39: 2023-24 | CQ39: 2024-25 | CR39: 2025-26 | CS39: 2026-27 | CT39: 2027-28 | CU39: 2028-29 | CV39: 2029-30 | CW39: 2030-31 | CX39: 2031-32 | CY39: 2032-33
BI40: 1 | BJ40: 2 | BK40: 3 | BL40: 4 | BM40: 5 | BN40: 6 | BO40: 7 | BP40: 8 | BQ40: 9 | BR40: 10 | CP40: 1 | CQ40: 2 | CR40: 3 | CS40: 4 | CT40: 5 | CU40: 6 | CV40: 7 | CW40: 8 | CX40: 9 | CY40: 10
C41: Project/program Name | E41: Service | F41: Major cost driver | G41: Asset category | H41: Capital type | J41: Reg Depreciation Method | K41: Year asset operational | L41: Asset life (Regulatory) | M41: Asset life (Tax) | Q41: =SUM(Q42:Q1016) -> 19.571 | R41: 26.049 | S41: 22.375 | T41: 26.553 | U41: 25.641 | V41: 25.343 | W41: 29.616 | X41: 28.12 | Y41: =SUM(Y42:Y1016) -> 34.055 | Z41: =SUM(Z42:Z1016) -> 18.502 | AB41: =SUM(AB42:AB1016) -> 0 | AC41: 0 | AD41: 0 | AE41: 0 | AF41: 0 | AG41: 0 | AH41: 0 | AI41: 0 | AJ41: 0 | AK41: 0 | AM41: =SUM(AM42:AM1016) -> 0 | AN41: 0 | AO41: 0 | AP41: 0 | AQ41: 0 | AR41: 0 | AS41: 0 | AT41: 0 | AU41: 0 | AV41: 0 | AX41: =SUM(AX42:AX1016) -> 19.571 | AY41: 26.049 | AZ41: 22.375 | BA41: 26.553 | BB41: 25.641 | BC41: 25.343 | BD41: 29.616 | BE41: 28.12 | BF41: 34.055 | BG41: 18.502 | BI41: =SUM(BI42:BI1016) -> 0.2472735417 | BJ41: 0.9643814583 | BK41: 1.748777292 | BL41: 2.43965125 | BM41: 3.287396667 | BN41: 4.215663333 | BO41: 5.158507917 | BP41: 6.152255 | BQ41: =SUM(BQ42:BQ1016) -> 7.32244375 | BR41: =SUM(BR42:BR1016) -> 8.246375833 | BT41: =SUM(BT42:BT1016) -> 9.191 | BU41: 24.424 | BV41: 19.917 | BW41: 19.995 | BX41: 44.646 | BY41: 20.11 | BZ41: 31.919 | CA41: 33.066 | CB41: =SUM(CB42:CB1016) -> 34.055 | CC41: =SUM(CC42:CC1016) -> 18.502 | CE41: =SUM(CE42:CE1016) -> 20.15813 | CF41: 27.6353841 | CG41: 24.44976663 | CH41: 29.88563543 | CI41: 29.72494654 | CJ41: 30.26086735 | CK41: 36.4239444 | CL41: 35.62157469 | CM41: =SUM(CM42:CM1016) -> 44.43405078 | CN41: =SUM(CN42:CN1016) -> 24.86514085 | CP41: =SUM(CP42:CP1016) -> 0.3802860854 | CQ41: 1.20740137 | CR41: 2.006961706 | CS41: 2.81542965 | CT41: 3.726468934 | CU41: 4.790684217 | CV41: 5.986314458 | CW41: 7.164939191 | CX41: =SUM(CX42:CX1016) -> 8.629654222 | CY41: =SUM(CY42:CY1016) -> 9.870998582
C42: Bairnsdale WWTP - Stage 1 Major Upgrades | E42: Sewerage | F42: Improvements / Compliance | G42: Treatment | H42: Top 10 Major Projects | J42: Straight line | K42: Ongoing | L42: 30 | M42: 30 | Q42: 0.1 | R42: 0.1 | S42: 0.3 | T42: 5 | U42: 4.7 | V42: 0 | W42: 0 | X42: 0 | Y42: 0 | Z42: 0 | AX42: =+Q42-AB42-AM42 -> 0.1 | AY42: =+R42-AC42-AN42 -> 0.1 | AZ42: =+S42-AD42-AO42 -> 0.3 | BA42: =+T42-AE42-AP42 -> 5 | BB42: =+U42-AF42-AQ42 -> 4.7 | BC42: =+V42-AG42-AR42 -> 0 | BD42: =+W42-AH42-AS42 -> 0 | BE42: =+X42-AI42-AT42 -> 0 | BF42: =+Y42-AJ42-AU42 -> 0 | BG42: =+Z42-AK42-AV42 -> 0 | BI42: =IF($L42=0,0, IF($L42<=0.5,BT42, IF($J42="straight line", IF((LEFT(BI$39,4)*1)-INT($L42)<LEFT($BI$39,4)*1,0,((OFFSET(BT42,0,-INT($L42+0.5),1,1))/$L42)*(IF($L42-INT($L42)>0.5,$L42-0.5-INT($L42),IF($L42-INT($L42)<=0.5,$L42-0.5-INT($L42)+1,0)))) +BT42/$L42*0.5, IF($J42="Declining Balance",-$BI$38,0)))) -> 0.001666666667 | BJ42: =IF($L42=0,0, IF($L42<=0.5,BU42, IF(AND($J42="straight line",$L42<1.51),(BT42-((BT42/$L42)*0.5))+BU42/$L42*0.5, IF($J42="straight line", IF((LEFT(BJ$39,4)*1)-INT($L42)<LEFT($BI$39,4)*1,0,((OFFSET(BU42,0,-INT($L42+0.5),1,1))/$L42)*(IF($L42-INT($L42)>0.5,$L42-0.5-INT($L42),IF($L42-INT($L42)<=0.5,$L42-0.5-INT($L42)+1,0)))) +BU42/$L42*0.5 +SUM(OFFSET(BU42,0,MAX(-INT($L42+(0.5-(10^-12))),-BJ$40)+1,1,MIN(INT($L42+(0.5-(10^-12))),BJ$40)-1))*1/$L42, IF($J42="Declining Balance",-$BI$38,0))))) -> 0.005 | BK42: =IF($L42=0,0, IF($L42<=0.5,BV42, IF(AND($J42="straight line",$L42<1.51),(BU42-((BU42/$L42)*0.5))+BV42/$L42*0.5, IF($J42="straight line", IF((LEFT(BK$39,4)*1)-INT($L42)<LEFT($BI$39,4)*1,0,((OFFSET(BV42,0,-INT($L42+0.5),1,1))/$L42)*(IF($L42-INT($L42)>0.5,$L42-0.5-INT($L42),IF($L42-INT($L42)<=0.5,$L42-0.5-INT($L42)+1,0)))) +BV42/$L42*0.5 +SUM(OFFSET(BV42,0,MAX(-INT($L42+(0.5-(10^-12))),-BK$40)+1,1,MIN(INT($L42+(0.5-(10^-12))),BK$40)-1))*1/$L42, IF($J42="Declining Balance",-$BI$38,0))))) -> 0.01166666667 | BL42: =IF($L42=0,0, IF($L42<=0.5,BW42, IF(AND($J42="straight line",$L42<1.51),(BV42-((BV42/$L42)*0.5))+BW42/$L42*0.5, IF($J42="straight line", IF((LEFT(BL$39,4)*1)-INT($L42)<LEFT($BI$39,4)*1,0,((OFFSET(BW42,0,-INT($L42+0.5),1,1))/$L42)*(IF($L42-INT($L42)>0.5,$L42-0.5-INT($L42),IF($L42-INT($L42)<=0.5,$L42-0.5-INT($L42)+1,0)))) +BW42/$L42*0.5 +SUM(OFFSET(BW42,0,MAX(-INT($L42+(0.5-(10^-12))),-BL$40)+1,1,MIN(INT($L42+(0.5-(10^-12))),BL$40)-1))*1/$L42, IF($J42="Declining Balance",-$BI$38,0))))) -> 0.1 | BM42: =IF($L42=0,0, IF($L42<=0.5,BX42, IF(AND($J42="straight line",$L42<1.51),(BW42-((BW42/$L42)*0.5))+BX42/$L42*0.5, IF($J42="straight line", IF((LEFT(BM$39,4)*1)-INT($L42)<LEFT($BI$39,4)*1,0,((OFFSET(BX42,0,-INT($L42+0.5),1,1))/$L42)*(IF($L42-INT($L42)>0.5,$L42-0.5-INT($L42),IF($L42-INT($L42)<=0.5,$L42-0.5-INT($L42)+1,0)))) +BX42/$L42*0.5 +SUM(OFFSET(BX42,0,MAX(-INT($L42+(0.5-(10^-12))),-BM$40)+1,1,MIN(INT($L42+(0.5-(10^-12))),BM$40)-1))*1/$L42, IF($J42="Declining Balance",-$BI$38,0))))) -> 0.2616666667 | BN42: =IF($L42=0,0, IF($L42<=0.5,BY42, IF(AND($J42="straight line",$L42<1.51),(BX42-((BX42/$L42)*0.5))+BY42/$L42*0.5, IF($J42="straight line", IF((LEFT(BN$39,4)*1)-INT($L42)<LEFT($BI$39,4)*1,0,((OFFSET(BY42,0,-INT($L42+0.5),1,1))/$L42)*(IF($L42-INT($L42)>0.5,$L42-0.5-INT($L42),IF($L42-INT($L42)<=0.5,$L42-0.5-INT($L42)+1,0)))) +BY42/$L42*0.5 +SUM(OFFSET(BY42,0,MAX(-INT($L42+(0.5-(10^-12))),-BN$40)+1,1,MIN(INT($L42+(0.5-(10^-12))),BN$40)-1))*1/$L42, IF($J42="Declining Balance",-$BI$38,0))))) -> 0.34 | BO42: =IF($L42=0,0, IF($L42<=0.5,BZ42, IF(AND($J42="straight line",$L42<1.51),(BY42-((BY42/$L42)*0.5))+BZ42/$L42*0.5, IF($J42="straight line", IF((LEFT(BO$39,4)*1)-INT($L42)<LEFT($BI$39,4)*1,0,((OFFSET(BZ42,0,-INT($L42+0.5),1,1))/$L42)*(IF($L42-INT($L42)>0.5,$L42-0.5-INT($L42),IF($L42-INT($L42)<=0.5,$L42-0.5-INT($L42)+1,0)))) +BZ42/$L42*0.5 +SUM(OFFSET(BZ42,0,MAX(-INT($L42+(0.5-(10^-12))),-BO$40)+1,1,MIN(INT($L42+(0.5-(10^-12))),BO$40)-1))*1/$L42, IF($J42="Declining Balance",-$BI$38,0))))) -> 0.34 | BP42: =IF($L42=0,0, IF($L42<=0.5,CA42, IF(AND($J42="straight line",$L42<1.51),(BZ42-((BZ42/$L42)*0.5))+CA42/$L42*0.5, IF($J42="straight line", IF((LEFT(BP$39,4)*1)-INT($L42)<LEFT($BI$39,4)*1,0,((OFFSET(CA42,0,-INT($L42+0.5),1,1))/$L42)*(IF($L42-INT($L42)>0.5,$L42-0.5-INT($L42),IF($L42-INT($L42)<=0.5,$L42-0.5-INT($L42)+1,0)))) +CA42/$L42*0.5 +SUM(OFFSET(CA42,0,MAX(-INT($L42+(0.5-(10^-12))),-BP$40)+1,1,MIN(INT($L42+(0.5-(10^-12))),BP$40)-1))*1/$L42, IF($J42="Declining Balance",-$BI$38,0))))) -> 0.34 | BQ42: =IF($L42=0,0, IF($L42<=0.5,CB42, IF(AND($J42="straight line",$L42<1.51),(CA42-((CA42/$L42)*0.5))+CB42/$L42*0.5, IF($J42="straight line", IF((LEFT(BQ$39,4)*1)-INT($L42)<LEFT($BI$39,4)*1,0,((OFFSET(CB42,0,-INT($L42+0.5),1,1))/$L42)*(IF($L42-INT($L42)>0.5,$L42-0.5-INT($L42),IF($L42-INT($L42)<=0.5,$L42-0.5-INT($L42)+1,0)))) +CB42/$L42*0.5 +SUM(OFFSET(CB42,0,MAX(-INT($L42+(0.5-(10^-12))),-BQ$40)+1,1,MIN(INT($L42+(0.5-(10^-12))),BQ$40)-1))*1/$L42, IF($J42="Declining Balance",-$BI$38,0))))) -> 0.34 | BR42: =IF($L42=0,0, IF($L42<=0.5,CC42, IF(AND($J42="straight line",$L42<1.51),(CB42-((CB42/$L42)*0.5))+CC42/$L42*0.5, IF($J42="straight line", IF((LEFT(BR$39,4)*1)-INT($L42)<LEFT($BI$39,4)*1,0,((OFFSET(CC42,0,-INT($L42+0.5),1,1))/$L42)*(IF($L42-INT($L42)>0.5,$L42-0.5-INT($L42),IF($L42-INT($L42)<=0.5,$L42-0.5-INT($L42)+1,0)))) +CC42/$L42*0.5 +SUM(OFFSET(CC42,0,MAX(-INT($L42+(0.5-(10^-12))),-BR$40)+1,1,MIN(INT($L42+(0.5-(10^-12))),BR$40)-1))*1/$L42, IF($J42="Declining Balance",-$BI$38,0))))) -> 0.34 | BT42: =+IF($K42="Ongoing",AX42,IF(RIGHT($K42,2)=RIGHT(BT$39,2),SUM($AX42:AX42),0)+IF(RIGHT(BT$39,2)>RIGHT($K42,2),AX42,0)) -> 0.1 | BU42: =+IF($K42="Ongoing",AY42,IF(RIGHT($K42,2)=RIGHT(BU$39,2),SUM($AX42:AY42),0)+IF(RIGHT(BU$39,2)>RIGHT($K42,2),AY42,0)) -> 0.1 | BV42: =+IF($K42="Ongoing",AZ42,IF(RIGHT($K42,2)=RIGHT(BV$39,2),SUM($AX42:AZ42),0)+IF(RIGHT(BV$39,2)>RIGHT($K42,2),AZ42,0)) -> 0.3 | BW42: =+IF($K42="Ongoing",BA42,IF(RIGHT($K42,2)=RIGHT(BW$39,2),SUM($AX42:BA42),0)+IF(RIGHT(BW$39,2)>RIGHT($K42,2),BA42,0)) -> 5 | BX42: =+IF($K42="Ongoing",BB42,IF(RIGHT($K42,2)=RIGHT(BX$39,2),SUM($AX42:BB42),0)+IF(RIGHT(BX$39,2)>RIGHT($K42,2),BB42,0)) -> 4.7 | BY42: =+IF($K42="Ongoing",BC42,IF(RIGHT($K42,2)=RIGHT(BY$39,2),SUM($AX42:BC42),0)+IF(RIGHT(BY$39,2)>RIGHT($K42,2),BC42,0)) -> 0 | BZ42: =+IF($K42="Ongoing",BD42,IF(RIGHT($K42,2)=RIGHT(BZ$39,2),SUM($AX42:BD42),0)+IF(RIGHT(BZ$39,2)>RIGHT($K42,2),BD42,0)) -> 0 | CA42: =+IF($K42="Ongoing",BE42,IF(RIGHT($K42,2)=RIGHT(CA$39,2),SUM($AX42:BE42),0)+IF(RIGHT(CA$39,2)>RIGHT($K42,2),BE42,0)) -> 0 | CB42: =+IF($K42="Ongoing",BF42,IF(RIGHT($K42,2)=RIGHT(CB$39,2),SUM($AX42:BF42),0)+IF(RIGHT(CB$39,2)>RIGHT($K42,2),BF42,0)) -> 0 | CC42: =+IF($K42="Ongoing",BG42,IF(RIGHT($K42,2)=RIGHT(CC$39,2),SUM($AX42:BG42),0)+IF(RIGHT(CC$39,2)>RIGHT($K42,2),BG42,0)) -> 0 | CE42: =+Q42*KeyAssumptionsPriceControl_FO!AC$15 -> 0.103 | CF42: =+R42*KeyAssumptionsPriceControl_FO!AD$15 -> 0.10609 | CG42: =+S42*KeyAssumptionsPriceControl_FO!AE$15 -> 0.3278181 | CH42: =+T42*KeyAssumptionsPriceControl_FO!AF$15 -> 5.62754405 | CI42: =+U42*KeyAssumptionsPriceControl_FO!AG$15 -> 5.448588149 | CJ42: =+V42*KeyAssumptionsPriceControl_FO!AH$15 -> 0 | CK42: =+W42*KeyAssumptionsPriceControl_FO!AI$15 -> 0 | CL42: =+X42*KeyAssumptionsPriceControl_FO!AJ$15 -> 0 | CM42: =+Y42*KeyAssumptionsPriceControl_FO!AK$15 -> 0 | CN42: =+Z42*KeyAssumptionsPriceControl_FO!AL$15 -> 0 | CP42: =IF($M42=0,0, IF($M42<=0.5,CE42, IF($J42="straight line", IF((LEFT(CP$39,4)*1)-INT($M42)<LEFT($CP$39,4)*1,0,((OFFSET(CE42,0,-INT($M42+0.5),1,1))/$M42)*(IF($M42-INT($M42)>0.5,$M42-0.5-INT($M42),IF($M42-INT($M42)<=0.5,$M42-0.5-INT($M42)+1,0)))) +CE42/$M42*0.5, IF($J42="Declining Balance",-$CP$38,0)))) -> 0.001716666667 | CQ42: =IF($M42=0,0, IF($M42<=0.5,CF42, IF(AND($J42="straight line",$M42<1.51),(CE42-((CE42/$M42)*0.5))+CF42/$M42*0.5, IF($J42="straight line", IF((LEFT(CQ$39,4)*1)-INT($M42)<LEFT($CP$39,4)*1,0,((OFFSET(CF42,0,-INT($M42+0.5),1,1))/$M42)*(IF($M42-INT($M42)>0.5,$M42-0.5-INT($M42),IF($M42-INT($M42)<=0.5,$M42-0.5-INT($M42)+1,0)))) +CF42/$M42*0.5 +SUM(OFFSET(CF42,0,MAX(-INT($M42+(0.5-(10^-12))),-CQ$40)+1,1,MIN(INT($M42+(0.5-(10^-12))),CQ$40)-1))*1/$M42, IF($J42="Declining Balance",-$CP$38,0))))) -> 0.0052015 | CR42: =IF($M42=0,0, IF($M42<=0.5,CG42, IF(AND($J42="straight line",$M42<1.51),(CF42-((CF42/$M42)*0.5))+CG42/$M42*0.5, IF($J42="straight line", IF((LEFT(CR$39,4)*1)-INT($M42)<LEFT($CP$39,4)*1,0,((OFFSET(CG42,0,-INT($M42+0.5),1,1))/$M42)*(IF($M42-INT($M42)>0.5,$M42-0.5-INT($M42),IF($M42-INT($M42)<=0.5,$M42-0.5-INT($M42)+1,0)))) +CG42/$M42*0.5 +SUM(OFFSET(CG42,0,MAX(-INT($M42+(0.5-(10^-12))),-CR$40)+1,1,MIN(INT($M42+(0.5-(10^-12))),CR$40)-1))*1/$M42, IF($J42="Declining Balance",-$CP$38,0))))) -> 0.01243330167 | CS42: =IF($M42=0,0, IF($M42<=0.5,CH42, IF(AND($J42="straight line",$M42<1.51),(CG42-((CG42/$M42)*0.5))+CH42/$M42*0.5, IF($J42="straight line", IF((LEFT(CS$39,4)*1)-INT($M42)<LEFT($CP$39,4)*1,0,((OFFSET(CH42,0,-INT($M42+0.5),1,1))/$M42)*(IF($M42-INT($M42)>0.5,$M42-0.5-INT($M42),IF($M42-INT($M42)<=0.5,$M42-0.5-INT($M42)+1,0)))) +CH42/$M42*0.5 +SUM(OFFSET(CH42,0,MAX(-INT($M42+(0.5-(10^-12))),-CS$40)+1,1,MIN(INT($M42+(0.5-(10^-12))),CS$40)-1))*1/$M42, IF($J42="Declining Balance",-$CP$38,0))))) -> 0.1116893375 | CT42: =IF($M42=0,0, IF($M42<=0.5,CI42, IF(AND($J42="straight line",$M42<1.51),(CH42-((CH42/$M42)*0.5))+CI42/$M42*0.5, IF($J42="straight line", IF((LEFT(CT$39,4)*1)-INT($M42)<LEFT($CP$39,4)*1,0,((OFFSET(CI42,0,-INT($M42+0.5),1,1))/$M42)*(IF($M42-INT($M42)>0.5,$M42-0.5-INT($M42),IF($M42-INT($M42)<=0.5,$M42-0.5-INT($M42)+1,0)))) +CI42/$M42*0.5 +SUM(OFFSET(CI42,0,MAX(-INT($M42+(0.5-(10^-12))),-CT$40)+1,1,MIN(INT($M42+(0.5-(10^-12))),CT$40)-1))*1/$M42, IF($J42="Declining Balance",-$CP$38,0))))) -> 0.2962915408 | CU42: =IF($M42=0,0, IF($M42<=0.5,CJ42, IF(AND($J42="straight line",$M42<1.51),(CI42-((CI42/$M42)*0.5))+CJ42/$M42*0.5, IF($J42="straight line", IF((LEFT(CU$39,4)*1)-INT($M42)<LEFT($CP$39,4)*1,0,((OFFSET(CJ42,0,-INT($M42+0.5),1,1))/$M42)*(IF($M42-INT($M42)>0.5,$M42-0.5-INT($M42),IF($M42-INT($M42)<=0.5,$M42-0.5-INT($M42)+1,0)))) +CJ42/$M42*0.5 +SUM(OFFSET(CJ42,0,MAX(-INT($M42+(0.5-(10^-12))),-CU$40)+1,1,MIN(INT($M42+(0.5-(10^-12))),CU$40)-1))*1/$M42, IF($J42="Declining Balance",-$CP$38,0))))) -> 0.3871013433 | CV42: =IF($M42=0,0, IF($M42<=0.5,CK42, IF(AND($J42="straight line",$M42<1.51),(CJ42-((CJ42/$M42)*0.5))+CK42/$M42*0.5, IF($J42="straight line", IF((LEFT(CV$39,4)*1)-INT($M42)<LEFT($CP$39,4)*1,0,((OFFSET(CK42,0,-INT($M42+0.5),1,1))/$M42)*(IF($M42-INT($M42)>0.5,$M42-0.5-INT($M42),IF($M42-INT($M42)<=0.5,$M42-0.5-INT($M42)+1,0)))) +CK42/$M42*0.5 +SUM(OFFSET(CK42,0,MAX(-INT($M42+(0.5-(10^-12))),-CV$40)+1,1,MIN(INT($M42+(0.5-(10^-12))),CV$40)-1))*1/$M42, IF($J42="Declining Balance",-$CP$38,0))))) -> 0.3871013433 | CW42: =IF($M42=0,0, IF($M42<=0.5,CL42, IF(AND($J42="straight line",$M42<1.51),(CK42-((CK42/$M42)*0.5))+CL42/$M42*0.5, IF($J42="straight line", IF((LEFT(CW$39,4)*1)-INT($M42)<LEFT($CP$39,4)*1,0,((OFFSET(CL42,0,-INT($M42+0.5),1,1))/$M42)*(IF($M42-INT($M42)>0.5,$M42-0.5-INT($M42),IF($M42-INT($M42)<=0.5,$M42-0.5-INT($M42)+1,0)))) +CL42/$M42*0.5 +SUM(OFFSET(CL42,0,MAX(-INT($M42+(0.5-(10^-12))),-CW$40)+1,1,MIN(INT($M42+(0.5-(10^-12))),CW$40)-1))*1/$M42, IF($J42="Declining Balance",-$CP$38,0))))) -> 0.3871013433 | CX42: =IF($M42=0,0, IF($M42<=0.5,CM42, IF(AND($J42="straight line",$M42<1.51),(CL42-((CL42/$M42)*0.5))+CM42/$M42*0.5, IF($J42="straight line", IF((LEFT(CX$39,4)*1)-INT($M42)<LEFT($CP$39,4)*1,0,((OFFSET(CM42,0,-INT($M42+0.5),1,1))/$M42)*(IF($M42-INT($M42)>0.5,$M42-0.5-INT($M42),IF($M42-INT($M42)<=0.5,$M42-0.5-INT($M42)+1,0)))) +CM42/$M42*0.5 +SUM(OFFSET(CM42,0,MAX(-INT($M42+(0.5-(10^-12))),-CX$40)+1,1,MIN(INT($M42+(0.5-(10^-12))),CX$40)-1))*1/$M42, IF($J42="Declining Balance",-$CP$38,0))))) -> 0.3871013433 | CY42: =IF($M42=0,0, IF($M42<=0.5,CN42, IF(AND($J42="straight line",$M42<1.51),(CM42-((CM42/$M42)*0.5))+CN42/$M42*0.5, IF($J42="straight line", IF((LEFT(CY$39,4)*1)-INT($M42)<LEFT($CP$39,4)*1,0,((OFFSET(CN42,0,-INT($M42+0.5),1,1))/$M42)*(IF($M42-INT($M42)>0.5,$M42-0.5-INT($M42),IF($M42-INT($M42)<=0.5,$M42-0.5-INT($M42)+1,0)))) +CN42/$M42*0.5 +SUM(OFFSET(CN42,0,MAX(-INT($M42+(0.5-(10^-12))),-CY$40)+1,1,MIN(INT($M42+(0.5-(10^-12))),CY$40)-1))*1/$M42, IF($J42="Declining Balance",-$CP$38,0))))) -> 0.3871013433
C43: Upgrade Day St SPS to 25L/s and 330m of DN150 sewer main | E43: Sewerage | F43: Growth | G43: Pipelines/network | H43: Top 10 Major Projects | J43: Straight line | K43: 2027-28 | L43: 80 | M43: 80 | Q43: 0 | R43: 0 | S43: 0.1 | T43: 0.5 | U43: 0.5 | V43: 0 | W43: 0 | X43: 0 | Y43: 0 | Z43: 0 | AX43: 0 | AY43: 0 | AZ43: 0.1 | BA43: 0.5 | BB43: 0.5 | BC43: 0 | BD43: 0 | BE43: 0 | BF43: 0 | BG43: 0 | BI43: =IF($L43=0,0, IF($L43<=0.5,BT43, IF($J43="straight line", IF((LEFT(BI$39,4)*1)-INT($L43)<LEFT($BI$39,4)*1,0,((OFFSET(BT43,0,-INT($L43+0.5),1,1))/$L43)*(IF($L43-INT($L43)>0.5,$L43-0.5-INT($L43),IF($L43-INT($L43)<=0.5,$L43-0.5-INT($L43)+1,0)))) +BT43/$L43*0.5, IF($J43="Declining Balance",-$BI$38,0)))) -> 0 | BJ43: =IF($L43=0,0, IF($L43<=0.5,BU43, IF(AND($J43="straight line",$L43<1.51),(BT43-((BT43/$L43)*0.5))+BU43/$L43*0.5, IF($J43="straight line", IF((LEFT(BJ$39,4)*1)-INT($L43)<LEFT($BI$39,4)*1,0,((OFFSET(BU43,0,-INT($L43+0.5),1,1))/$L43)*(IF($L43-INT($L43)>0.5,$L43-0.5-INT($L43),IF($L43-INT($L43)<=0.5,$L43-0.5-INT($L43)+1,0)))) +BU43/$L43*0.5 +SUM(OFFSET(BU43,0,MAX(-INT($L43+(0.5-(10^-12))),-BJ$40)+1,1,MIN(INT($L43+(0.5-(10^-12))),BJ$40)-1))*1/$L43, IF($J43="Declining Balance",-$BI$38,0))))) -> 0 | BK43: 0 | BL43: 0 | BM43: 0.006875 | BN43: 0.01375 | BO43: 0.01375 | BP43: 0.01375 | BQ43: 0.01375 | BR43: 0.01375 | BT43: =+IF($K43="Ongoing",AX43,IF(RIGHT($K43,2)=RIGHT(BT$39,2),SUM($AX43:AX43),0)+IF(RIGHT(BT$39,2)>RIGHT($K43,2),AX43,0)) -> 0 | BU43: =+IF($K43="Ongoing",AY43,IF(RIGHT($K43,2)=RIGHT(BU$39,2),SUM($AX43:AY43),0)+IF(RIGHT(BU$39,2)>RIGHT($K43,2),AY43,0)) -> 0 | BV43: =+IF($K43="Ongoing",AZ43,IF(RIGHT($K43,2)=RIGHT(BV$39,2),SUM($AX43:AZ43),0)+IF(RIGHT(BV$39,2)>RIGHT($K43,2),AZ43,0)) -> 0 | BW43: =+IF($K43="Ongoing",BA43,IF(RIGHT($K43,2)=RIGHT(BW$39,2),SUM($AX43:BA43),0)+IF(RIGHT(BW$39,2)>RIGHT($K43,2),BA43,0)) -> 0 | BX43: =+IF($K43="Ongoing",BB43,IF(RIGHT($K43,2)=RIGHT(BX$39,2),SUM($AX43:BB43),0)+IF(RIGHT(BX$39,2)>RIGHT($K43,2),BB43,0)) -> 1.1 | BY43: =+IF($K43="Ongoing",BC43,IF(RIGHT($K43,2)=RIGHT(BY$39,2),SUM($AX43:BC43),0)+IF(RIGHT(BY$39,2)>RIGHT($K43,2),BC43,0)) -> 0 | BZ43: =+IF($K43="Ongoing",BD43,IF(RIGHT($K43,2)=RIGHT(BZ$39,2),SUM($AX43:BD43),0)+IF(RIGHT(BZ$39,2)>RIGHT($K43,2),BD43,0)) -> 0 | CA43: =+IF($K43="Ongoing",BE43,IF(RIGHT($K43,2)=RIGHT(CA$39,2),SUM($AX43:BE43),0)+IF(RIGHT(CA$39,2)>RIGHT($K43,2),BE43,0)) -> 0 | CB43: =+IF($K43="Ongoing",BF43,IF(RIGHT($K43,2)=RIGHT(CB$39,2),SUM($AX43:BF43),0)+IF(RIGHT(CB$39,2)>RIGHT($K43,2),BF43,0)) -> 0 | CC43: =+IF($K43="Ongoing",BG43,IF(RIGHT($K43,2)=RIGHT(CC$39,2),SUM($AX43:BG43),0)+IF(RIGHT(CC$39,2)>RIGHT($K43,2),BG43,0)) -> 0 | CE43: =+Q43*KeyAssumptionsPriceControl_FO!AC$15 -> 0 | CF43: =+R43*KeyAssumptionsPriceControl_FO!AD$15 -> 0 | CG43: =+S43*KeyAssumptionsPriceControl_FO!AE$15 -> 0.1092727 | CH43: =+T43*KeyAssumptionsPriceControl_FO!AF$15 -> 0.562754405 | CI43: =+U43*KeyAssumptionsPriceControl_FO!AG$15 -> 0.5796370372 | CJ43: =+V43*KeyAssumptionsPriceControl_FO!AH$15 -> 0 | CK43: =+W43*KeyAssumptionsPriceControl_FO!AI$15 -> 0 | CL43: =+X43*KeyAssumptionsPriceControl_FO!AJ$15 -> 0 | CM43: =+Y43*KeyAssumptionsPriceControl_FO!AK$15 -> 0 | CN43: =+Z43*KeyAssumptionsPriceControl_FO!AL$15 -> 0 | CP43: 0 | CQ43: 0 | CR43: 0.000682954375 | CS43: 0.004883123781 | CT43: 0.01202307029 | CU43: 0.01564580178 | CV43: 0.01564580178 | CW43: 0.01564580178 | CX43: 0.01564580178 | CY43: 0.01564580178
C44: Paynesville WWTP - Additional recycled water storage and pump station | E44: Recycled Water | F44: Improvements / Compliance | G44: Treatment | H44: Top 10 Major Projects | J44: Straight line | K44: 2025-26 | L44: 100 | M44: 100 | Q44: 2 | R44: 6 | S44: 3.1 | T44: 0 | U44: 0 | V44: 0 | W44: 0 | X44: 0 | Y44: 0 | Z44: 0 | AX44: 2 | AY44: 6 | AZ44: 3.1 | BA44: 0 | BB44: 0 | BC44: 0 | BD44: 0 | BE44: 0 | BF44: 0 | BG44: 0 | BI44: 0 | BJ44: 0 | BK44: 0.0555 | BL44: 0.111 | BM44: 0.111 | BN44: 0.111 | BO44: 0.111 | BP44: 0.111 | BQ44: 0.111 | BR44: 0.111 | BT44: =+IF($K44="Ongoing",AX44,IF(RIGHT($K44,2)=RIGHT(BT$39,2),SUM($AX44:AX44),0)+IF(RIGHT(BT$39,2)>RIGHT($K44,2),AX44,0)) -> 0 | BU44: =+IF($K44="Ongoing",AY44,IF(RIGHT($K44,2)=RIGHT(BU$39,2),SUM($AX44:AY44),0)+IF(RIGHT(BU$39,2)>RIGHT($K44,2),AY44,0)) -> 0 | BV44: =+IF($K44="Ongoing",AZ44,IF(RIGHT($K44,2)=RIGHT(BV$39,2),SUM($AX44:AZ44),0)+IF(RIGHT(BV$39,2)>RIGHT($K44,2),AZ44,0)) -> 11.1 | BW44: =+IF($K44="Ongoing",BA44,IF(RIGHT($K44,2)=RIGHT(BW$39,2),SUM($AX44:BA44),0)+IF(RIGHT(BW$39,2)>RIGHT($K44,2),BA44,0)) -> 0 | BX44: =+IF($K44="Ongoing",BB44,IF(RIGHT($K44,2)=RIGHT(BX$39,2),SUM($AX44:BB44),0)+IF(RIGHT(BX$39,2)>RIGHT($K44,2),BB44,0)) -> 0 | BY44: =+IF($K44="Ongoing",BC44,IF(RIGHT($K44,2)=RIGHT(BY$39,2),SUM($AX44:BC44),0)+IF(RIGHT(BY$39,2)>RIGHT($K44,2),BC44,0)) -> 0 | BZ44: =+IF($K44="Ongoing",BD44,IF(RIGHT($K44,2)=RIGHT(BZ$39,2),SUM($AX44:BD44),0)+IF(RIGHT(BZ$39,2)>RIGHT($K44,2),BD44,0)) -> 0 | CA44: =+IF($K44="Ongoing",BE44,IF(RIGHT($K44,2)=RIGHT(CA$39,2),SUM($AX44:BE44),0)+IF(RIGHT(CA$39,2)>RIGHT($K44,2),BE44,0)) -> 0 | CB44: =+IF($K44="Ongoing",BF44,IF(RIGHT($K44,2)=RIGHT(CB$39,2),SUM($AX44:BF44),0)+IF(RIGHT(CB$39,2)>RIGHT($K44,2),BF44,0)) -> 0 | CC44: =+IF($K44="Ongoing",BG44,IF(RIGHT($K44,2)=RIGHT(CC$39,2),SUM($AX44:BG44),0)+IF(RIGHT(CC$39,2)>RIGHT($K44,2),BG44,0)) -> 0 | CE44: =+Q44*KeyAssumptionsPriceControl_FO!AC$15 -> 2.06 | CF44: =+R44*KeyAssumptionsPriceControl_FO!AD$15 -> 6.3654 | CG44: =+S44*KeyAssumptionsPriceControl_FO!AE$15 -> 3.3874537 | CH44: =+T44*KeyAssumptionsPriceControl_FO!AF$15 -> 0 | CI44: =+U44*KeyAssumptionsPriceControl_FO!AG$15 -> 0 | CJ44: =+V44*KeyAssumptionsPriceControl_FO!AH$15 -> 0 | CK44: =+W44*KeyAssumptionsPriceControl_FO!AI$15 -> 0 | CL44: =+X44*KeyAssumptionsPriceControl_FO!AJ$15 -> 0 | CM44: =+Y44*KeyAssumptionsPriceControl_FO!AK$15 -> 0 | CN44: =+Z44*KeyAssumptionsPriceControl_FO!AL$15 -> 0 | CP44: 0.0103 | CQ44: 0.052427 | CR44: 0.1011912685 | CS44: 0.118128537 | CT44: 0.118128537 | CU44: 0.118128537 | CV44: 0.118128537 | CW44: 0.118128537 | CX44: 0.118128537 | CY44: 0.118128537
C45: Bairnsdale WWTP - Stage 2 Major Upgrades | E45: Sewerage | F45: Improvements / Compliance | G45: Treatment | H45: Top 10 Major Projects | J45: Straight line | K45: Ongoing | L45: 30 | M45: 30 | Q45: 0.1 | R45: 0.26 | S45: 0.395 | T45: 1 | U45: 2 | V45: 5 | W45: 8 | X45: 6.445 | Y45: 0 | Z45: 0 | AX45: 0.1 | AY45: 0.26 | AZ45: 0.395 | BA45: 1 | BB45: 2 | BC45: 5 | BD45: 8 | BE45: 6.445 | BF45: 0 | BG45: 0 | BI45: 0.001666666667 | BJ45: 0.007666666667 | BK45: 0.01858333333 | BL45: 0.04183333333 | BM45: 0.09183333333 | BN45: 0.2085 | BO45: 0.4251666667 | BP45: 0.6659166667 | BQ45: 0.7733333333 | BR45: 0.7733333333 | BT45: =+IF($K45="Ongoing",AX45,IF(RIGHT($K45,2)=RIGHT(BT$39,2),SUM($AX45:AX45),0)+IF(RIGHT(BT$39,2)>RIGHT($K45,2),AX45,0)) -> 0.1 | BU45: =+IF($K45="Ongoing",AY45,IF(RIGHT($K45,2)=RIGHT(BU$39,2),SUM($AX45:AY45),0)+IF(RIGHT(BU$39,2)>RIGHT($K45,2),AY45,0)) -> 0.26 | BV45: =+IF($K45="Ongoing",AZ45,IF(RIGHT($K45,2)=RIGHT(BV$39,2),SUM($AX45:AZ45),0)+IF(RIGHT(BV$39,2)>RIGHT($K45,2),AZ45,0)) -> 0.395 | BW45: =+IF($K45="Ongoing",BA45,IF(RIGHT($K45,2)=RIGHT(BW$39,2),SUM($AX45:BA45),0)+IF(RIGHT(BW$39,2)>RIGHT($K45,2),BA45,0)) -> 1 | BX45: =+IF($K45="Ongoing",BB45,IF(RIGHT($K45,2)=RIGHT(BX$39,2),SUM($AX45:BB45),0)+IF(RIGHT(BX$39,2)>RIGHT($K45,2),BB45,0)) -> 2 | BY45: =+IF($K45="Ongoing",BC45,IF(RIGHT($K45,2)=RIGHT(BY$39,2),SUM($AX45:BC45),0)+IF(RIGHT(BY$39,2)>RIGHT($K45,2),BC45,0)) -> 5 | BZ45: =+IF($K45="Ongoing",BD45,IF(RIGHT($K45,2)=RIGHT(BZ$39,2),SUM($AX45:BD45),0)+IF(RIGHT(BZ$39,2)>RIGHT($K45,2),BD45,0)) -> 8 | CA45: =+IF($K45="Ongoing",BE45,IF(RIGHT($K45,2)=RIGHT(CA$39,2),SUM($AX45:BE45),0)+IF(RIGHT(CA$39,2)>RIGHT($K45,2),BE45,0)) -> 6.445 | CB45: =+IF($K45="Ongoing",BF45,IF(RIGHT($K45,2)=RIGHT(CB$39,2),SUM($AX45:BF45),0)+IF(RIGHT(CB$39,2)>RIGHT($K45,2),BF45,0)) -> 0 | CC45: =+IF($K45="Ongoing",BG45,IF(RIGHT($K45,2)=RIGHT(CC$39,2),SUM($AX45:BG45),0)+IF(RIGHT(CC$39,2)>RIGHT($K45,2),BG45,0)) -> 0 | CE45: =+Q45*KeyAssumptionsPriceControl_FO!AC$15 -> 0.103 | CF45: =+R45*KeyAssumptionsPriceControl_FO!AD$15 -> 0.275834 | CG45: =+S45*KeyAssumptionsPriceControl_FO!AE$15 -> 0.431627165 | CH45: =+T45*KeyAssumptionsPriceControl_FO!AF$15 -> 1.12550881 | CI45: =+U45*KeyAssumptionsPriceControl_FO!AG$15 -> 2.318548149 | CJ45: =+V45*KeyAssumptionsPriceControl_FO!AH$15 -> 5.970261483 | CK45: =+W45*KeyAssumptionsPriceControl_FO!AI$15 -> 9.838990923 | CL45: =+X45*KeyAssumptionsPriceControl_FO!AJ$15 -> 8.164333175 | CM45: =+Y45*KeyAssumptionsPriceControl_FO!AK$15 -> 0 | CN45: =+Z45*KeyAssumptionsPriceControl_FO!AL$15 -> 0 | CP45: 0.001716666667 | CQ45: 0.008030566667 | CR45: 0.01982158608 | CS45: 0.04577385233 | CT45: 0.1031748016 | CU45: 0.2413216288 | CV45: 0.5048091689 | CW45: 0.8048645706 | CX45: 0.9409367901 | CY45: 0.9409367901
C46: Woodglen - third raw water storage | E46: Water | F46: Improvements / Compliance | G46: Headworks | H46: Top 10 Major Projects | J46: Straight line | K46: 2027-28 | L46: 100 | M46: 100 | Q46: 1 | R46: 2 | S46: 9.5 | T46: 7 | U46: 6.3 | V46: 0 | W46: 0 | X46: 0 | Y46: 0 | Z46: 0 | AX46: 1 | AY46: 2 | AZ46: 9.5 | BA46: 7 | BB46: 6.3 | BC46: 0 | BD46: 0 | BE46: 0 | BF46: 0 | BG46: 0 | BI46: 0 | BJ46: 0 | BK46: 0 | BL46: 0 | BM46: 0.129 | BN46: 0.258 | BO46: 0.258 | BP46: 0.258 | BQ46: 0.258 | BR46: 0.258 | BT46: =+IF($K46="Ongoing",AX46,IF(RIGHT($K46,2)=RIGHT(BT$39,2),SUM($AX46:AX46),0)+IF(RIGHT(BT$39,2)>RIGHT($K46,2),AX46,0)) -> 0 | BU46: =+IF($K46="Ongoing",AY46,IF(RIGHT($K46,2)=RIGHT(BU$39,2),SUM($AX46:AY46),0)+IF(RIGHT(BU$39,2)>RIGHT($K46,2),AY46,0)) -> 0 | BV46: =+IF($K46="Ongoing",AZ46,IF(RIGHT($K46,2)=RIGHT(BV$39,2),SUM($AX46:AZ46),0)+IF(RIGHT(BV$39,2)>RIGHT($K46,2),AZ46,0)) -> 0 | BW46: =+IF($K46="Ongoing",BA46,IF(RIGHT($K46,2)=RIGHT(BW$39,2),SUM($AX46:BA46),0)+IF(RIGHT(BW$39,2)>RIGHT($K46,2),BA46,0)) -> 0 | BX46: =+IF($K46="Ongoing",BB46,IF(RIGHT($K46,2)=RIGHT(BX$39,2),SUM($AX46:BB46),0)+IF(RIGHT(BX$39,2)>RIGHT($K46,2),BB46,0)) -> 25.8 | BY46: =+IF($K46="Ongoing",BC46,IF(RIGHT($K46,2)=RIGHT(BY$39,2),SUM($AX46:BC46),0)+IF(RIGHT(BY$39,2)>RIGHT($K46,2),BC46,0)) -> 0 | BZ46: =+IF($K46="Ongoing",BD46,IF(RIGHT($K46,2)=RIGHT(BZ$39,2),SUM($AX46:BD46),0)+IF(RIGHT(BZ$39,2)>RIGHT($K46,2),BD46,0)) -> 0 | CA46: =+IF($K46="Ongoing",BE46,IF(RIGHT($K46,2)=RIGHT(CA$39,2),SUM($AX46:BE46),0)+IF(RIGHT(CA$39,2)>RIGHT($K46,2),BE46,0)) -> 0 | CB46: =+IF($K46="Ongoing",BF46,IF(RIGHT($K46,2)=RIGHT(CB$39,2),SUM($AX46:BF46),0)+IF(RIGHT(CB$39,2)>RIGHT($K46,2),BF46,0)) -> 0 | CC46: =+IF($K46="Ongoing",BG46,IF(RIGHT($K46,2)=RIGHT(CC$39,2),SUM($AX46:BG46),0)+IF(RIGHT(CC$39,2)>RIGHT($K46,2),BG46,0)) -> 0 | CE46: =+Q46*KeyAssumptionsPriceControl_FO!AC$15 -> 1.03 | CF46: =+R46*KeyAssumptionsPriceControl_FO!AD$15 -> 2.1218 | CG46: =+S46*KeyAssumptionsPriceControl_FO!AE$15 -> 10.3809065 | CH46: =+T46*KeyAssumptionsPriceControl_FO!AF$15 -> 7.87856167 | CI46: =+U46*KeyAssumptionsPriceControl_FO!AG$15 -> 7.303426668 | CJ46: =+V46*KeyAssumptionsPriceControl_FO!AH$15 -> 0 | CK46: =+W46*KeyAssumptionsPriceControl_FO!AI$15 -> 0 | CL46: =+X46*KeyAssumptionsPriceControl_FO!AJ$15 -> 0 | CM46: =+Y46*KeyAssumptionsPriceControl_FO!AK$15 -> 0 | CN46: =+Z46*KeyAssumptionsPriceControl_FO!AL$15 -> 0 | CP46: 0.00515 | CQ46: 0.020909 | CR46: 0.0834225325 | CS46: 0.1747198733 | CT46: 0.250629815 | CU46: 0.2871469484 | CV46: 0.2871469484 | CW46: 0.2871469484 | CX46: 0.2871469484 | CY46: 0.2871469484
C47: Woodglen to Wy Yung main supply line upgrades | E47: water | F47: Renewals | G47: Pipelines/network | H47: Top 10 Major Projects | J47: Straight line | K47: 2024-25 | L47: 80 | M47: 80 | Q47: 3.289 | R47: 3.411 | S47: 0 | T47: 0 | U47: 0 | V47: 0 | W47: 0 | X47: 0 | Y47: 0 | Z47: 0 | AX47: 3.289 | AY47: 3.411 | AZ47: 0 | BA47: 0 | BB47: 0 | BC47: 0 | BD47: 0 | BE47: 0 | BF47: 0 | BG47: 0 | BI47: 0 | BJ47: 0.041875 | BK47: 0.08375 | BL47: 0.08375 | BM47: 0.08375 | BN47: 0.08375 | BO47: 0.08375 | BP47: 0.08375 | BQ47: 0.08375 | BR47: 0.08375 | BT47: =+IF($K47="Ongoing",AX47,IF(RIGHT($K47,2)=RIGHT(BT$39,2),SUM($AX47:AX47),0)+IF(RIGHT(BT$39,2)>RIGHT($K47,2),AX47,0)) -> 0 | BU47: =+IF($K47="Ongoing",AY47,IF(RIGHT($K47,2)=RIGHT(BU$39,2),SUM($AX47:AY47),0)+IF(RIGHT(BU$39,2)>RIGHT($K47,2),AY47,0)) -> 6.7 | BV47: =+IF($K47="Ongoing",AZ47,IF(RIGHT($K47,2)=RIGHT(BV$39,2),SUM($AX47:AZ47),0)+IF(RIGHT(BV$39,2)>RIGHT($K47,2),AZ47,0)) -> 0 | BW47: =+IF($K47="Ongoing",BA47,IF(RIGHT($K47,2)=RIGHT(BW$39,2),SUM($AX47:BA47),0)+IF(RIGHT(BW$39,2)>RIGHT($K47,2),BA47,0)) -> 0 | BX47: =+IF($K47="Ongoing",BB47,IF(RIGHT($K47,2)=RIGHT(BX$39,2),SUM($AX47:BB47),0)+IF(RIGHT(BX$39,2)>RIGHT($K47,2),BB47,0)) -> 0 | BY47: =+IF($K47="Ongoing",BC47,IF(RIGHT($K47,2)=RIGHT(BY$39,2),SUM($AX47:BC47),0)+IF(RIGHT(BY$39,2)>RIGHT($K47,2),BC47,0)) -> 0 | BZ47: =+IF($K47="Ongoing",BD47,IF(RIGHT($K47,2)=RIGHT(BZ$39,2),SUM($AX47:BD47),0)+IF(RIGHT(BZ$39,2)>RIGHT($K47,2),BD47,0)) -> 0 | CA47: =+IF($K47="Ongoing",BE47,IF(RIGHT($K47,2)=RIGHT(CA$39,2),SUM($AX47:BE47),0)+IF(RIGHT(CA$39,2)>RIGHT($K47,2),BE47,0)) -> 0 | CB47: =+IF($K47="Ongoing",BF47,IF(RIGHT($K47,2)=RIGHT(CB$39,2),SUM($AX47:BF47),0)+IF(RIGHT(CB$39,2)>RIGHT($K47,2),BF47,0)) -> 0 | CC47: =+IF($K47="Ongoing",BG47,IF(RIGHT($K47,2)=RIGHT(CC$39,2),SUM($AX47:BG47),0)+IF(RIGHT(CC$39,2)>RIGHT($K47,2),BG47,0)) -> 0 | CE47: =+Q47*KeyAssumptionsPriceControl_FO!AC$15 -> 3.38767 | CF47: =+R47*KeyAssumptionsPriceControl_FO!AD$15 -> 3.6187299 | CG47: =+S47*KeyAssumptionsPriceControl_FO!AE$15 -> 0 | CH47: =+T47*KeyAssumptionsPriceControl_FO!AF$15 -> 0 | CI47: =+U47*KeyAssumptionsPriceControl_FO!AG$15 -> 0 | CJ47: =+V47*KeyAssumptionsPriceControl_FO!AH$15 -> 0 | CK47: =+W47*KeyAssumptionsPriceControl_FO!AI$15 -> 0 | CL47: =+X47*KeyAssumptionsPriceControl_FO!AJ$15 -> 0 | CM47: =+Y47*KeyAssumptionsPriceControl_FO!AK$15 -> 0 | CN47: =+Z47*KeyAssumptionsPriceControl_FO!AL$15 -> 0 | CP47: 0.0211729375 | CQ47: 0.06496293688 | CR47: 0.08757999875 | CS47: 0.08757999875 | CT47: 0.08757999875 | CU47: 0.08757999875 | CV47: 0.08757999875 | CW47: 0.08757999875 | CX47: 0.08757999875 | CY47: 0.08757999875
C48: Replace liner and cover Wy Yung No.1 CWS | E48: Water | F48: Renewals | G48: Pipelines/network | H48: Top 10 Major Projects | J48: Straight line | K48: 2024-25 | L48: 20 | M48: 20 | Q48: 3 | R48: 3 | S48: 0 | T48: 0 | U48: 0 | V48: 0 | W48: 0 | X48: 0 | Y48: 0 | Z48: 0 | AX48: 3 | AY48: 3 | AZ48: 0 | BA48: 0 | BB48: 0 | BC48: 0 | BD48: 0 | BE48: 0 | BF48: 0 | BG48: 0 | BI48: 0 | BJ48: 0.15 | BK48: 0.3 | BL48: 0.3 | BM48: 0.3 | BN48: 0.3 | BO48: 0.3 | BP48: 0.3 | BQ48: 0.3 | BR48: 0.3 | BT48: =+IF($K48="Ongoing",AX48,IF(RIGHT($K48,2)=RIGHT(BT$39,2),SUM($AX48:AX48),0)+IF(RIGHT(BT$39,2)>RIGHT($K48,2),AX48,0)) -> 0 | BU48: =+IF($K48="Ongoing",AY48,IF(RIGHT($K48,2)=RIGHT(BU$39,2),SUM($AX48:AY48),0)+IF(RIGHT(BU$39,2)>RIGHT($K48,2),AY48,0)) -> 6 | BV48: =+IF($K48="Ongoing",AZ48,IF(RIGHT($K48,2)=RIGHT(BV$39,2),SUM($AX48:AZ48),0)+IF(RIGHT(BV$39,2)>RIGHT($K48,2),AZ48,0)) -> 0 | BW48: =+IF($K48="Ongoing",BA48,IF(RIGHT($K48,2)=RIGHT(BW$39,2),SUM($AX48:BA48),0)+IF(RIGHT(BW$39,2)>RIGHT($K48,2),BA48,0)) -> 0 | BX48: =+IF($K48="Ongoing",BB48,IF(RIGHT($K48,2)=RIGHT(BX$39,2),SUM($AX48:BB48),0)+IF(RIGHT(BX$39,2)>RIGHT($K48,2),BB48,0)) -> 0 | BY48: =+IF($K48="Ongoing",BC48,IF(RIGHT($K48,2)=RIGHT(BY$39,2),SUM($AX48:BC48),0)+IF(RIGHT(BY$39,2)>RIGHT($K48,2),BC48,0)) -> 0 | BZ48: =+IF($K48="Ongoing",BD48,IF(RIGHT($K48,2)=RIGHT(BZ$39,2),SUM($AX48:BD48),0)+IF(RIGHT(BZ$39,2)>RIGHT($K48,2),BD48,0)) -> 0 | CA48: =+IF($K48="Ongoing",BE48,IF(RIGHT($K48,2)=RIGHT(CA$39,2),SUM($AX48:BE48),0)+IF(RIGHT(CA$39,2)>RIGHT($K48,2),BE48,0)) -> 0 | CB48: =+IF($K48="Ongoing",BF48,IF(RIGHT($K48,2)=RIGHT(CB$39,2),SUM($AX48:BF48),0)+IF(RIGHT(CB$39,2)>RIGHT($K48,2),BF48,0)) -> 0 | CC48: =+IF($K48="Ongoing",BG48,IF(RIGHT($K48,2)=RIGHT(CC$39,2),SUM($AX48:BG48),0)+IF(RIGHT(CC$39,2)>RIGHT($K48,2),BG48,0)) -> 0 | CE48: =+Q48*KeyAssumptionsPriceControl_FO!AC$15 -> 3.09 | CF48: =+R48*KeyAssumptionsPriceControl_FO!AD$15 -> 3.1827 | CG48: =+S48*KeyAssumptionsPriceControl_FO!AE$15 -> 0 | CH48: =+T48*KeyAssumptionsPriceControl_FO!AF$15 -> 0 | CI48: =+U48*KeyAssumptionsPriceControl_FO!AG$15 -> 0 | CJ48: =+V48*KeyAssumptionsPriceControl_FO!AH$15 -> 0 | CK48: =+W48*KeyAssumptionsPriceControl_FO!AI$15 -> 0 | CL48: =+X48*KeyAssumptionsPriceControl_FO!AJ$15 -> 0 | CM48: =+Y48*KeyAssumptionsPriceControl_FO!AK$15 -> 0 | CN48: =+Z48*KeyAssumptionsPriceControl_FO!AL$15 -> 0 | CP48: 0.07725 | CQ48: 0.2340675 | CR48: 0.313635 | CS48: 0.313635 | CT48: 0.313635 | CU48: 0.313635 | CV48: 0.313635 | CW48: 0.313635 | CX48: 0.313635 | CY48: 0.313635
C49: Lakes Entrance North Arm Water Main Replacement | E49: Water | F49: Renewals | G49: Pipelines/network | H49: Top 10 Major Projects | J49: Straight line | K49: 2024-25 | L49: 80 | M49: 80 | Q49: 0.8 | R49: 3.2 | S49: 0 | T49: 0 | U49: 0 | V49: 0 | W49: 0 | X49: 0 | Y49: 0 | Z49: 0 | AX49: 0.8 | AY49: 3.2 | AZ49: 0 | BA49: 0 | BB49: 0 | BC49: 0 | BD49: 0 | BE49: 0 | BF49: 0 | BG49: 0 | BI49: 0 | BJ49: 0.025 | BK49: 0.05 | BL49: 0.05 | BM49: 0.05 | BN49: 0.05 | BO49: 0.05 | BP49: 0.05 | BQ49: 0.05 | BR49: 0.05 | BT49: =+IF($K49="Ongoing",AX49,IF(RIGHT($K49,2)=RIGHT(BT$39,2),SUM($AX49:AX49),0)+IF(RIGHT(BT$39,2)>RIGHT($K49,2),AX49,0)) -> 0 | BU49: =+IF($K49="Ongoing",AY49,IF(RIGHT($K49,2)=RIGHT(BU$39,2),SUM($AX49:AY49),0)+IF(RIGHT(BU$39,2)>RIGHT($K49,2),AY49,0)) -> 4 | BV49: =+IF($K49="Ongoing",AZ49,IF(RIGHT($K49,2)=RIGHT(BV$39,2),SUM($AX49:AZ49),0)+IF(RIGHT(BV$39,2)>RIGHT($K49,2),AZ49,0)) -> 0 | BW49: =+IF($K49="Ongoing",BA49,IF(RIGHT($K49,2)=RIGHT(BW$39,2),SUM($AX49:BA49),0)+IF(RIGHT(BW$39,2)>RIGHT($K49,2),BA49,0)) -> 0 | BX49: =+IF($K49="Ongoing",BB49,IF(RIGHT($K49,2)=RIGHT(BX$39,2),SUM($AX49:BB49),0)+IF(RIGHT(BX$39,2)>RIGHT($K49,2),BB49,0)) -> 0 | BY49: =+IF($K49="Ongoing",BC49,IF(RIGHT($K49,2)=RIGHT(BY$39,2),SUM($AX49:BC49),0)+IF(RIGHT(BY$39,2)>RIGHT($K49,2),BC49,0)) -> 0 | BZ49: =+IF($K49="Ongoing",BD49,IF(RIGHT($K49,2)=RIGHT(BZ$39,2),SUM($AX49:BD49),0)+IF(RIGHT(BZ$39,2)>RIGHT($K49,2),BD49,0)) -> 0 | CA49: =+IF($K49="Ongoing",BE49,IF(RIGHT($K49,2)=RIGHT(CA$39,2),SUM($AX49:BE49),0)+IF(RIGHT(CA$39,2)>RIGHT($K49,2),BE49,0)) -> 0 | CB49: =+IF($K49="Ongoing",BF49,IF(RIGHT($K49,2)=RIGHT(CB$39,2),SUM($AX49:BF49),0)+IF(RIGHT(CB$39,2)>RIGHT($K49,2),BF49,0)) -> 0 | CC49: =+IF($K49="Ongoing",BG49,IF(RIGHT($K49,2)=RIGHT(CC$39,2),SUM($AX49:BG49),0)+IF(RIGHT(CC$39,2)>RIGHT($K49,2),BG49,0)) -> 0 | CE49: =+Q49*KeyAssumptionsPriceControl_FO!AC$15 -> 0.824 | CF49: =+R49*KeyAssumptionsPriceControl_FO!AD$15 -> 3.39488 | CG49: =+S49*KeyAssumptionsPriceControl_FO!AE$15 -> 0 | CH49: =+T49*KeyAssumptionsPriceControl_FO!AF$15 -> 0 | CI49: =+U49*KeyAssumptionsPriceControl_FO!AG$15 -> 0 | CJ49: =+V49*KeyAssumptionsPriceControl_FO!AH$15 -> 0 | CK49: =+W49*KeyAssumptionsPriceControl_FO!AI$15 -> 0 | CL49: =+X49*KeyAssumptionsPriceControl_FO!AJ$15 -> 0 | CM49: =+Y49*KeyAssumptionsPriceControl_FO!AK$15 -> 0 | CN49: =+Z49*KeyAssumptionsPriceControl_FO!AL$15 -> 0 | CP49: 0.00515 | CQ49: 0.031518 | CR49: 0.052736 | CS49: 0.052736 | CT49: 0.052736 | CU49: 0.052736 | CV49: 0.052736 | CW49: 0.052736 | CX49: 0.052736 | CY49: 0.052736
C50: Buchan - replace clear water tanks (1ML) | E50: Water | F50: Renewals | G50: Pipelines/network | H50: Top 10 Major Projects | J50: Straight line | K50: 2026-27 | L50: 50 | M50: 50 | Q50: 0 | R50: 0.2 | S50: 0.5 | T50: 2.9 | U50: 0 | V50: 0 | W50: 0 | X50: 0 | Y50: 0 | Z50: 0 | AX50: 0 | AY50: 0.2 | AZ50: 0.5 | BA50: 2.9 | BB50: 0 | BC50: 0 | BD50: 0 | BE50: 0 | BF50: 0 | BG50: 0 | BI50: 0 | BJ50: 0 | BK50: 0 | BL50: 0.036 | BM50: 0.072 | BN50: 0.072 | BO50: 0.072 | BP50: 0.072 | BQ50: 0.072 | BR50: 0.072 | BT50: =+IF($K50="Ongoing",AX50,IF(RIGHT($K50,2)=RIGHT(BT$39,2),SUM($AX50:AX50),0)+IF(RIGHT(BT$39,2)>RIGHT($K50,2),AX50,0)) -> 0 | BU50: =+IF($K50="Ongoing",AY50,IF(RIGHT($K50,2)=RIGHT(BU$39,2),SUM($AX50:AY50),0)+IF(RIGHT(BU$39,2)>RIGHT($K50,2),AY50,0)) -> 0 | BV50: =+IF($K50="Ongoing",AZ50,IF(RIGHT($K50,2)=RIGHT(BV$39,2),SUM($AX50:AZ50),0)+IF(RIGHT(BV$39,2)>RIGHT($K50,2),AZ50,0)) -> 0 | BW50: =+IF($K50="Ongoing",BA50,IF(RIGHT($K50,2)=RIGHT(BW$39,2),SUM($AX50:BA50),0)+IF(RIGHT(BW$39,2)>RIGHT($K50,2),BA50,0)) -> 3.6 | BX50: =+IF($K50="Ongoing",BB50,IF(RIGHT($K50,2)=RIGHT(BX$39,2),SUM($AX50:BB50),0)+IF(RIGHT(BX$39,2)>RIGHT($K50,2),BB50,0)) -> 0 | BY50: =+IF($K50="Ongoing",BC50,IF(RIGHT($K50,2)=RIGHT(BY$39,2),SUM($AX50:BC50),0)+IF(RIGHT(BY$39,2)>RIGHT($K50,2),BC50,0)) -> 0 | BZ50: =+IF($K50="Ongoing",BD50,IF(RIGHT($K50,2)=RIGHT(BZ$39,2),SUM($AX50:BD50),0)+IF(RIGHT(BZ$39,2)>RIGHT($K50,2),BD50,0)) -> 0 | CA50: =+IF($K50="Ongoing",BE50,IF(RIGHT($K50,2)=RIGHT(CA$39,2),SUM($AX50:BE50),0)+IF(RIGHT(CA$39,2)>RIGHT($K50,2),BE50,0)) -> 0 | CB50: =+IF($K50="Ongoing",BF50,IF(RIGHT($K50,2)=RIGHT(CB$39,2),SUM($AX50:BF50),0)+IF(RIGHT(CB$39,2)>RIGHT($K50,2),BF50,0)) -> 0 | CC50: =+IF($K50="Ongoing",BG50,IF(RIGHT($K50,2)=RIGHT(CC$39,2),SUM($AX50:BG50),0)+IF(RIGHT(CC$39,2)>RIGHT($K50,2),BG50,0)) -> 0 | CE50: =+Q50*KeyAssumptionsPriceControl_FO!AC$15 -> 0 | CF50: =+R50*KeyAssumptionsPriceControl_FO!AD$15 -> 0.21218 | CG50: =+S50*KeyAssumptionsPriceControl_FO!AE$15 -> 0.5463635 | CH50: =+T50*KeyAssumptionsPriceControl_FO!AF$15 -> 3.263975549 | CI50: =+U50*KeyAssumptionsPriceControl_FO!AG$15 -> 0 | CJ50: =+V50*KeyAssumptionsPriceControl_FO!AH$15 -> 0 | CK50: =+W50*KeyAssumptionsPriceControl_FO!AI$15 -> 0 | CL50: =+X50*KeyAssumptionsPriceControl_FO!AJ$15 -> 0 | CM50: =+Y50*KeyAssumptionsPriceControl_FO!AK$15 -> 0 | CN50: =+Z50*KeyAssumptionsPriceControl_FO!AL$15 -> 0 | CP50: 0 | CQ50: 0.0021218 | CR50: 0.009707235 | CS50: 0.04781062549 | CT50: 0.08045038098 | CU50: 0.08045038098 | CV50: 0.08045038098 | CW50: 0.08045038098 | CX50: 0.08045038098 | CY50: 0.08045038098
C51: New 1ML clear water storage tank and pump station at Marlo | E51: Water | F51: Growth | G51: Pipelines/network | H51: Top 10 Major Projects | J51: Straight line | K51: 2026-27 | L51: 50 | M51: 50 | Q51: 0 | R51: 0.2 | S51: 0.7 | T51: 2.8 | U51: 0 | V51: 0 | W51: 0 | X51: 0 | Y51: 0 | Z51: 0 | AX51: 0 | AY51: 0.2 | AZ51: 0.7 | BA51: 2.8 | BB51: 0 | BC51: 0 | BD51: 0 | BE51: 0 | BF51: 0 | BG51: 0 | BI51: 0 | BJ51: 0 | BK51: 0 | BL51: 0.037 | BM51: 0.074 | BN51: 0.074 | BO51: 0.074 | BP51: 0.074 | BQ51: 0.074 | BR51: 0.074 | BT51: =+IF($K51="Ongoing",AX51,IF(RIGHT($K51,2)=RIGHT(BT$39,2),SUM($AX51:AX51),0)+IF(RIGHT(BT$39,2)>RIGHT($K51,2),AX51,0)) -> 0 | BU51: =+IF($K51="Ongoing",AY51,IF(RIGHT($K51,2)=RIGHT(BU$39,2),SUM($AX51:AY51),0)+IF(RIGHT(BU$39,2)>RIGHT($K51,2),AY51,0)) -> 0 | BV51: =+IF($K51="Ongoing",AZ51,IF(RIGHT($K51,2)=RIGHT(BV$39,2),SUM($AX51:AZ51),0)+IF(RIGHT(BV$39,2)>RIGHT($K51,2),AZ51,0)) -> 0 | BW51: =+IF($K51="Ongoing",BA51,IF(RIGHT($K51,2)=RIGHT(BW$39,2),SUM($AX51:BA51),0)+IF(RIGHT(BW$39,2)>RIGHT($K51,2),BA51,0)) -> 3.7 | BX51: =+IF($K51="Ongoing",BB51,IF(RIGHT($K51,2)=RIGHT(BX$39,2),SUM($AX51:BB51),0)+IF(RIGHT(BX$39,2)>RIGHT($K51,2),BB51,0)) -> 0 | BY51: =+IF($K51="Ongoing",BC51,IF(RIGHT($K51,2)=RIGHT(BY$39,2),SUM($AX51:BC51),0)+IF(RIGHT(BY$39,2)>RIGHT($K51,2),BC51,0)) -> 0 | BZ51: =+IF($K51="Ongoing",BD51,IF(RIGHT($K51,2)=RIGHT(BZ$39,2),SUM($AX51:BD51),0)+IF(RIGHT(BZ$39,2)>RIGHT($K51,2),BD51,0)) -> 0 | CA51: =+IF($K51="Ongoing",BE51,IF(RIGHT($K51,2)=RIGHT(CA$39,2),SUM($AX51:BE51),0)+IF(RIGHT(CA$39,2)>RIGHT($K51,2),BE51,0)) -> 0 | CB51: =+IF($K51="Ongoing",BF51,IF(RIGHT($K51,2)=RIGHT(CB$39,2),SUM($AX51:BF51),0)+IF(RIGHT(CB$39,2)>RIGHT($K51,2),BF51,0)) -> 0 | CC51: =+IF($K51="Ongoing",BG51,IF(RIGHT($K51,2)=RIGHT(CC$39,2),SUM($AX51:BG51),0)+IF(RIGHT(CC$39,2)>RIGHT($K51,2),BG51,0)) -> 0 | CE51: =+Q51*KeyAssumptionsPriceControl_FO!AC$15 -> 0 | CF51: =+R51*KeyAssumptionsPriceControl_FO!AD$15 -> 0.21218 | CG51: =+S51*KeyAssumptionsPriceControl_FO!AE$15 -> 0.7649089 | CH51: =+T51*KeyAssumptionsPriceControl_FO!AF$15 -> 3.151424668 | CI51: =+U51*KeyAssumptionsPriceControl_FO!AG$15 -> 0 | CJ51: =+V51*KeyAssumptionsPriceControl_FO!AH$15 -> 0 | CK51: =+W51*KeyAssumptionsPriceControl_FO!AI$15 -> 0 | CL51: =+X51*KeyAssumptionsPriceControl_FO!AJ$15 -> 0 | CM51: =+Y51*KeyAssumptionsPriceControl_FO!AK$15 -> 0 | CN51: =+Z51*KeyAssumptionsPriceControl_FO!AL$15 -> 0 | CP51: 0 | CQ51: 0.0021218 | CR51: 0.011892689 | CS51: 0.05105602468 | CT51: 0.08257027136 | CU51: 0.08257027136 | CV51: 0.08257027136 | CW51: 0.08257027136 | CX51: 0.08257027136 | CY51: 0.08257027136
C53: Orbost/Newmerella WWTP - expand irrigation system with an additional pivot (around 13Ha) | E53: Recycled Water | F53: Renewals | G53: Treatment | H53: Other Capital expenditure | J53: Straight line | K53: 2028-29 | L53: 25 | M53: 25 | Q53: 0 | R53: 0 | S53: 0 | T53: 0 | U53: 0.05 | V53: 0.155 | W53: 0 | X53: 0 | Y53: 0 | Z53: 0 | AX53: =+Q53-AB53-AM53 -> 0 | AY53: =+R53-AC53-AN53 -> 0 | AZ53: =+S53-AD53-AO53 -> 0 | BA53: =+T53-AE53-AP53 -> 0 | BB53: =+U53-AF53-AQ53 -> 0.05 | BC53: =+V53-AG53-AR53 -> 0.155 | BD53: =+W53-AH53-AS53 -> 0 | BE53: =+X53-AI53-AT53 -> 0 | BF53: =+Y53-AJ53-AU53 -> 0 | BG53: =+Z53-AK53-AV53 -> 0 | BI53: =IF($L53=0,0, IF($L53<=0.5,BT53, IF($J53="straight line", IF((LEFT(BI$39,4)*1)-INT($L53)<LEFT($BI$39,4)*1,0,((OFFSET(BT53,0,-INT($L53+0.5),1,1))/$L53)*(IF($L53-INT($L53)>0.5,$L53-0.5-INT($L53),IF($L53-INT($L53)<=0.5,$L53-0.5-INT($L53)+1,0)))) +BT53/$L53*0.5, IF($J53="Declining Balance",-$BI$38,0)))) -> 0 | BJ53: =IF($L53=0,0, IF($L53<=0.5,BU53, IF(AND($J53="straight line",$L53<1.51),(BT53-((BT53/$L53)*0.5))+BU53/$L53*0.5, IF($J53="straight line", IF((LEFT(BJ$39,4)*1)-INT($L53)<LEFT($BI$39,4)*1,0,((OFFSET(BU53,0,-INT($L53+0.5),1,1))/$L53)*(IF($L53-INT($L53)>0.5,$L53-0.5-INT($L53),IF($L53-INT($L53)<=0.5,$L53-0.5-INT($L53)+1,0)))) +BU53/$L53*0.5 +SUM(OFFSET(BU53,0,MAX(-INT($L53+(0.5-(10^-12))),-BJ$40)+1,1,MIN(INT($L53+(0.5-(10^-12))),BJ$40)-1))*1/$L53, IF($J53="Declining Balance",-$BI$38,0))))) -> 0 | BK53: =IF($L53=0,0, IF($L53<=0.5,BV53, IF(AND($J53="straight line",$L53<1.51),(BU53-((BU53/$L53)*0.5))+BV53/$L53*0.5, IF($J53="straight line", IF((LEFT(BK$39,4)*1)-INT($L53)<LEFT($BI$39,4)*1,0,((OFFSET(BV53,0,-INT($L53+0.5),1,1))/$L53)*(IF($L53-INT($L53)>0.5,$L53-0.5-INT($L53),IF($L53-INT($L53)<=0.5,$L53-0.5-INT($L53)+1,0)))) +BV53/$L53*0.5 +SUM(OFFSET(BV53,0,MAX(-INT($L53+(0.5-(10^-12))),-BK$40)+1,1,MIN(INT($L53+(0.5-(10^-12))),BK$40)-1))*1/$L53, IF($J53="Declining Balance",-$BI$38,0))))) -> 0 | BL53: =IF($L53=0,0, IF($L53<=0.5,BW53, IF(AND($J53="straight line",$L53<1.51),(BV53-((BV53/$L53)*0.5))+BW53/$L53*0.5, IF($J53="straight line", IF((LEFT(BL$39,4)*1)-INT($L53)<LEFT($BI$39,4)*1,0,((OFFSET(BW53,0,-INT($L53+0.5),1,1))/$L53)*(IF($L53-INT($L53)>0.5,$L53-0.5-INT($L53),IF($L53-INT($L53)<=0.5,$L53-0.5-INT($L53)+1,0)))) +BW53/$L53*0.5 +SUM(OFFSET(BW53,0,MAX(-INT($L53+(0.5-(10^-12))),-BL$40)+1,1,MIN(INT($L53+(0.5-(10^-12))),BL$40)-1))*1/$L53, IF($J53="Declining Balance",-$BI$38,0))))) -> 0 | BM53: =IF($L53=0,0, IF($L53<=0.5,BX53, IF(AND($J53="straight line",$L53<1.51),(BW53-((BW53/$L53)*0.5))+BX53/$L53*0.5, IF($J53="straight line", IF((LEFT(BM$39,4)*1)-INT($L53)<LEFT($BI$39,4)*1,0,((OFFSET(BX53,0,-INT($L53+0.5),1,1))/$L53)*(IF($L53-INT($L53)>0.5,$L53-0.5-INT($L53),IF($L53-INT($L53)<=0.5,$L53-0.5-INT($L53)+1,0)))) +BX53/$L53*0.5 +SUM(OFFSET(BX53,0,MAX(-INT($L53+(0.5-(10^-12))),-BM$40)+1,1,MIN(INT($L53+(0.5-(10^-12))),BM$40)-1))*1/$L53, IF($J53="Declining Balance",-$BI$38,0))))) -> 0 | BN53: =IF($L53=0,0, IF($L53<=0.5,BY53, IF(AND($J53="straight line",$L53<1.51),(BX53-((BX53/$L53)*0.5))+BY53/$L53*0.5, IF($J53="straight line", IF((LEFT(BN$39,4)*1)-INT($L53)<LEFT($BI$39,4)*1,0,((OFFSET(BY53,0,-INT($L53+0.5),1,1))/$L53)*(IF($L53-INT($L53)>0.5,$L53-0.5-INT($L53),IF($L53-INT($L53)<=0.5,$L53-0.5-INT($L53)+1,0)))) +BY53/$L53*0.5 +SUM(OFFSET(BY53,0,MAX(-INT($L53+(0.5-(10^-12))),-BN$40)+1,1,MIN(INT($L53+(0.5-(10^-12))),BN$40)-1))*1/$L53, IF($J53="Declining Balance",-$BI$38,0))))) -> 0.0041 | BO53: =IF($L53=0,0, IF($L53<=0.5,BZ53, IF(AND($J53="straight line",$L53<1.51),(BY53-((BY53/$L53)*0.5))+BZ53/$L53*0.5, IF($J53="straight line", IF((LEFT(BO$39,4)*1)-INT($L53)<LEFT($BI$39,4)*1,0,((OFFSET(BZ53,0,-INT($L53+0.5),1,1))/$L53)*(IF($L53-INT($L53)>0.5,$L53-0.5-INT($L53),IF($L53-INT($L53)<=0.5,$L53-0.5-INT($L53)+1,0)))) +BZ53/$L53*0.5 +SUM(OFFSET(BZ53,0,MAX(-INT($L53+(0.5-(10^-12))),-BO$40)+1,1,MIN(INT($L53+(0.5-(10^-12))),BO$40)-1))*1/$L53, IF($J53="Declining Balance",-$BI$38,0))))) -> 0.0082 | BP53: =IF($L53=0,0, IF($L53<=0.5,CA53, IF(AND($J53="straight line",$L53<1.51),(BZ53-((BZ53/$L53)*0.5))+CA53/$L53*0.5, IF($J53="straight line", IF((LEFT(BP$39,4)*1)-INT($L53)<LEFT($BI$39,4)*1,0,((OFFSET(CA53,0,-INT($L53+0.5),1,1))/$L53)*(IF($L53-INT($L53)>0.5,$L53-0.5-INT($L53),IF($L53-INT($L53)<=0.5,$L53-0.5-INT($L53)+1,0)))) +CA53/$L53*0.5 +SUM(OFFSET(CA53,0,MAX(-INT($L53+(0.5-(10^-12))),-BP$40)+1,1,MIN(INT($L53+(0.5-(10^-12))),BP$40)-1))*1/$L53, IF($J53="Declining Balance",-$BI$38,0))))) -> 0.0082 | BQ53: =IF($L53=0,0, IF($L53<=0.5,CB53, IF(AND($J53="straight line",$L53<1.51),(CA53-((CA53/$L53)*0.5))+CB53/$L53*0.5, IF($J53="straight line", IF((LEFT(BQ$39,4)*1)-INT($L53)<LEFT($BI$39,4)*1,0,((OFFSET(CB53,0,-INT($L53+0.5),1,1))/$L53)*(IF($L53-INT($L53)>0.5,$L53-0.5-INT($L53),IF($L53-INT($L53)<=0.5,$L53-0.5-INT($L53)+1,0)))) +CB53/$L53*0.5 +SUM(OFFSET(CB53,0,MAX(-INT($L53+(0.5-(10^-12))),-BQ$40)+1,1,MIN(INT($L53+(0.5-(10^-12))),BQ$40)-1))*1/$L53, IF($J53="Declining Balance",-$BI$38,0))))) -> 0.0082 | BR53: =IF($L53=0,0, IF($L53<=0.5,CC53, IF(AND($J53="straight line",$L53<1.51),(CB53-((CB53/$L53)*0.5))+CC53/$L53*0.5, IF($J53="straight line", IF((LEFT(BR$39,4)*1)-INT($L53)<LEFT($BI$39,4)*1,0,((OFFSET(CC53,0,-INT($L53+0.5),1,1))/$L53)*(IF($L53-INT($L53)>0.5,$L53-0.5-INT($L53),IF($L53-INT($L53)<=0.5,$L53-0.5-INT($L53)+1,0)))) +CC53/$L53*0.5 +SUM(OFFSET(CC53,0,MAX(-INT($L53+(0.5-(10^-12))),-BR$40)+1,1,MIN(INT($L53+(0.5-(10^-12))),BR$40)-1))*1/$L53, IF($J53="Declining Balance",-$BI$38,0))))) -> 0.0082 | BT53: =+IF($K53="Ongoing",AX53,IF(RIGHT($K53,2)=RIGHT(BT$39,2),SUM($AX53:AX53),0)+IF(RIGHT(BT$39,2)>RIGHT($K53,2),AX53,0)) -> 0 | BU53: =+IF($K53="Ongoing",AY53,IF(RIGHT($K53,2)=RIGHT(BU$39,2),SUM($AX53:AY53),0)+IF(RIGHT(BU$39,2)>RIGHT($K53,2),AY53,0)) -> 0 | BV53: =+IF($K53="Ongoing",AZ53,IF(RIGHT($K53,2)=RIGHT(BV$39,2),SUM($AX53:AZ53),0)+IF(RIGHT(BV$39,2)>RIGHT($K53,2),AZ53,0)) -> 0 | BW53: =+IF($K53="Ongoing",BA53,IF(RIGHT($K53,2)=RIGHT(BW$39,2),SUM($AX53:BA53),0)+IF(RIGHT(BW$39,2)>RIGHT($K53,2),BA53,0)) -> 0 | BX53: =+IF($K53="Ongoing",BB53,IF(RIGHT($K53,2)=RIGHT(BX$39,2),SUM($AX53:BB53),0)+IF(RIGHT(BX$39,2)>RIGHT($K53,2),BB53,0)) -> 0 | BY53: =+IF($K53="Ongoing",BC53,IF(RIGHT($K53,2)=RIGHT(BY$39,2),SUM($AX53:BC53),0)+IF(RIGHT(BY$39,2)>RIGHT($K53,2),BC53,0)) -> 0.205 | BZ53: =+IF($K53="Ongoing",BD53,IF(RIGHT($K53,2)=RIGHT(BZ$39,2),SUM($AX53:BD53),0)+IF(RIGHT(BZ$39,2)>RIGHT($K53,2),BD53,0)) -> 0 | CA53: =+IF($K53="Ongoing",BE53,IF(RIGHT($K53,2)=RIGHT(CA$39,2),SUM($AX53:BE53),0)+IF(RIGHT(CA$39,2)>RIGHT($K53,2),BE53,0)) -> 0 | CB53: =+IF($K53="Ongoing",BF53,IF(RIGHT($K53,2)=RIGHT(CB$39,2),SUM($AX53:BF53),0)+IF(RIGHT(CB$39,2)>RIGHT($K53,2),BF53,0)) -> 0 | CC53: =+IF($K53="Ongoing",BG53,IF(RIGHT($K53,2)=RIGHT(CC$39,2),SUM($AX53:BG53),0)+IF(RIGHT(CC$39,2)>RIGHT($K53,2),BG53,0)) -> 0 | CE53: =+Q53*KeyAssumptionsPriceControl_FO!AC$15 -> 0 | CF53: =+R53*KeyAssumptionsPriceControl_FO!AD$15 -> 0 | CG53: =+S53*KeyAssumptionsPriceControl_FO!AE$15 -> 0 | CH53: =+T53*KeyAssumptionsPriceControl_FO!AF$15 -> 0 | CI53: =+U53*KeyAssumptionsPriceControl_FO!AG$15 -> 0.05796370372 | CJ53: =+V53*KeyAssumptionsPriceControl_FO!AH$15 -> 0.185078106 | CK53: =+W53*KeyAssumptionsPriceControl_FO!AI$15 -> 0 | CL53: =+X53*KeyAssumptionsPriceControl_FO!AJ$15 -> 0 | CM53: =+Y53*KeyAssumptionsPriceControl_FO!AK$15 -> 0 | CN53: =+Z53*KeyAssumptionsPriceControl_FO!AL$15 -> 0 | CP53: =IF($M53=0,0, IF($M53<=0.5,CE53, IF($J53="straight line", IF((LEFT(CP$39,4)*1)-INT($M53)<LEFT($CP$39,4)*1,0,((OFFSET(CE53,0,-INT($M53+0.5),1,1))/$M53)*(IF($M53-INT($M53)>0.5,$M53-0.5-INT($M53),IF($M53-INT($M53)<=0.5,$M53-0.5-INT($M53)+1,0)))) +CE53/$M53*0.5, IF($J53="Declining Balance",-$CP$38,0)))) -> 0 | CQ53: =IF($M53=0,0, IF($M53<=0.5,CF53, IF(AND($J53="straight line",$M53<1.51),(CE53-((CE53/$M53)*0.5))+CF53/$M53*0.5, IF($J53="straight line", IF((LEFT(CQ$39,4)*1)-INT($M53)<LEFT($CP$39,4)*1,0,((OFFSET(CF53,0,-INT($M53+0.5),1,1))/$M53)*(IF($M53-INT($M53)>0.5,$M53-0.5-INT($M53),IF($M53-INT($M53)<=0.5,$M53-0.5-INT($M53)+1,0)))) +CF53/$M53*0.5 +SUM(OFFSET(CF53,0,MAX(-INT($M53+(0.5-(10^-12))),-CQ$40)+1,1,MIN(INT($M53+(0.5-(10^-12))),CQ$40)-1))*1/$M53, IF($J53="Declining Balance",-$CP$38,0))))) -> 0 | CR53: =IF($M53=0,0, IF($M53<=0.5,CG53, IF(AND($J53="straight line",$M53<1.51),(CF53-((CF53/$M53)*0.5))+CG53/$M53*0.5, IF($J53="straight line", IF((LEFT(CR$39,4)*1)-INT($M53)<LEFT($CP$39,4)*1,0,((OFFSET(CG53,0,-INT($M53+0.5),1,1))/$M53)*(IF($M53-INT($M53)>0.5,$M53-0.5-INT($M53),IF($M53-INT($M53)<=0.5,$M53-0.5-INT($M53)+1,0)))) +CG53/$M53*0.5 +SUM(OFFSET(CG53,0,MAX(-INT($M53+(0.5-(10^-12))),-CR$40)+1,1,MIN(INT($M53+(0.5-(10^-12))),CR$40)-1))*1/$M53, IF($J53="Declining Balance",-$CP$38,0))))) -> 0 | CS53: =IF($M53=0,0, IF($M53<=0.5,CH53, IF(AND($J53="straight line",$M53<1.51),(CG53-((CG53/$M53)*0.5))+CH53/$M53*0.5, IF($J53="straight line", IF((LEFT(CS$39,4)*1)-INT($M53)<LEFT($CP$39,4)*1,0,((OFFSET(CH53,0,-INT($M53+0.5),1,1))/$M53)*(IF($M53-INT($M53)>0.5,$M53-0.5-INT($M53),IF($M53-INT($M53)<=0.5,$M53-0.5-INT($M53)+1,0)))) +CH53/$M53*0.5 +SUM(OFFSET(CH53,0,MAX(-INT($M53+(0.5-(10^-12))),-CS$40)+1,1,MIN(INT($M53+(0.5-(10^-12))),CS$40)-1))*1/$M53, IF($J53="Declining Balance",-$CP$38,0))))) -> 0 | CT53: =IF($M53=0,0, IF($M53<=0.5,CI53, IF(AND($J53="straight line",$M53<1.51),(CH53-((CH53/$M53)*0.5))+CI53/$M53*0.5, IF($J53="straight line", IF((LEFT(CT$39,4)*1)-INT($M53)<LEFT($CP$39,4)*1,0,((OFFSET(CI53,0,-INT($M53+0.5),1,1))/$M53)*(IF($M53-INT($M53)>0.5,$M53-0.5-INT($M53),IF($M53-INT($M53)<=0.5,$M53-0.5-INT($M53)+1,0)))) +CI53/$M53*0.5 +SUM(OFFSET(CI53,0,MAX(-INT($M53+(0.5-(10^-12))),-CT$40)+1,1,MIN(INT($M53+(0.5-(10^-12))),CT$40)-1))*1/$M53, IF($J53="Declining Balance",-$CP$38,0))))) -> 0.001159274074 | CU53: =IF($M53=0,0, IF($M53<=0.5,CJ53, IF(AND($J53="straight line",$M53<1.51),(CI53-((CI53/$M53)*0.5))+CJ53/$M53*0.5, IF($J53="straight line", IF((LEFT(CU$39,4)*1)-INT($M53)<LEFT($CP$39,4)*1,0,((OFFSET(CJ53,0,-INT($M53+0.5),1,1))/$M53)*(IF($M53-INT($M53)>0.5,$M53-0.5-INT($M53),IF($M53-INT($M53)<=0.5,$M53-0.5-INT($M53)+1,0)))) +CJ53/$M53*0.5 +SUM(OFFSET(CJ53,0,MAX(-INT($M53+(0.5-(10^-12))),-CU$40)+1,1,MIN(INT($M53+(0.5-(10^-12))),CU$40)-1))*1/$M53, IF($J53="Declining Balance",-$CP$38,0))))) -> 0.006020110268 | CV53: =IF($M53=0,0, IF($M53<=0.5,CK53, IF(AND($J53="straight line",$M53<1.51),(CJ53-((CJ53/$M53)*0.5))+CK53/$M53*0.5, IF($J53="straight line", IF((LEFT(CV$39,4)*1)-INT($M53)<LEFT($CP$39,4)*1,0,((OFFSET(CK53,0,-INT($M53+0.5),1,1))/$M53)*(IF($M53-INT($M53)>0.5,$M53-0.5-INT($M53),IF($M53-INT($M53)<=0.5,$M53-0.5-INT($M53)+1,0)))) +CK53/$M53*0.5 +SUM(OFFSET(CK53,0,MAX(-INT($M53+(0.5-(10^-12))),-CV$40)+1,1,MIN(INT($M53+(0.5-(10^-12))),CV$40)-1))*1/$M53, IF($J53="Declining Balance",-$CP$38,0))))) -> 0.009721672387 | CW53: =IF($M53=0,0, IF($M53<=0.5,CL53, IF(AND($J53="straight line",$M53<1.51),(CK53-((CK53/$M53)*0.5))+CL53/$M53*0.5, IF($J53="straight line", IF((LEFT(CW$39,4)*1)-INT($M53)<LEFT($CP$39,4)*1,0,((OFFSET(CL53,0,-INT($M53+0.5),1,1))/$M53)*(IF($M53-INT($M53)>0.5,$M53-0.5-INT($M53),IF($M53-INT($M53)<=0.5,$M53-0.5-INT($M53)+1,0)))) +CL53/$M53*0.5 +SUM(OFFSET(CL53,0,MAX(-INT($M53+(0.5-(10^-12))),-CW$40)+1,1,MIN(INT($M53+(0.5-(10^-12))),CW$40)-1))*1/$M53, IF($J53="Declining Balance",-$CP$38,0))))) -> 0.009721672387 | CX53: =IF($M53=0,0, IF($M53<=0.5,CM53, IF(AND($J53="straight line",$M53<1.51),(CL53-((CL53/$M53)*0.5))+CM53/$M53*0.5, IF($J53="straight line", IF((LEFT(CX$39,4)*1)-INT($M53)<LEFT($CP$39,4)*1,0,((OFFSET(CM53,0,-INT($M53+0.5),1,1))/$M53)*(IF($M53-INT($M53)>0.5,$M53-0.5-INT($M53),IF($M53-INT($M53)<=0.5,$M53-0.5-INT($M53)+1,0)))) +CM53/$M53*0.5 +SUM(OFFSET(CM53,0,MAX(-INT($M53+(0.5-(10^-12))),-CX$40)+1,1,MIN(INT($M53+(0.5-(10^-12))),CX$40)-1))*1/$M53, IF($J53="Declining Balance",-$CP$38,0))))) -> 0.009721672387 | CY53: =IF($M53=0,0, IF($M53<=0.5,CN53, IF(AND($J53="straight line",$M53<1.51),(CM53-((CM53/$M53)*0.5))+CN53/$M53*0.5, IF($J53="straight line", IF((LEFT(CY$39,4)*1)-INT($M53)<LEFT($CP$39,4)*1,0,((OFFSET(CN53,0,-INT($M53+0.5),1,1))/$M53)*(IF($M53-INT($M53)>0.5,$M53-0.5-INT($M53),IF($M53-INT($M53)<=0.5,$M53-0.5-INT($M53)+1,0)))) +CN53/$M53*0.5 +SUM(OFFSET(CN53,0,MAX(-INT($M53+(0.5-(10^-12))),-CY$40)+1,1,MIN(INT($M53+(0.5-(10^-12))),CY$40)-1))*1/$M53, IF($J53="Declining Balance",-$CP$38,0))))) -> 0.009721672387
C54: Sewer networks - Hydraulic Model Build | E54: Sewerage | F54: Improvements / Compliance | G54: Corporate | H54: Other Capital expenditure | J54: Straight line | K54: Ongoing | L54: 5 | M54: 5 | Q54: 0.115 | R54: 0.23 | S54: 0.23 | T54: 0 | U54: 0 | V54: 0.08 | W54: 0.08 | X54: 0.08 | Y54: 0.08 | Z54: 0.08 | AX54: 0.115 | AY54: 0.23 | AZ54: 0.23 | BA54: 0 | BB54: 0 | BC54: 0.08 | BD54: 0.08 | BE54: 0.08 | BF54: 0.08 | BG54: 0.08 | BI54: 0.0115 | BJ54: 0.046 | BK54: 0.092 | BL54: 0.115 | BM54: 0.115 | BN54: 0.1115 | BO54: 0.093 | BP54: 0.063 | BQ54: 0.056 | BR54: 0.072 | BT54: =+IF($K54="Ongoing",AX54,IF(RIGHT($K54,2)=RIGHT(BT$39,2),SUM($AX54:AX54),0)+IF(RIGHT(BT$39,2)>RIGHT($K54,2),AX54,0)) -> 0.115 | BU54: =+IF($K54="Ongoing",AY54,IF(RIGHT($K54,2)=RIGHT(BU$39,2),SUM($AX54:AY54),0)+IF(RIGHT(BU$39,2)>RIGHT($K54,2),AY54,0)) -> 0.23 | BV54: =+IF($K54="Ongoing",AZ54,IF(RIGHT($K54,2)=RIGHT(BV$39,2),SUM($AX54:AZ54),0)+IF(RIGHT(BV$39,2)>RIGHT($K54,2),AZ54,0)) -> 0.23 | BW54: =+IF($K54="Ongoing",BA54,IF(RIGHT($K54,2)=RIGHT(BW$39,2),SUM($AX54:BA54),0)+IF(RIGHT(BW$39,2)>RIGHT($K54,2),BA54,0)) -> 0 | BX54: =+IF($K54="Ongoing",BB54,IF(RIGHT($K54,2)=RIGHT(BX$39,2),SUM($AX54:BB54),0)+IF(RIGHT(BX$39,2)>RIGHT($K54,2),BB54,0)) -> 0 | BY54: =+IF($K54="Ongoing",BC54,IF(RIGHT($K54,2)=RIGHT(BY$39,2),SUM($AX54:BC54),0)+IF(RIGHT(BY$39,2)>RIGHT($K54,2),BC54,0)) -> 0.08 | BZ54: =+IF($K54="Ongoing",BD54,IF(RIGHT($K54,2)=RIGHT(BZ$39,2),SUM($AX54:BD54),0)+IF(RIGHT(BZ$39,2)>RIGHT($K54,2),BD54,0)) -> 0.08 | CA54: =+IF($K54="Ongoing",BE54,IF(RIGHT($K54,2)=RIGHT(CA$39,2),SUM($AX54:BE54),0)+IF(RIGHT(CA$39,2)>RIGHT($K54,2),BE54,0)) -> 0.08 | CB54: =+IF($K54="Ongoing",BF54,IF(RIGHT($K54,2)=RIGHT(CB$39,2),SUM($AX54:BF54),0)+IF(RIGHT(CB$39,2)>RIGHT($K54,2),BF54,0)) -> 0.08 | CC54: =+IF($K54="Ongoing",BG54,IF(RIGHT($K54,2)=RIGHT(CC$39,2),SUM($AX54:BG54),0)+IF(RIGHT(CC$39,2)>RIGHT($K54,2),BG54,0)) -> 0.08 | CE54: =+Q54*KeyAssumptionsPriceControl_FO!AC$15 -> 0.11845 | CF54: =+R54*KeyAssumptionsPriceControl_FO!AD$15 -> 0.244007 | CG54: =+S54*KeyAssumptionsPriceControl_FO!AE$15 -> 0.25132721 | CH54: =+T54*KeyAssumptionsPriceControl_FO!AF$15 -> 0 | CI54: =+U54*KeyAssumptionsPriceControl_FO!AG$15 -> 0 | CJ54: =+V54*KeyAssumptionsPriceControl_FO!AH$15 -> 0.09552418372 | CK54: =+W54*KeyAssumptionsPriceControl_FO!AI$15 -> 0.09838990923 | CL54: =+X54*KeyAssumptionsPriceControl_FO!AJ$15 -> 0.1013416065 | CM54: =+Y54*KeyAssumptionsPriceControl_FO!AK$15 -> 0.1043818547 | CN54: =+Z54*KeyAssumptionsPriceControl_FO!AL$15 -> 0.1075133103 | CP54: 0.011845 | CQ54: 0.0480907 | CR54: 0.097624121 | CS54: 0.122756842 | CT54: 0.122756842 | CU54: 0.1204642604 | CV54: 0.1036099697 | CW54: 0.07404970024 | CX54: 0.06948932536 | CY54: 0.09067884187
C55: Bairnsdale WWTP - reinstate constructed wetland embankment | E55: Sewerage | F55: Renewals | G55: Treatment | H55: Other Capital expenditure | J55: Straight line | K55: 2023-24 | L55: 100 | M55: 100 | Q55: 0.05 | R55: 0 | S55: 0 | T55: 0 | U55: 0 | V55: 0 | W55: 0 | X55: 0 | Y55: 0 | Z55: 0 | AX55: 0.05 | AY55: 0 | AZ55: 0 | BA55: 0 | BB55: 0 | BC55: 0 | BD55: 0 | BE55: 0 | BF55: 0 | BG55: 0 | BI55: 0.00025 | BJ55: 0.0005 | BK55: 0.0005 | BL55: 0.0005 | BM55: 0.0005 | BN55: 0.0005 | BO55: 0.0005 | BP55: 0.0005 | BQ55: 0.0005 | BR55: 0.0005 | BT55: =+IF($K55="Ongoing",AX55,IF(RIGHT($K55,2)=RIGHT(BT$39,2),SUM($AX55:AX55),0)+IF(RIGHT(BT$39,2)>RIGHT($K55,2),AX55,0)) -> 0.05 | BU55: =+IF($K55="Ongoing",AY55,IF(RIGHT($K55,2)=RIGHT(BU$39,2),SUM($AX55:AY55),0)+IF(RIGHT(BU$39,2)>RIGHT($K55,2),AY55,0)) -> 0 | BV55: =+IF($K55="Ongoing",AZ55,IF(RIGHT($K55,2)=RIGHT(BV$39,2),SUM($AX55:AZ55),0)+IF(RIGHT(BV$39,2)>RIGHT($K55,2),AZ55,0)) -> 0 | BW55: =+IF($K55="Ongoing",BA55,IF(RIGHT($K55,2)=RIGHT(BW$39,2),SUM($AX55:BA55),0)+IF(RIGHT(BW$39,2)>RIGHT($K55,2),BA55,0)) -> 0 | BX55: =+IF($K55="Ongoing",BB55,IF(RIGHT($K55,2)=RIGHT(BX$39,2),SUM($AX55:BB55),0)+IF(RIGHT(BX$39,2)>RIGHT($K55,2),BB55,0)) -> 0 | BY55: =+IF($K55="Ongoing",BC55,IF(RIGHT($K55,2)=RIGHT(BY$39,2),SUM($AX55:BC55),0)+IF(RIGHT(BY$39,2)>RIGHT($K55,2),BC55,0)) -> 0 | BZ55: =+IF($K55="Ongoing",BD55,IF(RIGHT($K55,2)=RIGHT(BZ$39,2),SUM($AX55:BD55),0)+IF(RIGHT(BZ$39,2)>RIGHT($K55,2),BD55,0)) -> 0 | CA55: =+IF($K55="Ongoing",BE55,IF(RIGHT($K55,2)=RIGHT(CA$39,2),SUM($AX55:BE55),0)+IF(RIGHT(CA$39,2)>RIGHT($K55,2),BE55,0)) -> 0 | CB55: =+IF($K55="Ongoing",BF55,IF(RIGHT($K55,2)=RIGHT(CB$39,2),SUM($AX55:BF55),0)+IF(RIGHT(CB$39,2)>RIGHT($K55,2),BF55,0)) -> 0 | CC55: =+IF($K55="Ongoing",BG55,IF(RIGHT($K55,2)=RIGHT(CC$39,2),SUM($AX55:BG55),0)+IF(RIGHT(CC$39,2)>RIGHT($K55,2),BG55,0)) -> 0 | CE55: =+Q55*KeyAssumptionsPriceControl_FO!AC$15 -> 0.0515 | CF55: =+R55*KeyAssumptionsPriceControl_FO!AD$15 -> 0 | CG55: =+S55*KeyAssumptionsPriceControl_FO!AE$15 -> 0 | CH55: =+T55*KeyAssumptionsPriceControl_FO!AF$15 -> 0 | CI55: =+U55*KeyAssumptionsPriceControl_FO!AG$15 -> 0 | CJ55: =+V55*KeyAssumptionsPriceControl_FO!AH$15 -> 0 | CK55: =+W55*KeyAssumptionsPriceControl_FO!AI$15 -> 0 | CL55: =+X55*KeyAssumptionsPriceControl_FO!AJ$15 -> 0 | CM55: =+Y55*KeyAssumptionsPriceControl_FO!AK$15 -> 0 | CN55: =+Z55*KeyAssumptionsPriceControl_FO!AL$15 -> 0 | CP55: 0.0002575 | CQ55: 0.000515 | CR55: 0.000515 | CS55: 0.000515 | CT55: 0.000515 | CU55: 0.000515 | CV55: 0.000515 | CW55: 0.000515 | CX55: 0.000515 | CY55: 0.000515
C56: Dinner Plain recycled water storage augmentation | E56: Recycled Water | F56: Improvements / Compliance | G56: Treatment | H56: Other Capital expenditure | J56: Straight line | K56: 2029-30 | L56: 80 | M56: 80 | Q56: 0 | R56: 0 | S56: 0 | T56: 0 | U56: 0.2 | V56: 1.9 | W56: 2 | X56: 0 | Y56: 0 | Z56: 0 | AX56: 0 | AY56: 0 | AZ56: 0 | BA56: 0 | BB56: 0.2 | BC56: 1.9 | BD56: 2 | BE56: 0 | BF56: 0 | BG56: 0 | BI56: 0 | BJ56: 0 | BK56: 0 | BL56: 0 | BM56: 0 | BN56: 0 | BO56: 0.025625 | BP56: 0.05125 | BQ56: 0.05125 | BR56: 0.05125 | BT56: =+IF($K56="Ongoing",AX56,IF(RIGHT($K56,2)=RIGHT(BT$39,2),SUM($AX56:AX56),0)+IF(RIGHT(BT$39,2)>RIGHT($K56,2),AX56,0)) -> 0 | BU56: =+IF($K56="Ongoing",AY56,IF(RIGHT($K56,2)=RIGHT(BU$39,2),SUM($AX56:AY56),0)+IF(RIGHT(BU$39,2)>RIGHT($K56,2),AY56,0)) -> 0 | BV56: =+IF($K56="Ongoing",AZ56,IF(RIGHT($K56,2)=RIGHT(BV$39,2),SUM($AX56:AZ56),0)+IF(RIGHT(BV$39,2)>RIGHT($K56,2),AZ56,0)) -> 0 | BW56: =+IF($K56="Ongoing",BA56,IF(RIGHT($K56,2)=RIGHT(BW$39,2),SUM($AX56:BA56),0)+IF(RIGHT(BW$39,2)>RIGHT($K56,2),BA56,0)) -> 0 | BX56: =+IF($K56="Ongoing",BB56,IF(RIGHT($K56,2)=RIGHT(BX$39,2),SUM($AX56:BB56),0)+IF(RIGHT(BX$39,2)>RIGHT($K56,2),BB56,0)) -> 0 | BY56: =+IF($K56="Ongoing",BC56,IF(RIGHT($K56,2)=RIGHT(BY$39,2),SUM($AX56:BC56),0)+IF(RIGHT(BY$39,2)>RIGHT($K56,2),BC56,0)) -> 0 | BZ56: =+IF($K56="Ongoing",BD56,IF(RIGHT($K56,2)=RIGHT(BZ$39,2),SUM($AX56:BD56),0)+IF(RIGHT(BZ$39,2)>RIGHT($K56,2),BD56,0)) -> 4.1 | CA56: =+IF($K56="Ongoing",BE56,IF(RIGHT($K56,2)=RIGHT(CA$39,2),SUM($AX56:BE56),0)+IF(RIGHT(CA$39,2)>RIGHT($K56,2),BE56,0)) -> 0 | CB56: =+IF($K56="Ongoing",BF56,IF(RIGHT($K56,2)=RIGHT(CB$39,2),SUM($AX56:BF56),0)+IF(RIGHT(CB$39,2)>RIGHT($K56,2),BF56,0)) -> 0 | CC56: =+IF($K56="Ongoing",BG56,IF(RIGHT($K56,2)=RIGHT(CC$39,2),SUM($AX56:BG56),0)+IF(RIGHT(CC$39,2)>RIGHT($K56,2),BG56,0)) -> 0 | CE56: =+Q56*KeyAssumptionsPriceControl_FO!AC$15 -> 0 | CF56: =+R56*KeyAssumptionsPriceControl_FO!AD$15 -> 0 | CG56: =+S56*KeyAssumptionsPriceControl_FO!AE$15 -> 0 | CH56: =+T56*KeyAssumptionsPriceControl_FO!AF$15 -> 0 | CI56: =+U56*KeyAssumptionsPriceControl_FO!AG$15 -> 0.2318548149 | CJ56: =+V56*KeyAssumptionsPriceControl_FO!AH$15 -> 2.268699363 | CK56: =+W56*KeyAssumptionsPriceControl_FO!AI$15 -> 2.459747731 | CL56: =+X56*KeyAssumptionsPriceControl_FO!AJ$15 -> 0 | CM56: =+Y56*KeyAssumptionsPriceControl_FO!AK$15 -> 0 | CN56: =+Z56*KeyAssumptionsPriceControl_FO!AL$15 -> 0 | CP56: 0 | CQ56: 0 | CR56: 0 | CS56: 0 | CT56: 0.001449092593 | CU56: 0.01707755621 | CV56: 0.04663035055 | CW56: 0.06200377386 | CX56: 0.06200377386 | CY56: 0.06200377386
C57: Newmerella WWTP - Inlet works upgrades | E57: Sewerage | F57: Renewals | G57: Treatment | H57: Other Capital expenditure | J57: Straight line | K57: 2023-24 | L57: 25 | M57: 25 | Q57: 0.5 | R57: 0 | S57: 0 | T57: 0 | U57: 0 | V57: 0 | W57: 0 | X57: 0 | Y57: 0 | Z57: 0 | AX57: 0.5 | AY57: 0 | AZ57: 0 | BA57: 0 | BB57: 0 | BC57: 0 | BD57: 0 | BE57: 0 | BF57: 0 | BG57: 0 | BI57: 0.01 | BJ57: 0.02 | BK57: 0.02 | BL57: 0.02 | BM57: 0.02 | BN57: 0.02 | BO57: 0.02 | BP57: 0.02 | BQ57: 0.02 | BR57: 0.02 | BT57: =+IF($K57="Ongoing",AX57,IF(RIGHT($K57,2)=RIGHT(BT$39,2),SUM($AX57:AX57),0)+IF(RIGHT(BT$39,2)>RIGHT($K57,2),AX57,0)) -> 0.5 | BU57: =+IF($K57="Ongoing",AY57,IF(RIGHT($K57,2)=RIGHT(BU$39,2),SUM($AX57:AY57),0)+IF(RIGHT(BU$39,2)>RIGHT($K57,2),AY57,0)) -> 0 | BV57: =+IF($K57="Ongoing",AZ57,IF(RIGHT($K57,2)=RIGHT(BV$39,2),SUM($AX57:AZ57),0)+IF(RIGHT(BV$39,2)>RIGHT($K57,2),AZ57,0)) -> 0 | BW57: =+IF($K57="Ongoing",BA57,IF(RIGHT($K57,2)=RIGHT(BW$39,2),SUM($AX57:BA57),0)+IF(RIGHT(BW$39,2)>RIGHT($K57,2),BA57,0)) -> 0 | BX57: =+IF($K57="Ongoing",BB57,IF(RIGHT($K57,2)=RIGHT(BX$39,2),SUM($AX57:BB57),0)+IF(RIGHT(BX$39,2)>RIGHT($K57,2),BB57,0)) -> 0 | BY57: =+IF($K57="Ongoing",BC57,IF(RIGHT($K57,2)=RIGHT(BY$39,2),SUM($AX57:BC57),0)+IF(RIGHT(BY$39,2)>RIGHT($K57,2),BC57,0)) -> 0 | BZ57: =+IF($K57="Ongoing",BD57,IF(RIGHT($K57,2)=RIGHT(BZ$39,2),SUM($AX57:BD57),0)+IF(RIGHT(BZ$39,2)>RIGHT($K57,2),BD57,0)) -> 0 | CA57: =+IF($K57="Ongoing",BE57,IF(RIGHT($K57,2)=RIGHT(CA$39,2),SUM($AX57:BE57),0)+IF(RIGHT(CA$39,2)>RIGHT($K57,2),BE57,0)) -> 0 | CB57: =+IF($K57="Ongoing",BF57,IF(RIGHT($K57,2)=RIGHT(CB$39,2),SUM($AX57:BF57),0)+IF(RIGHT(CB$39,2)>RIGHT($K57,2),BF57,0)) -> 0 | CC57: =+IF($K57="Ongoing",BG57,IF(RIGHT($K57,2)=RIGHT(CC$39,2),SUM($AX57:BG57),0)+IF(RIGHT(CC$39,2)>RIGHT($K57,2),BG57,0)) -> 0 | CE57: =+Q57*KeyAssumptionsPriceControl_FO!AC$15 -> 0.515 | CF57: =+R57*KeyAssumptionsPriceControl_FO!AD$15 -> 0 | CG57: =+S57*KeyAssumptionsPriceControl_FO!AE$15 -> 0 | CH57: =+T57*KeyAssumptionsPriceControl_FO!AF$15 -> 0 | CI57: =+U57*KeyAssumptionsPriceControl_FO!AG$15 -> 0 | CJ57: =+V57*KeyAssumptionsPriceControl_FO!AH$15 -> 0 | CK57: =+W57*KeyAssumptionsPriceControl_FO!AI$15 -> 0 | CL57: =+X57*KeyAssumptionsPriceControl_FO!AJ$15 -> 0 | CM57: =+Y57*KeyAssumptionsPriceControl_FO!AK$15 -> 0 | CN57: =+Z57*KeyAssumptionsPriceControl_FO!AL$15 -> 0 | CP57: 0.0103 | CQ57: 0.0206 | CR57: 0.0206 | CS57: 0.0206 | CT57: 0.0206 | CU57: 0.0206 | CV57: 0.0206 | CW57: 0.0206 | CX57: 0.0206 | CY57: 0.0206
C58: Paynesville WWTP - Inlet screen | E58: Sewerage | F58: Improvements / Compliance | G58: Treatment | H58: Other Capital expenditure | J58: Straight line | K58: 2024-25 | L58: 25 | M58: 25 | Q58: 0.159 | R58: 0.4 | S58: 0 | T58: 0 | U58: 0 | V58: 0 | W58: 0 | X58: 0 | Y58: 0 | Z58: 0 | AX58: 0.159 | AY58: 0.4 | AZ58: 0 | BA58: 0 | BB58: 0 | BC58: 0 | BD58: 0 | BE58: 0 | BF58: 0 | BG58: 0 | BI58: 0 | BJ58: 0.01118 | BK58: 0.02236 | BL58: 0.02236 | BM58: 0.02236 | BN58: 0.02236 | BO58: 0.02236 | BP58: 0.02236 | BQ58: 0.02236 | BR58: 0.02236 | BT58: =+IF($K58="Ongoing",AX58,IF(RIGHT($K58,2)=RIGHT(BT$39,2),SUM($AX58:AX58),0)+IF(RIGHT(BT$39,2)>RIGHT($K58,2),AX58,0)) -> 0 | BU58: =+IF($K58="Ongoing",AY58,IF(RIGHT($K58,2)=RIGHT(BU$39,2),SUM($AX58:AY58),0)+IF(RIGHT(BU$39,2)>RIGHT($K58,2),AY58,0)) -> 0.559 | BV58: =+IF($K58="Ongoing",AZ58,IF(RIGHT($K58,2)=RIGHT(BV$39,2),SUM($AX58:AZ58),0)+IF(RIGHT(BV$39,2)>RIGHT($K58,2),AZ58,0)) -> 0 | BW58: =+IF($K58="Ongoing",BA58,IF(RIGHT($K58,2)=RIGHT(BW$39,2),SUM($AX58:BA58),0)+IF(RIGHT(BW$39,2)>RIGHT($K58,2),BA58,0)) -> 0 | BX58: =+IF($K58="Ongoing",BB58,IF(RIGHT($K58,2)=RIGHT(BX$39,2),SUM($AX58:BB58),0)+IF(RIGHT(BX$39,2)>RIGHT($K58,2),BB58,0)) -> 0 | BY58: =+IF($K58="Ongoing",BC58,IF(RIGHT($K58,2)=RIGHT(BY$39,2),SUM($AX58:BC58),0)+IF(RIGHT(BY$39,2)>RIGHT($K58,2),BC58,0)) -> 0 | BZ58: =+IF($K58="Ongoing",BD58,IF(RIGHT($K58,2)=RIGHT(BZ$39,2),SUM($AX58:BD58),0)+IF(RIGHT(BZ$39,2)>RIGHT($K58,2),BD58,0)) -> 0 | CA58: =+IF($K58="Ongoing",BE58,IF(RIGHT($K58,2)=RIGHT(CA$39,2),SUM($AX58:BE58),0)+IF(RIGHT(CA$39,2)>RIGHT($K58,2),BE58,0)) -> 0 | CB58: =+IF($K58="Ongoing",BF58,IF(RIGHT($K58,2)=RIGHT(CB$39,2),SUM($AX58:BF58),0)+IF(RIGHT(CB$39,2)>RIGHT($K58,2),BF58,0)) -> 0 | CC58: =+IF($K58="Ongoing",BG58,IF(RIGHT($K58,2)=RIGHT(CC$39,2),SUM($AX58:BG58),0)+IF(RIGHT(CC$39,2)>RIGHT($K58,2),BG58,0)) -> 0 | CE58: =+Q58*KeyAssumptionsPriceControl_FO!AC$15 -> 0.16377 | CF58: =+R58*KeyAssumptionsPriceControl_FO!AD$15 -> 0.42436 | CG58: =+S58*KeyAssumptionsPriceControl_FO!AE$15 -> 0 | CH58: =+T58*KeyAssumptionsPriceControl_FO!AF$15 -> 0 | CI58: =+U58*KeyAssumptionsPriceControl_FO!AG$15 -> 0 | CJ58: =+V58*KeyAssumptionsPriceControl_FO!AH$15 -> 0 | CK58: =+W58*KeyAssumptionsPriceControl_FO!AI$15 -> 0 | CL58: =+X58*KeyAssumptionsPriceControl_FO!AJ$15 -> 0 | CM58: =+Y58*KeyAssumptionsPriceControl_FO!AK$15 -> 0 | CN58: =+Z58*KeyAssumptionsPriceControl_FO!AL$15 -> 0 | CP58: 0.0032754 | CQ58: 0.015038 | CR58: 0.0235252 | CS58: 0.0235252 | CT58: 0.0235252 | CU58: 0.0235252 | CV58: 0.0235252 | CW58: 0.0235252 | CX58: 0.0235252 | CY58: 0.0235252
C59: Payneville WWTP - Lagoon Reconfiguration | E59: Sewerage | F59: Renewals | G59: Treatment | H59: Other Capital expenditure | J59: Straight line | K59: 2032-33 | L59: 50 | M59: 50 | Q59: 0 | R59: 0 | S59: 0 | T59: 0 | U59: 0 | V59: 0 | W59: 0 | X59: 0 | Y59: 0 | Z59: 0.18 | AX59: 0 | AY59: 0 | AZ59: 0 | BA59: 0 | BB59: 0 | BC59: 0 | BD59: 0 | BE59: 0 | BF59: 0 | BG59: 0.18 | BI59: 0 | BJ59: 0 | BK59: 0 | BL59: 0 | BM59: 0 | BN59: 0 | BO59: 0 | BP59: 0 | BQ59: 0 | BR59: 0.0018 | BT59: =+IF($K59="Ongoing",AX59,IF(RIGHT($K59,2)=RIGHT(BT$39,2),SUM($AX59:AX59),0)+IF(RIGHT(BT$39,2)>RIGHT($K59,2),AX59,0)) -> 0 | BU59: =+IF($K59="Ongoing",AY59,IF(RIGHT($K59,2)=RIGHT(BU$39,2),SUM($AX59:AY59),0)+IF(RIGHT(BU$39,2)>RIGHT($K59,2),AY59,0)) -> 0 | BV59: =+IF($K59="Ongoing",AZ59,IF(RIGHT($K59,2)=RIGHT(BV$39,2),SUM($AX59:AZ59),0)+IF(RIGHT(BV$39,2)>RIGHT($K59,2),AZ59,0)) -> 0 | BW59: =+IF($K59="Ongoing",BA59,IF(RIGHT($K59,2)=RIGHT(BW$39,2),SUM($AX59:BA59),0)+IF(RIGHT(BW$39,2)>RIGHT($K59,2),BA59,0)) -> 0 | BX59: =+IF($K59="Ongoing",BB59,IF(RIGHT($K59,2)=RIGHT(BX$39,2),SUM($AX59:BB59),0)+IF(RIGHT(BX$39,2)>RIGHT($K59,2),BB59,0)) -> 0 | BY59: =+IF($K59="Ongoing",BC59,IF(RIGHT($K59,2)=RIGHT(BY$39,2),SUM($AX59:BC59),0)+IF(RIGHT(BY$39,2)>RIGHT($K59,2),BC59,0)) -> 0 | BZ59: =+IF($K59="Ongoing",BD59,IF(RIGHT($K59,2)=RIGHT(BZ$39,2),SUM($AX59:BD59),0)+IF(RIGHT(BZ$39,2)>RIGHT($K59,2),BD59,0)) -> 0 | CA59: =+IF($K59="Ongoing",BE59,IF(RIGHT($K59,2)=RIGHT(CA$39,2),SUM($AX59:BE59),0)+IF(RIGHT(CA$39,2)>RIGHT($K59,2),BE59,0)) -> 0 | CB59: =+IF($K59="Ongoing",BF59,IF(RIGHT($K59,2)=RIGHT(CB$39,2),SUM($AX59:BF59),0)+IF(RIGHT(CB$39,2)>RIGHT($K59,2),BF59,0)) -> 0 | CC59: =+IF($K59="Ongoing",BG59,IF(RIGHT($K59,2)=RIGHT(CC$39,2),SUM($AX59:BG59),0)+IF(RIGHT(CC$39,2)>RIGHT($K59,2),BG59,0)) -> 0.18 | CE59: =+Q59*KeyAssumptionsPriceControl_FO!AC$15 -> 0 | CF59: =+R59*KeyAssumptionsPriceControl_FO!AD$15 -> 0 | CG59: =+S59*KeyAssumptionsPriceControl_FO!AE$15 -> 0 | CH59: =+T59*KeyAssumptionsPriceControl_FO!AF$15 -> 0 | CI59: =+U59*KeyAssumptionsPriceControl_FO!AG$15 -> 0 | CJ59: =+V59*KeyAssumptionsPriceControl_FO!AH$15 -> 0 | CK59: =+W59*KeyAssumptionsPriceControl_FO!AI$15 -> 0 | CL59: =+X59*KeyAssumptionsPriceControl_FO!AJ$15 -> 0 | CM59: =+Y59*KeyAssumptionsPriceControl_FO!AK$15 -> 0 | CN59: =+Z59*KeyAssumptionsPriceControl_FO!AL$15 -> 0.2419049483 | CP59: 0 | CQ59: 0 | CR59: 0 | CS59: 0 | CT59: 0 | CU59: 0 | CV59: 0 | CW59: 0 | CX59: 0 | CY59: 0.002419049483
C60: Bridge Street Bairnsdale - upgrade Bridge Street SPS to 77l/s duty/standby | E60: Sewerage | F60: Growth | G60: Pipelines/network | H60: Other Capital expenditure | J60: Straight line | K60: 2027-28 | L60: 80 | M60: 80 | Q60: 0 | R60: 0 | S60: 0 | T60: 0.065 | U60: 0.351 | V60: 0 | W60: 0 | X60: 0 | Y60: 0 | Z60: 0 | AX60: 0 | AY60: 0 | AZ60: 0 | BA60: 0.065 | BB60: 0.351 | BC60: 0 | BD60: 0 | BE60: 0 | BF60: 0 | BG60: 0 | BI60: 0 | BJ60: 0 | BK60: 0 | BL60: 0 | BM60: 0.0026 | BN60: 0.0052 | BO60: 0.0052 | BP60: 0.0052 | BQ60: 0.0052 | BR60: 0.0052 | BT60: =+IF($K60="Ongoing",AX60,IF(RIGHT($K60,2)=RIGHT(BT$39,2),SUM($AX60:AX60),0)+IF(RIGHT(BT$39,2)>RIGHT($K60,2),AX60,0)) -> 0 | BU60: =+IF($K60="Ongoing",AY60,IF(RIGHT($K60,2)=RIGHT(BU$39,2),SUM($AX60:AY60),0)+IF(RIGHT(BU$39,2)>RIGHT($K60,2),AY60,0)) -> 0 | BV60: =+IF($K60="Ongoing",AZ60,IF(RIGHT($K60,2)=RIGHT(BV$39,2),SUM($AX60:AZ60),0)+IF(RIGHT(BV$39,2)>RIGHT($K60,2),AZ60,0)) -> 0 | BW60: =+IF($K60="Ongoing",BA60,IF(RIGHT($K60,2)=RIGHT(BW$39,2),SUM($AX60:BA60),0)+IF(RIGHT(BW$39,2)>RIGHT($K60,2),BA60,0)) -> 0 | BX60: =+IF($K60="Ongoing",BB60,IF(RIGHT($K60,2)=RIGHT(BX$39,2),SUM($AX60:BB60),0)+IF(RIGHT(BX$39,2)>RIGHT($K60,2),BB60,0)) -> 0.416 | BY60: =+IF($K60="Ongoing",BC60,IF(RIGHT($K60,2)=RIGHT(BY$39,2),SUM($AX60:BC60),0)+IF(RIGHT(BY$39,2)>RIGHT($K60,2),BC60,0)) -> 0 | BZ60: =+IF($K60="Ongoing",BD60,IF(RIGHT($K60,2)=RIGHT(BZ$39,2),SUM($AX60:BD60),0)+IF(RIGHT(BZ$39,2)>RIGHT($K60,2),BD60,0)) -> 0 | CA60: =+IF($K60="Ongoing",BE60,IF(RIGHT($K60,2)=RIGHT(CA$39,2),SUM($AX60:BE60),0)+IF(RIGHT(CA$39,2)>RIGHT($K60,2),BE60,0)) -> 0 | CB60: =+IF($K60="Ongoing",BF60,IF(RIGHT($K60,2)=RIGHT(CB$39,2),SUM($AX60:BF60),0)+IF(RIGHT(CB$39,2)>RIGHT($K60,2),BF60,0)) -> 0 | CC60: =+IF($K60="Ongoing",BG60,IF(RIGHT($K60,2)=RIGHT(CC$39,2),SUM($AX60:BG60),0)+IF(RIGHT(CC$39,2)>RIGHT($K60,2),BG60,0)) -> 0 | CE60: =+Q60*KeyAssumptionsPriceControl_FO!AC$15 -> 0 | CF60: =+R60*KeyAssumptionsPriceControl_FO!AD$15 -> 0 | CG60: =+S60*KeyAssumptionsPriceControl_FO!AE$15 -> 0 | CH60: =+T60*KeyAssumptionsPriceControl_FO!AF$15 -> 0.07315807265 | CI60: =+U60*KeyAssumptionsPriceControl_FO!AG$15 -> 0.4069052001 | CJ60: =+V60*KeyAssumptionsPriceControl_FO!AH$15 -> 0 | CK60: =+W60*KeyAssumptionsPriceControl_FO!AI$15 -> 0 | CL60: =+X60*KeyAssumptionsPriceControl_FO!AJ$15 -> 0 | CM60: =+Y60*KeyAssumptionsPriceControl_FO!AK$15 -> 0 | CN60: =+Z60*KeyAssumptionsPriceControl_FO!AL$15 -> 0 | CP60: 0 | CQ60: 0 | CR60: 0 | CS60: 0.0004572379541 | CT60: 0.003457633409 | CU60: 0.006000790909 | CV60: 0.006000790909 | CW60: 0.006000790909 | CX60: 0.006000790909 | CY60: 0.006000790909
C61: Dalmahoy Street Bairnsdale - upgrade 75m of DN150 to DN225 upstream of Dalmahoy SPS | E61: Sewerage | F61: Growth | G61: Pipelines/network | H61: Other Capital expenditure | J61: Straight line | K61: 2027-28 | L61: 80 | M61: 80 | Q61: 0 | R61: 0 | S61: 0 | T61: 0 | U61: 0.15 | V61: 0 | W61: 0 | X61: 0 | Y61: 0 | Z61: 0 | AX61: 0 | AY61: 0 | AZ61: 0 | BA61: 0 | BB61: 0.15 | BC61: 0 | BD61: 0 | BE61: 0 | BF61: 0 | BG61: 0 | BI61: 0 | BJ61: 0 | BK61: 0 | BL61: 0 | BM61: 0.0009375 | BN61: 0.001875 | BO61: 0.001875 | BP61: 0.001875 | BQ61: 0.001875 | BR61: 0.001875 | BT61: =+IF($K61="Ongoing",AX61,IF(RIGHT($K61,2)=RIGHT(BT$39,2),SUM($AX61:AX61),0)+IF(RIGHT(BT$39,2)>RIGHT($K61,2),AX61,0)) -> 0 | BU61: =+IF($K61="Ongoing",AY61,IF(RIGHT($K61,2)=RIGHT(BU$39,2),SUM($AX61:AY61),0)+IF(RIGHT(BU$39,2)>RIGHT($K61,2),AY61,0)) -> 0 | BV61: =+IF($K61="Ongoing",AZ61,IF(RIGHT($K61,2)=RIGHT(BV$39,2),SUM($AX61:AZ61),0)+IF(RIGHT(BV$39,2)>RIGHT($K61,2),AZ61,0)) -> 0 | BW61: =+IF($K61="Ongoing",BA61,IF(RIGHT($K61,2)=RIGHT(BW$39,2),SUM($AX61:BA61),0)+IF(RIGHT(BW$39,2)>RIGHT($K61,2),BA61,0)) -> 0 | BX61: =+IF($K61="Ongoing",BB61,IF(RIGHT($K61,2)=RIGHT(BX$39,2),SUM($AX61:BB61),0)+IF(RIGHT(BX$39,2)>RIGHT($K61,2),BB61,0)) -> 0.15 | BY61: =+IF($K61="Ongoing",BC61,IF(RIGHT($K61,2)=RIGHT(BY$39,2),SUM($AX61:BC61),0)+IF(RIGHT(BY$39,2)>RIGHT($K61,2),BC61,0)) -> 0 | BZ61: =+IF($K61="Ongoing",BD61,IF(RIGHT($K61,2)=RIGHT(BZ$39,2),SUM($AX61:BD61),0)+IF(RIGHT(BZ$39,2)>RIGHT($K61,2),BD61,0)) -> 0 | CA61: =+IF($K61="Ongoing",BE61,IF(RIGHT($K61,2)=RIGHT(CA$39,2),SUM($AX61:BE61),0)+IF(RIGHT(CA$39,2)>RIGHT($K61,2),BE61,0)) -> 0 | CB61: =+IF($K61="Ongoing",BF61,IF(RIGHT($K61,2)=RIGHT(CB$39,2),SUM($AX61:BF61),0)+IF(RIGHT(CB$39,2)>RIGHT($K61,2),BF61,0)) -> 0 | CC61: =+IF($K61="Ongoing",BG61,IF(RIGHT($K61,2)=RIGHT(CC$39,2),SUM($AX61:BG61),0)+IF(RIGHT(CC$39,2)>RIGHT($K61,2),BG61,0)) -> 0 | CE61: =+Q61*KeyAssumptionsPriceControl_FO!AC$15 -> 0 | CF61: =+R61*KeyAssumptionsPriceControl_FO!AD$15 -> 0 | CG61: =+S61*KeyAssumptionsPriceControl_FO!AE$15 -> 0 | CH61: =+T61*KeyAssumptionsPriceControl_FO!AF$15 -> 0 | CI61: =+U61*KeyAssumptionsPriceControl_FO!AG$15 -> 0.1738911111 | CJ61: =+V61*KeyAssumptionsPriceControl_FO!AH$15 -> 0 | CK61: =+W61*KeyAssumptionsPriceControl_FO!AI$15 -> 0 | CL61: =+X61*KeyAssumptionsPriceControl_FO!AJ$15 -> 0 | CM61: =+Y61*KeyAssumptionsPriceControl_FO!AK$15 -> 0 | CN61: =+Z61*KeyAssumptionsPriceControl_FO!AL$15 -> 0 | CP61: 0 | CQ61: 0 | CR61: 0 | CS61: 0 | CT61: 0.001086819445 | CU61: 0.002173638889 | CV61: 0.002173638889 | CW61: 0.002173638889 | CX61: 0.002173638889 | CY61: 0.002173638889
C62: Boat Ramp SPS Paynesville - capacity upgrade | E62: Sewerage | F62: Growth | G62: Pipelines/network | H62: Capital Programs / Allocation | J62: Straight line | K62: 2025-26 | L62: 80 | M62: 80 | Q62: 0 | R62: 0.045 | S62: 0.15 | T62: 0 | U62: 0 | V62: 0 | W62: 0 | X62: 0 | Y62: 0 | Z62: 0 | AX62: 0 | AY62: 0.045 | AZ62: 0.15 | BA62: 0 | BB62: 0 | BC62: 0 | BD62: 0 | BE62: 0 | BF62: 0 | BG62: 0 | BI62: 0 | BJ62: 0 | BK62: 0.00121875 | BL62: 0.0024375 | BM62: 0.0024375 | BN62: 0.0024375 | BO62: 0.0024375 | BP62: 0.0024375 | BQ62: 0.0024375 | BR62: 0.0024375 | BT62: =+IF($K62="Ongoing",AX62,IF(RIGHT($K62,2)=RIGHT(BT$39,2),SUM($AX62:AX62),0)+IF(RIGHT(BT$39,2)>RIGHT($K62,2),AX62,0)) -> 0 | BU62: =+IF($K62="Ongoing",AY62,IF(RIGHT($K62,2)=RIGHT(BU$39,2),SUM($AX62:AY62),0)+IF(RIGHT(BU$39,2)>RIGHT($K62,2),AY62,0)) -> 0 | BV62: =+IF($K62="Ongoing",AZ62,IF(RIGHT($K62,2)=RIGHT(BV$39,2),SUM($AX62:AZ62),0)+IF(RIGHT(BV$39,2)>RIGHT($K62,2),AZ62,0)) -> 0.195 | BW62: =+IF($K62="Ongoing",BA62,IF(RIGHT($K62,2)=RIGHT(BW$39,2),SUM($AX62:BA62),0)+IF(RIGHT(BW$39,2)>RIGHT($K62,2),BA62,0)) -> 0 | BX62: =+IF($K62="Ongoing",BB62,IF(RIGHT($K62,2)=RIGHT(BX$39,2),SUM($AX62:BB62),0)+IF(RIGHT(BX$39,2)>RIGHT($K62,2),BB62,0)) -> 0 | BY62: =+IF($K62="Ongoing",BC62,IF(RIGHT($K62,2)=RIGHT(BY$39,2),SUM($AX62:BC62),0)+IF(RIGHT(BY$39,2)>RIGHT($K62,2),BC62,0)) -> 0 | BZ62: =+IF($K62="Ongoing",BD62,IF(RIGHT($K62,2)=RIGHT(BZ$39,2),SUM($AX62:BD62),0)+IF(RIGHT(BZ$39,2)>RIGHT($K62,2),BD62,0)) -> 0 | CA62: =+IF($K62="Ongoing",BE62,IF(RIGHT($K62,2)=RIGHT(CA$39,2),SUM($AX62:BE62),0)+IF(RIGHT(CA$39,2)>RIGHT($K62,2),BE62,0)) -> 0 | CB62: =+IF($K62="Ongoing",BF62,IF(RIGHT($K62,2)=RIGHT(CB$39,2),SUM($AX62:BF62),0)+IF(RIGHT(CB$39,2)>RIGHT($K62,2),BF62,0)) -> 0 | CC62: =+IF($K62="Ongoing",BG62,IF(RIGHT($K62,2)=RIGHT(CC$39,2),SUM($AX62:BG62),0)+IF(RIGHT(CC$39,2)>RIGHT($K62,2),BG62,0)) -> 0 | CE62: =+Q62*KeyAssumptionsPriceControl_FO!AC$15 -> 0 | CF62: =+R62*KeyAssumptionsPriceControl_FO!AD$15 -> 0.0477405 | CG62: =+S62*KeyAssumptionsPriceControl_FO!AE$15 -> 0.16390905 | CH62: =+T62*KeyAssumptionsPriceControl_FO!AF$15 -> 0 | CI62: =+U62*KeyAssumptionsPriceControl_FO!AG$15 -> 0 | CJ62: =+V62*KeyAssumptionsPriceControl_FO!AH$15 -> 0 | CK62: =+W62*KeyAssumptionsPriceControl_FO!AI$15 -> 0 | CL62: =+X62*KeyAssumptionsPriceControl_FO!AJ$15 -> 0 | CM62: =+Y62*KeyAssumptionsPriceControl_FO!AK$15 -> 0 | CN62: =+Z62*KeyAssumptionsPriceControl_FO!AL$15 -> 0 | CP62: 0 | CQ62: 0.000298378125 | CR62: 0.001621187813 | CS62: 0.002645619375 | CT62: 0.002645619375 | CU62: 0.002645619375 | CV62: 0.002645619375 | CW62: 0.002645619375 | CX62: 0.002645619375 | CY62: 0.002645619375
C63: Water Treatment Plant Renewals | E63: Water | F63: Renewals | G63: Treatment | H63: Other Capital expenditure | J63: Straight line | K63: Ongoing | L63: 20 | M63: 20 | Q63: 0.1 | R63: 0.43 | S63: 0.43 | T63: 0.43 | U63: 0.428 | V63: 1.192 | W63: 0.407 | X63: 0.776 | Y63: 6.492 | Z63: 0.548 | AX63: 0.1 | AY63: 0.43 | AZ63: 0.43 | BA63: 0.43 | BB63: 0.428 | BC63: 1.192 | BD63: 0.407 | BE63: 0.776 | BF63: 6.492 | BG63: 0.548 | BI63: 0.0025 | BJ63: 0.01575 | BK63: 0.03725 | BL63: 0.05875 | BM63: 0.0802 | BN63: 0.1207 | BO63: 0.160675 | BP63: 0.19025 | BQ63: 0.37195 | BR63: 0.54795 | BT63: =+IF($K63="Ongoing",AX63,IF(RIGHT($K63,2)=RIGHT(BT$39,2),SUM($AX63:AX63),0)+IF(RIGHT(BT$39,2)>RIGHT($K63,2),AX63,0)) -> 0.1 | BU63: =+IF($K63="Ongoing",AY63,IF(RIGHT($K63,2)=RIGHT(BU$39,2),SUM($AX63:AY63),0)+IF(RIGHT(BU$39,2)>RIGHT($K63,2),AY63,0)) -> 0.43 | BV63: =+IF($K63="Ongoing",AZ63,IF(RIGHT($K63,2)=RIGHT(BV$39,2),SUM($AX63:AZ63),0)+IF(RIGHT(BV$39,2)>RIGHT($K63,2),AZ63,0)) -> 0.43 | BW63: =+IF($K63="Ongoing",BA63,IF(RIGHT($K63,2)=RIGHT(BW$39,2),SUM($AX63:BA63),0)+IF(RIGHT(BW$39,2)>RIGHT($K63,2),BA63,0)) -> 0.43 | BX63: =+IF($K63="Ongoing",BB63,IF(RIGHT($K63,2)=RIGHT(BX$39,2),SUM($AX63:BB63),0)+IF(RIGHT(BX$39,2)>RIGHT($K63,2),BB63,0)) -> 0.428 | BY63: =+IF($K63="Ongoing",BC63,IF(RIGHT($K63,2)=RIGHT(BY$39,2),SUM($AX63:BC63),0)+IF(RIGHT(BY$39,2)>RIGHT($K63,2),BC63,0)) -> 1.192 | BZ63: =+IF($K63="Ongoing",BD63,IF(RIGHT($K63,2)=RIGHT(BZ$39,2),SUM($AX63:BD63),0)+IF(RIGHT(BZ$39,2)>RIGHT($K63,2),BD63,0)) -> 0.407 | CA63: =+IF($K63="Ongoing",BE63,IF(RIGHT($K63,2)=RIGHT(CA$39,2),SUM($AX63:BE63),0)+IF(RIGHT(CA$39,2)>RIGHT($K63,2),BE63,0)) -> 0.776 | CB63: =+IF($K63="Ongoing",BF63,IF(RIGHT($K63,2)=RIGHT(CB$39,2),SUM($AX63:BF63),0)+IF(RIGHT(CB$39,2)>RIGHT($K63,2),BF63,0)) -> 6.492 | CC63: =+IF($K63="Ongoing",BG63,IF(RIGHT($K63,2)=RIGHT(CC$39,2),SUM($AX63:BG63),0)+IF(RIGHT(CC$39,2)>RIGHT($K63,2),BG63,0)) -> 0.548 | CE63: =+Q63*KeyAssumptionsPriceControl_FO!AC$15 -> 0.103 | CF63: =+R63*KeyAssumptionsPriceControl_FO!AD$15 -> 0.456187 | CG63: =+S63*KeyAssumptionsPriceControl_FO!AE$15 -> 0.46987261 | CH63: =+T63*KeyAssumptionsPriceControl_FO!AF$15 -> 0.4839687883 | CI63: =+U63*KeyAssumptionsPriceControl_FO!AG$15 -> 0.4961693038 | CJ63: =+V63*KeyAssumptionsPriceControl_FO!AH$15 -> 1.423310337 | CK63: =+W63*KeyAssumptionsPriceControl_FO!AI$15 -> 0.5005586632 | CL63: =+X63*KeyAssumptionsPriceControl_FO!AJ$15 -> 0.9830135832 | CM63: =+Y63*KeyAssumptionsPriceControl_FO!AK$15 -> 8.470587509 | CN63: =+Z63*KeyAssumptionsPriceControl_FO!AL$15 -> 0.7364661759 | CP63: 0.002575 | CQ63: 0.016554675 | CR63: 0.03970616525 | CS63: 0.06355220021 | CT63: 0.08805565251 | CU63: 0.1360426435 | CV63: 0.1841393686 | CW63: 0.2212286747 | CX63: 0.457568702 | CY63: 0.6877450442
C64: Water Networks: hydraulic model build | E64: Water | F64: Growth | G64: Corporate | H64: Other Capital expenditure | J64: Straight line | K64: Ongoing | L64: 5 | M64: 5 | Q64: 0.04 | R64: 0.127 | S64: 0.171 | T64: 0 | U64: 0 | V64: 0.05 | W64: 0.05 | X64: 0.05 | Y64: 0.05 | Z64: 0.05 | AX64: 0.04 | AY64: 0.127 | AZ64: 0.171 | BA64: 0 | BB64: 0 | BC64: 0.05 | BD64: 0.05 | BE64: 0.05 | BF64: 0.05 | BG64: 0.05 | BI64: 0.004 | BJ64: 0.0207 | BK64: 0.0505 | BL64: 0.0676 | BM64: 0.0676 | BN64: 0.0686 | BO64: 0.0619 | BP64: 0.0421 | BQ64: 0.035 | BR64: 0.045 | BT64: =+IF($K64="Ongoing",AX64,IF(RIGHT($K64,2)=RIGHT(BT$39,2),SUM($AX64:AX64),0)+IF(RIGHT(BT$39,2)>RIGHT($K64,2),AX64,0)) -> 0.04 | BU64: =+IF($K64="Ongoing",AY64,IF(RIGHT($K64,2)=RIGHT(BU$39,2),SUM($AX64:AY64),0)+IF(RIGHT(BU$39,2)>RIGHT($K64,2),AY64,0)) -> 0.127 | BV64: =+IF($K64="Ongoing",AZ64,IF(RIGHT($K64,2)=RIGHT(BV$39,2),SUM($AX64:AZ64),0)+IF(RIGHT(BV$39,2)>RIGHT($K64,2),AZ64,0)) -> 0.171 | BW64: =+IF($K64="Ongoing",BA64,IF(RIGHT($K64,2)=RIGHT(BW$39,2),SUM($AX64:BA64),0)+IF(RIGHT(BW$39,2)>RIGHT($K64,2),BA64,0)) -> 0 | BX64: =+IF($K64="Ongoing",BB64,IF(RIGHT($K64,2)=RIGHT(BX$39,2),SUM($AX64:BB64),0)+IF(RIGHT(BX$39,2)>RIGHT($K64,2),BB64,0)) -> 0 | BY64: =+IF($K64="Ongoing",BC64,IF(RIGHT($K64,2)=RIGHT(BY$39,2),SUM($AX64:BC64),0)+IF(RIGHT(BY$39,2)>RIGHT($K64,2),BC64,0)) -> 0.05 | BZ64: =+IF($K64="Ongoing",BD64,IF(RIGHT($K64,2)=RIGHT(BZ$39,2),SUM($AX64:BD64),0)+IF(RIGHT(BZ$39,2)>RIGHT($K64,2),BD64,0)) -> 0.05 | CA64: =+IF($K64="Ongoing",BE64,IF(RIGHT($K64,2)=RIGHT(CA$39,2),SUM($AX64:BE64),0)+IF(RIGHT(CA$39,2)>RIGHT($K64,2),BE64,0)) -> 0.05 | CB64: =+IF($K64="Ongoing",BF64,IF(RIGHT($K64,2)=RIGHT(CB$39,2),SUM($AX64:BF64),0)+IF(RIGHT(CB$39,2)>RIGHT($K64,2),BF64,0)) -> 0.05 | CC64: =+IF($K64="Ongoing",BG64,IF(RIGHT($K64,2)=RIGHT(CC$39,2),SUM($AX64:BG64),0)+IF(RIGHT(CC$39,2)>RIGHT($K64,2),BG64,0)) -> 0.05 | CE64: =+Q64*KeyAssumptionsPriceControl_FO!AC$15 -> 0.0412 | CF64: =+R64*KeyAssumptionsPriceControl_FO!AD$15 -> 0.1347343 | CG64: =+S64*KeyAssumptionsPriceControl_FO!AE$15 -> 0.186856317 | CH64: =+T64*KeyAssumptionsPriceControl_FO!AF$15 -> 0 | CI64: =+U64*KeyAssumptionsPriceControl_FO!AG$15 -> 0 | CJ64: =+V64*KeyAssumptionsPriceControl_FO!AH$15 -> 0.05970261483 | CK64: =+W64*KeyAssumptionsPriceControl_FO!AI$15 -> 0.06149369327 | CL64: =+X64*KeyAssumptionsPriceControl_FO!AJ$15 -> 0.06333850407 | CM64: =+Y64*KeyAssumptionsPriceControl_FO!AK$15 -> 0.06523865919 | CN64: =+Z64*KeyAssumptionsPriceControl_FO!AL$15 -> 0.06719581897 | CP64: 0.00412 | CQ64: 0.02171343 | CR64: 0.0538724917 | CS64: 0.0725581234 | CT64: 0.0725581234 | CU64: 0.07440838488 | CV64: 0.06893458569 | CW64: 0.04925874373 | CX64: 0.04343082835 | CY64: 0.05667427617
C65: SOURCE model build | E65: Water | F65: Improvements / Compliance | G65: Corporate | H65: Other Capital expenditure | J65: Straight line | K65: 2025-26 | L65: 5 | M65: 5 | Q65: 0 | R65: 0 | S65: 0.04 | T65: 0 | U65: 0 | V65: 0 | W65: 0 | X65: 0.112 | Y65: 0 | Z65: 0 | AX65: 0 | AY65: 0 | AZ65: 0.04 | BA65: 0 | BB65: 0 | BC65: 0 | BD65: 0 | BE65: 0.112 | BF65: 0 | BG65: 0 | BI65: 0 | BJ65: 0 | BK65: 0.004 | BL65: 0.008 | BM65: 0.008 | BN65: 0.008 | BO65: 0.008 | BP65: 0.0152 | BQ65: 0.0224 | BR65: 0.0224 | BT65: =+IF($K65="Ongoing",AX65,IF(RIGHT($K65,2)=RIGHT(BT$39,2),SUM($AX65:AX65),0)+IF(RIGHT(BT$39,2)>RIGHT($K65,2),AX65,0)) -> 0 | BU65: =+IF($K65="Ongoing",AY65,IF(RIGHT($K65,2)=RIGHT(BU$39,2),SUM($AX65:AY65),0)+IF(RIGHT(BU$39,2)>RIGHT($K65,2),AY65,0)) -> 0 | BV65: =+IF($K65="Ongoing",AZ65,IF(RIGHT($K65,2)=RIGHT(BV$39,2),SUM($AX65:AZ65),0)+IF(RIGHT(BV$39,2)>RIGHT($K65,2),AZ65,0)) -> 0.04 | BW65: =+IF($K65="Ongoing",BA65,IF(RIGHT($K65,2)=RIGHT(BW$39,2),SUM($AX65:BA65),0)+IF(RIGHT(BW$39,2)>RIGHT($K65,2),BA65,0)) -> 0 | BX65: =+IF($K65="Ongoing",BB65,IF(RIGHT($K65,2)=RIGHT(BX$39,2),SUM($AX65:BB65),0)+IF(RIGHT(BX$39,2)>RIGHT($K65,2),BB65,0)) -> 0 | BY65: =+IF($K65="Ongoing",BC65,IF(RIGHT($K65,2)=RIGHT(BY$39,2),SUM($AX65:BC65),0)+IF(RIGHT(BY$39,2)>RIGHT($K65,2),BC65,0)) -> 0 | BZ65: =+IF($K65="Ongoing",BD65,IF(RIGHT($K65,2)=RIGHT(BZ$39,2),SUM($AX65:BD65),0)+IF(RIGHT(BZ$39,2)>RIGHT($K65,2),BD65,0)) -> 0 | CA65: =+IF($K65="Ongoing",BE65,IF(RIGHT($K65,2)=RIGHT(CA$39,2),SUM($AX65:BE65),0)+IF(RIGHT(CA$39,2)>RIGHT($K65,2),BE65,0)) -> 0.112 | CB65: =+IF($K65="Ongoing",BF65,IF(RIGHT($K65,2)=RIGHT(CB$39,2),SUM($AX65:BF65),0)+IF(RIGHT(CB$39,2)>RIGHT($K65,2),BF65,0)) -> 0 | CC65: =+IF($K65="Ongoing",BG65,IF(RIGHT($K65,2)=RIGHT(CC$39,2),SUM($AX65:BG65),0)+IF(RIGHT(CC$39,2)>RIGHT($K65,2),BG65,0)) -> 0 | CE65: =+Q65*KeyAssumptionsPriceControl_FO!AC$15 -> 0 | CF65: =+R65*KeyAssumptionsPriceControl_FO!AD$15 -> 0 | CG65: =+S65*KeyAssumptionsPriceControl_FO!AE$15 -> 0.04370908 | CH65: =+T65*KeyAssumptionsPriceControl_FO!AF$15 -> 0 | CI65: =+U65*KeyAssumptionsPriceControl_FO!AG$15 -> 0 | CJ65: =+V65*KeyAssumptionsPriceControl_FO!AH$15 -> 0 | CK65: =+W65*KeyAssumptionsPriceControl_FO!AI$15 -> 0 | CL65: =+X65*KeyAssumptionsPriceControl_FO!AJ$15 -> 0.1418782491 | CM65: =+Y65*KeyAssumptionsPriceControl_FO!AK$15 -> 0 | CN65: =+Z65*KeyAssumptionsPriceControl_FO!AL$15 -> 0 | CP65: 0 | CQ65: 0 | CR65: 0.004370908 | CS65: 0.008741816 | CT65: 0.008741816 | CU65: 0.008741816 | CV65: 0.008741816 | CW65: 0.01855873291 | CX65: 0.02837564982 | CY65: 0.02837564982
C66: Cann River WTP - install UV system | E66: Water | F66: Improvements / Compliance | G66: Treatment | H66: Other Capital expenditure | J66: Straight line | K66: 2023-24 | L66: 25 | M66: 25 | Q66: 0.1 | R66: 0 | S66: 0 | T66: 0 | U66: 0 | V66: 0 | W66: 0 | X66: 0 | Y66: 0 | Z66: 0 | AX66: 0.1 | AY66: 0 | AZ66: 0 | BA66: 0 | BB66: 0 | BC66: 0 | BD66: 0 | BE66: 0 | BF66: 0 | BG66: 0 | BI66: 0.002 | BJ66: 0.004 | BK66: 0.004 | BL66: 0.004 | BM66: 0.004 | BN66: 0.004 | BO66: 0.004 | BP66: 0.004 | BQ66: 0.004 | BR66: 0.004 | BT66: =+IF($K66="Ongoing",AX66,IF(RIGHT($K66,2)=RIGHT(BT$39,2),SUM($AX66:AX66),0)+IF(RIGHT(BT$39,2)>RIGHT($K66,2),AX66,0)) -> 0.1 | BU66: =+IF($K66="Ongoing",AY66,IF(RIGHT($K66,2)=RIGHT(BU$39,2),SUM($AX66:AY66),0)+IF(RIGHT(BU$39,2)>RIGHT($K66,2),AY66,0)) -> 0 | BV66: =+IF($K66="Ongoing",AZ66,IF(RIGHT($K66,2)=RIGHT(BV$39,2),SUM($AX66:AZ66),0)+IF(RIGHT(BV$39,2)>RIGHT($K66,2),AZ66,0)) -> 0 | BW66: =+IF($K66="Ongoing",BA66,IF(RIGHT($K66,2)=RIGHT(BW$39,2),SUM($AX66:BA66),0)+IF(RIGHT(BW$39,2)>RIGHT($K66,2),BA66,0)) -> 0 | BX66: =+IF($K66="Ongoing",BB66,IF(RIGHT($K66,2)=RIGHT(BX$39,2),SUM($AX66:BB66),0)+IF(RIGHT(BX$39,2)>RIGHT($K66,2),BB66,0)) -> 0 | BY66: =+IF($K66="Ongoing",BC66,IF(RIGHT($K66,2)=RIGHT(BY$39,2),SUM($AX66:BC66),0)+IF(RIGHT(BY$39,2)>RIGHT($K66,2),BC66,0)) -> 0 | BZ66: =+IF($K66="Ongoing",BD66,IF(RIGHT($K66,2)=RIGHT(BZ$39,2),SUM($AX66:BD66),0)+IF(RIGHT(BZ$39,2)>RIGHT($K66,2),BD66,0)) -> 0 | CA66: =+IF($K66="Ongoing",BE66,IF(RIGHT($K66,2)=RIGHT(CA$39,2),SUM($AX66:BE66),0)+IF(RIGHT(CA$39,2)>RIGHT($K66,2),BE66,0)) -> 0 | CB66: =+IF($K66="Ongoing",BF66,IF(RIGHT($K66,2)=RIGHT(CB$39,2),SUM($AX66:BF66),0)+IF(RIGHT(CB$39,2)>RIGHT($K66,2),BF66,0)) -> 0 | CC66: =+IF($K66="Ongoing",BG66,IF(RIGHT($K66,2)=RIGHT(CC$39,2),SUM($AX66:BG66),0)+IF(RIGHT(CC$39,2)>RIGHT($K66,2),BG66,0)) -> 0 | CE66: =+Q66*KeyAssumptionsPriceControl_FO!AC$15 -> 0.103 | CF66: =+R66*KeyAssumptionsPriceControl_FO!AD$15 -> 0 | CG66: =+S66*KeyAssumptionsPriceControl_FO!AE$15 -> 0 | CH66: =+T66*KeyAssumptionsPriceControl_FO!AF$15 -> 0 | CI66: =+U66*KeyAssumptionsPriceControl_FO!AG$15 -> 0 | CJ66: =+V66*KeyAssumptionsPriceControl_FO!AH$15 -> 0 | CK66: =+W66*KeyAssumptionsPriceControl_FO!AI$15 -> 0 | CL66: =+X66*KeyAssumptionsPriceControl_FO!AJ$15 -> 0 | CM66: =+Y66*KeyAssumptionsPriceControl_FO!AK$15 -> 0 | CN66: =+Z66*KeyAssumptionsPriceControl_FO!AL$15 -> 0 | CP66: 0.00206 | CQ66: 0.00412 | CR66: 0.00412 | CS66: 0.00412 | CT66: 0.00412 | CU66: 0.00412 | CV66: 0.00412 | CW66: 0.00412 | CX66: 0.00412 | CY66: 0.00412
C67: Palmers Road Lakes Entrance - New pipeline DN250 (1340m) for Palmers Rd extension to Whiters St WPS | E67: Water | F67: Growth | G67: Pipelines/network | H67: Other Capital expenditure | J67: Straight line | K67: 2028-29 | L67: 80 | M67: 80 | Q67: 0 | R67: 0 | S67: 0 | T67: 0 | U67: 0.1 | V67: 0.758 | W67: 0 | X67: 0 | Y67: 0 | Z67: 0 | AX67: 0 | AY67: 0 | AZ67: 0 | BA67: 0 | BB67: 0.1 | BC67: 0.758 | BD67: 0 | BE67: 0 | BF67: 0 | BG67: 0 | BI67: 0 | BJ67: 0 | BK67: 0 | BL67: 0 | BM67: 0 | BN67: 0.0053625 | BO67: 0.010725 | BP67: 0.010725 | BQ67: 0.010725 | BR67: 0.010725 | BT67: =+IF($K67="Ongoing",AX67,IF(RIGHT($K67,2)=RIGHT(BT$39,2),SUM($AX67:AX67),0)+IF(RIGHT(BT$39,2)>RIGHT($K67,2),AX67,0)) -> 0 | BU67: =+IF($K67="Ongoing",AY67,IF(RIGHT($K67,2)=RIGHT(BU$39,2),SUM($AX67:AY67),0)+IF(RIGHT(BU$39,2)>RIGHT($K67,2),AY67,0)) -> 0 | BV67: =+IF($K67="Ongoing",AZ67,IF(RIGHT($K67,2)=RIGHT(BV$39,2),SUM($AX67:AZ67),0)+IF(RIGHT(BV$39,2)>RIGHT($K67,2),AZ67,0)) -> 0 | BW67: =+IF($K67="Ongoing",BA67,IF(RIGHT($K67,2)=RIGHT(BW$39,2),SUM($AX67:BA67),0)+IF(RIGHT(BW$39,2)>RIGHT($K67,2),BA67,0)) -> 0 | BX67: =+IF($K67="Ongoing",BB67,IF(RIGHT($K67,2)=RIGHT(BX$39,2),SUM($AX67:BB67),0)+IF(RIGHT(BX$39,2)>RIGHT($K67,2),BB67,0)) -> 0 | BY67: =+IF($K67="Ongoing",BC67,IF(RIGHT($K67,2)=RIGHT(BY$39,2),SUM($AX67:BC67),0)+IF(RIGHT(BY$39,2)>RIGHT($K67,2),BC67,0)) -> 0.858 | BZ67: =+IF($K67="Ongoing",BD67,IF(RIGHT($K67,2)=RIGHT(BZ$39,2),SUM($AX67:BD67),0)+IF(RIGHT(BZ$39,2)>RIGHT($K67,2),BD67,0)) -> 0 | CA67: =+IF($K67="Ongoing",BE67,IF(RIGHT($K67,2)=RIGHT(CA$39,2),SUM($AX67:BE67),0)+IF(RIGHT(CA$39,2)>RIGHT($K67,2),BE67,0)) -> 0 | CB67: =+IF($K67="Ongoing",BF67,IF(RIGHT($K67,2)=RIGHT(CB$39,2),SUM($AX67:BF67),0)+IF(RIGHT(CB$39,2)>RIGHT($K67,2),BF67,0)) -> 0 | CC67: =+IF($K67="Ongoing",BG67,IF(RIGHT($K67,2)=RIGHT(CC$39,2),SUM($AX67:BG67),0)+IF(RIGHT(CC$39,2)>RIGHT($K67,2),BG67,0)) -> 0 | CE67: =+Q67*KeyAssumptionsPriceControl_FO!AC$15 -> 0 | CF67: =+R67*KeyAssumptionsPriceControl_FO!AD$15 -> 0 | CG67: =+S67*KeyAssumptionsPriceControl_FO!AE$15 -> 0 | CH67: =+T67*KeyAssumptionsPriceControl_FO!AF$15 -> 0 | CI67: =+U67*KeyAssumptionsPriceControl_FO!AG$15 -> 0.1159274074 | CJ67: =+V67*KeyAssumptionsPriceControl_FO!AH$15 -> 0.9050916408 | CK67: =+W67*KeyAssumptionsPriceControl_FO!AI$15 -> 0 | CL67: =+X67*KeyAssumptionsPriceControl_FO!AJ$15 -> 0 | CM67: =+Y67*KeyAssumptionsPriceControl_FO!AK$15 -> 0 | CN67: =+Z67*KeyAssumptionsPriceControl_FO!AL$15 -> 0 | CP67: 0 | CQ67: 0 | CR67: 0 | CS67: 0 | CT67: 0.0007245462964 | CU67: 0.007105915348 | CV67: 0.0127627381 | CW67: 0.0127627381 | CX67: 0.0127627381 | CY67: 0.0127627381
C68: Prestons Road Newmerella - upsize DN50 main to a minimum of DN100 | E68: Water | F68: Renewals | G68: Pipelines/network | H68: Other Capital expenditure | J68: Straight line | K68: 2027-28 | L68: 80 | M68: 80 | Q68: 0 | R68: 0 | S68: 0 | T68: 0.025 | U68: 0.3 | V68: 0 | W68: 0 | X68: 0 | Y68: 0 | Z68: 0 | AX68: 0 | AY68: 0 | AZ68: 0 | BA68: 0.025 | BB68: 0.3 | BC68: 0 | BD68: 0 | BE68: 0 | BF68: 0 | BG68: 0 | BI68: 0 | BJ68: 0 | BK68: 0 | BL68: 0 | BM68: 0.00203125 | BN68: 0.0040625 | BO68: 0.0040625 | BP68: 0.0040625 | BQ68: 0.0040625 | BR68: 0.0040625 | BT68: =+IF($K68="Ongoing",AX68,IF(RIGHT($K68,2)=RIGHT(BT$39,2),SUM($AX68:AX68),0)+IF(RIGHT(BT$39,2)>RIGHT($K68,2),AX68,0)) -> 0 | BU68: =+IF($K68="Ongoing",AY68,IF(RIGHT($K68,2)=RIGHT(BU$39,2),SUM($AX68:AY68),0)+IF(RIGHT(BU$39,2)>RIGHT($K68,2),AY68,0)) -> 0 | BV68: =+IF($K68="Ongoing",AZ68,IF(RIGHT($K68,2)=RIGHT(BV$39,2),SUM($AX68:AZ68),0)+IF(RIGHT(BV$39,2)>RIGHT($K68,2),AZ68,0)) -> 0 | BW68: =+IF($K68="Ongoing",BA68,IF(RIGHT($K68,2)=RIGHT(BW$39,2),SUM($AX68:BA68),0)+IF(RIGHT(BW$39,2)>RIGHT($K68,2),BA68,0)) -> 0 | BX68: =+IF($K68="Ongoing",BB68,IF(RIGHT($K68,2)=RIGHT(BX$39,2),SUM($AX68:BB68),0)+IF(RIGHT(BX$39,2)>RIGHT($K68,2),BB68,0)) -> 0.325 | BY68: =+IF($K68="Ongoing",BC68,IF(RIGHT($K68,2)=RIGHT(BY$39,2),SUM($AX68:BC68),0)+IF(RIGHT(BY$39,2)>RIGHT($K68,2),BC68,0)) -> 0 | BZ68: =+IF($K68="Ongoing",BD68,IF(RIGHT($K68,2)=RIGHT(BZ$39,2),SUM($AX68:BD68),0)+IF(RIGHT(BZ$39,2)>RIGHT($K68,2),BD68,0)) -> 0 | CA68: =+IF($K68="Ongoing",BE68,IF(RIGHT($K68,2)=RIGHT(CA$39,2),SUM($AX68:BE68),0)+IF(RIGHT(CA$39,2)>RIGHT($K68,2),BE68,0)) -> 0 | CB68: =+IF($K68="Ongoing",BF68,IF(RIGHT($K68,2)=RIGHT(CB$39,2),SUM($AX68:BF68),0)+IF(RIGHT(CB$39,2)>RIGHT($K68,2),BF68,0)) -> 0 | CC68: =+IF($K68="Ongoing",BG68,IF(RIGHT($K68,2)=RIGHT(CC$39,2),SUM($AX68:BG68),0)+IF(RIGHT(CC$39,2)>RIGHT($K68,2),BG68,0)) -> 0 | CE68: =+Q68*KeyAssumptionsPriceControl_FO!AC$15 -> 0 | CF68: =+R68*KeyAssumptionsPriceControl_FO!AD$15 -> 0 | CG68: =+S68*KeyAssumptionsPriceControl_FO!AE$15 -> 0 | CH68: =+T68*KeyAssumptionsPriceControl_FO!AF$15 -> 0.02813772025 | CI68: =+U68*KeyAssumptionsPriceControl_FO!AG$15 -> 0.3477822223 | CJ68: =+V68*KeyAssumptionsPriceControl_FO!AH$15 -> 0 | CK68: =+W68*KeyAssumptionsPriceControl_FO!AI$15 -> 0 | CL68: =+X68*KeyAssumptionsPriceControl_FO!AJ$15 -> 0 | CM68: =+Y68*KeyAssumptionsPriceControl_FO!AK$15 -> 0 | CN68: =+Z68*KeyAssumptionsPriceControl_FO!AL$15 -> 0 | CP68: 0 | CQ68: 0 | CR68: 0 | CS68: 0.0001758607516 | CT68: 0.002525360392 | CU68: 0.004698999282 | CV68: 0.004698999282 | CW68: 0.004698999282 | CX68: 0.004698999282 | CY68: 0.004698999282
C69: Bairnsdale Water Network - Upgrade Wy Yung Rural WPS to 60L/s (+10L/s) | E69: Water | F69: Growth | G69: Pipelines/network | H69: Other Capital expenditure | J69: Straight line | K69: 2026-27 | L69: 80 | M69: 80 | Q69: 0 | R69: 0 | S69: 0.063 | T69: 0.475 | U69: 0 | V69: 0 | W69: 0 | X69: 0 | Y69: 0 | Z69: 0 | AX69: 0 | AY69: 0 | AZ69: 0.063 | BA69: 0.475 | BB69: 0 | BC69: 0 | BD69: 0 | BE69: 0 | BF69: 0 | BG69: 0 | BI69: 0 | BJ69: 0 | BK69: 0 | BL69: 0.0033625 | BM69: 0.006725 | BN69: 0.006725 | BO69: 0.006725 | BP69: 0.006725 | BQ69: 0.006725 | BR69: 0.006725 | BT69: =+IF($K69="Ongoing",AX69,IF(RIGHT($K69,2)=RIGHT(BT$39,2),SUM($AX69:AX69),0)+IF(RIGHT(BT$39,2)>RIGHT($K69,2),AX69,0)) -> 0 | BU69: =+IF($K69="Ongoing",AY69,IF(RIGHT($K69,2)=RIGHT(BU$39,2),SUM($AX69:AY69),0)+IF(RIGHT(BU$39,2)>RIGHT($K69,2),AY69,0)) -> 0 | BV69: =+IF($K69="Ongoing",AZ69,IF(RIGHT($K69,2)=RIGHT(BV$39,2),SUM($AX69:AZ69),0)+IF(RIGHT(BV$39,2)>RIGHT($K69,2),AZ69,0)) -> 0 | BW69: =+IF($K69="Ongoing",BA69,IF(RIGHT($K69,2)=RIGHT(BW$39,2),SUM($AX69:BA69),0)+IF(RIGHT(BW$39,2)>RIGHT($K69,2),BA69,0)) -> 0.538 | BX69: =+IF($K69="Ongoing",BB69,IF(RIGHT($K69,2)=RIGHT(BX$39,2),SUM($AX69:BB69),0)+IF(RIGHT(BX$39,2)>RIGHT($K69,2),BB69,0)) -> 0 | BY69: =+IF($K69="Ongoing",BC69,IF(RIGHT($K69,2)=RIGHT(BY$39,2),SUM($AX69:BC69),0)+IF(RIGHT(BY$39,2)>RIGHT($K69,2),BC69,0)) -> 0 | BZ69: =+IF($K69="Ongoing",BD69,IF(RIGHT($K69,2)=RIGHT(BZ$39,2),SUM($AX69:BD69),0)+IF(RIGHT(BZ$39,2)>RIGHT($K69,2),BD69,0)) -> 0 | CA69: =+IF($K69="Ongoing",BE69,IF(RIGHT($K69,2)=RIGHT(CA$39,2),SUM($AX69:BE69),0)+IF(RIGHT(CA$39,2)>RIGHT($K69,2),BE69,0)) -> 0 | CB69: =+IF($K69="Ongoing",BF69,IF(RIGHT($K69,2)=RIGHT(CB$39,2),SUM($AX69:BF69),0)+IF(RIGHT(CB$39,2)>RIGHT($K69,2),BF69,0)) -> 0 | CC69: =+IF($K69="Ongoing",BG69,IF(RIGHT($K69,2)=RIGHT(CC$39,2),SUM($AX69:BG69),0)+IF(RIGHT(CC$39,2)>RIGHT($K69,2),BG69,0)) -> 0 | CE69: =+Q69*KeyAssumptionsPriceControl_FO!AC$15 -> 0 | CF69: =+R69*KeyAssumptionsPriceControl_FO!AD$15 -> 0 | CG69: =+S69*KeyAssumptionsPriceControl_FO!AE$15 -> 0.068841801 | CH69: =+T69*KeyAssumptionsPriceControl_FO!AF$15 -> 0.5346166848 | CI69: =+U69*KeyAssumptionsPriceControl_FO!AG$15 -> 0 | CJ69: =+V69*KeyAssumptionsPriceControl_FO!AH$15 -> 0 | CK69: =+W69*KeyAssumptionsPriceControl_FO!AI$15 -> 0 | CL69: =+X69*KeyAssumptionsPriceControl_FO!AJ$15 -> 0 | CM69: =+Y69*KeyAssumptionsPriceControl_FO!AK$15 -> 0 | CN69: =+Z69*KeyAssumptionsPriceControl_FO!AL$15 -> 0 | CP69: 0 | CQ69: 0 | CR69: 0.0004302612562 | CS69: 0.004201876792 | CT69: 0.007543231072 | CU69: 0.007543231072 | CV69: 0.007543231072 | CW69: 0.007543231072 | CX69: 0.007543231072 | CY69: 0.007543231072
C70: Bairnsdale to Eagle Point MSPL Renewal (3.5km AC 1963) | E70: Water | F70: Renewals | G70: Pipelines/network | H70: Other Capital expenditure | J70: Straight line | K70: 2030-31 | L70: 80 | M70: 80 | Q70: 0 | R70: 0 | S70: 0 | T70: 0 | U70: 0 | V70: 0.22 | W70: 1 | X70: 0.6 | Y70: 0 | Z70: 0 | AX70: 0 | AY70: 0 | AZ70: 0 | BA70: 0 | BB70: 0 | BC70: 0.22 | BD70: 1 | BE70: 0.6 | BF70: 0 | BG70: 0 | BI70: 0 | BJ70: 0 | BK70: 0 | BL70: 0 | BM70: 0 | BN70: 0 | BO70: 0 | BP70: 0.011375 | BQ70: 0.02275 | BR70: 0.02275 | BT70: =+IF($K70="Ongoing",AX70,IF(RIGHT($K70,2)=RIGHT(BT$39,2),SUM($AX70:AX70),0)+IF(RIGHT(BT$39,2)>RIGHT($K70,2),AX70,0)) -> 0 | BU70: =+IF($K70="Ongoing",AY70,IF(RIGHT($K70,2)=RIGHT(BU$39,2),SUM($AX70:AY70),0)+IF(RIGHT(BU$39,2)>RIGHT($K70,2),AY70,0)) -> 0 | BV70: =+IF($K70="Ongoing",AZ70,IF(RIGHT($K70,2)=RIGHT(BV$39,2),SUM($AX70:AZ70),0)+IF(RIGHT(BV$39,2)>RIGHT($K70,2),AZ70,0)) -> 0 | BW70: =+IF($K70="Ongoing",BA70,IF(RIGHT($K70,2)=RIGHT(BW$39,2),SUM($AX70:BA70),0)+IF(RIGHT(BW$39,2)>RIGHT($K70,2),BA70,0)) -> 0 | BX70: =+IF($K70="Ongoing",BB70,IF(RIGHT($K70,2)=RIGHT(BX$39,2),SUM($AX70:BB70),0)+IF(RIGHT(BX$39,2)>RIGHT($K70,2),BB70,0)) -> 0 | BY70: =+IF($K70="Ongoing",BC70,IF(RIGHT($K70,2)=RIGHT(BY$39,2),SUM($AX70:BC70),0)+IF(RIGHT(BY$39,2)>RIGHT($K70,2),BC70,0)) -> 0 | BZ70: =+IF($K70="Ongoing",BD70,IF(RIGHT($K70,2)=RIGHT(BZ$39,2),SUM($AX70:BD70),0)+IF(RIGHT(BZ$39,2)>RIGHT($K70,2),BD70,0)) -> 0 | CA70: =+IF($K70="Ongoing",BE70,IF(RIGHT($K70,2)=RIGHT(CA$39,2),SUM($AX70:BE70),0)+IF(RIGHT(CA$39,2)>RIGHT($K70,2),BE70,0)) -> 1.82 | CB70: =+IF($K70="Ongoing",BF70,IF(RIGHT($K70,2)=RIGHT(CB$39,2),SUM($AX70:BF70),0)+IF(RIGHT(CB$39,2)>RIGHT($K70,2),BF70,0)) -> 0 | CC70: =+IF($K70="Ongoing",BG70,IF(RIGHT($K70,2)=RIGHT(CC$39,2),SUM($AX70:BG70),0)+IF(RIGHT(CC$39,2)>RIGHT($K70,2),BG70,0)) -> 0 | CE70: =+Q70*KeyAssumptionsPriceControl_FO!AC$15 -> 0 | CF70: =+R70*KeyAssumptionsPriceControl_FO!AD$15 -> 0 | CG70: =+S70*KeyAssumptionsPriceControl_FO!AE$15 -> 0 | CH70: =+T70*KeyAssumptionsPriceControl_FO!AF$15 -> 0 | CI70: =+U70*KeyAssumptionsPriceControl_FO!AG$15 -> 0 | CJ70: =+V70*KeyAssumptionsPriceControl_FO!AH$15 -> 0.2626915052 | CK70: =+W70*KeyAssumptionsPriceControl_FO!AI$15 -> 1.229873865 | CL70: =+X70*KeyAssumptionsPriceControl_FO!AJ$15 -> 0.7600620488 | CM70: =+Y70*KeyAssumptionsPriceControl_FO!AK$15 -> 0 | CN70: =+Z70*KeyAssumptionsPriceControl_FO!AL$15 -> 0 | CP70: 0 | CQ70: 0 | CR70: 0 | CS70: 0 | CT70: 0 | CU70: 0.001641821908 | CV70: 0.01097035547 | CW70: 0.02340745494 | CX70: 0.02815784274 | CY70: 0.02815784274
C71: Water Pump Station Renewals | E71: Water | F71: Renewals | G71: Pipelines/network | H71: Capital Programs / Allocation | J71: Straight line | K71: Ongoing | L71: 25 | M71: 25 | Q71: 0.1 | R71: 0.289 | S71: 0.289 | T71: 0.289 | U71: 0.289 | V71: 1.661 | W71: 0.227 | X71: 0.227 | Y71: 1.338 | Z71: 0.765 | AX71: 0.1 | AY71: 0.289 | AZ71: 0.289 | BA71: 0.289 | BB71: 0.289 | BC71: 1.661 | BD71: 0.227 | BE71: 0.227 | BF71: 1.338 | BG71: 0.765 | BI71: 0.002 | BJ71: 0.00978 | BK71: 0.02134 | BL71: 0.0329 | BM71: 0.04446 | BN71: 0.08346 | BO71: 0.12122 | BP71: 0.1303 | BQ71: 0.1616 | BR71: 0.20366 | BT71: =+IF($K71="Ongoing",AX71,IF(RIGHT($K71,2)=RIGHT(BT$39,2),SUM($AX71:AX71),0)+IF(RIGHT(BT$39,2)>RIGHT($K71,2),AX71,0)) -> 0.1 | BU71: =+IF($K71="Ongoing",AY71,IF(RIGHT($K71,2)=RIGHT(BU$39,2),SUM($AX71:AY71),0)+IF(RIGHT(BU$39,2)>RIGHT($K71,2),AY71,0)) -> 0.289 | BV71: =+IF($K71="Ongoing",AZ71,IF(RIGHT($K71,2)=RIGHT(BV$39,2),SUM($AX71:AZ71),0)+IF(RIGHT(BV$39,2)>RIGHT($K71,2),AZ71,0)) -> 0.289 | BW71: =+IF($K71="Ongoing",BA71,IF(RIGHT($K71,2)=RIGHT(BW$39,2),SUM($AX71:BA71),0)+IF(RIGHT(BW$39,2)>RIGHT($K71,2),BA71,0)) -> 0.289 | BX71: =+IF($K71="Ongoing",BB71,IF(RIGHT($K71,2)=RIGHT(BX$39,2),SUM($AX71:BB71),0)+IF(RIGHT(BX$39,2)>RIGHT($K71,2),BB71,0)) -> 0.289 | BY71: =+IF($K71="Ongoing",BC71,IF(RIGHT($K71,2)=RIGHT(BY$39,2),SUM($AX71:BC71),0)+IF(RIGHT(BY$39,2)>RIGHT($K71,2),BC71,0)) -> 1.661 | BZ71: =+IF($K71="Ongoing",BD71,IF(RIGHT($K71,2)=RIGHT(BZ$39,2),SUM($AX71:BD71),0)+IF(RIGHT(BZ$39,2)>RIGHT($K71,2),BD71,0)) -> 0.227 | CA71: =+IF($K71="Ongoing",BE71,IF(RIGHT($K71,2)=RIGHT(CA$39,2),SUM($AX71:BE71),0)+IF(RIGHT(CA$39,2)>RIGHT($K71,2),BE71,0)) -> 0.227 | CB71: =+IF($K71="Ongoing",BF71,IF(RIGHT($K71,2)=RIGHT(CB$39,2),SUM($AX71:BF71),0)+IF(RIGHT(CB$39,2)>RIGHT($K71,2),BF71,0)) -> 1.338 | CC71: =+IF($K71="Ongoing",BG71,IF(RIGHT($K71,2)=RIGHT(CC$39,2),SUM($AX71:BG71),0)+IF(RIGHT(CC$39,2)>RIGHT($K71,2),BG71,0)) -> 0.765 | CE71: =+Q71*KeyAssumptionsPriceControl_FO!AC$15 -> 0.103 | CF71: =+R71*KeyAssumptionsPriceControl_FO!AD$15 -> 0.3066001 | CG71: =+S71*KeyAssumptionsPriceControl_FO!AE$15 -> 0.315798103 | CH71: =+T71*KeyAssumptionsPriceControl_FO!AF$15 -> 0.3252720461 | CI71: =+U71*KeyAssumptionsPriceControl_FO!AG$15 -> 0.3350302075 | CJ71: =+V71*KeyAssumptionsPriceControl_FO!AH$15 -> 1.983320865 | CK71: =+W71*KeyAssumptionsPriceControl_FO!AI$15 -> 0.2791813675 | CL71: =+X71*KeyAssumptionsPriceControl_FO!AJ$15 -> 0.2875568085 | CM71: =+Y71*KeyAssumptionsPriceControl_FO!AK$15 -> 1.74578652 | CN71: =+Z71*KeyAssumptionsPriceControl_FO!AL$15 -> 1.02809603 | CP71: 0.00206 | CQ71: 0.010252002 | CR71: 0.02269996606 | CS71: 0.03552136904 | CT71: 0.04872741411 | CU71: 0.09509443555 | CV71: 0.1403444802 | CW71: 0.1516792437 | CX71: 0.1923461103 | CY71: 0.2478237613
C72: Water Storage Renewals | E72: Water | F72: Renewals | G72: Headworks | H72: Capital Programs / Allocation | J72: Straight line | K72: Ongoing | L72: 50 | M72: 50 | Q72: 0.1 | R72: 0.357 | S72: 0.357 | T72: 0.357 | U72: 0.357 | V72: 1.508 | W72: 0.043 | X72: 2.649 | Y72: 4.496 | Z72: 3.068 | AX72: 0.1 | AY72: 0.357 | AZ72: 0.357 | BA72: 0.357 | BB72: 0.357 | BC72: 1.508 | BD72: 0.043 | BE72: 2.649 | BF72: 4.496 | BG72: 3.068 | BI72: 0.001 | BJ72: 0.00557 | BK72: 0.01271 | BL72: 0.01985 | BM72: 0.02699 | BN72: 0.04564 | BO72: 0.06115 | BP72: 0.08807 | BQ72: 0.15952 | BR72: 0.23516 | BT72: =+IF($K72="Ongoing",AX72,IF(RIGHT($K72,2)=RIGHT(BT$39,2),SUM($AX72:AX72),0)+IF(RIGHT(BT$39,2)>RIGHT($K72,2),AX72,0)) -> 0.1 | BU72: =+IF($K72="Ongoing",AY72,IF(RIGHT($K72,2)=RIGHT(BU$39,2),SUM($AX72:AY72),0)+IF(RIGHT(BU$39,2)>RIGHT($K72,2),AY72,0)) -> 0.357 | BV72: =+IF($K72="Ongoing",AZ72,IF(RIGHT($K72,2)=RIGHT(BV$39,2),SUM($AX72:AZ72),0)+IF(RIGHT(BV$39,2)>RIGHT($K72,2),AZ72,0)) -> 0.357 | BW72: =+IF($K72="Ongoing",BA72,IF(RIGHT($K72,2)=RIGHT(BW$39,2),SUM($AX72:BA72),0)+IF(RIGHT(BW$39,2)>RIGHT($K72,2),BA72,0)) -> 0.357 | BX72: =+IF($K72="Ongoing",BB72,IF(RIGHT($K72,2)=RIGHT(BX$39,2),SUM($AX72:BB72),0)+IF(RIGHT(BX$39,2)>RIGHT($K72,2),BB72,0)) -> 0.357 | BY72: =+IF($K72="Ongoing",BC72,IF(RIGHT($K72,2)=RIGHT(BY$39,2),SUM($AX72:BC72),0)+IF(RIGHT(BY$39,2)>RIGHT($K72,2),BC72,0)) -> 1.508 | BZ72: =+IF($K72="Ongoing",BD72,IF(RIGHT($K72,2)=RIGHT(BZ$39,2),SUM($AX72:BD72),0)+IF(RIGHT(BZ$39,2)>RIGHT($K72,2),BD72,0)) -> 0.043 | CA72: =+IF($K72="Ongoing",BE72,IF(RIGHT($K72,2)=RIGHT(CA$39,2),SUM($AX72:BE72),0)+IF(RIGHT(CA$39,2)>RIGHT($K72,2),BE72,0)) -> 2.649 | CB72: =+IF($K72="Ongoing",BF72,IF(RIGHT($K72,2)=RIGHT(CB$39,2),SUM($AX72:BF72),0)+IF(RIGHT(CB$39,2)>RIGHT($K72,2),BF72,0)) -> 4.496 | CC72: =+IF($K72="Ongoing",BG72,IF(RIGHT($K72,2)=RIGHT(CC$39,2),SUM($AX72:BG72),0)+IF(RIGHT(CC$39,2)>RIGHT($K72,2),BG72,0)) -> 3.068 | CE72: =+Q72*KeyAssumptionsPriceControl_FO!AC$15 -> 0.103 | CF72: =+R72*KeyAssumptionsPriceControl_FO!AD$15 -> 0.3787413 | CG72: =+S72*KeyAssumptionsPriceControl_FO!AE$15 -> 0.390103539 | CH72: =+T72*KeyAssumptionsPriceControl_FO!AF$15 -> 0.4018066452 | CI72: =+U72*KeyAssumptionsPriceControl_FO!AG$15 -> 0.4138608445 | CJ72: =+V72*KeyAssumptionsPriceControl_FO!AH$15 -> 1.800630863 | CK72: =+W72*KeyAssumptionsPriceControl_FO!AI$15 -> 0.05288457621 | CL72: =+X72*KeyAssumptionsPriceControl_FO!AJ$15 -> 3.355673946 | CM72: =+Y72*KeyAssumptionsPriceControl_FO!AK$15 -> 5.866260234 | CN72: =+Z72*KeyAssumptionsPriceControl_FO!AL$15 -> 4.123135452 | CP72: 0.00103 | CQ72: 0.005847413 | CR72: 0.01353586139 | CS72: 0.02145496323 | CT72: 0.02961163813 | CU72: 0.05175655521 | CV72: 0.0702917096 | CW72: 0.1043772948 | CX72: 0.1965966366 | CY72: 0.2964905935
C73: Standpipe management | E73: Water | F73: Improvements / Compliance | G73: Pipelines/network | H73: Other Capital expenditure | J73: Straight line | K73: 2030-31 | L73: 10 | M73: 10 | Q73: 0 | R73: 0 | S73: 0 | T73: 0 | U73: 0 | V73: 0 | W73: 0.5 | Y73: 0 | Z73: 0 | AX73: 0 | AY73: 0 | AZ73: 0 | BA73: 0 | BB73: 0 | BC73: 0 | BD73: 0.5 | BE73: 0 | BF73: 0 | BG73: 0 | BI73: 0 | BJ73: 0 | BK73: 0 | BL73: 0 | BM73: 0 | BN73: 0 | BO73: 0 | BP73: 0.025 | BQ73: 0.05 | BR73: 0.05 | BT73: =+IF($K73="Ongoing",AX73,IF(RIGHT($K73,2)=RIGHT(BT$39,2),SUM($AX73:AX73),0)+IF(RIGHT(BT$39,2)>RIGHT($K73,2),AX73,0)) -> 0 | BU73: =+IF($K73="Ongoing",AY73,IF(RIGHT($K73,2)=RIGHT(BU$39,2),SUM($AX73:AY73),0)+IF(RIGHT(BU$39,2)>RIGHT($K73,2),AY73,0)) -> 0 | BV73: =+IF($K73="Ongoing",AZ73,IF(RIGHT($K73,2)=RIGHT(BV$39,2),SUM($AX73:AZ73),0)+IF(RIGHT(BV$39,2)>RIGHT($K73,2),AZ73,0)) -> 0 | BW73: =+IF($K73="Ongoing",BA73,IF(RIGHT($K73,2)=RIGHT(BW$39,2),SUM($AX73:BA73),0)+IF(RIGHT(BW$39,2)>RIGHT($K73,2),BA73,0)) -> 0 | BX73: =+IF($K73="Ongoing",BB73,IF(RIGHT($K73,2)=RIGHT(BX$39,2),SUM($AX73:BB73),0)+IF(RIGHT(BX$39,2)>RIGHT($K73,2),BB73,0)) -> 0 | BY73: =+IF($K73="Ongoing",BC73,IF(RIGHT($K73,2)=RIGHT(BY$39,2),SUM($AX73:BC73),0)+IF(RIGHT(BY$39,2)>RIGHT($K73,2),BC73,0)) -> 0 | BZ73: =+IF($K73="Ongoing",BD73,IF(RIGHT($K73,2)=RIGHT(BZ$39,2),SUM($AX73:BD73),0)+IF(RIGHT(BZ$39,2)>RIGHT($K73,2),BD73,0)) -> 0 | CA73: =+IF($K73="Ongoing",BE73,IF(RIGHT($K73,2)=RIGHT(CA$39,2),SUM($AX73:BE73),0)+IF(RIGHT(CA$39,2)>RIGHT($K73,2),BE73,0)) -> 0.5 | CB73: =+IF($K73="Ongoing",BF73,IF(RIGHT($K73,2)=RIGHT(CB$39,2),SUM($AX73:BF73),0)+IF(RIGHT(CB$39,2)>RIGHT($K73,2),BF73,0)) -> 0 | CC73: =+IF($K73="Ongoing",BG73,IF(RIGHT($K73,2)=RIGHT(CC$39,2),SUM($AX73:BG73),0)+IF(RIGHT(CC$39,2)>RIGHT($K73,2),BG73,0)) -> 0 | CE73: =+Q73*KeyAssumptionsPriceControl_FO!AC$15 -> 0 | CF73: =+R73*KeyAssumptionsPriceControl_FO!AD$15 -> 0 | CG73: =+S73*KeyAssumptionsPriceControl_FO!AE$15 -> 0 | CH73: =+T73*KeyAssumptionsPriceControl_FO!AF$15 -> 0 | CI73: =+U73*KeyAssumptionsPriceControl_FO!AG$15 -> 0 | CJ73: =+V73*KeyAssumptionsPriceControl_FO!AH$15 -> 0 | CK73: =+W73*KeyAssumptionsPriceControl_FO!AI$15 -> 0.6149369327 | CL73: =+X73*KeyAssumptionsPriceControl_FO!AJ$15 -> 0 | CM73: =+Y73*KeyAssumptionsPriceControl_FO!AK$15 -> 0 | CN73: =+Z73*KeyAssumptionsPriceControl_FO!AL$15 -> 0 | CP73: 0 | CQ73: 0 | CR73: 0 | CS73: 0 | CT73: 0 | CU73: 0 | CV73: 0.03074684664 | CW73: 0.06149369327 | CX73: 0.06149369327 | CY73: 0.06149369327
C74: Orbost CWS Tank WTP Upgrade | E74: Water | F74: Improvements / Compliance | G74: Pipelines/network | H74: Capital Programs / Allocation | J74: Straight line | K74: 2029-30 | L74: 25 | M74: 25 | Q74: 0 | R74: 0 | S74: 0 | T74: 0 | U74: 0.5 | V74: 2 | W74: 5 | X74: 4.9 | Y74: 0 | Z74: 0 | AX74: 0 | AY74: 0 | AZ74: 0 | BA74: 0 | BB74: 0.5 | BC74: 2 | BD74: 5 | BE74: 4.9 | BF74: 0 | BG74: 0 | BI74: 0 | BJ74: 0 | BK74: 0 | BL74: 0 | BM74: 0 | BN74: 0 | BO74: 0.15 | BP74: 0.398 | BQ74: 0.496 | BR74: 0.496 | BT74: =+IF($K74="Ongoing",AX74,IF(RIGHT($K74,2)=RIGHT(BT$39,2),SUM($AX74:AX74),0)+IF(RIGHT(BT$39,2)>RIGHT($K74,2),AX74,0)) -> 0 | BU74: =+IF($K74="Ongoing",AY74,IF(RIGHT($K74,2)=RIGHT(BU$39,2),SUM($AX74:AY74),0)+IF(RIGHT(BU$39,2)>RIGHT($K74,2),AY74,0)) -> 0 | BV74: =+IF($K74="Ongoing",AZ74,IF(RIGHT($K74,2)=RIGHT(BV$39,2),SUM($AX74:AZ74),0)+IF(RIGHT(BV$39,2)>RIGHT($K74,2),AZ74,0)) -> 0 | BW74: =+IF($K74="Ongoing",BA74,IF(RIGHT($K74,2)=RIGHT(BW$39,2),SUM($AX74:BA74),0)+IF(RIGHT(BW$39,2)>RIGHT($K74,2),BA74,0)) -> 0 | BX74: =+IF($K74="Ongoing",BB74,IF(RIGHT($K74,2)=RIGHT(BX$39,2),SUM($AX74:BB74),0)+IF(RIGHT(BX$39,2)>RIGHT($K74,2),BB74,0)) -> 0 | BY74: =+IF($K74="Ongoing",BC74,IF(RIGHT($K74,2)=RIGHT(BY$39,2),SUM($AX74:BC74),0)+IF(RIGHT(BY$39,2)>RIGHT($K74,2),BC74,0)) -> 0 | BZ74: =+IF($K74="Ongoing",BD74,IF(RIGHT($K74,2)=RIGHT(BZ$39,2),SUM($AX74:BD74),0)+IF(RIGHT(BZ$39,2)>RIGHT($K74,2),BD74,0)) -> 7.5 | CA74: =+IF($K74="Ongoing",BE74,IF(RIGHT($K74,2)=RIGHT(CA$39,2),SUM($AX74:BE74),0)+IF(RIGHT(CA$39,2)>RIGHT($K74,2),BE74,0)) -> 4.9 | CB74: =+IF($K74="Ongoing",BF74,IF(RIGHT($K74,2)=RIGHT(CB$39,2),SUM($AX74:BF74),0)+IF(RIGHT(CB$39,2)>RIGHT($K74,2),BF74,0)) -> 0 | CC74: =+IF($K74="Ongoing",BG74,IF(RIGHT($K74,2)=RIGHT(CC$39,2),SUM($AX74:BG74),0)+IF(RIGHT(CC$39,2)>RIGHT($K74,2),BG74,0)) -> 0 | CE74: =+Q74*KeyAssumptionsPriceControl_FO!AC$15 -> 0 | CF74: =+R74*KeyAssumptionsPriceControl_FO!AD$15 -> 0 | CG74: =+S74*KeyAssumptionsPriceControl_FO!AE$15 -> 0 | CH74: =+T74*KeyAssumptionsPriceControl_FO!AF$15 -> 0 | CI74: =+U74*KeyAssumptionsPriceControl_FO!AG$15 -> 0.5796370372 | CJ74: =+V74*KeyAssumptionsPriceControl_FO!AH$15 -> 2.388104593 | CK74: =+W74*KeyAssumptionsPriceControl_FO!AI$15 -> 6.149369327 | CL74: =+X74*KeyAssumptionsPriceControl_FO!AJ$15 -> 6.207173399 | CM74: =+Y74*KeyAssumptionsPriceControl_FO!AK$15 -> 0 | CN74: =+Z74*KeyAssumptionsPriceControl_FO!AL$15 -> 0 | CP74: 0 | CQ74: 0 | CR74: 0 | CS74: 0 | CT74: 0.01159274074 | CU74: 0.07094757335 | CV74: 0.2416970518 | CW74: 0.4888279063 | CX74: 0.6129713742 | CY74: 0.6129713742
C75: Lindenow storage water quality improvement | E75: Water | F75: Improvements / Compliance | G75: Pipelines/network | H75: Other Capital expenditure | J75: Straight line | K75: 2023-24 | L75: 50 | M75: 50 | Q75: 0.5 | R75: 0 | S75: 0 | T75: 0 | U75: 0 | V75: 0 | W75: 0 | X75: 0 | Y75: 0 | Z75: 0 | AX75: 0.5 | AY75: 0 | AZ75: 0 | BA75: 0 | BB75: 0 | BC75: 0 | BD75: 0 | BE75: 0 | BF75: 0 | BG75: 0 | BI75: 0.005 | BJ75: 0.01 | BK75: 0.01 | BL75: 0.01 | BM75: 0.01 | BN75: 0.01 | BO75: 0.01 | BP75: 0.01 | BQ75: 0.01 | BR75: 0.01 | BT75: =+IF($K75="Ongoing",AX75,IF(RIGHT($K75,2)=RIGHT(BT$39,2),SUM($AX75:AX75),0)+IF(RIGHT(BT$39,2)>RIGHT($K75,2),AX75,0)) -> 0.5 | BU75: =+IF($K75="Ongoing",AY75,IF(RIGHT($K75,2)=RIGHT(BU$39,2),SUM($AX75:AY75),0)+IF(RIGHT(BU$39,2)>RIGHT($K75,2),AY75,0)) -> 0 | BV75: =+IF($K75="Ongoing",AZ75,IF(RIGHT($K75,2)=RIGHT(BV$39,2),SUM($AX75:AZ75),0)+IF(RIGHT(BV$39,2)>RIGHT($K75,2),AZ75,0)) -> 0 | BW75: =+IF($K75="Ongoing",BA75,IF(RIGHT($K75,2)=RIGHT(BW$39,2),SUM($AX75:BA75),0)+IF(RIGHT(BW$39,2)>RIGHT($K75,2),BA75,0)) -> 0 | BX75: =+IF($K75="Ongoing",BB75,IF(RIGHT($K75,2)=RIGHT(BX$39,2),SUM($AX75:BB75),0)+IF(RIGHT(BX$39,2)>RIGHT($K75,2),BB75,0)) -> 0 | BY75: =+IF($K75="Ongoing",BC75,IF(RIGHT($K75,2)=RIGHT(BY$39,2),SUM($AX75:BC75),0)+IF(RIGHT(BY$39,2)>RIGHT($K75,2),BC75,0)) -> 0 | BZ75: =+IF($K75="Ongoing",BD75,IF(RIGHT($K75,2)=RIGHT(BZ$39,2),SUM($AX75:BD75),0)+IF(RIGHT(BZ$39,2)>RIGHT($K75,2),BD75,0)) -> 0 | CA75: =+IF($K75="Ongoing",BE75,IF(RIGHT($K75,2)=RIGHT(CA$39,2),SUM($AX75:BE75),0)+IF(RIGHT(CA$39,2)>RIGHT($K75,2),BE75,0)) -> 0 | CB75: =+IF($K75="Ongoing",BF75,IF(RIGHT($K75,2)=RIGHT(CB$39,2),SUM($AX75:BF75),0)+IF(RIGHT(CB$39,2)>RIGHT($K75,2),BF75,0)) -> 0 | CC75: =+IF($K75="Ongoing",BG75,IF(RIGHT($K75,2)=RIGHT(CC$39,2),SUM($AX75:BG75),0)+IF(RIGHT(CC$39,2)>RIGHT($K75,2),BG75,0)) -> 0 | CE75: =+Q75*KeyAssumptionsPriceControl_FO!AC$15 -> 0.515 | CF75: =+R75*KeyAssumptionsPriceControl_FO!AD$15 -> 0 | CG75: =+S75*KeyAssumptionsPriceControl_FO!AE$15 -> 0 | CH75: =+T75*KeyAssumptionsPriceControl_FO!AF$15 -> 0 | CI75: =+U75*KeyAssumptionsPriceControl_FO!AG$15 -> 0 | CJ75: =+V75*KeyAssumptionsPriceControl_FO!AH$15 -> 0 | CK75: =+W75*KeyAssumptionsPriceControl_FO!AI$15 -> 0 | CL75: =+X75*KeyAssumptionsPriceControl_FO!AJ$15 -> 0 | CM75: =+Y75*KeyAssumptionsPriceControl_FO!AK$15 -> 0 | CN75: =+Z75*KeyAssumptionsPriceControl_FO!AL$15 -> 0 | CP75: 0.00515 | CQ75: 0.0103 | CR75: 0.0103 | CS75: 0.0103 | CT75: 0.0103 | CU75: 0.0103 | CV75: 0.0103 | CW75: 0.0103 | CX75: 0.0103 | CY75: 0.0103
C76: Sunlakes CWS - renew liner and cover of clear water storage | E76: Water | F76: Renewals | G76: Headworks | H76: Other Capital expenditure | J76: Straight line | K76: 2032-33 | L76: 50 | M76: 50 | Q76: 0 | R76: 0 | S76: 0 | T76: 0 | U76: 0 | V76: 0 | W76: 0 | X76: 0 | Y76: 0 | Z76: 0.5 | AX76: 0 | AY76: 0 | AZ76: 0 | BA76: 0 | BB76: 0 | BC76: 0 | BD76: 0 | BE76: 0 | BF76: 0 | BG76: 0.5 | BI76: 0 | BJ76: 0 | BK76: 0 | BL76: 0 | BM76: 0 | BN76: 0 | BO76: 0 | BP76: 0 | BQ76: 0 | BR76: 0.005 | BT76: =+IF($K76="Ongoing",AX76,IF(RIGHT($K76,2)=RIGHT(BT$39,2),SUM($AX76:AX76),0)+IF(RIGHT(BT$39,2)>RIGHT($K76,2),AX76,0)) -> 0 | BU76: =+IF($K76="Ongoing",AY76,IF(RIGHT($K76,2)=RIGHT(BU$39,2),SUM($AX76:AY76),0)+IF(RIGHT(BU$39,2)>RIGHT($K76,2),AY76,0)) -> 0 | BV76: =+IF($K76="Ongoing",AZ76,IF(RIGHT($K76,2)=RIGHT(BV$39,2),SUM($AX76:AZ76),0)+IF(RIGHT(BV$39,2)>RIGHT($K76,2),AZ76,0)) -> 0 | BW76: =+IF($K76="Ongoing",BA76,IF(RIGHT($K76,2)=RIGHT(BW$39,2),SUM($AX76:BA76),0)+IF(RIGHT(BW$39,2)>RIGHT($K76,2),BA76,0)) -> 0 | BX76: =+IF($K76="Ongoing",BB76,IF(RIGHT($K76,2)=RIGHT(BX$39,2),SUM($AX76:BB76),0)+IF(RIGHT(BX$39,2)>RIGHT($K76,2),BB76,0)) -> 0 | BY76: =+IF($K76="Ongoing",BC76,IF(RIGHT($K76,2)=RIGHT(BY$39,2),SUM($AX76:BC76),0)+IF(RIGHT(BY$39,2)>RIGHT($K76,2),BC76,0)) -> 0 | BZ76: =+IF($K76="Ongoing",BD76,IF(RIGHT($K76,2)=RIGHT(BZ$39,2),SUM($AX76:BD76),0)+IF(RIGHT(BZ$39,2)>RIGHT($K76,2),BD76,0)) -> 0 | CA76: =+IF($K76="Ongoing",BE76,IF(RIGHT($K76,2)=RIGHT(CA$39,2),SUM($AX76:BE76),0)+IF(RIGHT(CA$39,2)>RIGHT($K76,2),BE76,0)) -> 0 | CB76: =+IF($K76="Ongoing",BF76,IF(RIGHT($K76,2)=RIGHT(CB$39,2),SUM($AX76:BF76),0)+IF(RIGHT(CB$39,2)>RIGHT($K76,2),BF76,0)) -> 0 | CC76: =+IF($K76="Ongoing",BG76,IF(RIGHT($K76,2)=RIGHT(CC$39,2),SUM($AX76:BG76),0)+IF(RIGHT(CC$39,2)>RIGHT($K76,2),BG76,0)) -> 0.5 | CE76: =+Q76*KeyAssumptionsPriceControl_FO!AC$15 -> 0 | CF76: =+R76*KeyAssumptionsPriceControl_FO!AD$15 -> 0 | CG76: =+S76*KeyAssumptionsPriceControl_FO!AE$15 -> 0 | CH76: =+T76*KeyAssumptionsPriceControl_FO!AF$15 -> 0 | CI76: =+U76*KeyAssumptionsPriceControl_FO!AG$15 -> 0 | CJ76: =+V76*KeyAssumptionsPriceControl_FO!AH$15 -> 0 | CK76: =+W76*KeyAssumptionsPriceControl_FO!AI$15 -> 0 | CL76: =+X76*KeyAssumptionsPriceControl_FO!AJ$15 -> 0 | CM76: =+Y76*KeyAssumptionsPriceControl_FO!AK$15 -> 0 | CN76: =+Z76*KeyAssumptionsPriceControl_FO!AL$15 -> 0.6719581897 | CP76: 0 | CQ76: 0 | CR76: 0 | CS76: 0 | CT76: 0 | CU76: 0 | CV76: 0 | CW76: 0 | CX76: 0 | CY76: 0.006719581897
C77: IT Hardware and Software Improvements (capex BAU) | E77: Sewerage | F77: Renewals | G77: Corporate | H77: Capital Programs / Allocation | J77: Straight line | K77: Ongoing | L77: 5 | M77: 5 | Q77: 0.1 | R77: 0.15 | S77: 0.05 | T77: 0.125 | U77: 0.075 | V77: 0.35 | W77: 0.2 | X77: 0.2 | Y77: 0.2665 | Z77: 0.2 | AX77: 0.1 | AY77: 0.15 | AZ77: 0.05 | BA77: 0.125 | BB77: 0.075 | BC77: 0.35 | BD77: 0.2 | BE77: 0.2 | BF77: 0.2665 | BG77: 0.2 | BI77: 0.01 | BJ77: 0.035 | BK77: 0.055 | BL77: 0.0725 | BM77: 0.0925 | BN77: 0.125 | BO77: 0.155 | BP77: 0.175 | BQ77: 0.20415 | BR77: 0.2308 | BT77: =+IF($K77="Ongoing",AX77,IF(RIGHT($K77,2)=RIGHT(BT$39,2),SUM($AX77:AX77),0)+IF(RIGHT(BT$39,2)>RIGHT($K77,2),AX77,0)) -> 0.1 | BU77: =+IF($K77="Ongoing",AY77,IF(RIGHT($K77,2)=RIGHT(BU$39,2),SUM($AX77:AY77),0)+IF(RIGHT(BU$39,2)>RIGHT($K77,2),AY77,0)) -> 0.15 | BV77: =+IF($K77="Ongoing",AZ77,IF(RIGHT($K77,2)=RIGHT(BV$39,2),SUM($AX77:AZ77),0)+IF(RIGHT(BV$39,2)>RIGHT($K77,2),AZ77,0)) -> 0.05 | BW77: =+IF($K77="Ongoing",BA77,IF(RIGHT($K77,2)=RIGHT(BW$39,2),SUM($AX77:BA77),0)+IF(RIGHT(BW$39,2)>RIGHT($K77,2),BA77,0)) -> 0.125 | BX77: =+IF($K77="Ongoing",BB77,IF(RIGHT($K77,2)=RIGHT(BX$39,2),SUM($AX77:BB77),0)+IF(RIGHT(BX$39,2)>RIGHT($K77,2),BB77,0)) -> 0.075 | BY77: =+IF($K77="Ongoing",BC77,IF(RIGHT($K77,2)=RIGHT(BY$39,2),SUM($AX77:BC77),0)+IF(RIGHT(BY$39,2)>RIGHT($K77,2),BC77,0)) -> 0.35 | BZ77: =+IF($K77="Ongoing",BD77,IF(RIGHT($K77,2)=RIGHT(BZ$39,2),SUM($AX77:BD77),0)+IF(RIGHT(BZ$39,2)>RIGHT($K77,2),BD77,0)) -> 0.2 | CA77: =+IF($K77="Ongoing",BE77,IF(RIGHT($K77,2)=RIGHT(CA$39,2),SUM($AX77:BE77),0)+IF(RIGHT(CA$39,2)>RIGHT($K77,2),BE77,0)) -> 0.2 | CB77: =+IF($K77="Ongoing",BF77,IF(RIGHT($K77,2)=RIGHT(CB$39,2),SUM($AX77:BF77),0)+IF(RIGHT(CB$39,2)>RIGHT($K77,2),BF77,0)) -> 0.2665 | CC77: =+IF($K77="Ongoing",BG77,IF(RIGHT($K77,2)=RIGHT(CC$39,2),SUM($AX77:BG77),0)+IF(RIGHT(CC$39,2)>RIGHT($K77,2),BG77,0)) -> 0.2 | CE77: =+Q77*KeyAssumptionsPriceControl_FO!AC$15 -> 0.103 | CF77: =+R77*KeyAssumptionsPriceControl_FO!AD$15 -> 0.159135 | CG77: =+S77*KeyAssumptionsPriceControl_FO!AE$15 -> 0.05463635 | CH77: =+T77*KeyAssumptionsPriceControl_FO!AF$15 -> 0.1406886013 | CI77: =+U77*KeyAssumptionsPriceControl_FO!AG$15 -> 0.08694555557 | CJ77: =+V77*KeyAssumptionsPriceControl_FO!AH$15 -> 0.4179183038 | CK77: =+W77*KeyAssumptionsPriceControl_FO!AI$15 -> 0.2459747731 | CL77: =+X77*KeyAssumptionsPriceControl_FO!AJ$15 -> 0.2533540163 | CM77: =+Y77*KeyAssumptionsPriceControl_FO!AK$15 -> 0.3477220535 | CN77: =+Z77*KeyAssumptionsPriceControl_FO!AL$15 -> 0.2687832759 | CP77: 0.0103 | CQ77: 0.0365135 | CR77: 0.057890635 | CS77: 0.07742313013 | CT77: 0.1001865458 | CU77: 0.1403729317 | CV77: 0.1805487394 | CW77: 0.2091044834 | CX77: 0.2496795952 | CY77: 0.2885667125
C78: Asset Management Information System replacement | E78: Sewerage | F78: Renewals | G78: Corporate | H78: Other Capital expenditure | J78: Straight line | K78: 2028-29 | L78: 10 | M78: 10 | Q78: 0 | R78: 0 | S78: 0 | T78: 0 | U78: 0 | V78: 0.375 | W78: 0.375 | X78: 0 | Y78: 0 | Z78: 0 | AX78: 0 | AY78: 0 | AZ78: 0 | BA78: 0 | BB78: 0 | BC78: 0.375 | BD78: 0.375 | BE78: 0 | BF78: 0 | BG78: 0 | BI78: 0 | BJ78: 0 | BK78: 0 | BL78: 0 | BM78: 0 | BN78: 0.01875 | BO78: 0.05625 | BP78: 0.075 | BQ78: 0.075 | BR78: 0.075 | BT78: =+IF($K78="Ongoing",AX78,IF(RIGHT($K78,2)=RIGHT(BT$39,2),SUM($AX78:AX78),0)+IF(RIGHT(BT$39,2)>RIGHT($K78,2),AX78,0)) -> 0 | BU78: =+IF($K78="Ongoing",AY78,IF(RIGHT($K78,2)=RIGHT(BU$39,2),SUM($AX78:AY78),0)+IF(RIGHT(BU$39,2)>RIGHT($K78,2),AY78,0)) -> 0 | BV78: =+IF($K78="Ongoing",AZ78,IF(RIGHT($K78,2)=RIGHT(BV$39,2),SUM($AX78:AZ78),0)+IF(RIGHT(BV$39,2)>RIGHT($K78,2),AZ78,0)) -> 0 | BW78: =+IF($K78="Ongoing",BA78,IF(RIGHT($K78,2)=RIGHT(BW$39,2),SUM($AX78:BA78),0)+IF(RIGHT(BW$39,2)>RIGHT($K78,2),BA78,0)) -> 0 | BX78: =+IF($K78="Ongoing",BB78,IF(RIGHT($K78,2)=RIGHT(BX$39,2),SUM($AX78:BB78),0)+IF(RIGHT(BX$39,2)>RIGHT($K78,2),BB78,0)) -> 0 | BY78: =+IF($K78="Ongoing",BC78,IF(RIGHT($K78,2)=RIGHT(BY$39,2),SUM($AX78:BC78),0)+IF(RIGHT(BY$39,2)>RIGHT($K78,2),BC78,0)) -> 0.375 | BZ78: =+IF($K78="Ongoing",BD78,IF(RIGHT($K78,2)=RIGHT(BZ$39,2),SUM($AX78:BD78),0)+IF(RIGHT(BZ$39,2)>RIGHT($K78,2),BD78,0)) -> 0.375 | CA78: =+IF($K78="Ongoing",BE78,IF(RIGHT($K78,2)=RIGHT(CA$39,2),SUM($AX78:BE78),0)+IF(RIGHT(CA$39,2)>RIGHT($K78,2),BE78,0)) -> 0 | CB78: =+IF($K78="Ongoing",BF78,IF(RIGHT($K78,2)=RIGHT(CB$39,2),SUM($AX78:BF78),0)+IF(RIGHT(CB$39,2)>RIGHT($K78,2),BF78,0)) -> 0 | CC78: =+IF($K78="Ongoing",BG78,IF(RIGHT($K78,2)=RIGHT(CC$39,2),SUM($AX78:BG78),0)+IF(RIGHT(CC$39,2)>RIGHT($K78,2),BG78,0)) -> 0 | CE78: =+Q78*KeyAssumptionsPriceControl_FO!AC$15 -> 0 | CF78: =+R78*KeyAssumptionsPriceControl_FO!AD$15 -> 0 | CG78: =+S78*KeyAssumptionsPriceControl_FO!AE$15 -> 0 | CH78: =+T78*KeyAssumptionsPriceControl_FO!AF$15 -> 0 | CI78: =+U78*KeyAssumptionsPriceControl_FO!AG$15 -> 0 | CJ78: =+V78*KeyAssumptionsPriceControl_FO!AH$15 -> 0.4477696112 | CK78: =+W78*KeyAssumptionsPriceControl_FO!AI$15 -> 0.4612026995 | CL78: =+X78*KeyAssumptionsPriceControl_FO!AJ$15 -> 0 | CM78: =+Y78*KeyAssumptionsPriceControl_FO!AK$15 -> 0 | CN78: =+Z78*KeyAssumptionsPriceControl_FO!AL$15 -> 0 | CP78: 0 | CQ78: 0 | CR78: 0 | CS78: 0 | CT78: 0 | CU78: 0.02238848056 | CV78: 0.0678370961 | CW78: 0.09089723107 | CX78: 0.09089723107 | CY78: 0.09089723107
C79: Data Strategy - Framework, Architecture & Standards and Platforms | E79: Sewerage | F79: Renewals | G79: Corporate | H79: Capital Programs / Allocation | J79: Straight line | K79: Ongoing | L79: 10 | M79: 10 | Q79: 0.075 | R79: 0.0875 | S79: 0.2 | T79: 0 | U79: 0 | V79: 0 | W79: 0 | X79: 0 | Y79: 0 | Z79: 0 | AX79: 0.075 | AY79: 0.0875 | AZ79: 0.2 | BA79: 0 | BB79: 0 | BC79: 0 | BD79: 0 | BE79: 0 | BF79: 0 | BG79: 0 | BI79: 0.00375 | BJ79: 0.011875 | BK79: 0.02625 | BL79: 0.03625 | BM79: 0.03625 | BN79: 0.03625 | BO79: 0.03625 | BP79: 0.03625 | BQ79: 0.03625 | BR79: 0.03625 | BT79: =+IF($K79="Ongoing",AX79,IF(RIGHT($K79,2)=RIGHT(BT$39,2),SUM($AX79:AX79),0)+IF(RIGHT(BT$39,2)>RIGHT($K79,2),AX79,0)) -> 0.075 | BU79: =+IF($K79="Ongoing",AY79,IF(RIGHT($K79,2)=RIGHT(BU$39,2),SUM($AX79:AY79),0)+IF(RIGHT(BU$39,2)>RIGHT($K79,2),AY79,0)) -> 0.0875 | BV79: =+IF($K79="Ongoing",AZ79,IF(RIGHT($K79,2)=RIGHT(BV$39,2),SUM($AX79:AZ79),0)+IF(RIGHT(BV$39,2)>RIGHT($K79,2),AZ79,0)) -> 0.2 | BW79: =+IF($K79="Ongoing",BA79,IF(RIGHT($K79,2)=RIGHT(BW$39,2),SUM($AX79:BA79),0)+IF(RIGHT(BW$39,2)>RIGHT($K79,2),BA79,0)) -> 0 | BX79: =+IF($K79="Ongoing",BB79,IF(RIGHT($K79,2)=RIGHT(BX$39,2),SUM($AX79:BB79),0)+IF(RIGHT(BX$39,2)>RIGHT($K79,2),BB79,0)) -> 0 | BY79: =+IF($K79="Ongoing",BC79,IF(RIGHT($K79,2)=RIGHT(BY$39,2),SUM($AX79:BC79),0)+IF(RIGHT(BY$39,2)>RIGHT($K79,2),BC79,0)) -> 0 | BZ79: =+IF($K79="Ongoing",BD79,IF(RIGHT($K79,2)=RIGHT(BZ$39,2),SUM($AX79:BD79),0)+IF(RIGHT(BZ$39,2)>RIGHT($K79,2),BD79,0)) -> 0 | CA79: =+IF($K79="Ongoing",BE79,IF(RIGHT($K79,2)=RIGHT(CA$39,2),SUM($AX79:BE79),0)+IF(RIGHT(CA$39,2)>RIGHT($K79,2),BE79,0)) -> 0 | CB79: =+IF($K79="Ongoing",BF79,IF(RIGHT($K79,2)=RIGHT(CB$39,2),SUM($AX79:BF79),0)+IF(RIGHT(CB$39,2)>RIGHT($K79,2),BF79,0)) -> 0 | CC79: =+IF($K79="Ongoing",BG79,IF(RIGHT($K79,2)=RIGHT(CC$39,2),SUM($AX79:BG79),0)+IF(RIGHT(CC$39,2)>RIGHT($K79,2),BG79,0)) -> 0 | CE79: =+Q79*KeyAssumptionsPriceControl_FO!AC$15 -> 0.07725 | CF79: =+R79*KeyAssumptionsPriceControl_FO!AD$15 -> 0.09282875 | CG79: =+S79*KeyAssumptionsPriceControl_FO!AE$15 -> 0.2185454 | CH79: =+T79*KeyAssumptionsPriceControl_FO!AF$15 -> 0 | CI79: =+U79*KeyAssumptionsPriceControl_FO!AG$15 -> 0 | CJ79: =+V79*KeyAssumptionsPriceControl_FO!AH$15 -> 0 | CK79: =+W79*KeyAssumptionsPriceControl_FO!AI$15 -> 0 | CL79: =+X79*KeyAssumptionsPriceControl_FO!AJ$15 -> 0 | CM79: =+Y79*KeyAssumptionsPriceControl_FO!AK$15 -> 0 | CN79: =+Z79*KeyAssumptionsPriceControl_FO!AL$15 -> 0 | CP79: 0.0038625 | CQ79: 0.0123664375 | CR79: 0.027935145 | CS79: 0.038862415 | CT79: 0.038862415 | CU79: 0.038862415 | CV79: 0.038862415 | CW79: 0.038862415 | CX79: 0.038862415 | CY79: 0.038862415
C80: Energy efficiency upgrades | E80: Sewerage | F80: Improvements / Compliance | G80: Corporate | H80: Capital Programs / Allocation | J80: Straight line | K80: Ongoing | L80: 10 | M80: 10 | Q80: 0.08 | R80: 0.08 | S80: 0.08 | T80: 0.08 | U80: 0.08 | V80: 0.15 | W80: 0.15 | X80: 0.15 | Y80: 0.15 | Z80: 0.15 | AX80: 0.08 | AY80: 0.08 | AZ80: 0.08 | BA80: 0.08 | BB80: 0.08 | BC80: 0.15 | BD80: 0.15 | BE80: 0.15 | BF80: 0.15 | BG80: 0.15 | BI80: 0.004 | BJ80: 0.012 | BK80: 0.02 | BL80: 0.028 | BM80: 0.036 | BN80: 0.0475 | BO80: 0.0625 | BP80: 0.0775 | BQ80: 0.0925 | BR80: 0.1075 | BT80: =+IF($K80="Ongoing",AX80,IF(RIGHT($K80,2)=RIGHT(BT$39,2),SUM($AX80:AX80),0)+IF(RIGHT(BT$39,2)>RIGHT($K80,2),AX80,0)) -> 0.08 | BU80: =+IF($K80="Ongoing",AY80,IF(RIGHT($K80,2)=RIGHT(BU$39,2),SUM($AX80:AY80),0)+IF(RIGHT(BU$39,2)>RIGHT($K80,2),AY80,0)) -> 0.08 | BV80: =+IF($K80="Ongoing",AZ80,IF(RIGHT($K80,2)=RIGHT(BV$39,2),SUM($AX80:AZ80),0)+IF(RIGHT(BV$39,2)>RIGHT($K80,2),AZ80,0)) -> 0.08 | BW80: =+IF($K80="Ongoing",BA80,IF(RIGHT($K80,2)=RIGHT(BW$39,2),SUM($AX80:BA80),0)+IF(RIGHT(BW$39,2)>RIGHT($K80,2),BA80,0)) -> 0.08 | BX80: =+IF($K80="Ongoing",BB80,IF(RIGHT($K80,2)=RIGHT(BX$39,2),SUM($AX80:BB80),0)+IF(RIGHT(BX$39,2)>RIGHT($K80,2),BB80,0)) -> 0.08 | BY80: =+IF($K80="Ongoing",BC80,IF(RIGHT($K80,2)=RIGHT(BY$39,2),SUM($AX80:BC80),0)+IF(RIGHT(BY$39,2)>RIGHT($K80,2),BC80,0)) -> 0.15 | BZ80: =+IF($K80="Ongoing",BD80,IF(RIGHT($K80,2)=RIGHT(BZ$39,2),SUM($AX80:BD80),0)+IF(RIGHT(BZ$39,2)>RIGHT($K80,2),BD80,0)) -> 0.15 | CA80: =+IF($K80="Ongoing",BE80,IF(RIGHT($K80,2)=RIGHT(CA$39,2),SUM($AX80:BE80),0)+IF(RIGHT(CA$39,2)>RIGHT($K80,2),BE80,0)) -> 0.15 | CB80: =+IF($K80="Ongoing",BF80,IF(RIGHT($K80,2)=RIGHT(CB$39,2),SUM($AX80:BF80),0)+IF(RIGHT(CB$39,2)>RIGHT($K80,2),BF80,0)) -> 0.15 | CC80: =+IF($K80="Ongoing",BG80,IF(RIGHT($K80,2)=RIGHT(CC$39,2),SUM($AX80:BG80),0)+IF(RIGHT(CC$39,2)>RIGHT($K80,2),BG80,0)) -> 0.15 | CE80: =+Q80*KeyAssumptionsPriceControl_FO!AC$15 -> 0.0824 | CF80: =+R80*KeyAssumptionsPriceControl_FO!AD$15 -> 0.084872 | CG80: =+S80*KeyAssumptionsPriceControl_FO!AE$15 -> 0.08741816 | CH80: =+T80*KeyAssumptionsPriceControl_FO!AF$15 -> 0.0900407048 | CI80: =+U80*KeyAssumptionsPriceControl_FO!AG$15 -> 0.09274192594 | CJ80: =+V80*KeyAssumptionsPriceControl_FO!AH$15 -> 0.1791078445 | CK80: =+W80*KeyAssumptionsPriceControl_FO!AI$15 -> 0.1844810798 | CL80: =+X80*KeyAssumptionsPriceControl_FO!AJ$15 -> 0.1900155122 | CM80: =+Y80*KeyAssumptionsPriceControl_FO!AK$15 -> 0.1957159776 | CN80: =+Z80*KeyAssumptionsPriceControl_FO!AL$15 -> 0.2015874569 | CP80: 0.00412 | CQ80: 0.0124836 | CR80: 0.021098108 | CS80: 0.02997105124 | CT80: 0.03911018278 | CU80: 0.0527026713 | CV80: 0.07088211751 | CW80: 0.08960694711 | CX80: 0.1088935216 | CY80: 0.1287586933
C81: Plant & Equipment - NEW | E81: Sewerage | F81: Improvements / Compliance | G81: Corporate | H81: Capital Programs / Allocation | J81: Straight line | K81: Ongoing | L81: 80 | M81: 80 | Q81: 0.1835 | R81: 0.0775 | S81: 0.2335 | T81: 0.02 | U81: 0 | V81: 0 | W81: 0 | X81: 0 | Y81: 0 | Z81: 0 | AX81: 0.1835 | AY81: 0.0775 | AZ81: 0.2335 | BA81: 0.02 | BB81: 0 | BC81: 0 | BD81: 0 | BE81: 0 | BF81: 0 | BG81: 0 | BI81: 0.001146875 | BJ81: 0.002778125 | BK81: 0.004721875 | BL81: 0.00630625 | BM81: 0.00643125 | BN81: 0.00643125 | BO81: 0.00643125 | BP81: 0.00643125 | BQ81: 0.00643125 | BR81: 0.00643125 | BT81: =+IF($K81="Ongoing",AX81,IF(RIGHT($K81,2)=RIGHT(BT$39,2),SUM($AX81:AX81),0)+IF(RIGHT(BT$39,2)>RIGHT($K81,2),AX81,0)) -> 0.1835 | BU81: =+IF($K81="Ongoing",AY81,IF(RIGHT($K81,2)=RIGHT(BU$39,2),SUM($AX81:AY81),0)+IF(RIGHT(BU$39,2)>RIGHT($K81,2),AY81,0)) -> 0.0775 | BV81: =+IF($K81="Ongoing",AZ81,IF(RIGHT($K81,2)=RIGHT(BV$39,2),SUM($AX81:AZ81),0)+IF(RIGHT(BV$39,2)>RIGHT($K81,2),AZ81,0)) -> 0.2335 | BW81: =+IF($K81="Ongoing",BA81,IF(RIGHT($K81,2)=RIGHT(BW$39,2),SUM($AX81:BA81),0)+IF(RIGHT(BW$39,2)>RIGHT($K81,2),BA81,0)) -> 0.02 | BX81: =+IF($K81="Ongoing",BB81,IF(RIGHT($K81,2)=RIGHT(BX$39,2),SUM($AX81:BB81),0)+IF(RIGHT(BX$39,2)>RIGHT($K81,2),BB81,0)) -> 0 | BY81: =+IF($K81="Ongoing",BC81,IF(RIGHT($K81,2)=RIGHT(BY$39,2),SUM($AX81:BC81),0)+IF(RIGHT(BY$39,2)>RIGHT($K81,2),BC81,0)) -> 0 | BZ81: =+IF($K81="Ongoing",BD81,IF(RIGHT($K81,2)=RIGHT(BZ$39,2),SUM($AX81:BD81),0)+IF(RIGHT(BZ$39,2)>RIGHT($K81,2),BD81,0)) -> 0 | CA81: =+IF($K81="Ongoing",BE81,IF(RIGHT($K81,2)=RIGHT(CA$39,2),SUM($AX81:BE81),0)+IF(RIGHT(CA$39,2)>RIGHT($K81,2),BE81,0)) -> 0 | CB81: =+IF($K81="Ongoing",BF81,IF(RIGHT($K81,2)=RIGHT(CB$39,2),SUM($AX81:BF81),0)+IF(RIGHT(CB$39,2)>RIGHT($K81,2),BF81,0)) -> 0 | CC81: =+IF($K81="Ongoing",BG81,IF(RIGHT($K81,2)=RIGHT(CC$39,2),SUM($AX81:BG81),0)+IF(RIGHT(CC$39,2)>RIGHT($K81,2),BG81,0)) -> 0 | CE81: =+Q81*KeyAssumptionsPriceControl_FO!AC$15 -> 0.189005 | CF81: =+R81*KeyAssumptionsPriceControl_FO!AD$15 -> 0.08221975 | CG81: =+S81*KeyAssumptionsPriceControl_FO!AE$15 -> 0.2551517545 | CH81: =+T81*KeyAssumptionsPriceControl_FO!AF$15 -> 0.0225101762 | CI81: =+U81*KeyAssumptionsPriceControl_FO!AG$15 -> 0 | CJ81: =+V81*KeyAssumptionsPriceControl_FO!AH$15 -> 0 | CK81: =+W81*KeyAssumptionsPriceControl_FO!AI$15 -> 0 | CL81: =+X81*KeyAssumptionsPriceControl_FO!AJ$15 -> 0 | CM81: =+Y81*KeyAssumptionsPriceControl_FO!AK$15 -> 0 | CN81: =+Z81*KeyAssumptionsPriceControl_FO!AL$15 -> 0 | CP81: 0.00118128125 | CQ81: 0.002876435938 | CR81: 0.004985007841 | CS81: 0.006720394907 | CT81: 0.006861083509 | CU81: 0.006861083509 | CV81: 0.006861083509 | CW81: 0.006861083509 | CX81: 0.006861083509 | CY81: 0.006861083509
C82: Motor Vehicles | E82: Sewerage | F82: Renewals | G82: Corporate | H82: Capital Programs / Allocation | J82: Straight line | K82: Ongoing | L82: 6 | M82: 6 | Q82: 0.329 | R82: 0.18 | S82: 0.1125 | T82: 0.3945 | U82: 0.2865 | V82: 0.2515 | W82: 0.134 | X82: 0.2225 | Y82: 0.264 | Z82: 0.2165 | AX82: 0.329 | AY82: 0.18 | AZ82: 0.1125 | BA82: 0.3945 | BB82: 0.2865 | BC82: 0.2515 | BD82: 0.134 | BE82: 0.2225 | BF82: 0.264 | BG82: 0.2165 | BI82: 0.02741666667 | BJ82: 0.06983333333 | BK82: 0.09420833333 | BL82: 0.1364583333 | BM82: 0.1932083333 | BN82: 0.2380416667 | BO82: 0.24275 | BP82: 0.2300416667 | BQ82: 0.2462083333 | BR82: 0.244 | BT82: =+IF($K82="Ongoing",AX82,IF(RIGHT($K82,2)=RIGHT(BT$39,2),SUM($AX82:AX82),0)+IF(RIGHT(BT$39,2)>RIGHT($K82,2),AX82,0)) -> 0.329 | BU82: =+IF($K82="Ongoing",AY82,IF(RIGHT($K82,2)=RIGHT(BU$39,2),SUM($AX82:AY82),0)+IF(RIGHT(BU$39,2)>RIGHT($K82,2),AY82,0)) -> 0.18 | BV82: =+IF($K82="Ongoing",AZ82,IF(RIGHT($K82,2)=RIGHT(BV$39,2),SUM($AX82:AZ82),0)+IF(RIGHT(BV$39,2)>RIGHT($K82,2),AZ82,0)) -> 0.1125 | BW82: =+IF($K82="Ongoing",BA82,IF(RIGHT($K82,2)=RIGHT(BW$39,2),SUM($AX82:BA82),0)+IF(RIGHT(BW$39,2)>RIGHT($K82,2),BA82,0)) -> 0.3945 | BX82: =+IF($K82="Ongoing",BB82,IF(RIGHT($K82,2)=RIGHT(BX$39,2),SUM($AX82:BB82),0)+IF(RIGHT(BX$39,2)>RIGHT($K82,2),BB82,0)) -> 0.2865 | BY82: =+IF($K82="Ongoing",BC82,IF(RIGHT($K82,2)=RIGHT(BY$39,2),SUM($AX82:BC82),0)+IF(RIGHT(BY$39,2)>RIGHT($K82,2),BC82,0)) -> 0.2515 | BZ82: =+IF($K82="Ongoing",BD82,IF(RIGHT($K82,2)=RIGHT(BZ$39,2),SUM($AX82:BD82),0)+IF(RIGHT(BZ$39,2)>RIGHT($K82,2),BD82,0)) -> 0.134 | CA82: =+IF($K82="Ongoing",BE82,IF(RIGHT($K82,2)=RIGHT(CA$39,2),SUM($AX82:BE82),0)+IF(RIGHT(CA$39,2)>RIGHT($K82,2),BE82,0)) -> 0.2225 | CB82: =+IF($K82="Ongoing",BF82,IF(RIGHT($K82,2)=RIGHT(CB$39,2),SUM($AX82:BF82),0)+IF(RIGHT(CB$39,2)>RIGHT($K82,2),BF82,0)) -> 0.264 | CC82: =+IF($K82="Ongoing",BG82,IF(RIGHT($K82,2)=RIGHT(CC$39,2),SUM($AX82:BG82),0)+IF(RIGHT(CC$39,2)>RIGHT($K82,2),BG82,0)) -> 0.2165 | CE82: =+Q82*KeyAssumptionsPriceControl_FO!AC$15 -> 0.33887 | CF82: =+R82*KeyAssumptionsPriceControl_FO!AD$15 -> 0.190962 | CG82: =+S82*KeyAssumptionsPriceControl_FO!AE$15 -> 0.1229317875 | CH82: =+T82*KeyAssumptionsPriceControl_FO!AF$15 -> 0.4440132255 | CI82: =+U82*KeyAssumptionsPriceControl_FO!AG$15 -> 0.3321320223 | CJ82: =+V82*KeyAssumptionsPriceControl_FO!AH$15 -> 0.3003041526 | CK82: =+W82*KeyAssumptionsPriceControl_FO!AI$15 -> 0.164803098 | CL82: =+X82*KeyAssumptionsPriceControl_FO!AJ$15 -> 0.2818563431 | CM82: =+Y82*KeyAssumptionsPriceControl_FO!AK$15 -> 0.3444601205 | CN82: =+Z82*KeyAssumptionsPriceControl_FO!AL$15 -> 0.2909578961 | CP82: 0.02823916667 | CQ82: 0.07239183333 | CR82: 0.09854964896 | CS82: 0.1457950667 | CT82: 0.2104738374 | CU82: 0.2631768519 | CV82: 0.2736966228 | CW82: 0.2667655762 | CX82: 0.2928007993 | CY82: 0.2985068829
C83: Office Equipment | E83: Sewerage | F83: Renewals | G83: Corporate | H83: Capital Programs / Allocation | J83: Straight line | K83: Ongoing | L83: 10 | M83: 10 | Q83: 0.008 | R83: 0.008 | S83: 0.008 | T83: 0.008 | U83: 0.008 | V83: 0.0125 | W83: 0.008 | X83: 0.008 | Y83: 0.008 | Z83: 0.008 | AX83: 0.008 | AY83: 0.008 | AZ83: 0.008 | BA83: 0.008 | BB83: 0.008 | BC83: 0.0125 | BD83: 0.008 | BE83: 0.008 | BF83: 0.008 | BG83: 0.008 | BI83: 0.0004 | BJ83: 0.0012 | BK83: 0.002 | BL83: 0.0028 | BM83: 0.0036 | BN83: 0.004625 | BO83: 0.00565 | BP83: 0.00645 | BQ83: 0.00725 | BR83: 0.00805 | BT83: =+IF($K83="Ongoing",AX83,IF(RIGHT($K83,2)=RIGHT(BT$39,2),SUM($AX83:AX83),0)+IF(RIGHT(BT$39,2)>RIGHT($K83,2),AX83,0)) -> 0.008 | BU83: =+IF($K83="Ongoing",AY83,IF(RIGHT($K83,2)=RIGHT(BU$39,2),SUM($AX83:AY83),0)+IF(RIGHT(BU$39,2)>RIGHT($K83,2),AY83,0)) -> 0.008 | BV83: =+IF($K83="Ongoing",AZ83,IF(RIGHT($K83,2)=RIGHT(BV$39,2),SUM($AX83:AZ83),0)+IF(RIGHT(BV$39,2)>RIGHT($K83,2),AZ83,0)) -> 0.008 | BW83: =+IF($K83="Ongoing",BA83,IF(RIGHT($K83,2)=RIGHT(BW$39,2),SUM($AX83:BA83),0)+IF(RIGHT(BW$39,2)>RIGHT($K83,2),BA83,0)) -> 0.008 | BX83: =+IF($K83="Ongoing",BB83,IF(RIGHT($K83,2)=RIGHT(BX$39,2),SUM($AX83:BB83),0)+IF(RIGHT(BX$39,2)>RIGHT($K83,2),BB83,0)) -> 0.008 | BY83: =+IF($K83="Ongoing",BC83,IF(RIGHT($K83,2)=RIGHT(BY$39,2),SUM($AX83:BC83),0)+IF(RIGHT(BY$39,2)>RIGHT($K83,2),BC83,0)) -> 0.0125 | BZ83: =+IF($K83="Ongoing",BD83,IF(RIGHT($K83,2)=RIGHT(BZ$39,2),SUM($AX83:BD83),0)+IF(RIGHT(BZ$39,2)>RIGHT($K83,2),BD83,0)) -> 0.008 | CA83: =+IF($K83="Ongoing",BE83,IF(RIGHT($K83,2)=RIGHT(CA$39,2),SUM($AX83:BE83),0)+IF(RIGHT(CA$39,2)>RIGHT($K83,2),BE83,0)) -> 0.008 | CB83: =+IF($K83="Ongoing",BF83,IF(RIGHT($K83,2)=RIGHT(CB$39,2),SUM($AX83:BF83),0)+IF(RIGHT(CB$39,2)>RIGHT($K83,2),BF83,0)) -> 0.008 | CC83: =+IF($K83="Ongoing",BG83,IF(RIGHT($K83,2)=RIGHT(CC$39,2),SUM($AX83:BG83),0)+IF(RIGHT(CC$39,2)>RIGHT($K83,2),BG83,0)) -> 0.008 | CE83: =+Q83*KeyAssumptionsPriceControl_FO!AC$15 -> 0.00824 | CF83: =+R83*KeyAssumptionsPriceControl_FO!AD$15 -> 0.0084872 | CG83: =+S83*KeyAssumptionsPriceControl_FO!AE$15 -> 0.008741816 | CH83: =+T83*KeyAssumptionsPriceControl_FO!AF$15 -> 0.00900407048 | CI83: =+U83*KeyAssumptionsPriceControl_FO!AG$15 -> 0.009274192594 | CJ83: =+V83*KeyAssumptionsPriceControl_FO!AH$15 -> 0.01492565371 | CK83: =+W83*KeyAssumptionsPriceControl_FO!AI$15 -> 0.009838990923 | CL83: =+X83*KeyAssumptionsPriceControl_FO!AJ$15 -> 0.01013416065 | CM83: =+Y83*KeyAssumptionsPriceControl_FO!AK$15 -> 0.01043818547 | CN83: =+Z83*KeyAssumptionsPriceControl_FO!AL$15 -> 0.01075133103 | CP83: 0.000412 | CQ83: 0.00124836 | CR83: 0.0021098108 | CS83: 0.002997105124 | CT83: 0.003911018278 | CU83: 0.005121010593 | CV83: 0.006359242824 | CW83: 0.007357900403 | CX83: 0.008386517709 | CY83: 0.009445993534
C84: Plant & Equipment - Renewals | E84: Sewerage | F84: Renewals | G84: Corporate | H84: Capital Programs / Allocation | J84: Straight line | K84: Ongoing | L84: 10 | M84: 10 | Q84: 0.1455 | R84: 0.272 | S84: 0.141 | T84: 0.1535 | U84: 0.084 | V84: 0.08 | W84: 0.08 | X84: 0.08 | Y84: 0.08 | Z84: 0.08 | AX84: 0.1455 | AY84: 0.272 | AZ84: 0.141 | BA84: 0.1535 | BB84: 0.084 | BC84: 0.08 | BD84: 0.08 | BE84: 0.08 | BF84: 0.08 | BG84: 0.08 | BI84: 0.007275 | BJ84: 0.02815 | BK84: 0.0488 | BL84: 0.063525 | BM84: 0.0754 | BN84: 0.0836 | BO84: 0.0916 | BP84: 0.0996 | BQ84: 0.1076 | BR84: 0.1156 | BT84: =+IF($K84="Ongoing",AX84,IF(RIGHT($K84,2)=RIGHT(BT$39,2),SUM($AX84:AX84),0)+IF(RIGHT(BT$39,2)>RIGHT($K84,2),AX84,0)) -> 0.1455 | BU84: =+IF($K84="Ongoing",AY84,IF(RIGHT($K84,2)=RIGHT(BU$39,2),SUM($AX84:AY84),0)+IF(RIGHT(BU$39,2)>RIGHT($K84,2),AY84,0)) -> 0.272 | BV84: =+IF($K84="Ongoing",AZ84,IF(RIGHT($K84,2)=RIGHT(BV$39,2),SUM($AX84:AZ84),0)+IF(RIGHT(BV$39,2)>RIGHT($K84,2),AZ84,0)) -> 0.141 | BW84: =+IF($K84="Ongoing",BA84,IF(RIGHT($K84,2)=RIGHT(BW$39,2),SUM($AX84:BA84),0)+IF(RIGHT(BW$39,2)>RIGHT($K84,2),BA84,0)) -> 0.1535 | BX84: =+IF($K84="Ongoing",BB84,IF(RIGHT($K84,2)=RIGHT(BX$39,2),SUM($AX84:BB84),0)+IF(RIGHT(BX$39,2)>RIGHT($K84,2),BB84,0)) -> 0.084 | BY84: =+IF($K84="Ongoing",BC84,IF(RIGHT($K84,2)=RIGHT(BY$39,2),SUM($AX84:BC84),0)+IF(RIGHT(BY$39,2)>RIGHT($K84,2),BC84,0)) -> 0.08 | BZ84: =+IF($K84="Ongoing",BD84,IF(RIGHT($K84,2)=RIGHT(BZ$39,2),SUM($AX84:BD84),0)+IF(RIGHT(BZ$39,2)>RIGHT($K84,2),BD84,0)) -> 0.08 | CA84: =+IF($K84="Ongoing",BE84,IF(RIGHT($K84,2)=RIGHT(CA$39,2),SUM($AX84:BE84),0)+IF(RIGHT(CA$39,2)>RIGHT($K84,2),BE84,0)) -> 0.08 | CB84: =+IF($K84="Ongoing",BF84,IF(RIGHT($K84,2)=RIGHT(CB$39,2),SUM($AX84:BF84),0)+IF(RIGHT(CB$39,2)>RIGHT($K84,2),BF84,0)) -> 0.08 | CC84: =+IF($K84="Ongoing",BG84,IF(RIGHT($K84,2)=RIGHT(CC$39,2),SUM($AX84:BG84),0)+IF(RIGHT(CC$39,2)>RIGHT($K84,2),BG84,0)) -> 0.08 | CE84: =+Q84*KeyAssumptionsPriceControl_FO!AC$15 -> 0.149865 | CF84: =+R84*KeyAssumptionsPriceControl_FO!AD$15 -> 0.2885648 | CG84: =+S84*KeyAssumptionsPriceControl_FO!AE$15 -> 0.154074507 | CH84: =+T84*KeyAssumptionsPriceControl_FO!AF$15 -> 0.1727656023 | CI84: =+U84*KeyAssumptionsPriceControl_FO!AG$15 -> 0.09737902224 | CJ84: =+V84*KeyAssumptionsPriceControl_FO!AH$15 -> 0.09552418372 | CK84: =+W84*KeyAssumptionsPriceControl_FO!AI$15 -> 0.09838990923 | CL84: =+X84*KeyAssumptionsPriceControl_FO!AJ$15 -> 0.1013416065 | CM84: =+Y84*KeyAssumptionsPriceControl_FO!AK$15 -> 0.1043818547 | CN84: =+Z84*KeyAssumptionsPriceControl_FO!AL$15 -> 0.1075133103 | CP84: 0.00749325 | CQ84: 0.02941474 | CR84: 0.05154670535 | CS84: 0.06788871082 | CT84: 0.08139594205 | CU84: 0.09104110234 | CV84: 0.100736807 | CW84: 0.1107233828 | CX84: 0.1210095558 | CY84: 0.1316043141
C85: SCADA upgrades | E85: Sewerage | F85: Improvements / Compliance | G85: Corporate | H85: Capital Programs / Allocation | J85: Straight line | K85: Ongoing | L85: 10 | M85: 10 | Q85: 0.14 | R85: 0.145 | S85: 0.145 | T85: 0.1475 | U85: 0.135 | V85: 0.115 | W85: 0.1085 | X85: 0.1105 | Y85: 0.1125 | Z85: 0.105 | AX85: =+Q85-AB85-AM85 -> 0.14 | AY85: =+R85-AC85-AN85 -> 0.145 | AZ85: =+S85-AD85-AO85 -> 0.145 | BA85: =+T85-AE85-AP85 -> 0.1475 | BB85: =+U85-AF85-AQ85 -> 0.135 | BC85: =+V85-AG85-AR85 -> 0.115 | BD85: =+W85-AH85-AS85 -> 0.1085 | BE85: =+X85-AI85-AT85 -> 0.1105 | BF85: 0.1125 | BG85: 0.105 | BI85: 0.007 | BJ85: 0.02125 | BK85: 0.03575 | BL85: 0.050375 | BM85: 0.0645 | BN85: 0.077 | BO85: 0.088175 | BP85: 0.099125 | BQ85: 0.110275 | BR85: 0.12115 | BT85: =+IF($K85="Ongoing",AX85,IF(RIGHT($K85,2)=RIGHT(BT$39,2),SUM($AX85:AX85),0)+IF(RIGHT(BT$39,2)>RIGHT($K85,2),AX85,0)) -> 0.14 | BU85: =+IF($K85="Ongoing",AY85,IF(RIGHT($K85,2)=RIGHT(BU$39,2),SUM($AX85:AY85),0)+IF(RIGHT(BU$39,2)>RIGHT($K85,2),AY85,0)) -> 0.145 | BV85: =+IF($K85="Ongoing",AZ85,IF(RIGHT($K85,2)=RIGHT(BV$39,2),SUM($AX85:AZ85),0)+IF(RIGHT(BV$39,2)>RIGHT($K85,2),AZ85,0)) -> 0.145 | BW85: =+IF($K85="Ongoing",BA85,IF(RIGHT($K85,2)=RIGHT(BW$39,2),SUM($AX85:BA85),0)+IF(RIGHT(BW$39,2)>RIGHT($K85,2),BA85,0)) -> 0.1475 | BX85: =+IF($K85="Ongoing",BB85,IF(RIGHT($K85,2)=RIGHT(BX$39,2),SUM($AX85:BB85),0)+IF(RIGHT(BX$39,2)>RIGHT($K85,2),BB85,0)) -> 0.135 | BY85: =+IF($K85="Ongoing",BC85,IF(RIGHT($K85,2)=RIGHT(BY$39,2),SUM($AX85:BC85),0)+IF(RIGHT(BY$39,2)>RIGHT($K85,2),BC85,0)) -> 0.115 | BZ85: =+IF($K85="Ongoing",BD85,IF(RIGHT($K85,2)=RIGHT(BZ$39,2),SUM($AX85:BD85),0)+IF(RIGHT(BZ$39,2)>RIGHT($K85,2),BD85,0)) -> 0.1085 | CA85: =+IF($K85="Ongoing",BE85,IF(RIGHT($K85,2)=RIGHT(CA$39,2),SUM($AX85:BE85),0)+IF(RIGHT(CA$39,2)>RIGHT($K85,2),BE85,0)) -> 0.1105 | CB85: =+IF($K85="Ongoing",BF85,IF(RIGHT($K85,2)=RIGHT(CB$39,2),SUM($AX85:BF85),0)+IF(RIGHT(CB$39,2)>RIGHT($K85,2),BF85,0)) -> 0.1125 | CC85: =+IF($K85="Ongoing",BG85,IF(RIGHT($K85,2)=RIGHT(CC$39,2),SUM($AX85:BG85),0)+IF(RIGHT(CC$39,2)>RIGHT($K85,2),BG85,0)) -> 0.105 | CE85: =+Q85*KeyAssumptionsPriceControl_FO!AC$15 -> 0.1442 | CF85: =+R85*KeyAssumptionsPriceControl_FO!AD$15 -> 0.1538305 | CG85: =+S85*KeyAssumptionsPriceControl_FO!AE$15 -> 0.158445415 | CH85: =+T85*KeyAssumptionsPriceControl_FO!AF$15 -> 0.1660125495 | CI85: =+U85*KeyAssumptionsPriceControl_FO!AG$15 -> 0.156502 | CJ85: =+V85*KeyAssumptionsPriceControl_FO!AH$15 -> 0.1373160141 | CK85: =+W85*KeyAssumptionsPriceControl_FO!AI$15 -> 0.1334413144 | CL85: =+X85*KeyAssumptionsPriceControl_FO!AJ$15 -> 0.139978094 | CM85: =+Y85*KeyAssumptionsPriceControl_FO!AK$15 -> 0.1467869832 | CN85: =+Z85*KeyAssumptionsPriceControl_FO!AL$15 -> 0.1411112198 | CP85: =IF($M85=0,0, IF($M85<=0.5,CE85, IF($J85="straight line", IF((LEFT(CP$39,4)*1)-INT($M85)<LEFT($CP$39,4)*1,0,((OFFSET(CE85,0,-INT($M85+0.5),1,1))/$M85)*(IF($M85-INT($M85)>0.5,$M85-0.5-INT($M85),IF($M85-INT($M85)<=0.5,$M85-0.5-INT($M85)+1,0)))) +CE85/$M85*0.5, IF($J85="Declining Balance",-$CP$38,0)))) -> 0.00721 | CQ85: =IF($M85=0,0, IF($M85<=0.5,CF85, IF(AND($J85="straight line",$M85<1.51),(CE85-((CE85/$M85)*0.5))+CF85/$M85*0.5, IF($J85="straight line", IF((LEFT(CQ$39,4)*1)-INT($M85)<LEFT($CP$39,4)*1,0,((OFFSET(CF85,0,-INT($M85+0.5),1,1))/$M85)*(IF($M85-INT($M85)>0.5,$M85-0.5-INT($M85),IF($M85-INT($M85)<=0.5,$M85-0.5-INT($M85)+1,0)))) +CF85/$M85*0.5 +SUM(OFFSET(CF85,0,MAX(-INT($M85+(0.5-(10^-12))),-CQ$40)+1,1,MIN(INT($M85+(0.5-(10^-12))),CQ$40)-1))*1/$M85, IF($J85="Declining Balance",-$CP$38,0))))) -> 0.022111525 | CR85: =IF($M85=0,0, IF($M85<=0.5,CG85, IF(AND($J85="straight line",$M85<1.51),(CF85-((CF85/$M85)*0.5))+CG85/$M85*0.5, IF($J85="straight line", IF((LEFT(CR$39,4)*1)-INT($M85)<LEFT($CP$39,4)*1,0,((OFFSET(CG85,0,-INT($M85+0.5),1,1))/$M85)*(IF($M85-INT($M85)>0.5,$M85-0.5-INT($M85),IF($M85-INT($M85)<=0.5,$M85-0.5-INT($M85)+1,0)))) +CG85/$M85*0.5 +SUM(OFFSET(CG85,0,MAX(-INT($M85+(0.5-(10^-12))),-CR$40)+1,1,MIN(INT($M85+(0.5-(10^-12))),CR$40)-1))*1/$M85, IF($J85="Declining Balance",-$CP$38,0))))) -> 0.03772532075 | CS85: =IF($M85=0,0, IF($M85<=0.5,CH85, IF(AND($J85="straight line",$M85<1.51),(CG85-((CG85/$M85)*0.5))+CH85/$M85*0.5, IF($J85="straight line", IF((LEFT(CS$39,4)*1)-INT($M85)<LEFT($CP$39,4)*1,0,((OFFSET(CH85,0,-INT($M85+0.5),1,1))/$M85)*(IF($M85-INT($M85)>0.5,$M85-0.5-INT($M85),IF($M85-INT($M85)<=0.5,$M85-0.5-INT($M85)+1,0)))) +CH85/$M85*0.5 +SUM(OFFSET(CH85,0,MAX(-INT($M85+(0.5-(10^-12))),-CS$40)+1,1,MIN(INT($M85+(0.5-(10^-12))),CS$40)-1))*1/$M85, IF($J85="Declining Balance",-$CP$38,0))))) -> 0.05394821897 | CT85: =IF($M85=0,0, IF($M85<=0.5,CI85, IF(AND($J85="straight line",$M85<1.51),(CH85-((CH85/$M85)*0.5))+CI85/$M85*0.5, IF($J85="straight line", IF((LEFT(CT$39,4)*1)-INT($M85)<LEFT($CP$39,4)*1,0,((OFFSET(CI85,0,-INT($M85+0.5),1,1))/$M85)*(IF($M85-INT($M85)>0.5,$M85-0.5-INT($M85),IF($M85-INT($M85)<=0.5,$M85-0.5-INT($M85)+1,0)))) +CI85/$M85*0.5 +SUM(OFFSET(CI85,0,MAX(-INT($M85+(0.5-(10^-12))),-CT$40)+1,1,MIN(INT($M85+(0.5-(10^-12))),CT$40)-1))*1/$M85, IF($J85="Declining Balance",-$CP$38,0))))) -> 0.07007394645 | CU85: =IF($M85=0,0, IF($M85<=0.5,CJ85, IF(AND($J85="straight line",$M85<1.51),(CI85-((CI85/$M85)*0.5))+CJ85/$M85*0.5, IF($J85="straight line", IF((LEFT(CU$39,4)*1)-INT($M85)<LEFT($CP$39,4)*1,0,((OFFSET(CJ85,0,-INT($M85+0.5),1,1))/$M85)*(IF($M85-INT($M85)>0.5,$M85-0.5-INT($M85),IF($M85-INT($M85)<=0.5,$M85-0.5-INT($M85)+1,0)))) +CJ85/$M85*0.5 +SUM(OFFSET(CJ85,0,MAX(-INT($M85+(0.5-(10^-12))),-CU$40)+1,1,MIN(INT($M85+(0.5-(10^-12))),CU$40)-1))*1/$M85, IF($J85="Declining Balance",-$CP$38,0))))) -> 0.08476484716 | CV85: =IF($M85=0,0, IF($M85<=0.5,CK85, IF(AND($J85="straight line",$M85<1.51),(CJ85-((CJ85/$M85)*0.5))+CK85/$M85*0.5, IF($J85="straight line", IF((LEFT(CV$39,4)*1)-INT($M85)<LEFT($CP$39,4)*1,0,((OFFSET(CK85,0,-INT($M85+0.5),1,1))/$M85)*(IF($M85-INT($M85)>0.5,$M85-0.5-INT($M85),IF($M85-INT($M85)<=0.5,$M85-0.5-INT($M85)+1,0)))) +CK85/$M85*0.5 +SUM(OFFSET(CK85,0,MAX(-INT($M85+(0.5-(10^-12))),-CV$40)+1,1,MIN(INT($M85+(0.5-(10^-12))),CV$40)-1))*1/$M85, IF($J85="Declining Balance",-$CP$38,0))))) -> 0.09830271358 | CW85: =IF($M85=0,0, IF($M85<=0.5,CL85, IF(AND($J85="straight line",$M85<1.51),(CK85-((CK85/$M85)*0.5))+CL85/$M85*0.5, IF($J85="straight line", IF((LEFT(CW$39,4)*1)-INT($M85)<LEFT($CP$39,4)*1,0,((OFFSET(CL85,0,-INT($M85+0.5),1,1))/$M85)*(IF($M85-INT($M85)>0.5,$M85-0.5-INT($M85),IF($M85-INT($M85)<=0.5,$M85-0.5-INT($M85)+1,0)))) +CL85/$M85*0.5 +SUM(OFFSET(CL85,0,MAX(-INT($M85+(0.5-(10^-12))),-CW$40)+1,1,MIN(INT($M85+(0.5-(10^-12))),CW$40)-1))*1/$M85, IF($J85="Declining Balance",-$CP$38,0))))) -> 0.111973684 | CX85: =IF($M85=0,0, IF($M85<=0.5,CM85, IF(AND($J85="straight line",$M85<1.51),(CL85-((CL85/$M85)*0.5))+CM85/$M85*0.5, IF($J85="straight line", IF((LEFT(CX$39,4)*1)-INT($M85)<LEFT($CP$39,4)*1,0,((OFFSET(CM85,0,-INT($M85+0.5),1,1))/$M85)*(IF($M85-INT($M85)>0.5,$M85-0.5-INT($M85),IF($M85-INT($M85)<=0.5,$M85-0.5-INT($M85)+1,0)))) +CM85/$M85*0.5 +SUM(OFFSET(CM85,0,MAX(-INT($M85+(0.5-(10^-12))),-CX$40)+1,1,MIN(INT($M85+(0.5-(10^-12))),CX$40)-1))*1/$M85, IF($J85="Declining Balance",-$CP$38,0))))) -> 0.1263119379 | CY85: =IF($M85=0,0, IF($M85<=0.5,CN85, IF(AND($J85="straight line",$M85<1.51),(CM85-((CM85/$M85)*0.5))+CN85/$M85*0.5, IF($J85="straight line", IF((LEFT(CY$39,4)*1)-INT($M85)<LEFT($CP$39,4)*1,0,((OFFSET(CN85,0,-INT($M85+0.5),1,1))/$M85)*(IF($M85-INT($M85)>0.5,$M85-0.5-INT($M85),IF($M85-INT($M85)<=0.5,$M85-0.5-INT($M85)+1,0)))) +CN85/$M85*0.5 +SUM(OFFSET(CN85,0,MAX(-INT($M85+(0.5-(10^-12))),-CY$40)+1,1,MIN(INT($M85+(0.5-(10^-12))),CY$40)-1))*1/$M85, IF($J85="Declining Balance",-$CP$38,0))))) -> 0.140706848
C86: Office / Depot upgrades | E86: Sewerage | F86: Renewals | G86: Corporate | H86: Capital Programs / Allocation | J86: Straight line | K86: Ongoing | L86: 20 | M86: 20 | Q86: 0.145 | R86: 0.1875 | S86: 0.105 | T86: 0.105 | U86: 0 | V86: 0.025 | W86: 0.025 | X86: 0.025 | Y86: 0.025 | Z86: 0.025 | AX86: 0.145 | AY86: 0.1875 | AZ86: 0.105 | BA86: 0.105 | BB86: 0 | BC86: 0.025 | BD86: 0.025 | BE86: 0.025 | BF86: 0.025 | BG86: 0.025 | BI86: 0.003625 | BJ86: 0.0119375 | BK86: 0.01925 | BL86: 0.0245 | BM86: 0.027125 | BN86: 0.02775 | BO86: 0.029 | BP86: 0.03025 | BQ86: 0.0315 | BR86: 0.03275 | BT86: =+IF($K86="Ongoing",AX86,IF(RIGHT($K86,2)=RIGHT(BT$39,2),SUM($AX86:AX86),0)+IF(RIGHT(BT$39,2)>RIGHT($K86,2),AX86,0)) -> 0.145 | BU86: =+IF($K86="Ongoing",AY86,IF(RIGHT($K86,2)=RIGHT(BU$39,2),SUM($AX86:AY86),0)+IF(RIGHT(BU$39,2)>RIGHT($K86,2),AY86,0)) -> 0.1875 | BV86: =+IF($K86="Ongoing",AZ86,IF(RIGHT($K86,2)=RIGHT(BV$39,2),SUM($AX86:AZ86),0)+IF(RIGHT(BV$39,2)>RIGHT($K86,2),AZ86,0)) -> 0.105 | BW86: =+IF($K86="Ongoing",BA86,IF(RIGHT($K86,2)=RIGHT(BW$39,2),SUM($AX86:BA86),0)+IF(RIGHT(BW$39,2)>RIGHT($K86,2),BA86,0)) -> 0.105 | BX86: =+IF($K86="Ongoing",BB86,IF(RIGHT($K86,2)=RIGHT(BX$39,2),SUM($AX86:BB86),0)+IF(RIGHT(BX$39,2)>RIGHT($K86,2),BB86,0)) -> 0 | BY86: =+IF($K86="Ongoing",BC86,IF(RIGHT($K86,2)=RIGHT(BY$39,2),SUM($AX86:BC86),0)+IF(RIGHT(BY$39,2)>RIGHT($K86,2),BC86,0)) -> 0.025 | BZ86: =+IF($K86="Ongoing",BD86,IF(RIGHT($K86,2)=RIGHT(BZ$39,2),SUM($AX86:BD86),0)+IF(RIGHT(BZ$39,2)>RIGHT($K86,2),BD86,0)) -> 0.025 | CA86: =+IF($K86="Ongoing",BE86,IF(RIGHT($K86,2)=RIGHT(CA$39,2),SUM($AX86:BE86),0)+IF(RIGHT(CA$39,2)>RIGHT($K86,2),BE86,0)) -> 0.025 | CB86: =+IF($K86="Ongoing",BF86,IF(RIGHT($K86,2)=RIGHT(CB$39,2),SUM($AX86:BF86),0)+IF(RIGHT(CB$39,2)>RIGHT($K86,2),BF86,0)) -> 0.025 | CC86: =+IF($K86="Ongoing",BG86,IF(RIGHT($K86,2)=RIGHT(CC$39,2),SUM($AX86:BG86),0)+IF(RIGHT(CC$39,2)>RIGHT($K86,2),BG86,0)) -> 0.025 | CE86: =+Q86*KeyAssumptionsPriceControl_FO!AC$15 -> 0.14935 | CF86: =+R86*KeyAssumptionsPriceControl_FO!AD$15 -> 0.19891875 | CG86: =+S86*KeyAssumptionsPriceControl_FO!AE$15 -> 0.114736335 | CH86: =+T86*KeyAssumptionsPriceControl_FO!AF$15 -> 0.1181784251 | CI86: =+U86*KeyAssumptionsPriceControl_FO!AG$15 -> 0 | CJ86: =+V86*KeyAssumptionsPriceControl_FO!AH$15 -> 0.02985130741 | CK86: =+W86*KeyAssumptionsPriceControl_FO!AI$15 -> 0.03074684664 | CL86: =+X86*KeyAssumptionsPriceControl_FO!AJ$15 -> 0.03166925203 | CM86: =+Y86*KeyAssumptionsPriceControl_FO!AK$15 -> 0.0326193296 | CN86: =+Z86*KeyAssumptionsPriceControl_FO!AL$15 -> 0.03359790948 | CP86: 0.00373375 | CQ86: 0.01244046875 | CR86: 0.02028184587 | CS86: 0.02610471488 | CT86: 0.0290591755 | CU86: 0.02980545819 | CV86: 0.03132041204 | CW86: 0.03288081451 | CX86: 0.03448802905 | CY86: 0.03614346002
C87: IT Hardware and Software Improvements (capex BAU) | E87: Water | F87: Renewals | G87: Corporate | H87: Capital Programs / Allocation | J87: Straight line | K87: Ongoing | L87: 5 | M87: 5 | Q87: 0.1 | R87: 0.15 | S87: 0.05 | T87: 0.125 | U87: 0.075 | V87: 0.35 | W87: 0.2 | X87: 0.2 | Y87: 0.2665 | Z87: 0.2 | AX87: 0.1 | AY87: 0.15 | AZ87: 0.05 | BA87: 0.125 | BB87: 0.075 | BC87: 0.35 | BD87: 0.2 | BE87: 0.2 | BF87: 0.2665 | BG87: 0.2 | BI87: 0.01 | BJ87: 0.035 | BK87: 0.055 | BL87: 0.0725 | BM87: 0.0925 | BN87: 0.125 | BO87: 0.155 | BP87: 0.175 | BQ87: 0.20415 | BR87: 0.2308 | BT87: =+IF($K87="Ongoing",AX87,IF(RIGHT($K87,2)=RIGHT(BT$39,2),SUM($AX87:AX87),0)+IF(RIGHT(BT$39,2)>RIGHT($K87,2),AX87,0)) -> 0.1 | BU87: =+IF($K87="Ongoing",AY87,IF(RIGHT($K87,2)=RIGHT(BU$39,2),SUM($AX87:AY87),0)+IF(RIGHT(BU$39,2)>RIGHT($K87,2),AY87,0)) -> 0.15 | BV87: =+IF($K87="Ongoing",AZ87,IF(RIGHT($K87,2)=RIGHT(BV$39,2),SUM($AX87:AZ87),0)+IF(RIGHT(BV$39,2)>RIGHT($K87,2),AZ87,0)) -> 0.05 | BW87: =+IF($K87="Ongoing",BA87,IF(RIGHT($K87,2)=RIGHT(BW$39,2),SUM($AX87:BA87),0)+IF(RIGHT(BW$39,2)>RIGHT($K87,2),BA87,0)) -> 0.125 | BX87: =+IF($K87="Ongoing",BB87,IF(RIGHT($K87,2)=RIGHT(BX$39,2),SUM($AX87:BB87),0)+IF(RIGHT(BX$39,2)>RIGHT($K87,2),BB87,0)) -> 0.075 | BY87: =+IF($K87="Ongoing",BC87,IF(RIGHT($K87,2)=RIGHT(BY$39,2),SUM($AX87:BC87),0)+IF(RIGHT(BY$39,2)>RIGHT($K87,2),BC87,0)) -> 0.35 | BZ87: =+IF($K87="Ongoing",BD87,IF(RIGHT($K87,2)=RIGHT(BZ$39,2),SUM($AX87:BD87),0)+IF(RIGHT(BZ$39,2)>RIGHT($K87,2),BD87,0)) -> 0.2 | CA87: =+IF($K87="Ongoing",BE87,IF(RIGHT($K87,2)=RIGHT(CA$39,2),SUM($AX87:BE87),0)+IF(RIGHT(CA$39,2)>RIGHT($K87,2),BE87,0)) -> 0.2 | CB87: =+IF($K87="Ongoing",BF87,IF(RIGHT($K87,2)=RIGHT(CB$39,2),SUM($AX87:BF87),0)+IF(RIGHT(CB$39,2)>RIGHT($K87,2),BF87,0)) -> 0.2665 | CC87: =+IF($K87="Ongoing",BG87,IF(RIGHT($K87,2)=RIGHT(CC$39,2),SUM($AX87:BG87),0)+IF(RIGHT(CC$39,2)>RIGHT($K87,2),BG87,0)) -> 0.2 | CE87: =+Q87*KeyAssumptionsPriceControl_FO!AC$15 -> 0.103 | CF87: =+R87*KeyAssumptionsPriceControl_FO!AD$15 -> 0.159135 | CG87: =+S87*KeyAssumptionsPriceControl_FO!AE$15 -> 0.05463635 | CH87: =+T87*KeyAssumptionsPriceControl_FO!AF$15 -> 0.1406886013 | CI87: =+U87*KeyAssumptionsPriceControl_FO!AG$15 -> 0.08694555557 | CJ87: =+V87*KeyAssumptionsPriceControl_FO!AH$15 -> 0.4179183038 | CK87: =+W87*KeyAssumptionsPriceControl_FO!AI$15 -> 0.2459747731 | CL87: =+X87*KeyAssumptionsPriceControl_FO!AJ$15 -> 0.2533540163 | CM87: =+Y87*KeyAssumptionsPriceControl_FO!AK$15 -> 0.3477220535 | CN87: =+Z87*KeyAssumptionsPriceControl_FO!AL$15 -> 0.2687832759 | CP87: 0.0103 | CQ87: 0.0365135 | CR87: 0.057890635 | CS87: 0.07742313013 | CT87: 0.1001865458 | CU87: 0.1403729317 | CV87: 0.1805487394 | CW87: 0.2091044834 | CX87: 0.2496795952 | CY87: 0.2885667125
C88: Asset Management Information System replacement | E88: Water | F88: Renewals | G88: Corporate | H88: Other Capital expenditure | J88: Straight line | K88: 2028-29 | L88: 10 | M88: 10 | Q88: 0 | R88: 0 | S88: 0 | T88: 0 | U88: 0 | V88: 0.375 | W88: 0.375 | X88: 0 | Y88: 0 | Z88: 0 | AX88: 0 | AY88: 0 | AZ88: 0 | BA88: 0 | BB88: 0 | BC88: 0.375 | BD88: 0.375 | BE88: 0 | BF88: 0 | BG88: 0 | BI88: 0 | BJ88: 0 | BK88: 0 | BL88: 0 | BM88: 0 | BN88: 0.01875 | BO88: 0.05625 | BP88: 0.075 | BQ88: 0.075 | BR88: 0.075 | BT88: =+IF($K88="Ongoing",AX88,IF(RIGHT($K88,2)=RIGHT(BT$39,2),SUM($AX88:AX88),0)+IF(RIGHT(BT$39,2)>RIGHT($K88,2),AX88,0)) -> 0 | BU88: =+IF($K88="Ongoing",AY88,IF(RIGHT($K88,2)=RIGHT(BU$39,2),SUM($AX88:AY88),0)+IF(RIGHT(BU$39,2)>RIGHT($K88,2),AY88,0)) -> 0 | BV88: =+IF($K88="Ongoing",AZ88,IF(RIGHT($K88,2)=RIGHT(BV$39,2),SUM($AX88:AZ88),0)+IF(RIGHT(BV$39,2)>RIGHT($K88,2),AZ88,0)) -> 0 | BW88: =+IF($K88="Ongoing",BA88,IF(RIGHT($K88,2)=RIGHT(BW$39,2),SUM($AX88:BA88),0)+IF(RIGHT(BW$39,2)>RIGHT($K88,2),BA88,0)) -> 0 | BX88: =+IF($K88="Ongoing",BB88,IF(RIGHT($K88,2)=RIGHT(BX$39,2),SUM($AX88:BB88),0)+IF(RIGHT(BX$39,2)>RIGHT($K88,2),BB88,0)) -> 0 | BY88: =+IF($K88="Ongoing",BC88,IF(RIGHT($K88,2)=RIGHT(BY$39,2),SUM($AX88:BC88),0)+IF(RIGHT(BY$39,2)>RIGHT($K88,2),BC88,0)) -> 0.375 | BZ88: =+IF($K88="Ongoing",BD88,IF(RIGHT($K88,2)=RIGHT(BZ$39,2),SUM($AX88:BD88),0)+IF(RIGHT(BZ$39,2)>RIGHT($K88,2),BD88,0)) -> 0.375 | CA88: =+IF($K88="Ongoing",BE88,IF(RIGHT($K88,2)=RIGHT(CA$39,2),SUM($AX88:BE88),0)+IF(RIGHT(CA$39,2)>RIGHT($K88,2),BE88,0)) -> 0 | CB88: =+IF($K88="Ongoing",BF88,IF(RIGHT($K88,2)=RIGHT(CB$39,2),SUM($AX88:BF88),0)+IF(RIGHT(CB$39,2)>RIGHT($K88,2),BF88,0)) -> 0 | CC88: =+IF($K88="Ongoing",BG88,IF(RIGHT($K88,2)=RIGHT(CC$39,2),SUM($AX88:BG88),0)+IF(RIGHT(CC$39,2)>RIGHT($K88,2),BG88,0)) -> 0 | CE88: =+Q88*KeyAssumptionsPriceControl_FO!AC$15 -> 0 | CF88: =+R88*KeyAssumptionsPriceControl_FO!AD$15 -> 0 | CG88: =+S88*KeyAssumptionsPriceControl_FO!AE$15 -> 0 | CH88: =+T88*KeyAssumptionsPriceControl_FO!AF$15 -> 0 | CI88: =+U88*KeyAssumptionsPriceControl_FO!AG$15 -> 0 | CJ88: =+V88*KeyAssumptionsPriceControl_FO!AH$15 -> 0.4477696112 | CK88: =+W88*KeyAssumptionsPriceControl_FO!AI$15 -> 0.4612026995 | CL88: =+X88*KeyAssumptionsPriceControl_FO!AJ$15 -> 0 | CM88: =+Y88*KeyAssumptionsPriceControl_FO!AK$15 -> 0 | CN88: =+Z88*KeyAssumptionsPriceControl_FO!AL$15 -> 0 | CP88: 0 | CQ88: 0 | CR88: 0 | CS88: 0 | CT88: 0 | CU88: 0.02238848056 | CV88: 0.0678370961 | CW88: 0.09089723107 | CX88: 0.09089723107 | CY88: 0.09089723107
C89: Data Strategy - Framework, Architecture & Standards and Platforms | E89: Water | F89: Renewals | G89: Corporate | H89: Capital Programs / Allocation | J89: Straight line | K89: Ongoing | L89: 10 | M89: 10 | Q89: 0.075 | R89: 0.0875 | S89: 0.2 | T89: 0 | U89: 0 | V89: 0 | W89: 0 | X89: 0 | Y89: 0 | Z89: 0 | AX89: 0.075 | AY89: 0.0875 | AZ89: 0.2 | BA89: 0 | BB89: 0 | BC89: 0 | BD89: 0 | BE89: 0 | BF89: 0 | BG89: 0 | BI89: 0.00375 | BJ89: 0.011875 | BK89: 0.02625 | BL89: 0.03625 | BM89: 0.03625 | BN89: 0.03625 | BO89: 0.03625 | BP89: 0.03625 | BQ89: 0.03625 | BR89: 0.03625 | BT89: =+IF($K89="Ongoing",AX89,IF(RIGHT($K89,2)=RIGHT(BT$39,2),SUM($AX89:AX89),0)+IF(RIGHT(BT$39,2)>RIGHT($K89,2),AX89,0)) -> 0.075 | BU89: =+IF($K89="Ongoing",AY89,IF(RIGHT($K89,2)=RIGHT(BU$39,2),SUM($AX89:AY89),0)+IF(RIGHT(BU$39,2)>RIGHT($K89,2),AY89,0)) -> 0.0875 | BV89: =+IF($K89="Ongoing",AZ89,IF(RIGHT($K89,2)=RIGHT(BV$39,2),SUM($AX89:AZ89),0)+IF(RIGHT(BV$39,2)>RIGHT($K89,2),AZ89,0)) -> 0.2 | BW89: =+IF($K89="Ongoing",BA89,IF(RIGHT($K89,2)=RIGHT(BW$39,2),SUM($AX89:BA89),0)+IF(RIGHT(BW$39,2)>RIGHT($K89,2),BA89,0)) -> 0 | BX89: =+IF($K89="Ongoing",BB89,IF(RIGHT($K89,2)=RIGHT(BX$39,2),SUM($AX89:BB89),0)+IF(RIGHT(BX$39,2)>RIGHT($K89,2),BB89,0)) -> 0 | BY89: =+IF($K89="Ongoing",BC89,IF(RIGHT($K89,2)=RIGHT(BY$39,2),SUM($AX89:BC89),0)+IF(RIGHT(BY$39,2)>RIGHT($K89,2),BC89,0)) -> 0 | BZ89: =+IF($K89="Ongoing",BD89,IF(RIGHT($K89,2)=RIGHT(BZ$39,2),SUM($AX89:BD89),0)+IF(RIGHT(BZ$39,2)>RIGHT($K89,2),BD89,0)) -> 0 | CA89: =+IF($K89="Ongoing",BE89,IF(RIGHT($K89,2)=RIGHT(CA$39,2),SUM($AX89:BE89),0)+IF(RIGHT(CA$39,2)>RIGHT($K89,2),BE89,0)) -> 0 | CB89: =+IF($K89="Ongoing",BF89,IF(RIGHT($K89,2)=RIGHT(CB$39,2),SUM($AX89:BF89),0)+IF(RIGHT(CB$39,2)>RIGHT($K89,2),BF89,0)) -> 0 | CC89: =+IF($K89="Ongoing",BG89,IF(RIGHT($K89,2)=RIGHT(CC$39,2),SUM($AX89:BG89),0)+IF(RIGHT(CC$39,2)>RIGHT($K89,2),BG89,0)) -> 0 | CE89: =+Q89*KeyAssumptionsPriceControl_FO!AC$15 -> 0.07725 | CF89: =+R89*KeyAssumptionsPriceControl_FO!AD$15 -> 0.09282875 | CG89: =+S89*KeyAssumptionsPriceControl_FO!AE$15 -> 0.2185454 | CH89: =+T89*KeyAssumptionsPriceControl_FO!AF$15 -> 0 | CI89: =+U89*KeyAssumptionsPriceControl_FO!AG$15 -> 0 | CJ89: =+V89*KeyAssumptionsPriceControl_FO!AH$15 -> 0 | CK89: =+W89*KeyAssumptionsPriceControl_FO!AI$15 -> 0 | CL89: =+X89*KeyAssumptionsPriceControl_FO!AJ$15 -> 0 | CM89: =+Y89*KeyAssumptionsPriceControl_FO!AK$15 -> 0 | CN89: =+Z89*KeyAssumptionsPriceControl_FO!AL$15 -> 0 | CP89: 0.0038625 | CQ89: 0.0123664375 | CR89: 0.027935145 | CS89: 0.038862415 | CT89: 0.038862415 | CU89: 0.038862415 | CV89: 0.038862415 | CW89: 0.038862415 | CX89: 0.038862415 | CY89: 0.038862415
C90: Energy efficiency upgrades | E90: Water | F90: Improvements / Compliance | G90: Corporate | H90: Capital Programs / Allocation | J90: Straight line | K90: Ongoing | L90: 10 | M90: 10 | Q90: 0.08 | R90: 0.08 | S90: 0.08 | T90: 0.08 | U90: 0.08 | V90: 0.15 | W90: 0.15 | X90: 0.15 | Y90: 0.15 | Z90: 0.15 | AX90: 0.08 | AY90: 0.08 | AZ90: 0.08 | BA90: 0.08 | BB90: 0.08 | BC90: 0.15 | BD90: 0.15 | BE90: 0.15 | BF90: 0.15 | BG90: 0.15 | BI90: 0.004 | BJ90: 0.012 | BK90: 0.02 | BL90: 0.028 | BM90: 0.036 | BN90: 0.0475 | BO90: 0.0625 | BP90: 0.0775 | BQ90: 0.0925 | BR90: 0.1075 | BT90: =+IF($K90="Ongoing",AX90,IF(RIGHT($K90,2)=RIGHT(BT$39,2),SUM($AX90:AX90),0)+IF(RIGHT(BT$39,2)>RIGHT($K90,2),AX90,0)) -> 0.08 | BU90: =+IF($K90="Ongoing",AY90,IF(RIGHT($K90,2)=RIGHT(BU$39,2),SUM($AX90:AY90),0)+IF(RIGHT(BU$39,2)>RIGHT($K90,2),AY90,0)) -> 0.08 | BV90: =+IF($K90="Ongoing",AZ90,IF(RIGHT($K90,2)=RIGHT(BV$39,2),SUM($AX90:AZ90),0)+IF(RIGHT(BV$39,2)>RIGHT($K90,2),AZ90,0)) -> 0.08 | BW90: =+IF($K90="Ongoing",BA90,IF(RIGHT($K90,2)=RIGHT(BW$39,2),SUM($AX90:BA90),0)+IF(RIGHT(BW$39,2)>RIGHT($K90,2),BA90,0)) -> 0.08 | BX90: =+IF($K90="Ongoing",BB90,IF(RIGHT($K90,2)=RIGHT(BX$39,2),SUM($AX90:BB90),0)+IF(RIGHT(BX$39,2)>RIGHT($K90,2),BB90,0)) -> 0.08 | BY90: =+IF($K90="Ongoing",BC90,IF(RIGHT($K90,2)=RIGHT(BY$39,2),SUM($AX90:BC90),0)+IF(RIGHT(BY$39,2)>RIGHT($K90,2),BC90,0)) -> 0.15 | BZ90: =+IF($K90="Ongoing",BD90,IF(RIGHT($K90,2)=RIGHT(BZ$39,2),SUM($AX90:BD90),0)+IF(RIGHT(BZ$39,2)>RIGHT($K90,2),BD90,0)) -> 0.15 | CA90: =+IF($K90="Ongoing",BE90,IF(RIGHT($K90,2)=RIGHT(CA$39,2),SUM($AX90:BE90),0)+IF(RIGHT(CA$39,2)>RIGHT($K90,2),BE90,0)) -> 0.15 | CB90: =+IF($K90="Ongoing",BF90,IF(RIGHT($K90,2)=RIGHT(CB$39,2),SUM($AX90:BF90),0)+IF(RIGHT(CB$39,2)>RIGHT($K90,2),BF90,0)) -> 0.15 | CC90: =+IF($K90="Ongoing",BG90,IF(RIGHT($K90,2)=RIGHT(CC$39,2),SUM($AX90:BG90),0)+IF(RIGHT(CC$39,2)>RIGHT($K90,2),BG90,0)) -> 0.15 | CE90: =+Q90*KeyAssumptionsPriceControl_FO!AC$15 -> 0.0824 | CF90: =+R90*KeyAssumptionsPriceControl_FO!AD$15 -> 0.084872 | CG90: =+S90*KeyAssumptionsPriceControl_FO!AE$15 -> 0.08741816 | CH90: =+T90*KeyAssumptionsPriceControl_FO!AF$15 -> 0.0900407048 | CI90: =+U90*KeyAssumptionsPriceControl_FO!AG$15 -> 0.09274192594 | CJ90: =+V90*KeyAssumptionsPriceControl_FO!AH$15 -> 0.1791078445 | CK90: =+W90*KeyAssumptionsPriceControl_FO!AI$15 -> 0.1844810798 | CL90: =+X90*KeyAssumptionsPriceControl_FO!AJ$15 -> 0.1900155122 | CM90: =+Y90*KeyAssumptionsPriceControl_FO!AK$15 -> 0.1957159776 | CN90: =+Z90*KeyAssumptionsPriceControl_FO!AL$15 -> 0.2015874569 | CP90: 0.00412 | CQ90: 0.0124836 | CR90: 0.021098108 | CS90: 0.02997105124 | CT90: 0.03911018278 | CU90: 0.0527026713 | CV90: 0.07088211751 | CW90: 0.08960694711 | CX90: 0.1088935216 | CY90: 0.1287586933
C91: Plant & Equipment - NEW | E91: Water | F91: Improvements / Compliance | G91: Corporate | H91: Capital Programs / Allocation | J91: Straight line | K91: Ongoing | L91: 10 | M91: 10 | Q91: 0.1835 | R91: 0.0775 | S91: 0.2335 | T91: 0.02 | U91: 0 | V91: 0 | W91: 0 | X91: 0 | Y91: 0 | Z91: 0 | AX91: 0.1835 | AY91: 0.0775 | AZ91: 0.2335 | BA91: 0.02 | BB91: 0 | BC91: 0 | BD91: 0 | BE91: 0 | BF91: 0 | BG91: 0 | BI91: 0.009175 | BJ91: 0.022225 | BK91: 0.037775 | BL91: 0.05045 | BM91: 0.05145 | BN91: 0.05145 | BO91: 0.05145 | BP91: 0.05145 | BQ91: 0.05145 | BR91: 0.05145 | BT91: =+IF($K91="Ongoing",AX91,IF(RIGHT($K91,2)=RIGHT(BT$39,2),SUM($AX91:AX91),0)+IF(RIGHT(BT$39,2)>RIGHT($K91,2),AX91,0)) -> 0.1835 | BU91: =+IF($K91="Ongoing",AY91,IF(RIGHT($K91,2)=RIGHT(BU$39,2),SUM($AX91:AY91),0)+IF(RIGHT(BU$39,2)>RIGHT($K91,2),AY91,0)) -> 0.0775 | BV91: =+IF($K91="Ongoing",AZ91,IF(RIGHT($K91,2)=RIGHT(BV$39,2),SUM($AX91:AZ91),0)+IF(RIGHT(BV$39,2)>RIGHT($K91,2),AZ91,0)) -> 0.2335 | BW91: =+IF($K91="Ongoing",BA91,IF(RIGHT($K91,2)=RIGHT(BW$39,2),SUM($AX91:BA91),0)+IF(RIGHT(BW$39,2)>RIGHT($K91,2),BA91,0)) -> 0.02 | BX91: =+IF($K91="Ongoing",BB91,IF(RIGHT($K91,2)=RIGHT(BX$39,2),SUM($AX91:BB91),0)+IF(RIGHT(BX$39,2)>RIGHT($K91,2),BB91,0)) -> 0 | BY91: =+IF($K91="Ongoing",BC91,IF(RIGHT($K91,2)=RIGHT(BY$39,2),SUM($AX91:BC91),0)+IF(RIGHT(BY$39,2)>RIGHT($K91,2),BC91,0)) -> 0 | BZ91: =+IF($K91="Ongoing",BD91,IF(RIGHT($K91,2)=RIGHT(BZ$39,2),SUM($AX91:BD91),0)+IF(RIGHT(BZ$39,2)>RIGHT($K91,2),BD91,0)) -> 0 | CA91: =+IF($K91="Ongoing",BE91,IF(RIGHT($K91,2)=RIGHT(CA$39,2),SUM($AX91:BE91),0)+IF(RIGHT(CA$39,2)>RIGHT($K91,2),BE91,0)) -> 0 | CB91: =+IF($K91="Ongoing",BF91,IF(RIGHT($K91,2)=RIGHT(CB$39,2),SUM($AX91:BF91),0)+IF(RIGHT(CB$39,2)>RIGHT($K91,2),BF91,0)) -> 0 | CC91: =+IF($K91="Ongoing",BG91,IF(RIGHT($K91,2)=RIGHT(CC$39,2),SUM($AX91:BG91),0)+IF(RIGHT(CC$39,2)>RIGHT($K91,2),BG91,0)) -> 0 | CE91: =+Q91*KeyAssumptionsPriceControl_FO!AC$15 -> 0.189005 | CF91: =+R91*KeyAssumptionsPriceControl_FO!AD$15 -> 0.08221975 | CG91: =+S91*KeyAssumptionsPriceControl_FO!AE$15 -> 0.2551517545 | CH91: =+T91*KeyAssumptionsPriceControl_FO!AF$15 -> 0.0225101762 | CI91: =+U91*KeyAssumptionsPriceControl_FO!AG$15 -> 0 | CJ91: =+V91*KeyAssumptionsPriceControl_FO!AH$15 -> 0 | CK91: =+W91*KeyAssumptionsPriceControl_FO!AI$15 -> 0 | CL91: =+X91*KeyAssumptionsPriceControl_FO!AJ$15 -> 0 | CM91: =+Y91*KeyAssumptionsPriceControl_FO!AK$15 -> 0 | CN91: =+Z91*KeyAssumptionsPriceControl_FO!AL$15 -> 0 | CP91: 0.00945025 | CQ91: 0.0230114875 | CR91: 0.03988006272 | CS91: 0.05376315926 | CT91: 0.05488866807 | CU91: 0.05488866807 | CV91: 0.05488866807 | CW91: 0.05488866807 | CX91: 0.05488866807 | CY91: 0.05488866807
C92: Motor Vehicles | E92: Water | F92: Renewals | G92: Corporate | H92: Capital Programs / Allocation | J92: Straight line | K92: Ongoing | L92: 6 | M92: 6 | Q92: 0.329 | R92: 0.18 | S92: 0.1125 | T92: 0.3945 | U92: 0.2865 | V92: 0.2515 | W92: 0.134 | X92: 0.2225 | Y92: 0.264 | Z92: 0.2165 | AX92: 0.329 | AY92: 0.18 | AZ92: 0.1125 | BA92: 0.3945 | BB92: 0.2865 | BC92: 0.2515 | BD92: 0.134 | BE92: 0.2225 | BF92: 0.264 | BG92: 0.2165 | BI92: 0.02741666667 | BJ92: 0.06983333333 | BK92: 0.09420833333 | BL92: 0.1364583333 | BM92: 0.1932083333 | BN92: 0.2380416667 | BO92: 0.24275 | BP92: 0.2300416667 | BQ92: 0.2462083333 | BR92: 0.244 | BT92: =+IF($K92="Ongoing",AX92,IF(RIGHT($K92,2)=RIGHT(BT$39,2),SUM($AX92:AX92),0)+IF(RIGHT(BT$39,2)>RIGHT($K92,2),AX92,0)) -> 0.329 | BU92: =+IF($K92="Ongoing",AY92,IF(RIGHT($K92,2)=RIGHT(BU$39,2),SUM($AX92:AY92),0)+IF(RIGHT(BU$39,2)>RIGHT($K92,2),AY92,0)) -> 0.18 | BV92: =+IF($K92="Ongoing",AZ92,IF(RIGHT($K92,2)=RIGHT(BV$39,2),SUM($AX92:AZ92),0)+IF(RIGHT(BV$39,2)>RIGHT($K92,2),AZ92,0)) -> 0.1125 | BW92: =+IF($K92="Ongoing",BA92,IF(RIGHT($K92,2)=RIGHT(BW$39,2),SUM($AX92:BA92),0)+IF(RIGHT(BW$39,2)>RIGHT($K92,2),BA92,0)) -> 0.3945 | BX92: =+IF($K92="Ongoing",BB92,IF(RIGHT($K92,2)=RIGHT(BX$39,2),SUM($AX92:BB92),0)+IF(RIGHT(BX$39,2)>RIGHT($K92,2),BB92,0)) -> 0.2865 | BY92: =+IF($K92="Ongoing",BC92,IF(RIGHT($K92,2)=RIGHT(BY$39,2),SUM($AX92:BC92),0)+IF(RIGHT(BY$39,2)>RIGHT($K92,2),BC92,0)) -> 0.2515 | BZ92: =+IF($K92="Ongoing",BD92,IF(RIGHT($K92,2)=RIGHT(BZ$39,2),SUM($AX92:BD92),0)+IF(RIGHT(BZ$39,2)>RIGHT($K92,2),BD92,0)) -> 0.134 | CA92: =+IF($K92="Ongoing",BE92,IF(RIGHT($K92,2)=RIGHT(CA$39,2),SUM($AX92:BE92),0)+IF(RIGHT(CA$39,2)>RIGHT($K92,2),BE92,0)) -> 0.2225 | CB92: =+IF($K92="Ongoing",BF92,IF(RIGHT($K92,2)=RIGHT(CB$39,2),SUM($AX92:BF92),0)+IF(RIGHT(CB$39,2)>RIGHT($K92,2),BF92,0)) -> 0.264 | CC92: =+IF($K92="Ongoing",BG92,IF(RIGHT($K92,2)=RIGHT(CC$39,2),SUM($AX92:BG92),0)+IF(RIGHT(CC$39,2)>RIGHT($K92,2),BG92,0)) -> 0.2165 | CE92: =+Q92*KeyAssumptionsPriceControl_FO!AC$15 -> 0.33887 | CF92: =+R92*KeyAssumptionsPriceControl_FO!AD$15 -> 0.190962 | CG92: =+S92*KeyAssumptionsPriceControl_FO!AE$15 -> 0.1229317875 | CH92: =+T92*KeyAssumptionsPriceControl_FO!AF$15 -> 0.4440132255 | CI92: =+U92*KeyAssumptionsPriceControl_FO!AG$15 -> 0.3321320223 | CJ92: =+V92*KeyAssumptionsPriceControl_FO!AH$15 -> 0.3003041526 | CK92: =+W92*KeyAssumptionsPriceControl_FO!AI$15 -> 0.164803098 | CL92: =+X92*KeyAssumptionsPriceControl_FO!AJ$15 -> 0.2818563431 | CM92: =+Y92*KeyAssumptionsPriceControl_FO!AK$15 -> 0.3444601205 | CN92: =+Z92*KeyAssumptionsPriceControl_FO!AL$15 -> 0.2909578961 | CP92: 0.02823916667 | CQ92: 0.07239183333 | CR92: 0.09854964896 | CS92: 0.1457950667 | CT92: 0.2104738374 | CU92: 0.2631768519 | CV92: 0.2736966228 | CW92: 0.2667655762 | CX92: 0.2928007993 | CY92: 0.2985068829
C93: Office Equipment | E93: Water | F93: Renewals | G93: Corporate | H93: Capital Programs / Allocation | J93: Straight line | K93: Ongoing | L93: 10 | M93: 10 | Q93: 0.008 | R93: 0.008 | S93: 0.008 | T93: 0.008 | U93: 0.008 | V93: 0.0125 | W93: 0.008 | X93: 0.008 | Y93: 0.008 | Z93: 0.008 | AX93: 0.008 | AY93: 0.008 | AZ93: 0.008 | BA93: 0.008 | BB93: 0.008 | BC93: 0.0125 | BD93: 0.008 | BE93: 0.008 | BF93: 0.008 | BG93: 0.008 | BI93: 0.0004 | BJ93: 0.0012 | BK93: 0.002 | BL93: 0.0028 | BM93: 0.0036 | BN93: 0.004625 | BO93: 0.00565 | BP93: 0.00645 | BQ93: 0.00725 | BR93: 0.00805 | BT93: =+IF($K93="Ongoing",AX93,IF(RIGHT($K93,2)=RIGHT(BT$39,2),SUM($AX93:AX93),0)+IF(RIGHT(BT$39,2)>RIGHT($K93,2),AX93,0)) -> 0.008 | BU93: =+IF($K93="Ongoing",AY93,IF(RIGHT($K93,2)=RIGHT(BU$39,2),SUM($AX93:AY93),0)+IF(RIGHT(BU$39,2)>RIGHT($K93,2),AY93,0)) -> 0.008 | BV93: =+IF($K93="Ongoing",AZ93,IF(RIGHT($K93,2)=RIGHT(BV$39,2),SUM($AX93:AZ93),0)+IF(RIGHT(BV$39,2)>RIGHT($K93,2),AZ93,0)) -> 0.008 | BW93: =+IF($K93="Ongoing",BA93,IF(RIGHT($K93,2)=RIGHT(BW$39,2),SUM($AX93:BA93),0)+IF(RIGHT(BW$39,2)>RIGHT($K93,2),BA93,0)) -> 0.008 | BX93: =+IF($K93="Ongoing",BB93,IF(RIGHT($K93,2)=RIGHT(BX$39,2),SUM($AX93:BB93),0)+IF(RIGHT(BX$39,2)>RIGHT($K93,2),BB93,0)) -> 0.008 | BY93: =+IF($K93="Ongoing",BC93,IF(RIGHT($K93,2)=RIGHT(BY$39,2),SUM($AX93:BC93),0)+IF(RIGHT(BY$39,2)>RIGHT($K93,2),BC93,0)) -> 0.0125 | BZ93: =+IF($K93="Ongoing",BD93,IF(RIGHT($K93,2)=RIGHT(BZ$39,2),SUM($AX93:BD93),0)+IF(RIGHT(BZ$39,2)>RIGHT($K93,2),BD93,0)) -> 0.008 | CA93: =+IF($K93="Ongoing",BE93,IF(RIGHT($K93,2)=RIGHT(CA$39,2),SUM($AX93:BE93),0)+IF(RIGHT(CA$39,2)>RIGHT($K93,2),BE93,0)) -> 0.008 | CB93: =+IF($K93="Ongoing",BF93,IF(RIGHT($K93,2)=RIGHT(CB$39,2),SUM($AX93:BF93),0)+IF(RIGHT(CB$39,2)>RIGHT($K93,2),BF93,0)) -> 0.008 | CC93: =+IF($K93="Ongoing",BG93,IF(RIGHT($K93,2)=RIGHT(CC$39,2),SUM($AX93:BG93),0)+IF(RIGHT(CC$39,2)>RIGHT($K93,2),BG93,0)) -> 0.008 | CE93: =+Q93*KeyAssumptionsPriceControl_FO!AC$15 -> 0.00824 | CF93: =+R93*KeyAssumptionsPriceControl_FO!AD$15 -> 0.0084872 | CG93: =+S93*KeyAssumptionsPriceControl_FO!AE$15 -> 0.008741816 | CH93: =+T93*KeyAssumptionsPriceControl_FO!AF$15 -> 0.00900407048 | CI93: =+U93*KeyAssumptionsPriceControl_FO!AG$15 -> 0.009274192594 | CJ93: =+V93*KeyAssumptionsPriceControl_FO!AH$15 -> 0.01492565371 | CK93: =+W93*KeyAssumptionsPriceControl_FO!AI$15 -> 0.009838990923 | CL93: =+X93*KeyAssumptionsPriceControl_FO!AJ$15 -> 0.01013416065 | CM93: =+Y93*KeyAssumptionsPriceControl_FO!AK$15 -> 0.01043818547 | CN93: =+Z93*KeyAssumptionsPriceControl_FO!AL$15 -> 0.01075133103 | CP93: 0.000412 | CQ93: 0.00124836 | CR93: 0.0021098108 | CS93: 0.002997105124 | CT93: 0.003911018278 | CU93: 0.005121010593 | CV93: 0.006359242824 | CW93: 0.007357900403 | CX93: 0.008386517709 | CY93: 0.009445993534
C94: Plant & Equipment - Renewals | E94: Water | F94: Renewals | G94: Corporate | H94: Capital Programs / Allocation | J94: Straight line | K94: Ongoing | L94: 10 | M94: 10 | Q94: 0.1455 | R94: 0.272 | S94: 0.141 | T94: 0.1535 | U94: 0.084 | V94: 0.08 | W94: 0.08 | X94: 0.08 | Y94: 0.08 | Z94: 0.08 | AX94: 0.1455 | AY94: 0.272 | AZ94: 0.141 | BA94: 0.1535 | BB94: 0.084 | BC94: 0.08 | BD94: 0.08 | BE94: 0.08 | BF94: 0.08 | BG94: 0.08 | BI94: 0.007275 | BJ94: 0.02815 | BK94: 0.0488 | BL94: 0.063525 | BM94: 0.0754 | BN94: 0.0836 | BO94: 0.0916 | BP94: 0.0996 | BQ94: 0.1076 | BR94: 0.1156 | BT94: =+IF($K94="Ongoing",AX94,IF(RIGHT($K94,2)=RIGHT(BT$39,2),SUM($AX94:AX94),0)+IF(RIGHT(BT$39,2)>RIGHT($K94,2),AX94,0)) -> 0.1455 | BU94: =+IF($K94="Ongoing",AY94,IF(RIGHT($K94,2)=RIGHT(BU$39,2),SUM($AX94:AY94),0)+IF(RIGHT(BU$39,2)>RIGHT($K94,2),AY94,0)) -> 0.272 | BV94: =+IF($K94="Ongoing",AZ94,IF(RIGHT($K94,2)=RIGHT(BV$39,2),SUM($AX94:AZ94),0)+IF(RIGHT(BV$39,2)>RIGHT($K94,2),AZ94,0)) -> 0.141 | BW94: =+IF($K94="Ongoing",BA94,IF(RIGHT($K94,2)=RIGHT(BW$39,2),SUM($AX94:BA94),0)+IF(RIGHT(BW$39,2)>RIGHT($K94,2),BA94,0)) -> 0.1535 | BX94: =+IF($K94="Ongoing",BB94,IF(RIGHT($K94,2)=RIGHT(BX$39,2),SUM($AX94:BB94),0)+IF(RIGHT(BX$39,2)>RIGHT($K94,2),BB94,0)) -> 0.084 | BY94: =+IF($K94="Ongoing",BC94,IF(RIGHT($K94,2)=RIGHT(BY$39,2),SUM($AX94:BC94),0)+IF(RIGHT(BY$39,2)>RIGHT($K94,2),BC94,0)) -> 0.08 | BZ94: =+IF($K94="Ongoing",BD94,IF(RIGHT($K94,2)=RIGHT(BZ$39,2),SUM($AX94:BD94),0)+IF(RIGHT(BZ$39,2)>RIGHT($K94,2),BD94,0)) -> 0.08 | CA94: =+IF($K94="Ongoing",BE94,IF(RIGHT($K94,2)=RIGHT(CA$39,2),SUM($AX94:BE94),0)+IF(RIGHT(CA$39,2)>RIGHT($K94,2),BE94,0)) -> 0.08 | CB94: =+IF($K94="Ongoing",BF94,IF(RIGHT($K94,2)=RIGHT(CB$39,2),SUM($AX94:BF94),0)+IF(RIGHT(CB$39,2)>RIGHT($K94,2),BF94,0)) -> 0.08 | CC94: =+IF($K94="Ongoing",BG94,IF(RIGHT($K94,2)=RIGHT(CC$39,2),SUM($AX94:BG94),0)+IF(RIGHT(CC$39,2)>RIGHT($K94,2),BG94,0)) -> 0.08 | CE94: =+Q94*KeyAssumptionsPriceControl_FO!AC$15 -> 0.149865 | CF94: =+R94*KeyAssumptionsPriceControl_FO!AD$15 -> 0.2885648 | CG94: =+S94*KeyAssumptionsPriceControl_FO!AE$15 -> 0.154074507 | CH94: =+T94*KeyAssumptionsPriceControl_FO!AF$15 -> 0.1727656023 | CI94: =+U94*KeyAssumptionsPriceControl_FO!AG$15 -> 0.09737902224 | CJ94: =+V94*KeyAssumptionsPriceControl_FO!AH$15 -> 0.09552418372 | CK94: =+W94*KeyAssumptionsPriceControl_FO!AI$15 -> 0.09838990923 | CL94: =+X94*KeyAssumptionsPriceControl_FO!AJ$15 -> 0.1013416065 | CM94: =+Y94*KeyAssumptionsPriceControl_FO!AK$15 -> 0.1043818547 | CN94: =+Z94*KeyAssumptionsPriceControl_FO!AL$15 -> 0.1075133103 | CP94: 0.00749325 | CQ94: 0.02941474 | CR94: 0.05154670535 | CS94: 0.06788871082 | CT94: 0.08139594205 | CU94: 0.09104110234 | CV94: 0.100736807 | CW94: 0.1107233828 | CX94: 0.1210095558 | CY94: 0.1316043141
C95: SCADA upgrades | E95: Water | F95: Improvements / Compliance | G95: Corporate | H95: Capital Programs / Allocation | J95: Straight line | K95: Ongoing | L95: 10 | M95: 10 | Q95: 0.14 | R95: 0.145 | S95: 0.145 | T95: 0.1475 | U95: 0.135 | V95: 0.115 | W95: 0.1085 | X95: 0.1105 | Y95: 0.1125 | Z95: 0.105 | AX95: 0.14 | AY95: 0.145 | AZ95: 0.145 | BA95: 0.1475 | BB95: 0.135 | BC95: 0.115 | BD95: 0.1085 | BE95: 0.1105 | BF95: 0.1125 | BG95: 0.105 | BI95: 0.007 | BJ95: 0.02125 | BK95: 0.03575 | BL95: 0.050375 | BM95: 0.0645 | BN95: 0.077 | BO95: 0.088175 | BP95: 0.099125 | BQ95: 0.110275 | BR95: 0.12115 | BT95: =+IF($K95="Ongoing",AX95,IF(RIGHT($K95,2)=RIGHT(BT$39,2),SUM($AX95:AX95),0)+IF(RIGHT(BT$39,2)>RIGHT($K95,2),AX95,0)) -> 0.14 | BU95: =+IF($K95="Ongoing",AY95,IF(RIGHT($K95,2)=RIGHT(BU$39,2),SUM($AX95:AY95),0)+IF(RIGHT(BU$39,2)>RIGHT($K95,2),AY95,0)) -> 0.145 | BV95: =+IF($K95="Ongoing",AZ95,IF(RIGHT($K95,2)=RIGHT(BV$39,2),SUM($AX95:AZ95),0)+IF(RIGHT(BV$39,2)>RIGHT($K95,2),AZ95,0)) -> 0.145 | BW95: =+IF($K95="Ongoing",BA95,IF(RIGHT($K95,2)=RIGHT(BW$39,2),SUM($AX95:BA95),0)+IF(RIGHT(BW$39,2)>RIGHT($K95,2),BA95,0)) -> 0.1475 | BX95: =+IF($K95="Ongoing",BB95,IF(RIGHT($K95,2)=RIGHT(BX$39,2),SUM($AX95:BB95),0)+IF(RIGHT(BX$39,2)>RIGHT($K95,2),BB95,0)) -> 0.135 | BY95: =+IF($K95="Ongoing",BC95,IF(RIGHT($K95,2)=RIGHT(BY$39,2),SUM($AX95:BC95),0)+IF(RIGHT(BY$39,2)>RIGHT($K95,2),BC95,0)) -> 0.115 | BZ95: =+IF($K95="Ongoing",BD95,IF(RIGHT($K95,2)=RIGHT(BZ$39,2),SUM($AX95:BD95),0)+IF(RIGHT(BZ$39,2)>RIGHT($K95,2),BD95,0)) -> 0.1085 | CA95: =+IF($K95="Ongoing",BE95,IF(RIGHT($K95,2)=RIGHT(CA$39,2),SUM($AX95:BE95),0)+IF(RIGHT(CA$39,2)>RIGHT($K95,2),BE95,0)) -> 0.1105 | CB95: =+IF($K95="Ongoing",BF95,IF(RIGHT($K95,2)=RIGHT(CB$39,2),SUM($AX95:BF95),0)+IF(RIGHT(CB$39,2)>RIGHT($K95,2),BF95,0)) -> 0.1125 | CC95: =+IF($K95="Ongoing",BG95,IF(RIGHT($K95,2)=RIGHT(CC$39,2),SUM($AX95:BG95),0)+IF(RIGHT(CC$39,2)>RIGHT($K95,2),BG95,0)) -> 0.105 | CE95: =+Q95*KeyAssumptionsPriceControl_FO!AC$15 -> 0.1442 | CF95: =+R95*KeyAssumptionsPriceControl_FO!AD$15 -> 0.1538305 | CG95: =+S95*KeyAssumptionsPriceControl_FO!AE$15 -> 0.158445415 | CH95: =+T95*KeyAssumptionsPriceControl_FO!AF$15 -> 0.1660125495 | CI95: =+U95*KeyAssumptionsPriceControl_FO!AG$15 -> 0.156502 | CJ95: =+V95*KeyAssumptionsPriceControl_FO!AH$15 -> 0.1373160141 | CK95: =+W95*KeyAssumptionsPriceControl_FO!AI$15 -> 0.1334413144 | CL95: =+X95*KeyAssumptionsPriceControl_FO!AJ$15 -> 0.139978094 | CM95: =+Y95*KeyAssumptionsPriceControl_FO!AK$15 -> 0.1467869832 | CN95: =+Z95*KeyAssumptionsPriceControl_FO!AL$15 -> 0.1411112198 | CP95: 0.00721 | CQ95: 0.022111525 | CR95: 0.03772532075 | CS95: 0.05394821897 | CT95: 0.07007394645 | CU95: 0.08476484716 | CV95: 0.09830271358 | CW95: 0.111973684 | CX95: 0.1263119379 | CY95: 0.140706848
C96: Office / Depot upgrades | E96: Water | F96: Renewals | G96: Corporate | H96: Capital Programs / Allocation | J96: Straight line | K96: Ongoing | L96: 20 | M96: 20 | Q96: 0.145 | R96: 0.1875 | S96: 0.105 | T96: 0.105 | U96: 0 | V96: 0.025 | W96: 0.025 | X96: 0.025 | Y96: 0.025 | Z96: 0.025 | AX96: 0.145 | AY96: 0.1875 | AZ96: 0.105 | BA96: 0.105 | BB96: 0 | BC96: 0.025 | BD96: 0.025 | BE96: 0.025 | BF96: 0.025 | BG96: 0.025 | BI96: 0.003625 | BJ96: 0.0119375 | BK96: 0.01925 | BL96: 0.0245 | BM96: 0.027125 | BN96: 0.02775 | BO96: 0.029 | BP96: 0.03025 | BQ96: 0.0315 | BR96: 0.03275 | BT96: =+IF($K96="Ongoing",AX96,IF(RIGHT($K96,2)=RIGHT(BT$39,2),SUM($AX96:AX96),0)+IF(RIGHT(BT$39,2)>RIGHT($K96,2),AX96,0)) -> 0.145 | BU96: =+IF($K96="Ongoing",AY96,IF(RIGHT($K96,2)=RIGHT(BU$39,2),SUM($AX96:AY96),0)+IF(RIGHT(BU$39,2)>RIGHT($K96,2),AY96,0)) -> 0.1875 | BV96: =+IF($K96="Ongoing",AZ96,IF(RIGHT($K96,2)=RIGHT(BV$39,2),SUM($AX96:AZ96),0)+IF(RIGHT(BV$39,2)>RIGHT($K96,2),AZ96,0)) -> 0.105 | BW96: =+IF($K96="Ongoing",BA96,IF(RIGHT($K96,2)=RIGHT(BW$39,2),SUM($AX96:BA96),0)+IF(RIGHT(BW$39,2)>RIGHT($K96,2),BA96,0)) -> 0.105 | BX96: =+IF($K96="Ongoing",BB96,IF(RIGHT($K96,2)=RIGHT(BX$39,2),SUM($AX96:BB96),0)+IF(RIGHT(BX$39,2)>RIGHT($K96,2),BB96,0)) -> 0 | BY96: =+IF($K96="Ongoing",BC96,IF(RIGHT($K96,2)=RIGHT(BY$39,2),SUM($AX96:BC96),0)+IF(RIGHT(BY$39,2)>RIGHT($K96,2),BC96,0)) -> 0.025 | BZ96: =+IF($K96="Ongoing",BD96,IF(RIGHT($K96,2)=RIGHT(BZ$39,2),SUM($AX96:BD96),0)+IF(RIGHT(BZ$39,2)>RIGHT($K96,2),BD96,0)) -> 0.025 | CA96: =+IF($K96="Ongoing",BE96,IF(RIGHT($K96,2)=RIGHT(CA$39,2),SUM($AX96:BE96),0)+IF(RIGHT(CA$39,2)>RIGHT($K96,2),BE96,0)) -> 0.025 | CB96: =+IF($K96="Ongoing",BF96,IF(RIGHT($K96,2)=RIGHT(CB$39,2),SUM($AX96:BF96),0)+IF(RIGHT(CB$39,2)>RIGHT($K96,2),BF96,0)) -> 0.025 | CC96: =+IF($K96="Ongoing",BG96,IF(RIGHT($K96,2)=RIGHT(CC$39,2),SUM($AX96:BG96),0)+IF(RIGHT(CC$39,2)>RIGHT($K96,2),BG96,0)) -> 0.025 | CE96: =+Q96*KeyAssumptionsPriceControl_FO!AC$15 -> 0.14935 | CF96: =+R96*KeyAssumptionsPriceControl_FO!AD$15 -> 0.19891875 | CG96: =+S96*KeyAssumptionsPriceControl_FO!AE$15 -> 0.114736335 | CH96: =+T96*KeyAssumptionsPriceControl_FO!AF$15 -> 0.1181784251 | CI96: =+U96*KeyAssumptionsPriceControl_FO!AG$15 -> 0 | CJ96: =+V96*KeyAssumptionsPriceControl_FO!AH$15 -> 0.02985130741 | CK96: =+W96*KeyAssumptionsPriceControl_FO!AI$15 -> 0.03074684664 | CL96: =+X96*KeyAssumptionsPriceControl_FO!AJ$15 -> 0.03166925203 | CM96: =+Y96*KeyAssumptionsPriceControl_FO!AK$15 -> 0.0326193296 | CN96: =+Z96*KeyAssumptionsPriceControl_FO!AL$15 -> 0.03359790948 | CP96: 0.00373375 | CQ96: 0.01244046875 | CR96: 0.02028184587 | CS96: 0.02610471488 | CT96: 0.0290591755 | CU96: 0.02980545819 | CV96: 0.03132041204 | CW96: 0.03288081451 | CX96: 0.03448802905 | CY96: 0.03614346002
C97: IOT Digital Meters | E97: Water | F97: Improvements / Compliance | G97: Pipelines/network | H97: Capital Programs / Allocation | J97: Straight line | K97: Ongoing | L97: 10 | M97: 10 | Q97: 0 | R97: 0 | S97: 0 | T97: 0 | U97: 0 | V97: 0.1 | W97: 0.1 | X97: 0.1 | Y97: 0.1 | Z97: 0.1 | AX97: 0 | AY97: 0 | AZ97: 0 | BA97: 0 | BB97: 0 | BC97: 0.1 | BD97: 0.1 | BE97: 0.1 | BF97: 0.1 | BG97: 0.1 | BI97: 0 | BJ97: 0 | BK97: 0 | BL97: 0 | BM97: 0 | BN97: 0.005 | BO97: 0.015 | BP97: 0.025 | BQ97: 0.035 | BR97: 0.045 | BT97: =+IF($K97="Ongoing",AX97,IF(RIGHT($K97,2)=RIGHT(BT$39,2),SUM($AX97:AX97),0)+IF(RIGHT(BT$39,2)>RIGHT($K97,2),AX97,0)) -> 0 | BU97: =+IF($K97="Ongoing",AY97,IF(RIGHT($K97,2)=RIGHT(BU$39,2),SUM($AX97:AY97),0)+IF(RIGHT(BU$39,2)>RIGHT($K97,2),AY97,0)) -> 0 | BV97: =+IF($K97="Ongoing",AZ97,IF(RIGHT($K97,2)=RIGHT(BV$39,2),SUM($AX97:AZ97),0)+IF(RIGHT(BV$39,2)>RIGHT($K97,2),AZ97,0)) -> 0 | BW97: =+IF($K97="Ongoing",BA97,IF(RIGHT($K97,2)=RIGHT(BW$39,2),SUM($AX97:BA97),0)+IF(RIGHT(BW$39,2)>RIGHT($K97,2),BA97,0)) -> 0 | BX97: =+IF($K97="Ongoing",BB97,IF(RIGHT($K97,2)=RIGHT(BX$39,2),SUM($AX97:BB97),0)+IF(RIGHT(BX$39,2)>RIGHT($K97,2),BB97,0)) -> 0 | BY97: =+IF($K97="Ongoing",BC97,IF(RIGHT($K97,2)=RIGHT(BY$39,2),SUM($AX97:BC97),0)+IF(RIGHT(BY$39,2)>RIGHT($K97,2),BC97,0)) -> 0.1 | BZ97: =+IF($K97="Ongoing",BD97,IF(RIGHT($K97,2)=RIGHT(BZ$39,2),SUM($AX97:BD97),0)+IF(RIGHT(BZ$39,2)>RIGHT($K97,2),BD97,0)) -> 0.1 | CA97: =+IF($K97="Ongoing",BE97,IF(RIGHT($K97,2)=RIGHT(CA$39,2),SUM($AX97:BE97),0)+IF(RIGHT(CA$39,2)>RIGHT($K97,2),BE97,0)) -> 0.1 | CB97: =+IF($K97="Ongoing",BF97,IF(RIGHT($K97,2)=RIGHT(CB$39,2),SUM($AX97:BF97),0)+IF(RIGHT(CB$39,2)>RIGHT($K97,2),BF97,0)) -> 0.1 | CC97: =+IF($K97="Ongoing",BG97,IF(RIGHT($K97,2)=RIGHT(CC$39,2),SUM($AX97:BG97),0)+IF(RIGHT(CC$39,2)>RIGHT($K97,2),BG97,0)) -> 0.1 | CE97: =+Q97*KeyAssumptionsPriceControl_FO!AC$15 -> 0 | CF97: =+R97*KeyAssumptionsPriceControl_FO!AD$15 -> 0 | CG97: =+S97*KeyAssumptionsPriceControl_FO!AE$15 -> 0 | CH97: =+T97*KeyAssumptionsPriceControl_FO!AF$15 -> 0 | CI97: =+U97*KeyAssumptionsPriceControl_FO!AG$15 -> 0 | CJ97: =+V97*KeyAssumptionsPriceControl_FO!AH$15 -> 0.1194052297 | CK97: =+W97*KeyAssumptionsPriceControl_FO!AI$15 -> 0.1229873865 | CL97: =+X97*KeyAssumptionsPriceControl_FO!AJ$15 -> 0.1266770081 | CM97: =+Y97*KeyAssumptionsPriceControl_FO!AK$15 -> 0.1304773184 | CN97: =+Z97*KeyAssumptionsPriceControl_FO!AL$15 -> 0.1343916379 | CP97: 0 | CQ97: 0 | CR97: 0 | CS97: 0 | CT97: 0 | CU97: 0.005970261483 | CV97: 0.01808989229 | CW97: 0.03057311203 | CX97: 0.04343082835 | CY97: 0.05667427617
C98: IOT Digital Meters | E98: Sewerage | F98: Improvements / Compliance | G98: Pipelines/network | H98: Capital Programs / Allocation | J98: Straight line | K98: Ongoing | L98: 10 | M98: 10 | Q98: 0 | R98: 0 | S98: 0 | T98: 0 | U98: 0 | V98: 0.1 | W98: 0.1 | X98: 0.1 | Y98: 0.1 | Z98: 0.1 | AX98: 0 | AY98: 0 | AZ98: 0 | BA98: 0 | BB98: 0 | BC98: 0.1 | BD98: 0.1 | BE98: 0.1 | BF98: 0.1 | BG98: 0.1 | BI98: 0 | BJ98: 0 | BK98: 0 | BL98: 0 | BM98: 0 | BN98: 0.005 | BO98: 0.015 | BP98: 0.025 | BQ98: 0.035 | BR98: 0.045 | BT98: =+IF($K98="Ongoing",AX98,IF(RIGHT($K98,2)=RIGHT(BT$39,2),SUM($AX98:AX98),0)+IF(RIGHT(BT$39,2)>RIGHT($K98,2),AX98,0)) -> 0 | BU98: =+IF($K98="Ongoing",AY98,IF(RIGHT($K98,2)=RIGHT(BU$39,2),SUM($AX98:AY98),0)+IF(RIGHT(BU$39,2)>RIGHT($K98,2),AY98,0)) -> 0 | BV98: =+IF($K98="Ongoing",AZ98,IF(RIGHT($K98,2)=RIGHT(BV$39,2),SUM($AX98:AZ98),0)+IF(RIGHT(BV$39,2)>RIGHT($K98,2),AZ98,0)) -> 0 | BW98: =+IF($K98="Ongoing",BA98,IF(RIGHT($K98,2)=RIGHT(BW$39,2),SUM($AX98:BA98),0)+IF(RIGHT(BW$39,2)>RIGHT($K98,2),BA98,0)) -> 0 | BX98: =+IF($K98="Ongoing",BB98,IF(RIGHT($K98,2)=RIGHT(BX$39,2),SUM($AX98:BB98),0)+IF(RIGHT(BX$39,2)>RIGHT($K98,2),BB98,0)) -> 0 | BY98: =+IF($K98="Ongoing",BC98,IF(RIGHT($K98,2)=RIGHT(BY$39,2),SUM($AX98:BC98),0)+IF(RIGHT(BY$39,2)>RIGHT($K98,2),BC98,0)) -> 0.1 | BZ98: =+IF($K98="Ongoing",BD98,IF(RIGHT($K98,2)=RIGHT(BZ$39,2),SUM($AX98:BD98),0)+IF(RIGHT(BZ$39,2)>RIGHT($K98,2),BD98,0)) -> 0.1 | CA98: =+IF($K98="Ongoing",BE98,IF(RIGHT($K98,2)=RIGHT(CA$39,2),SUM($AX98:BE98),0)+IF(RIGHT(CA$39,2)>RIGHT($K98,2),BE98,0)) -> 0.1 | CB98: =+IF($K98="Ongoing",BF98,IF(RIGHT($K98,2)=RIGHT(CB$39,2),SUM($AX98:BF98),0)+IF(RIGHT(CB$39,2)>RIGHT($K98,2),BF98,0)) -> 0.1 | CC98: =+IF($K98="Ongoing",BG98,IF(RIGHT($K98,2)=RIGHT(CC$39,2),SUM($AX98:BG98),0)+IF(RIGHT(CC$39,2)>RIGHT($K98,2),BG98,0)) -> 0.1 | CE98: =+Q98*KeyAssumptionsPriceControl_FO!AC$15 -> 0 | CF98: =+R98*KeyAssumptionsPriceControl_FO!AD$15 -> 0 | CG98: =+S98*KeyAssumptionsPriceControl_FO!AE$15 -> 0 | CH98: =+T98*KeyAssumptionsPriceControl_FO!AF$15 -> 0 | CI98: =+U98*KeyAssumptionsPriceControl_FO!AG$15 -> 0 | CJ98: =+V98*KeyAssumptionsPriceControl_FO!AH$15 -> 0.1194052297 | CK98: =+W98*KeyAssumptionsPriceControl_FO!AI$15 -> 0.1229873865 | CL98: =+X98*KeyAssumptionsPriceControl_FO!AJ$15 -> 0.1266770081 | CM98: =+Y98*KeyAssumptionsPriceControl_FO!AK$15 -> 0.1304773184 | CN98: =+Z98*KeyAssumptionsPriceControl_FO!AL$15 -> 0.1343916379 | CP98: 0 | CQ98: 0 | CR98: 0 | CS98: 0 | CT98: 0 | CU98: 0.005970261483 | CV98: 0.01808989229 | CW98: 0.03057311203 | CX98: 0.04343082835 | CY98: 0.05667427617
C99: Metung CWS - Tank inlet water main replacement of 150m of DN150 to DN300 | E99: Water | F99: Renewals | G99: Pipelines/network | H99: Other Capital expenditure | J99: Straight line | K99: 2030-31 | L99: 80 | M99: 80 | Q99: 0 | R99: 0 | S99: 0 | T99: 0 | U99: 0 | V99: 0 | W99: 0.02 | X99: 0.113 | Y99: 0 | Z99: 0 | AX99: 0 | AY99: 0 | AZ99: 0 | BA99: 0 | BB99: 0 | BC99: 0 | BD99: 0.02 | BE99: 0.113 | BF99: 0 | BG99: 0 | BI99: 0 | BJ99: 0 | BK99: 0 | BL99: 0 | BM99: 0 | BN99: 0 | BO99: 0 | BP99: 0.00083125 | BQ99: 0.0016625 | BR99: 0.0016625 | BT99: =+IF($K99="Ongoing",AX99,IF(RIGHT($K99,2)=RIGHT(BT$39,2),SUM($AX99:AX99),0)+IF(RIGHT(BT$39,2)>RIGHT($K99,2),AX99,0)) -> 0 | BU99: =+IF($K99="Ongoing",AY99,IF(RIGHT($K99,2)=RIGHT(BU$39,2),SUM($AX99:AY99),0)+IF(RIGHT(BU$39,2)>RIGHT($K99,2),AY99,0)) -> 0 | BV99: =+IF($K99="Ongoing",AZ99,IF(RIGHT($K99,2)=RIGHT(BV$39,2),SUM($AX99:AZ99),0)+IF(RIGHT(BV$39,2)>RIGHT($K99,2),AZ99,0)) -> 0 | BW99: =+IF($K99="Ongoing",BA99,IF(RIGHT($K99,2)=RIGHT(BW$39,2),SUM($AX99:BA99),0)+IF(RIGHT(BW$39,2)>RIGHT($K99,2),BA99,0)) -> 0 | BX99: =+IF($K99="Ongoing",BB99,IF(RIGHT($K99,2)=RIGHT(BX$39,2),SUM($AX99:BB99),0)+IF(RIGHT(BX$39,2)>RIGHT($K99,2),BB99,0)) -> 0 | BY99: =+IF($K99="Ongoing",BC99,IF(RIGHT($K99,2)=RIGHT(BY$39,2),SUM($AX99:BC99),0)+IF(RIGHT(BY$39,2)>RIGHT($K99,2),BC99,0)) -> 0 | BZ99: =+IF($K99="Ongoing",BD99,IF(RIGHT($K99,2)=RIGHT(BZ$39,2),SUM($AX99:BD99),0)+IF(RIGHT(BZ$39,2)>RIGHT($K99,2),BD99,0)) -> 0 | CA99: =+IF($K99="Ongoing",BE99,IF(RIGHT($K99,2)=RIGHT(CA$39,2),SUM($AX99:BE99),0)+IF(RIGHT(CA$39,2)>RIGHT($K99,2),BE99,0)) -> 0.133 | CB99: =+IF($K99="Ongoing",BF99,IF(RIGHT($K99,2)=RIGHT(CB$39,2),SUM($AX99:BF99),0)+IF(RIGHT(CB$39,2)>RIGHT($K99,2),BF99,0)) -> 0 | CC99: =+IF($K99="Ongoing",BG99,IF(RIGHT($K99,2)=RIGHT(CC$39,2),SUM($AX99:BG99),0)+IF(RIGHT(CC$39,2)>RIGHT($K99,2),BG99,0)) -> 0 | CE99: =+Q99*KeyAssumptionsPriceControl_FO!AC$15 -> 0 | CF99: =+R99*KeyAssumptionsPriceControl_FO!AD$15 -> 0 | CG99: =+S99*KeyAssumptionsPriceControl_FO!AE$15 -> 0 | CH99: =+T99*KeyAssumptionsPriceControl_FO!AF$15 -> 0 | CI99: =+U99*KeyAssumptionsPriceControl_FO!AG$15 -> 0 | CJ99: =+V99*KeyAssumptionsPriceControl_FO!AH$15 -> 0 | CK99: =+W99*KeyAssumptionsPriceControl_FO!AI$15 -> 0.02459747731 | CL99: =+X99*KeyAssumptionsPriceControl_FO!AJ$15 -> 0.1431450192 | CM99: =+Y99*KeyAssumptionsPriceControl_FO!AK$15 -> 0 | CN99: =+Z99*KeyAssumptionsPriceControl_FO!AL$15 -> 0 | CP99: 0 | CQ99: 0 | CR99: 0 | CS99: 0 | CT99: 0 | CU99: 0 | CV99: 0.0001537342332 | CW99: 0.001202124836 | CX99: 0.002096781206 | CY99: 0.002096781206
C100: Bruces Track Farm - Expand irrigation system by around 30Ha | E100: Recycled Water | F100: Growth | G100: Pipelines/network | H100: Other Capital expenditure | J100: Straight line | K100: 2028-29 | L100: 50 | M100: 50 | Q100: 0 | R100: 0 | S100: 0 | T100: 0 | U100: 0.09 | V100: 0.36 | W100: 0 | X100: 0 | Y100: 0 | Z100: 0 | AX100: 0 | AY100: 0 | AZ100: 0 | BA100: 0 | BB100: 0.09 | BC100: 0.36 | BD100: 0 | BE100: 0 | BF100: 0 | BG100: 0 | BI100: 0 | BJ100: 0 | BK100: 0 | BL100: 0 | BM100: 0 | BN100: 0.0045 | BO100: 0.009 | BP100: 0.009 | BQ100: 0.009 | BR100: 0.009 | BT100: =+IF($K100="Ongoing",AX100,IF(RIGHT($K100,2)=RIGHT(BT$39,2),SUM($AX100:AX100),0)+IF(RIGHT(BT$39,2)>RIGHT($K100,2),AX100,0)) -> 0 | BU100: =+IF($K100="Ongoing",AY100,IF(RIGHT($K100,2)=RIGHT(BU$39,2),SUM($AX100:AY100),0)+IF(RIGHT(BU$39,2)>RIGHT($K100,2),AY100,0)) -> 0 | BV100: =+IF($K100="Ongoing",AZ100,IF(RIGHT($K100,2)=RIGHT(BV$39,2),SUM($AX100:AZ100),0)+IF(RIGHT(BV$39,2)>RIGHT($K100,2),AZ100,0)) -> 0 | BW100: =+IF($K100="Ongoing",BA100,IF(RIGHT($K100,2)=RIGHT(BW$39,2),SUM($AX100:BA100),0)+IF(RIGHT(BW$39,2)>RIGHT($K100,2),BA100,0)) -> 0 | BX100: =+IF($K100="Ongoing",BB100,IF(RIGHT($K100,2)=RIGHT(BX$39,2),SUM($AX100:BB100),0)+IF(RIGHT(BX$39,2)>RIGHT($K100,2),BB100,0)) -> 0 | BY100: =+IF($K100="Ongoing",BC100,IF(RIGHT($K100,2)=RIGHT(BY$39,2),SUM($AX100:BC100),0)+IF(RIGHT(BY$39,2)>RIGHT($K100,2),BC100,0)) -> 0.45 | BZ100: =+IF($K100="Ongoing",BD100,IF(RIGHT($K100,2)=RIGHT(BZ$39,2),SUM($AX100:BD100),0)+IF(RIGHT(BZ$39,2)>RIGHT($K100,2),BD100,0)) -> 0 | CA100: =+IF($K100="Ongoing",BE100,IF(RIGHT($K100,2)=RIGHT(CA$39,2),SUM($AX100:BE100),0)+IF(RIGHT(CA$39,2)>RIGHT($K100,2),BE100,0)) -> 0 | CB100: =+IF($K100="Ongoing",BF100,IF(RIGHT($K100,2)=RIGHT(CB$39,2),SUM($AX100:BF100),0)+IF(RIGHT(CB$39,2)>RIGHT($K100,2),BF100,0)) -> 0 | CC100: =+IF($K100="Ongoing",BG100,IF(RIGHT($K100,2)=RIGHT(CC$39,2),SUM($AX100:BG100),0)+IF(RIGHT(CC$39,2)>RIGHT($K100,2),BG100,0)) -> 0 | CE100: =+Q100*KeyAssumptionsPriceControl_FO!AC$15 -> 0 | CF100: =+R100*KeyAssumptionsPriceControl_FO!AD$15 -> 0 | CG100: =+S100*KeyAssumptionsPriceControl_FO!AE$15 -> 0 | CH100: =+T100*KeyAssumptionsPriceControl_FO!AF$15 -> 0 | CI100: =+U100*KeyAssumptionsPriceControl_FO!AG$15 -> 0.1043346667 | CJ100: =+V100*KeyAssumptionsPriceControl_FO!AH$15 -> 0.4298588268 | CK100: =+W100*KeyAssumptionsPriceControl_FO!AI$15 -> 0 | CL100: =+X100*KeyAssumptionsPriceControl_FO!AJ$15 -> 0 | CM100: =+Y100*KeyAssumptionsPriceControl_FO!AK$15 -> 0 | CN100: =+Z100*KeyAssumptionsPriceControl_FO!AL$15 -> 0 | CP100: 0 | CQ100: 0 | CR100: 0 | CS100: 0 | CT100: 0.001043346667 | CU100: 0.006385281601 | CV100: 0.01068386987 | CW100: 0.01068386987 | CX100: 0.01068386987 | CY100: 0.01068386987
C101: Eagle Point WPS upgrade to 225L/s (+117L/s) | E101: Water | F101: Growth | G101: Treatment | H101: Other Capital expenditure | J101: Straight line | K101: 2025-26 | L101: 20 | M101: 20 | Q101: 0.112 | R101: 0.448 | S101: 0.4 | T101: 0 | U101: 0 | V101: 0 | W101: 0 | X101: 0 | Y101: 0 | Z101: 0 | AX101: 0.112 | AY101: 0.448 | AZ101: 0.4 | BA101: 0 | BB101: 0 | BC101: 0 | BD101: 0 | BE101: 0 | BF101: 0 | BG101: 0 | BI101: 0 | BJ101: 0 | BK101: 0.024 | BL101: 0.048 | BM101: 0.048 | BN101: 0.048 | BO101: 0.048 | BP101: 0.048 | BQ101: 0.048 | BR101: 0.048 | BT101: =+IF($K101="Ongoing",AX101,IF(RIGHT($K101,2)=RIGHT(BT$39,2),SUM($AX101:AX101),0)+IF(RIGHT(BT$39,2)>RIGHT($K101,2),AX101,0)) -> 0 | BU101: =+IF($K101="Ongoing",AY101,IF(RIGHT($K101,2)=RIGHT(BU$39,2),SUM($AX101:AY101),0)+IF(RIGHT(BU$39,2)>RIGHT($K101,2),AY101,0)) -> 0 | BV101: =+IF($K101="Ongoing",AZ101,IF(RIGHT($K101,2)=RIGHT(BV$39,2),SUM($AX101:AZ101),0)+IF(RIGHT(BV$39,2)>RIGHT($K101,2),AZ101,0)) -> 0.96 | BW101: =+IF($K101="Ongoing",BA101,IF(RIGHT($K101,2)=RIGHT(BW$39,2),SUM($AX101:BA101),0)+IF(RIGHT(BW$39,2)>RIGHT($K101,2),BA101,0)) -> 0 | BX101: =+IF($K101="Ongoing",BB101,IF(RIGHT($K101,2)=RIGHT(BX$39,2),SUM($AX101:BB101),0)+IF(RIGHT(BX$39,2)>RIGHT($K101,2),BB101,0)) -> 0 | BY101: =+IF($K101="Ongoing",BC101,IF(RIGHT($K101,2)=RIGHT(BY$39,2),SUM($AX101:BC101),0)+IF(RIGHT(BY$39,2)>RIGHT($K101,2),BC101,0)) -> 0 | BZ101: =+IF($K101="Ongoing",BD101,IF(RIGHT($K101,2)=RIGHT(BZ$39,2),SUM($AX101:BD101),0)+IF(RIGHT(BZ$39,2)>RIGHT($K101,2),BD101,0)) -> 0 | CA101: =+IF($K101="Ongoing",BE101,IF(RIGHT($K101,2)=RIGHT(CA$39,2),SUM($AX101:BE101),0)+IF(RIGHT(CA$39,2)>RIGHT($K101,2),BE101,0)) -> 0 | CB101: =+IF($K101="Ongoing",BF101,IF(RIGHT($K101,2)=RIGHT(CB$39,2),SUM($AX101:BF101),0)+IF(RIGHT(CB$39,2)>RIGHT($K101,2),BF101,0)) -> 0 | CC101: =+IF($K101="Ongoing",BG101,IF(RIGHT($K101,2)=RIGHT(CC$39,2),SUM($AX101:BG101),0)+IF(RIGHT(CC$39,2)>RIGHT($K101,2),BG101,0)) -> 0 | CE101: =+Q101*KeyAssumptionsPriceControl_FO!AC$15 -> 0.11536 | CF101: =+R101*KeyAssumptionsPriceControl_FO!AD$15 -> 0.4752832 | CG101: =+S101*KeyAssumptionsPriceControl_FO!AE$15 -> 0.4370908 | CH101: =+T101*KeyAssumptionsPriceControl_FO!AF$15 -> 0 | CI101: =+U101*KeyAssumptionsPriceControl_FO!AG$15 -> 0 | CJ101: =+V101*KeyAssumptionsPriceControl_FO!AH$15 -> 0 | CK101: =+W101*KeyAssumptionsPriceControl_FO!AI$15 -> 0 | CL101: =+X101*KeyAssumptionsPriceControl_FO!AJ$15 -> 0 | CM101: =+Y101*KeyAssumptionsPriceControl_FO!AK$15 -> 0 | CN101: =+Z101*KeyAssumptionsPriceControl_FO!AL$15 -> 0 | CP101: 0.002884 | CQ101: 0.01765008 | CR101: 0.04045943 | CS101: 0.0513867 | CT101: 0.0513867 | CU101: 0.0513867 | CV101: 0.0513867 | CW101: 0.0513867 | CX101: 0.0513867 | CY101: 0.0513867
C102: Bairnsdale to Paynesville Road - MSPL (2120m DN450 and 850m DN450) | E102: Water | F102: Renewals | G102: Pipelines/network | H102: Other Capital expenditure | J102: Straight line | K102: 2030-31 | L102: 80 | M102: 80 | Q102: 0 | R102: 0 | S102: 0 | T102: 0 | U102: 0.286 | V102: 0.5 | W102: 1 | X102: 0.656 | Y102: 0 | Z102: 0 | AX102: 0 | AY102: 0 | AZ102: 0 | BA102: 0 | BB102: 0.286 | BC102: 0.5 | BD102: 1 | BE102: 0.656 | BF102: 0 | BG102: 0 | BI102: 0 | BJ102: 0 | BK102: 0 | BL102: 0 | BM102: 0 | BN102: 0 | BO102: 0 | BP102: 0.0152625 | BQ102: 0.030525 | BR102: 0.030525 | BT102: =+IF($K102="Ongoing",AX102,IF(RIGHT($K102,2)=RIGHT(BT$39,2),SUM($AX102:AX102),0)+IF(RIGHT(BT$39,2)>RIGHT($K102,2),AX102,0)) -> 0 | BU102: =+IF($K102="Ongoing",AY102,IF(RIGHT($K102,2)=RIGHT(BU$39,2),SUM($AX102:AY102),0)+IF(RIGHT(BU$39,2)>RIGHT($K102,2),AY102,0)) -> 0 | BV102: =+IF($K102="Ongoing",AZ102,IF(RIGHT($K102,2)=RIGHT(BV$39,2),SUM($AX102:AZ102),0)+IF(RIGHT(BV$39,2)>RIGHT($K102,2),AZ102,0)) -> 0 | BW102: =+IF($K102="Ongoing",BA102,IF(RIGHT($K102,2)=RIGHT(BW$39,2),SUM($AX102:BA102),0)+IF(RIGHT(BW$39,2)>RIGHT($K102,2),BA102,0)) -> 0 | BX102: =+IF($K102="Ongoing",BB102,IF(RIGHT($K102,2)=RIGHT(BX$39,2),SUM($AX102:BB102),0)+IF(RIGHT(BX$39,2)>RIGHT($K102,2),BB102,0)) -> 0 | BY102: =+IF($K102="Ongoing",BC102,IF(RIGHT($K102,2)=RIGHT(BY$39,2),SUM($AX102:BC102),0)+IF(RIGHT(BY$39,2)>RIGHT($K102,2),BC102,0)) -> 0 | BZ102: =+IF($K102="Ongoing",BD102,IF(RIGHT($K102,2)=RIGHT(BZ$39,2),SUM($AX102:BD102),0)+IF(RIGHT(BZ$39,2)>RIGHT($K102,2),BD102,0)) -> 0 | CA102: =+IF($K102="Ongoing",BE102,IF(RIGHT($K102,2)=RIGHT(CA$39,2),SUM($AX102:BE102),0)+IF(RIGHT(CA$39,2)>RIGHT($K102,2),BE102,0)) -> 2.442 | CB102: =+IF($K102="Ongoing",BF102,IF(RIGHT($K102,2)=RIGHT(CB$39,2),SUM($AX102:BF102),0)+IF(RIGHT(CB$39,2)>RIGHT($K102,2),BF102,0)) -> 0 | CC102: =+IF($K102="Ongoing",BG102,IF(RIGHT($K102,2)=RIGHT(CC$39,2),SUM($AX102:BG102),0)+IF(RIGHT(CC$39,2)>RIGHT($K102,2),BG102,0)) -> 0 | CE102: =+Q102*KeyAssumptionsPriceControl_FO!AC$15 -> 0 | CF102: =+R102*KeyAssumptionsPriceControl_FO!AD$15 -> 0 | CG102: =+S102*KeyAssumptionsPriceControl_FO!AE$15 -> 0 | CH102: =+T102*KeyAssumptionsPriceControl_FO!AF$15 -> 0 | CI102: =+U102*KeyAssumptionsPriceControl_FO!AG$15 -> 0.3315523852 | CJ102: =+V102*KeyAssumptionsPriceControl_FO!AH$15 -> 0.5970261483 | CK102: =+W102*KeyAssumptionsPriceControl_FO!AI$15 -> 1.229873865 | CL102: =+X102*KeyAssumptionsPriceControl_FO!AJ$15 -> 0.8310011734 | CM102: =+Y102*KeyAssumptionsPriceControl_FO!AK$15 -> 0 | CN102: =+Z102*KeyAssumptionsPriceControl_FO!AL$15 -> 0 | CP102: 0 | CQ102: 0 | CR102: 0 | CS102: 0 | CT102: 0.002072202408 | CU102: 0.007875818242 | CV102: 0.01929394333 | CW102: 0.03217441232 | CX102: 0.03736816965 | CY102: 0.03736816965
C103: Mallacoota WTP - 4ML CWS tank | E103: Water | F103: Improvements / Compliance | G103: Pipelines/network | H103: Other Capital expenditure | J103: Straight line | K103: 2023-24 | L103: 50 | M103: 50 | Q103: 0.8 | R103: 0 | S103: 0 | T103: 0 | U103: 0 | V103: 0 | W103: 0 | X103: 0 | Y103: 0 | Z103: 0 | AX103: 0.8 | AY103: 0 | AZ103: 0 | BA103: 0 | BB103: 0 | BC103: 0 | BD103: 0 | BE103: 0 | BF103: 0 | BG103: 0 | BI103: 0.008 | BJ103: 0.016 | BK103: 0.016 | BL103: 0.016 | BM103: 0.016 | BN103: 0.016 | BO103: 0.016 | BP103: 0.016 | BQ103: 0.016 | BR103: 0.016 | BT103: =+IF($K103="Ongoing",AX103,IF(RIGHT($K103,2)=RIGHT(BT$39,2),SUM($AX103:AX103),0)+IF(RIGHT(BT$39,2)>RIGHT($K103,2),AX103,0)) -> 0.8 | BU103: =+IF($K103="Ongoing",AY103,IF(RIGHT($K103,2)=RIGHT(BU$39,2),SUM($AX103:AY103),0)+IF(RIGHT(BU$39,2)>RIGHT($K103,2),AY103,0)) -> 0 | BV103: =+IF($K103="Ongoing",AZ103,IF(RIGHT($K103,2)=RIGHT(BV$39,2),SUM($AX103:AZ103),0)+IF(RIGHT(BV$39,2)>RIGHT($K103,2),AZ103,0)) -> 0 | BW103: =+IF($K103="Ongoing",BA103,IF(RIGHT($K103,2)=RIGHT(BW$39,2),SUM($AX103:BA103),0)+IF(RIGHT(BW$39,2)>RIGHT($K103,2),BA103,0)) -> 0 | BX103: =+IF($K103="Ongoing",BB103,IF(RIGHT($K103,2)=RIGHT(BX$39,2),SUM($AX103:BB103),0)+IF(RIGHT(BX$39,2)>RIGHT($K103,2),BB103,0)) -> 0 | BY103: =+IF($K103="Ongoing",BC103,IF(RIGHT($K103,2)=RIGHT(BY$39,2),SUM($AX103:BC103),0)+IF(RIGHT(BY$39,2)>RIGHT($K103,2),BC103,0)) -> 0 | BZ103: =+IF($K103="Ongoing",BD103,IF(RIGHT($K103,2)=RIGHT(BZ$39,2),SUM($AX103:BD103),0)+IF(RIGHT(BZ$39,2)>RIGHT($K103,2),BD103,0)) -> 0 | CA103: =+IF($K103="Ongoing",BE103,IF(RIGHT($K103,2)=RIGHT(CA$39,2),SUM($AX103:BE103),0)+IF(RIGHT(CA$39,2)>RIGHT($K103,2),BE103,0)) -> 0 | CB103: =+IF($K103="Ongoing",BF103,IF(RIGHT($K103,2)=RIGHT(CB$39,2),SUM($AX103:BF103),0)+IF(RIGHT(CB$39,2)>RIGHT($K103,2),BF103,0)) -> 0 | CC103: =+IF($K103="Ongoing",BG103,IF(RIGHT($K103,2)=RIGHT(CC$39,2),SUM($AX103:BG103),0)+IF(RIGHT(CC$39,2)>RIGHT($K103,2),BG103,0)) -> 0 | CE103: =+Q103*KeyAssumptionsPriceControl_FO!AC$15 -> 0.824 | CF103: =+R103*KeyAssumptionsPriceControl_FO!AD$15 -> 0 | CG103: =+S103*KeyAssumptionsPriceControl_FO!AE$15 -> 0 | CH103: =+T103*KeyAssumptionsPriceControl_FO!AF$15 -> 0 | CI103: =+U103*KeyAssumptionsPriceControl_FO!AG$15 -> 0 | CJ103: =+V103*KeyAssumptionsPriceControl_FO!AH$15 -> 0 | CK103: =+W103*KeyAssumptionsPriceControl_FO!AI$15 -> 0 | CL103: =+X103*KeyAssumptionsPriceControl_FO!AJ$15 -> 0 | CM103: =+Y103*KeyAssumptionsPriceControl_FO!AK$15 -> 0 | CN103: =+Z103*KeyAssumptionsPriceControl_FO!AL$15 -> 0 | CP103: 0.00824 | CQ103: 0.01648 | CR103: 0.01648 | CS103: 0.01648 | CT103: 0.01648 | CU103: 0.01648 | CV103: 0.01648 | CW103: 0.01648 | CX103: 0.01648 | CY103: 0.01648
C104: Bairnsdale Sewer Network Upgrade for Clifton West Growth | E104: Sewerage | F104: Growth | G104: Pipelines/network | H104: Other Capital expenditure | J104: Straight line | K104: 2032-33 | L104: 80 | M104: 80 | Q104: 0 | R104: 0 | S104: 0 | T104: 0 | U104: 0 | V104: 0 | W104: 0 | X104: 0 | Y104: 0 | Z104: 0.5 | AX104: 0 | AY104: 0 | AZ104: 0 | BA104: 0 | BB104: 0 | BC104: 0 | BD104: 0 | BE104: 0 | BF104: 0 | BG104: 0.5 | BI104: 0 | BJ104: 0 | BK104: 0 | BL104: 0 | BM104: 0 | BN104: 0 | BO104: 0 | BP104: 0 | BQ104: 0 | BR104: 0.003125 | BT104: =+IF($K104="Ongoing",AX104,IF(RIGHT($K104,2)=RIGHT(BT$39,2),SUM($AX104:AX104),0)+IF(RIGHT(BT$39,2)>RIGHT($K104,2),AX104,0)) -> 0 | BU104: =+IF($K104="Ongoing",AY104,IF(RIGHT($K104,2)=RIGHT(BU$39,2),SUM($AX104:AY104),0)+IF(RIGHT(BU$39,2)>RIGHT($K104,2),AY104,0)) -> 0 | BV104: =+IF($K104="Ongoing",AZ104,IF(RIGHT($K104,2)=RIGHT(BV$39,2),SUM($AX104:AZ104),0)+IF(RIGHT(BV$39,2)>RIGHT($K104,2),AZ104,0)) -> 0 | BW104: =+IF($K104="Ongoing",BA104,IF(RIGHT($K104,2)=RIGHT(BW$39,2),SUM($AX104:BA104),0)+IF(RIGHT(BW$39,2)>RIGHT($K104,2),BA104,0)) -> 0 | BX104: =+IF($K104="Ongoing",BB104,IF(RIGHT($K104,2)=RIGHT(BX$39,2),SUM($AX104:BB104),0)+IF(RIGHT(BX$39,2)>RIGHT($K104,2),BB104,0)) -> 0 | BY104: =+IF($K104="Ongoing",BC104,IF(RIGHT($K104,2)=RIGHT(BY$39,2),SUM($AX104:BC104),0)+IF(RIGHT(BY$39,2)>RIGHT($K104,2),BC104,0)) -> 0 | BZ104: =+IF($K104="Ongoing",BD104,IF(RIGHT($K104,2)=RIGHT(BZ$39,2),SUM($AX104:BD104),0)+IF(RIGHT(BZ$39,2)>RIGHT($K104,2),BD104,0)) -> 0 | CA104: =+IF($K104="Ongoing",BE104,IF(RIGHT($K104,2)=RIGHT(CA$39,2),SUM($AX104:BE104),0)+IF(RIGHT(CA$39,2)>RIGHT($K104,2),BE104,0)) -> 0 | CB104: =+IF($K104="Ongoing",BF104,IF(RIGHT($K104,2)=RIGHT(CB$39,2),SUM($AX104:BF104),0)+IF(RIGHT(CB$39,2)>RIGHT($K104,2),BF104,0)) -> 0 | CC104: =+IF($K104="Ongoing",BG104,IF(RIGHT($K104,2)=RIGHT(CC$39,2),SUM($AX104:BG104),0)+IF(RIGHT(CC$39,2)>RIGHT($K104,2),BG104,0)) -> 0.5 | CE104: =+Q104*KeyAssumptionsPriceControl_FO!AC$15 -> 0 | CF104: =+R104*KeyAssumptionsPriceControl_FO!AD$15 -> 0 | CG104: =+S104*KeyAssumptionsPriceControl_FO!AE$15 -> 0 | CH104: =+T104*KeyAssumptionsPriceControl_FO!AF$15 -> 0 | CI104: =+U104*KeyAssumptionsPriceControl_FO!AG$15 -> 0 | CJ104: =+V104*KeyAssumptionsPriceControl_FO!AH$15 -> 0 | CK104: =+W104*KeyAssumptionsPriceControl_FO!AI$15 -> 0 | CL104: =+X104*KeyAssumptionsPriceControl_FO!AJ$15 -> 0 | CM104: =+Y104*KeyAssumptionsPriceControl_FO!AK$15 -> 0 | CN104: =+Z104*KeyAssumptionsPriceControl_FO!AL$15 -> 0.6719581897 | CP104: 0 | CQ104: 0 | CR104: 0 | CS104: 0 | CT104: 0 | CU104: 0 | CV104: 0 | CW104: 0 | CX104: 0 | CY104: 0.004199738685
C105: Cann River WTP - Raw water storage shade cloth replacement | E105: Water | F105: Renewals | G105: Treatment | H105: Other Capital expenditure | J105: Straight line | K105: 2023-24 | L105: 25 | M105: 25 | Q105: 0.3 | R105: 0 | S105: 0 | T105: 0 | U105: 0 | V105: 0 | W105: 0 | X105: 0 | Y105: 0 | Z105: 0 | AX105: 0.3 | AY105: 0 | AZ105: 0 | BA105: 0 | BB105: 0 | BC105: 0 | BD105: 0 | BE105: 0 | BF105: 0 | BG105: 0 | BI105: 0.006 | BJ105: 0.012 | BK105: 0.012 | BL105: 0.012 | BM105: 0.012 | BN105: 0.012 | BO105: 0.012 | BP105: 0.012 | BQ105: 0.012 | BR105: 0.012 | BT105: =+IF($K105="Ongoing",AX105,IF(RIGHT($K105,2)=RIGHT(BT$39,2),SUM($AX105:AX105),0)+IF(RIGHT(BT$39,2)>RIGHT($K105,2),AX105,0)) -> 0.3 | BU105: =+IF($K105="Ongoing",AY105,IF(RIGHT($K105,2)=RIGHT(BU$39,2),SUM($AX105:AY105),0)+IF(RIGHT(BU$39,2)>RIGHT($K105,2),AY105,0)) -> 0 | BV105: =+IF($K105="Ongoing",AZ105,IF(RIGHT($K105,2)=RIGHT(BV$39,2),SUM($AX105:AZ105),0)+IF(RIGHT(BV$39,2)>RIGHT($K105,2),AZ105,0)) -> 0 | BW105: =+IF($K105="Ongoing",BA105,IF(RIGHT($K105,2)=RIGHT(BW$39,2),SUM($AX105:BA105),0)+IF(RIGHT(BW$39,2)>RIGHT($K105,2),BA105,0)) -> 0 | BX105: =+IF($K105="Ongoing",BB105,IF(RIGHT($K105,2)=RIGHT(BX$39,2),SUM($AX105:BB105),0)+IF(RIGHT(BX$39,2)>RIGHT($K105,2),BB105,0)) -> 0 | BY105: =+IF($K105="Ongoing",BC105,IF(RIGHT($K105,2)=RIGHT(BY$39,2),SUM($AX105:BC105),0)+IF(RIGHT(BY$39,2)>RIGHT($K105,2),BC105,0)) -> 0 | BZ105: =+IF($K105="Ongoing",BD105,IF(RIGHT($K105,2)=RIGHT(BZ$39,2),SUM($AX105:BD105),0)+IF(RIGHT(BZ$39,2)>RIGHT($K105,2),BD105,0)) -> 0 | CA105: =+IF($K105="Ongoing",BE105,IF(RIGHT($K105,2)=RIGHT(CA$39,2),SUM($AX105:BE105),0)+IF(RIGHT(CA$39,2)>RIGHT($K105,2),BE105,0)) -> 0 | CB105: =+IF($K105="Ongoing",BF105,IF(RIGHT($K105,2)=RIGHT(CB$39,2),SUM($AX105:BF105),0)+IF(RIGHT(CB$39,2)>RIGHT($K105,2),BF105,0)) -> 0 | CC105: =+IF($K105="Ongoing",BG105,IF(RIGHT($K105,2)=RIGHT(CC$39,2),SUM($AX105:BG105),0)+IF(RIGHT(CC$39,2)>RIGHT($K105,2),BG105,0)) -> 0 | CE105: =+Q105*KeyAssumptionsPriceControl_FO!AC$15 -> 0.309 | CF105: =+R105*KeyAssumptionsPriceControl_FO!AD$15 -> 0 | CG105: =+S105*KeyAssumptionsPriceControl_FO!AE$15 -> 0 | CH105: =+T105*KeyAssumptionsPriceControl_FO!AF$15 -> 0 | CI105: =+U105*KeyAssumptionsPriceControl_FO!AG$15 -> 0 | CJ105: =+V105*KeyAssumptionsPriceControl_FO!AH$15 -> 0 | CK105: =+W105*KeyAssumptionsPriceControl_FO!AI$15 -> 0 | CL105: =+X105*KeyAssumptionsPriceControl_FO!AJ$15 -> 0 | CM105: =+Y105*KeyAssumptionsPriceControl_FO!AK$15 -> 0 | CN105: =+Z105*KeyAssumptionsPriceControl_FO!AL$15 -> 0 | CP105: 0.00618 | CQ105: 0.01236 | CR105: 0.01236 | CS105: 0.01236 | CT105: 0.01236 | CU105: 0.01236 | CV105: 0.01236 | CW105: 0.01236 | CX105: 0.01236 | CY105: 0.01236
C106: Water Main Renewals | E106: Water | F106: Renewals | G106: Pipelines/network | H106: Capital Programs / Allocation | J106: Straight line | K106: Ongoing | L106: 80 | M106: 80 | Q106: 0.2 | R106: 0.354 | S106: 0.35 | T106: 0.35 | U106: 0.44 | V106: 0.509 | W106: 0.131 | X106: 1.337 | Y106: 2.888 | Z106: 3.283 | AX106: 0.2 | AY106: 0.354 | AZ106: 0.35 | BA106: 0.35 | BB106: 0.44 | BC106: 0.509 | BD106: 0.131 | BE106: 1.337 | BF106: 2.888 | BG106: 3.283 | BI106: 0.00125 | BJ106: 0.0047125 | BK106: 0.0091125 | BL106: 0.0134875 | BM106: 0.018425 | BN106: 0.02435625 | BO106: 0.02835625 | BP106: 0.03753125 | BQ106: 0.0639375 | BR106: 0.10250625 | BT106: =+IF($K106="Ongoing",AX106,IF(RIGHT($K106,2)=RIGHT(BT$39,2),SUM($AX106:AX106),0)+IF(RIGHT(BT$39,2)>RIGHT($K106,2),AX106,0)) -> 0.2 | BU106: =+IF($K106="Ongoing",AY106,IF(RIGHT($K106,2)=RIGHT(BU$39,2),SUM($AX106:AY106),0)+IF(RIGHT(BU$39,2)>RIGHT($K106,2),AY106,0)) -> 0.354 | BV106: =+IF($K106="Ongoing",AZ106,IF(RIGHT($K106,2)=RIGHT(BV$39,2),SUM($AX106:AZ106),0)+IF(RIGHT(BV$39,2)>RIGHT($K106,2),AZ106,0)) -> 0.35 | BW106: =+IF($K106="Ongoing",BA106,IF(RIGHT($K106,2)=RIGHT(BW$39,2),SUM($AX106:BA106),0)+IF(RIGHT(BW$39,2)>RIGHT($K106,2),BA106,0)) -> 0.35 | BX106: =+IF($K106="Ongoing",BB106,IF(RIGHT($K106,2)=RIGHT(BX$39,2),SUM($AX106:BB106),0)+IF(RIGHT(BX$39,2)>RIGHT($K106,2),BB106,0)) -> 0.44 | BY106: =+IF($K106="Ongoing",BC106,IF(RIGHT($K106,2)=RIGHT(BY$39,2),SUM($AX106:BC106),0)+IF(RIGHT(BY$39,2)>RIGHT($K106,2),BC106,0)) -> 0.509 | BZ106: =+IF($K106="Ongoing",BD106,IF(RIGHT($K106,2)=RIGHT(BZ$39,2),SUM($AX106:BD106),0)+IF(RIGHT(BZ$39,2)>RIGHT($K106,2),BD106,0)) -> 0.131 | CA106: =+IF($K106="Ongoing",BE106,IF(RIGHT($K106,2)=RIGHT(CA$39,2),SUM($AX106:BE106),0)+IF(RIGHT(CA$39,2)>RIGHT($K106,2),BE106,0)) -> 1.337 | CB106: =+IF($K106="Ongoing",BF106,IF(RIGHT($K106,2)=RIGHT(CB$39,2),SUM($AX106:BF106),0)+IF(RIGHT(CB$39,2)>RIGHT($K106,2),BF106,0)) -> 2.888 | CC106: =+IF($K106="Ongoing",BG106,IF(RIGHT($K106,2)=RIGHT(CC$39,2),SUM($AX106:BG106),0)+IF(RIGHT(CC$39,2)>RIGHT($K106,2),BG106,0)) -> 3.283 | CE106: =+Q106*KeyAssumptionsPriceControl_FO!AC$15 -> 0.206 | CF106: =+R106*KeyAssumptionsPriceControl_FO!AD$15 -> 0.3755586 | CG106: =+S106*KeyAssumptionsPriceControl_FO!AE$15 -> 0.38245445 | CH106: =+T106*KeyAssumptionsPriceControl_FO!AF$15 -> 0.3939280835 | CI106: =+U106*KeyAssumptionsPriceControl_FO!AG$15 -> 0.5100805927 | CJ106: =+V106*KeyAssumptionsPriceControl_FO!AH$15 -> 0.6077726189 | CK106: =+W106*KeyAssumptionsPriceControl_FO!AI$15 -> 0.1611134764 | CL106: =+X106*KeyAssumptionsPriceControl_FO!AJ$15 -> 1.693671599 | CM106: =+Y106*KeyAssumptionsPriceControl_FO!AK$15 -> 3.768184955 | CN106: =+Z106*KeyAssumptionsPriceControl_FO!AL$15 -> 4.412077473 | CP106: 0.0012875 | CQ106: 0.00492224125 | CR106: 0.009659822812 | CS106: 0.01451221365 | CT106: 0.02016226787 | CU106: 0.02714885045 | CV106: 0.03195438854 | CW106: 0.04354679526 | CX106: 0.07768339872 | CY106: 0.1288100389
C107: Buchan WTP - install UV system | E107: Water | F107: Improvements / Compliance | G107: Treatment | H107: Other Capital expenditure | J107: Straight line | K107: 2023-24 | L107: 20 | M107: 20 | Q107: 0.1 | R107: 0 | S107: 0 | T107: 0 | U107: 0 | V107: 0 | W107: 0 | X107: 0 | Y107: 0 | Z107: 0 | AX107: 0.1 | AY107: 0 | AZ107: 0 | BA107: 0 | BB107: 0 | BC107: 0 | BD107: 0 | BE107: 0 | BF107: 0 | BG107: 0 | BI107: 0.0025 | BJ107: 0.005 | BK107: 0.005 | BL107: 0.005 | BM107: 0.005 | BN107: 0.005 | BO107: 0.005 | BP107: 0.005 | BQ107: 0.005 | BR107: 0.005 | BT107: =+IF($K107="Ongoing",AX107,IF(RIGHT($K107,2)=RIGHT(BT$39,2),SUM($AX107:AX107),0)+IF(RIGHT(BT$39,2)>RIGHT($K107,2),AX107,0)) -> 0.1 | BU107: =+IF($K107="Ongoing",AY107,IF(RIGHT($K107,2)=RIGHT(BU$39,2),SUM($AX107:AY107),0)+IF(RIGHT(BU$39,2)>RIGHT($K107,2),AY107,0)) -> 0 | BV107: =+IF($K107="Ongoing",AZ107,IF(RIGHT($K107,2)=RIGHT(BV$39,2),SUM($AX107:AZ107),0)+IF(RIGHT(BV$39,2)>RIGHT($K107,2),AZ107,0)) -> 0 | BW107: =+IF($K107="Ongoing",BA107,IF(RIGHT($K107,2)=RIGHT(BW$39,2),SUM($AX107:BA107),0)+IF(RIGHT(BW$39,2)>RIGHT($K107,2),BA107,0)) -> 0 | BX107: =+IF($K107="Ongoing",BB107,IF(RIGHT($K107,2)=RIGHT(BX$39,2),SUM($AX107:BB107),0)+IF(RIGHT(BX$39,2)>RIGHT($K107,2),BB107,0)) -> 0 | BY107: =+IF($K107="Ongoing",BC107,IF(RIGHT($K107,2)=RIGHT(BY$39,2),SUM($AX107:BC107),0)+IF(RIGHT(BY$39,2)>RIGHT($K107,2),BC107,0)) -> 0 | BZ107: =+IF($K107="Ongoing",BD107,IF(RIGHT($K107,2)=RIGHT(BZ$39,2),SUM($AX107:BD107),0)+IF(RIGHT(BZ$39,2)>RIGHT($K107,2),BD107,0)) -> 0 | CA107: =+IF($K107="Ongoing",BE107,IF(RIGHT($K107,2)=RIGHT(CA$39,2),SUM($AX107:BE107),0)+IF(RIGHT(CA$39,2)>RIGHT($K107,2),BE107,0)) -> 0 | CB107: =+IF($K107="Ongoing",BF107,IF(RIGHT($K107,2)=RIGHT(CB$39,2),SUM($AX107:BF107),0)+IF(RIGHT(CB$39,2)>RIGHT($K107,2),BF107,0)) -> 0 | CC107: =+IF($K107="Ongoing",BG107,IF(RIGHT($K107,2)=RIGHT(CC$39,2),SUM($AX107:BG107),0)+IF(RIGHT(CC$39,2)>RIGHT($K107,2),BG107,0)) -> 0 | CE107: =+Q107*KeyAssumptionsPriceControl_FO!AC$15 -> 0.103 | CF107: =+R107*KeyAssumptionsPriceControl_FO!AD$15 -> 0 | CG107: =+S107*KeyAssumptionsPriceControl_FO!AE$15 -> 0 | CH107: =+T107*KeyAssumptionsPriceControl_FO!AF$15 -> 0 | CI107: =+U107*KeyAssumptionsPriceControl_FO!AG$15 -> 0 | CJ107: =+V107*KeyAssumptionsPriceControl_FO!AH$15 -> 0 | CK107: =+W107*KeyAssumptionsPriceControl_FO!AI$15 -> 0 | CL107: =+X107*KeyAssumptionsPriceControl_FO!AJ$15 -> 0 | CM107: =+Y107*KeyAssumptionsPriceControl_FO!AK$15 -> 0 | CN107: =+Z107*KeyAssumptionsPriceControl_FO!AL$15 -> 0 | CP107: 0.002575 | CQ107: 0.00515 | CR107: 0.00515 | CS107: 0.00515 | CT107: 0.00515 | CU107: 0.00515 | CV107: 0.00515 | CW107: 0.00515 | CX107: 0.00515 | CY107: 0.00515
C108: Woodglen No.1 raw water storage dam safety upgrades (Medium-Long Term) | E108: Water | F108: Renewals | G108: Headworks | H108: Other Capital expenditure | J108: Straight line | K108: 2027-28 | L108: 50 | M108: 50 | Q108: 0 | R108: 0 | S108: 0.2 | T108: 0.5 | U108: 0.3 | V108: 0 | W108: 0 | X108: 0 | Y108: 0 | Z108: 0 | AX108: 0 | AY108: 0 | AZ108: 0.2 | BA108: 0.5 | BB108: 0.3 | BC108: 0 | BD108: 0 | BE108: 0 | BF108: 0 | BG108: 0 | BI108: 0 | BJ108: 0 | BK108: 0 | BL108: 0 | BM108: 0.01 | BN108: 0.02 | BO108: 0.02 | BP108: 0.02 | BQ108: 0.02 | BR108: 0.02 | BT108: =+IF($K108="Ongoing",AX108,IF(RIGHT($K108,2)=RIGHT(BT$39,2),SUM($AX108:AX108),0)+IF(RIGHT(BT$39,2)>RIGHT($K108,2),AX108,0)) -> 0 | BU108: =+IF($K108="Ongoing",AY108,IF(RIGHT($K108,2)=RIGHT(BU$39,2),SUM($AX108:AY108),0)+IF(RIGHT(BU$39,2)>RIGHT($K108,2),AY108,0)) -> 0 | BV108: =+IF($K108="Ongoing",AZ108,IF(RIGHT($K108,2)=RIGHT(BV$39,2),SUM($AX108:AZ108),0)+IF(RIGHT(BV$39,2)>RIGHT($K108,2),AZ108,0)) -> 0 | BW108: =+IF($K108="Ongoing",BA108,IF(RIGHT($K108,2)=RIGHT(BW$39,2),SUM($AX108:BA108),0)+IF(RIGHT(BW$39,2)>RIGHT($K108,2),BA108,0)) -> 0 | BX108: =+IF($K108="Ongoing",BB108,IF(RIGHT($K108,2)=RIGHT(BX$39,2),SUM($AX108:BB108),0)+IF(RIGHT(BX$39,2)>RIGHT($K108,2),BB108,0)) -> 1 | BY108: =+IF($K108="Ongoing",BC108,IF(RIGHT($K108,2)=RIGHT(BY$39,2),SUM($AX108:BC108),0)+IF(RIGHT(BY$39,2)>RIGHT($K108,2),BC108,0)) -> 0 | BZ108: =+IF($K108="Ongoing",BD108,IF(RIGHT($K108,2)=RIGHT(BZ$39,2),SUM($AX108:BD108),0)+IF(RIGHT(BZ$39,2)>RIGHT($K108,2),BD108,0)) -> 0 | CA108: =+IF($K108="Ongoing",BE108,IF(RIGHT($K108,2)=RIGHT(CA$39,2),SUM($AX108:BE108),0)+IF(RIGHT(CA$39,2)>RIGHT($K108,2),BE108,0)) -> 0 | CB108: =+IF($K108="Ongoing",BF108,IF(RIGHT($K108,2)=RIGHT(CB$39,2),SUM($AX108:BF108),0)+IF(RIGHT(CB$39,2)>RIGHT($K108,2),BF108,0)) -> 0 | CC108: =+IF($K108="Ongoing",BG108,IF(RIGHT($K108,2)=RIGHT(CC$39,2),SUM($AX108:BG108),0)+IF(RIGHT(CC$39,2)>RIGHT($K108,2),BG108,0)) -> 0 | CE108: =+Q108*KeyAssumptionsPriceControl_FO!AC$15 -> 0 | CF108: =+R108*KeyAssumptionsPriceControl_FO!AD$15 -> 0 | CG108: =+S108*KeyAssumptionsPriceControl_FO!AE$15 -> 0.2185454 | CH108: =+T108*KeyAssumptionsPriceControl_FO!AF$15 -> 0.562754405 | CI108: =+U108*KeyAssumptionsPriceControl_FO!AG$15 -> 0.3477822223 | CJ108: =+V108*KeyAssumptionsPriceControl_FO!AH$15 -> 0 | CK108: =+W108*KeyAssumptionsPriceControl_FO!AI$15 -> 0 | CL108: =+X108*KeyAssumptionsPriceControl_FO!AJ$15 -> 0 | CM108: =+Y108*KeyAssumptionsPriceControl_FO!AK$15 -> 0 | CN108: =+Z108*KeyAssumptionsPriceControl_FO!AL$15 -> 0 | CP108: 0 | CQ108: 0 | CR108: 0.002185454 | CS108: 0.00999845205 | CT108: 0.01910381832 | CU108: 0.02258164055 | CV108: 0.02258164055 | CW108: 0.02258164055 | CX108: 0.02258164055 | CY108: 0.02258164055
